Workbook

Sheet AssumptionMatrix
B2: Criteria | C2: Alternative A2 - 91 TAF CVP OpFlex - CDFW Scenario B w/ Tisdale Weir criteria | D2: Alternative A2 - 91 TAF CVP OpFlex - Preliminary Effects Analysis (relaxed criteria)
A3: Baseline
B4: Baseline model | C4: RoC on LTO PA | D4: RoC on LTO PA
A5: Fixed Flows
B6: American River | C6: No | D6: No
B7: Trinity River | C7: Yes - All | D7: Yes - All
A8: Regulations (Not Sites Specific)
B9: Fremont Weir | C9: Fremont Weir Notch | D9: Fremont Weir Notch
A10: Sites Project Facilities
B11: Sites Reservoir
B12: Reservoir Capacity | C12: 1.5 MAF | D12: 1.5 MAF
B13: Dead Pool Size | C13: 120 TAF | D13: 120 TAF
B14: Dead pool transfer to TCCA in drought periods | C14: 60 TAF | D14: 60 TAF
B15: Red Bluff Diversion/Tehama-Colusa Canal
B16: Red Bluff Diverison Capacity | C16: 2,100 cfs | D16: 2,100 cfs
B17: Red Bluff Bypass Flow | C17: 3,250 cfs | D17: 3,250 cfs
B18: Hamilton City Diversion/Glenn-Colusa Canal
B19: Hamilton City Diverison Capacity | C19: 1,800 cfs | D19: 1,800 cfs
B20: Hamilton City Bypass Flow | C20: 4,000 cfs | D20: 4,000 cfs
B21: GCC Maintenance Window | C21: 2 weeks (Jan/Feb) | D21: 2 weeks (Jan/Feb)
B22: Dunnigan Pipeline
B23: Dunnigan release capacity | C23: 1,000 cfs | D23: 1,000 cfs
B24: Dunnigan Pipeline endpoint | C24: Colusa Basin Drain | D24: Colusa Basin Drain
A25: Regulations (Sites Specific)
B26: Bend Bridge Pulse Protection | C26: First pulse | D26: First pulse
B27: Scaled Diversions | C27: None | D27: None
B28: Wilkins Slough Bypass Flow | C28: 8,000 cfs April/May; | D28: 8,000 cfs April/May;
C29: all other times, 5,000 cfs | D29: all other times, 5,000 cfs
B30: Fremont Weir Notch Criteria | C30: Prioritize the Fremont Weir Notch, Yolo Bypass preferred alternative, flow over weir within 5% | D30: Prioritize the Fremont Weir Notch, Yolo Bypass preferred alternative, flow over weir within 9%
B31: Flows into the Sutter Bypass System | C31: Prioiritize flows over Moulton, Colusa, and Tisdale Weirs within 5% | D31: Prioiritize flows over Moulton, Colusa, and Tisdale Weirs within 25%
B32: Freeport Bypass Flow | C32: Modeled WaterFix Criteria (applied on a daily basis) | D32: Maintain Delta Water Quality (15,000 cfs in January; 13,000 cfs in December and February through June; 11,000 cfs all other times)
C33: Post-Pulse Protection (applied on a moving 7-day average)
C34: Post-Pulse (3 levels) = Jan-Mar
C35: Level 2 starts Jan 1st
C36: Level 1 is initiated by the pulse trigger
B37: Net Delta Outflow Index (NDOI) Prior to Project Diversions | C37: 44,500 cfs between March 1st and May 31st | D37: None
A38: Delivery Operations
B39: CVP Operational Flexibility | C39: 91 TAF | D39: 91 TAF
B40: South of Delta Delivery | C40: Delta Participants use Banks PP conveyance and Oroville storage reoperation and CVP participates with Op Flex for additional CVP water supply and Shasta Lake reoperation | D40: Delta Participants use Banks PP conveyance and Oroville storage reoperation and CVP participates with Op Flex for additional CVP water supply and Shasta Lake reoperation
B41: Conveyance to Sacramento River | C41: Dunnigan Pipeline to the Colusa Basin Drain | D41: Dunnigan Pipeline to the Colusa Basin Drain
A42: Sites Account Volumes (TAF)
B43: PWA | C43: =SUM(C44:C48) -> 1045 | D43: 1045
B44: TCCA | C44: 100 | D44: 100
B45: GCID | C45: 20 | D45: 20
B46: RD 108 | C46: 20 | D46: 20
B47: Other Sac Valley | C47: 50 | D47: 50
B48: South of Delta | C48: 855 | D48: 855
B49: State | C49: =C50+C51 -> 243.9678112 | D49: 243.9678112
B50: Refuge L4 Deliveries | C50: 123.9678112 | D50: 123.9678112
B51: Yolo Bypass | C51: 120 | D51: 120
B52: Federal | C52: =C53 -> 91 | D52: 91
B53: CVP OpFlex | C53: 91 | D53: 91

Sheet Report - ALL (DASHBOARD)
A1: PRELIMINARY - NOT FOR DISTRIBUTION
A2: Dashboard | B2: Select Parameter: | F2: Select Statistic: | I2: Select Seasonal Period: | L2: Do you want to convert CFS values to TAF/Mon? | W2: 32
W3: 1
W4: 16
L5: News | W5: TRUE
L6: - parameter list updated to include all items on the appendix list (in addition to other locations of interest)
L7: - year type sorting is now done by calendar year
L8: - year type sorting is provided for 60-20-20 index as well as 40-30-30 index
L9: - format modified to be consistent with appendix reports
L10: - check out the new spinners!
B13: =CONCATENATE('Report Data'!$P$7," / seasonal statistics (",$W$2,"-",$W$3,"-",$W$4,"-",IF(NOT($W$5),1,2),"a):") -> Total Sites Release (PRELIMINARY) / seasonal statistics (32-1-16-2a):
C17: ='Report Data'!P6 -> October-September
C18: ='Report Data'!P7 -> Total Sites Release (PRELIMINARY)
C19: ='Report Data'!P9 -> (C17604/FLOW-CHANNEL)
C20: ='Report Data'!P8 -> Averages
C21: ='Report Data'!P11 -> Volume (TAF) | F21: =CONCATENATE("Difference from ",'Report Data'!Q13) -> Difference from NAA 091720 | G21: =CONCATENATE("Difference from ",'Report Data'!R13) -> Difference from ALTA2
C25: ='Report Data'!O14 -> NAA 091720 | E25: ='Report Data'!P14 -> 0
C26: ='Report Data'!O15 -> ALTA2 | E26: ='Report Data'!P15 -> 182.3536327 | F26: ='Report Data'!Q15 -> 182.3536327
C27: ='Report Data'!O16 -> ALTA2 PEA | E27: ='Report Data'!P16 -> 215.2953705 | F27: ='Report Data'!Q16 -> 215.2953705 | G27: ='Report Data'!R16 -> 32.94173782
C28: ='Report Data'!O17 -> EXTRA1 | E28: ='Report Data'!P17 -> 0 | F28: ='Report Data'!Q17 -> 0 | G28: ='Report Data'!R17 -> -182.3536327
C29: ='Report Data'!O18 -> EXTRA2 | E29: ='Report Data'!P18 -> 0 | F29: ='Report Data'!Q18 -> 0 | G29: ='Report Data'!R18 -> -182.3536327
B60: =CONCATENATE('Report Data'!$P$7," / monthly statistics (",$W$2,"-",$W$3,"-",$W$4,"-",IF(NOT($W$5),1,2),"b):") -> Total Sites Release (PRELIMINARY) / monthly statistics (32-1-16-2b):
B116: =CONCATENATE('Report Data'!$P$7," / time series (",$W$2,"-",$W$3,"-",$W$4,"-",IF(NOT($W$5),1,2),"c):") -> Total Sites Release (PRELIMINARY) / time series (32-1-16-2c):

Sheet Chart - Prob Exc

Sheet Chart - Pattern

Sheet Report Data
A2: Information, Tables and Calculations for Reports
A4: Table of Selected Values for Monthly Chart: | O4: Trend Evaluation: | U4: Water Year Type Averages:
A6: Title: | B6: ='Compile Data'!$B$5&" (PRELIMINARY)" -> Total Sites Release (PRELIMINARY) | O6: Title: | P6: =INDEX(Other!$B$9:$B$33,'Report - ALL (DASHBOARD)'!$W$4) -> October-September | U6: Title: | V6: =INDEX(Other!$B$9:$B$33,'Report - ALL (DASHBOARD)'!$W$4) -> October-September
B7: =INDEX(Other!$C$9:$C$33,'Report - ALL (DASHBOARD)'!$W$3) -> Averages | P7: ='Compile Data'!$B$5&" (PRELIMINARY)" -> Total Sites Release (PRELIMINARY) | V7: ='Compile Data'!$B$5&" (PRELIMINARY)" -> Total Sites Release (PRELIMINARY)
B8: =CONCATENATE("(",'Compile Data'!$B$6,"/",'Compile Data'!$B$7,")") -> (C17604/FLOW-CHANNEL) | P8: =CONCATENATE(INDEX(Other!$C$9:$C$33,'Report - ALL (DASHBOARD)'!$W$3)," ",IF('Report - ALL (DASHBOARD)'!$W$3>4,IF(AND('Compile Data'!$B$10="TAF",'Compile Data'!$B$8="PER-AVER"),"Totals","Averages"),"")) -> Averages | V8: =CONCATENATE(INDEX(Other!$C$9:$C$33,'Report - ALL (DASHBOARD)'!$W$3)," ",IF('Report - ALL (DASHBOARD)'!$W$3>4,IF(AND('Compile Data'!$B$10="TAF",'Compile Data'!$B$8="PER-AVER"),"Totals","Averages"),"")) -> Averages
P9: =CONCATENATE("(",'Compile Data'!$B$6,"/",'Compile Data'!$B$7,")") -> (C17604/FLOW-CHANNEL) | V9: =CONCATENATE("(",'Compile Data'!$B$6,"/",'Compile Data'!$B$7,")") -> (C17604/FLOW-CHANNEL)
A11: Y-axis: | B11: =IF('Compile Data'!$B$10="CFS","Flow (CFS)",IF('Compile Data'!$B$10="TAF","Volume (TAF)",IF('Compile Data'!$B$10="KM","POSITION (KM)",""))) -> Volume (TAF) | P11: =IF('Compile Data'!$B$10="CFS","Flow (CFS)",IF('Compile Data'!$B$10="TAF","Volume (TAF)",IF('Compile Data'!$B$10="KM","POSITION (KM)",""))) -> Volume (TAF) | V11: =IF('Compile Data'!$B$10="CFS","Flow (CFS)",IF('Compile Data'!$B$10="TAF","Volume (TAF)",IF('Compile Data'!$B$10="KM","POSITION (KM)",""))) -> Volume (TAF)
Q12: Diff from | R12: Diff from
B13: OCT | C13: NOV | D13: DEC | E13: JAN | F13: FEB | G13: MAR | H13: APR | I13: MAY | J13: JUN | K13: JUL | L13: AUG | M13: SEP | P13: Value | Q13: =$O$14 -> NAA 091720 | R13: =$O$15 -> ALTA2 | V13: Wet | W13: Above Normal | X13: Below Normal | Y13: Dry | Z13: Critically Dry
A14: ='Compile Data'!$B$1 -> NAA 091720 | B14: =INDEX('Compile Data'!K$95:K$118,'Report - ALL (DASHBOARD)'!$W$3) -> 0 | C14: =INDEX('Compile Data'!L$95:L$118,'Report - ALL (DASHBOARD)'!$W$3) -> 0 | D14: =INDEX('Compile Data'!M$95:M$118,'Report - ALL (DASHBOARD)'!$W$3) -> 0 | E14: =INDEX('Compile Data'!N$95:N$118,'Report - ALL (DASHBOARD)'!$W$3) -> 0 | F14: =INDEX('Compile Data'!O$95:O$118,'Report - ALL (DASHBOARD)'!$W$3) -> 0 | G14: =INDEX('Compile Data'!P$95:P$118,'Report - ALL (DASHBOARD)'!$W$3) -> 0 | H14: =INDEX('Compile Data'!Q$95:Q$118,'Report - ALL (DASHBOARD)'!$W$3) -> 0 | I14: =INDEX('Compile Data'!R$95:R$118,'Report - ALL (DASHBOARD)'!$W$3) -> 0 | J14: =INDEX('Compile Data'!S$95:S$118,'Report - ALL (DASHBOARD)'!$W$3) -> 0 | K14: =INDEX('Compile Data'!T$95:T$118,'Report - ALL (DASHBOARD)'!$W$3) -> 0 | L14: =INDEX('Compile Data'!U$95:U$118,'Report - ALL (DASHBOARD)'!$W$3) -> 0 | M14: =INDEX('Compile Data'!V$95:V$118,'Report - ALL (DASHBOARD)'!$W$3) -> 0 | O14: ='Compile Data'!$B$1 -> NAA 091720 | P14: =INDEX('Compile Data'!$K$95:$AH$118,'Report - ALL (DASHBOARD)'!$W$3,'Report - ALL (DASHBOARD)'!$W$4) -> 0 | U14: ='Compile Data'!$B$1 -> NAA 091720 | V14: =INDEX('Compile Data'!$K$95:$AH$118,12,'Report - ALL (DASHBOARD)'!$W$4) -> 0 | W14: =INDEX('Compile Data'!$K$95:$AH$118,13,'Report - ALL (DASHBOARD)'!$W$4) -> 0 | X14: =INDEX('Compile Data'!$K$95:$AH$118,14,'Report - ALL (DASHBOARD)'!$W$4) -> 0 | Y14: =INDEX('Compile Data'!$K$95:$AH$118,15,'Report - ALL (DASHBOARD)'!$W$4) -> 0 | Z14: =INDEX('Compile Data'!$K$95:$AH$118,16,'Report - ALL (DASHBOARD)'!$W$4) -> 0
A15: ='Compile Data'!$C$1 -> ALTA2 | B15: =INDEX('Compile Data'!AK$95:AK$118,'Report - ALL (DASHBOARD)'!$W$3) -> 19.59431949 | C15: =INDEX('Compile Data'!AL$95:AL$118,'Report - ALL (DASHBOARD)'!$W$3) -> 9.416326281 | D15: =INDEX('Compile Data'!AM$95:AM$118,'Report - ALL (DASHBOARD)'!$W$3) -> 2.616728235 | E15: =INDEX('Compile Data'!AN$95:AN$118,'Report - ALL (DASHBOARD)'!$W$3) -> 0 | F15: =INDEX('Compile Data'!AO$95:AO$118,'Report - ALL (DASHBOARD)'!$W$3) -> 0.2538027372 | G15: =INDEX('Compile Data'!AP$95:AP$118,'Report - ALL (DASHBOARD)'!$W$3) -> 0.7501690955 | H15: =INDEX('Compile Data'!AQ$95:AQ$118,'Report - ALL (DASHBOARD)'!$W$3) -> 4.489554083 | I15: =INDEX('Compile Data'!AR$95:AR$118,'Report - ALL (DASHBOARD)'!$W$3) -> 9.226856493 | J15: =INDEX('Compile Data'!AS$95:AS$118,'Report - ALL (DASHBOARD)'!$W$3) -> 13.70530045 | K15: =INDEX('Compile Data'!AT$95:AT$118,'Report - ALL (DASHBOARD)'!$W$3) -> 58.98106511 | L15: =INDEX('Compile Data'!AU$95:AU$118,'Report - ALL (DASHBOARD)'!$W$3) -> 38.76109709 | M15: =INDEX('Compile Data'!AV$95:AV$118,'Report - ALL (DASHBOARD)'!$W$3) -> 24.55841359 | O15: ='Compile Data'!$C$1 -> ALTA2 | P15: =INDEX('Compile Data'!$AK$95:$BH$118,'Report - ALL (DASHBOARD)'!$W$3,'Report - ALL (DASHBOARD)'!$W$4) -> 182.3536327 | Q15: =$P15-$P$14 -> 182.3536327 | U15: ='Compile Data'!$C$1 -> ALTA2 | V15: =INDEX('Compile Data'!$AK$95:$BH$118,12,'Report - ALL (DASHBOARD)'!$W$4) -> 74.62601339 | W15: =INDEX('Compile Data'!$AK$95:$BH$118,13,'Report - ALL (DASHBOARD)'!$W$4) -> 173.9972755 | X15: =INDEX('Compile Data'!$AK$95:$BH$118,14,'Report - ALL (DASHBOARD)'!$W$4) -> 187.8998767 | Y15: =INDEX('Compile Data'!$AK$95:$BH$118,15,'Report - ALL (DASHBOARD)'!$W$4) -> 308.5821906 | Z15: =INDEX('Compile Data'!$AK$95:$BH$118,16,'Report - ALL (DASHBOARD)'!$W$4) -> 228.3063766
A16: ='Compile Data'!$D$1 -> ALTA2 PEA | B16: =INDEX('Compile Data'!BK$95:BK$118,'Report - ALL (DASHBOARD)'!$W$3) -> 25.12399467 | C16: =INDEX('Compile Data'!BL$95:BL$118,'Report - ALL (DASHBOARD)'!$W$3) -> 11.03362304 | D16: =INDEX('Compile Data'!BM$95:BM$118,'Report - ALL (DASHBOARD)'!$W$3) -> 2.786023181 | E16: =INDEX('Compile Data'!BN$95:BN$118,'Report - ALL (DASHBOARD)'!$W$3) -> 6.841245386e-05 | F16: =INDEX('Compile Data'!BO$95:BO$118,'Report - ALL (DASHBOARD)'!$W$3) -> 0.2159676914 | G16: =INDEX('Compile Data'!BP$95:BP$118,'Report - ALL (DASHBOARD)'!$W$3) -> 0.819701752 | H16: =INDEX('Compile Data'!BQ$95:BQ$118,'Report - ALL (DASHBOARD)'!$W$3) -> 4.688905172 | I16: =INDEX('Compile Data'!BR$95:BR$118,'Report - ALL (DASHBOARD)'!$W$3) -> 10.93308362 | J16: =INDEX('Compile Data'!BS$95:BS$118,'Report - ALL (DASHBOARD)'!$W$3) -> 18.99778177 | K16: =INDEX('Compile Data'!BT$95:BT$118,'Report - ALL (DASHBOARD)'!$W$3) -> 64.92662855 | L16: =INDEX('Compile Data'!BU$95:BU$118,'Report - ALL (DASHBOARD)'!$W$3) -> 46.97909559 | M16: =INDEX('Compile Data'!BV$95:BV$118,'Report - ALL (DASHBOARD)'!$W$3) -> 28.79049702 | O16: ='Compile Data'!$D$1 -> ALTA2 PEA | P16: =INDEX('Compile Data'!$BK$95:$CH$118,'Report - ALL (DASHBOARD)'!$W$3,'Report - ALL (DASHBOARD)'!$W$4) -> 215.2953705 | Q16: =$P16-$P$14 -> 215.2953705 | R16: =$P16-$P$15 -> 32.94173782 | U16: ='Compile Data'!$D$1 -> ALTA2 PEA | V16: =INDEX('Compile Data'!$BK$95:$CH$118,12,'Report - ALL (DASHBOARD)'!$W$4) -> 82.48859405 | W16: =INDEX('Compile Data'!$BK$95:$CH$118,13,'Report - ALL (DASHBOARD)'!$W$4) -> 216.6230987 | X16: =INDEX('Compile Data'!$BK$95:$CH$118,14,'Report - ALL (DASHBOARD)'!$W$4) -> 220.8014041 | Y16: =INDEX('Compile Data'!$BK$95:$CH$118,15,'Report - ALL (DASHBOARD)'!$W$4) -> 366.337537 | Z16: =INDEX('Compile Data'!$BK$95:$CH$118,16,'Report - ALL (DASHBOARD)'!$W$4) -> 268.7287021
A17: ='Compile Data'!$E$1 -> EXTRA1 | B17: =INDEX('Compile Data'!CK$95:CK$118,'Report - ALL (DASHBOARD)'!$W$3) -> 0 | C17: =INDEX('Compile Data'!CL$95:CL$118,'Report - ALL (DASHBOARD)'!$W$3) -> 0 | D17: =INDEX('Compile Data'!CM$95:CM$118,'Report - ALL (DASHBOARD)'!$W$3) -> 0 | E17: =INDEX('Compile Data'!CN$95:CN$118,'Report - ALL (DASHBOARD)'!$W$3) -> 0 | F17: =INDEX('Compile Data'!CO$95:CO$118,'Report - ALL (DASHBOARD)'!$W$3) -> 0 | G17: =INDEX('Compile Data'!CP$95:CP$118,'Report - ALL (DASHBOARD)'!$W$3) -> 0 | H17: =INDEX('Compile Data'!CQ$95:CQ$118,'Report - ALL (DASHBOARD)'!$W$3) -> 0 | I17: =INDEX('Compile Data'!CR$95:CR$118,'Report - ALL (DASHBOARD)'!$W$3) -> 0 | J17: =INDEX('Compile Data'!CS$95:CS$118,'Report - ALL (DASHBOARD)'!$W$3) -> 0 | K17: =INDEX('Compile Data'!CT$95:CT$118,'Report - ALL (DASHBOARD)'!$W$3) -> 0 | L17: =INDEX('Compile Data'!CU$95:CU$118,'Report - ALL (DASHBOARD)'!$W$3) -> 0 | M17: =INDEX('Compile Data'!CV$95:CV$118,'Report - ALL (DASHBOARD)'!$W$3) -> 0 | O17: ='Compile Data'!$E$1 -> EXTRA1 | P17: =INDEX('Compile Data'!$CK$95:$DH$118,'Report - ALL (DASHBOARD)'!$W$3,'Report - ALL (DASHBOARD)'!$W$4) -> 0 | Q17: 0 | R17: =$P17-$P$15 -> -182.3536327 | U17: ='Compile Data'!$E$1 -> EXTRA1 | V17: =INDEX('Compile Data'!$CK$95:$DH$118,12,'Report - ALL (DASHBOARD)'!$W$4) -> 0 | W17: =INDEX('Compile Data'!$CK$95:$DH$118,13,'Report - ALL (DASHBOARD)'!$W$4) -> 0 | X17: =INDEX('Compile Data'!$CK$95:$DH$118,14,'Report - ALL (DASHBOARD)'!$W$4) -> 0 | Y17: =INDEX('Compile Data'!$CK$95:$DH$118,15,'Report - ALL (DASHBOARD)'!$W$4) -> 0 | Z17: =INDEX('Compile Data'!$CK$95:$DH$118,16,'Report - ALL (DASHBOARD)'!$W$4) -> 0
A18: ='Compile Data'!$F$1 -> EXTRA2 | B18: =INDEX('Compile Data'!DK$95:DK$118,'Report - ALL (DASHBOARD)'!$W$3) -> 0 | C18: =INDEX('Compile Data'!DL$95:DL$118,'Report - ALL (DASHBOARD)'!$W$3) -> 0 | D18: =INDEX('Compile Data'!DM$95:DM$118,'Report - ALL (DASHBOARD)'!$W$3) -> 0 | E18: =INDEX('Compile Data'!DN$95:DN$118,'Report - ALL (DASHBOARD)'!$W$3) -> 0 | F18: =INDEX('Compile Data'!DO$95:DO$118,'Report - ALL (DASHBOARD)'!$W$3) -> 0 | G18: =INDEX('Compile Data'!DP$95:DP$118,'Report - ALL (DASHBOARD)'!$W$3) -> 0 | H18: =INDEX('Compile Data'!DQ$95:DQ$118,'Report - ALL (DASHBOARD)'!$W$3) -> 0 | I18: =INDEX('Compile Data'!DR$95:DR$118,'Report - ALL (DASHBOARD)'!$W$3) -> 0 | J18: =INDEX('Compile Data'!DS$95:DS$118,'Report - ALL (DASHBOARD)'!$W$3) -> 0 | K18: =INDEX('Compile Data'!DT$95:DT$118,'Report - ALL (DASHBOARD)'!$W$3) -> 0 | L18: =INDEX('Compile Data'!DU$95:DU$118,'Report - ALL (DASHBOARD)'!$W$3) -> 0 | M18: =INDEX('Compile Data'!DV$95:DV$118,'Report - ALL (DASHBOARD)'!$W$3) -> 0 | O18: ='Compile Data'!$F$1 -> EXTRA2 | P18: =INDEX('Compile Data'!$DK$95:$EH$118,'Report - ALL (DASHBOARD)'!$W$3,'Report - ALL (DASHBOARD)'!$W$4) -> 0 | Q18: 0 | R18: =$P18-$P$15 -> -182.3536327 | U18: ='Compile Data'!$F$1 -> EXTRA2 | V18: =INDEX('Compile Data'!$DK$95:$EH$118,12,'Report - ALL (DASHBOARD)'!$W$4) -> 0 | W18: =INDEX('Compile Data'!$DK$95:$EH$118,13,'Report - ALL (DASHBOARD)'!$W$4) -> 0 | X18: =INDEX('Compile Data'!$DK$95:$EH$118,14,'Report - ALL (DASHBOARD)'!$W$4) -> 0 | Y18: =INDEX('Compile Data'!$DK$95:$EH$118,15,'Report - ALL (DASHBOARD)'!$W$4) -> 0 | Z18: =INDEX('Compile Data'!$DK$95:$EH$118,16,'Report - ALL (DASHBOARD)'!$W$4) -> 0
A22: Annuals Plot: | O22: Exceedence Plot:
A24: Title: | B24: =INDEX(Other!$B$9:$B$33,'Report - ALL (DASHBOARD)'!$W$4) -> October-September | O24: Title: | P24: =INDEX(Other!$B$9:$B$33,'Report - ALL (DASHBOARD)'!$W$4) -> October-September
B25: ='Compile Data'!$B$5&" (PRELIMINARY)" -> Total Sites Release (PRELIMINARY) | P25: ='Compile Data'!$B$5&" (PRELIMINARY)" -> Total Sites Release (PRELIMINARY)
B26: =IF('Compile Data'!$B$10="CFS","Flow (CFS)",IF('Compile Data'!$B$10="TAF","Volume (TAF)",IF('Compile Data'!$B$10="KM","POSITION (KM)",""))) -> Volume (TAF) | P26: =IF('Compile Data'!$B$10="CFS","Flow (CFS)",IF('Compile Data'!$B$10="TAF","Volume (TAF)",IF('Compile Data'!$B$10="KM","POSITION (KM)",""))) -> Volume (TAF)
B28: ='Compile Data'!$B$1 -> NAA 091720 | C28: ='Compile Data'!$C$1 -> ALTA2 | D28: ='Compile Data'!$D$1 -> ALTA2 PEA | E28: ='Compile Data'!$E$1 -> EXTRA1 | F28: ='Compile Data'!$F$1 -> EXTRA2 | Q28: ='Compile Data'!$B$1 -> NAA 091720 | R28: ='Compile Data'!$C$1 -> ALTA2 | S28: ='Compile Data'!$D$1 -> ALTA2 PEA | T28: ='Compile Data'!$E$1 -> EXTRA1 | U28: ='Compile Data'!$F$1 -> EXTRA2
A29: 1922 | B29: =INDEX('Compile Data'!$K$12:$AH$93,$A29-1921,'Report - ALL (DASHBOARD)'!$W$4) -> 0 | C29: =INDEX('Compile Data'!$AK$12:$BH$93,$A29-1921,'Report - ALL (DASHBOARD)'!$W$4) -> 144.7363425 | D29: =INDEX('Compile Data'!$BK$12:$CH$93,$A29-1921,'Report - ALL (DASHBOARD)'!$W$4) -> 147.0344376 | E29: =INDEX('Compile Data'!$CK$12:$DH$93,$A29-1921,'Report - ALL (DASHBOARD)'!$W$4) -> 0 | F29: =INDEX('Compile Data'!$DK$12:$EH$93,$A29-1921,'Report - ALL (DASHBOARD)'!$W$4) -> 0 | O29: 1 | P29: =(O29-1)/81 -> 0 | Q29: =INDEX('Compile Data'!$K$121:$AH$202,$O29,'Report - ALL (DASHBOARD)'!$W$4) -> 0 | R29: =INDEX('Compile Data'!$AK$121:$BH$202,$O29,'Report - ALL (DASHBOARD)'!$W$4) -> 499.7567464 | S29: =INDEX('Compile Data'!$BK$121:$CH$202,$O29,'Report - ALL (DASHBOARD)'!$W$4) -> 508.4950965 | T29: =INDEX('Compile Data'!$CK$121:$DH$202,$O29,'Report - ALL (DASHBOARD)'!$W$4) -> 0 | U29: =INDEX('Compile Data'!$DK$121:$EH$202,$O29,'Report - ALL (DASHBOARD)'!$W$4) -> 0
A30: =A29+1 -> 1923 | B30: =INDEX('Compile Data'!$K$12:$AH$93,$A30-1921,'Report - ALL (DASHBOARD)'!$W$4) -> 0 | C30: =INDEX('Compile Data'!$AK$12:$BH$93,$A30-1921,'Report - ALL (DASHBOARD)'!$W$4) -> 241.6337329 | D30: =INDEX('Compile Data'!$BK$12:$CH$93,$A30-1921,'Report - ALL (DASHBOARD)'!$W$4) -> 244.8377458 | E30: =INDEX('Compile Data'!$CK$12:$DH$93,$A30-1921,'Report - ALL (DASHBOARD)'!$W$4) -> 0 | F30: =INDEX('Compile Data'!$DK$12:$EH$93,$A30-1921,'Report - ALL (DASHBOARD)'!$W$4) -> 0 | O30: 2 | P30: 0.01234567901 | Q30: =INDEX('Compile Data'!$K$121:$AH$202,$O30,'Report - ALL (DASHBOARD)'!$W$4) -> 0 | R30: =INDEX('Compile Data'!$AK$121:$BH$202,$O30,'Report - ALL (DASHBOARD)'!$W$4) -> 487.2533339 | S30: =INDEX('Compile Data'!$BK$121:$CH$202,$O30,'Report - ALL (DASHBOARD)'!$W$4) -> 503.3628374 | T30: =INDEX('Compile Data'!$CK$121:$DH$202,$O30,'Report - ALL (DASHBOARD)'!$W$4) -> 0 | U30: =INDEX('Compile Data'!$DK$121:$EH$202,$O30,'Report - ALL (DASHBOARD)'!$W$4) -> 0
A31: =A30+1 -> 1924 | B31: =INDEX('Compile Data'!$K$12:$AH$93,$A31-1921,'Report - ALL (DASHBOARD)'!$W$4) -> 0 | C31: =INDEX('Compile Data'!$AK$12:$BH$93,$A31-1921,'Report - ALL (DASHBOARD)'!$W$4) -> 487.2533339 | D31: =INDEX('Compile Data'!$BK$12:$CH$93,$A31-1921,'Report - ALL (DASHBOARD)'!$W$4) -> 488.4341415 | E31: =INDEX('Compile Data'!$CK$12:$DH$93,$A31-1921,'Report - ALL (DASHBOARD)'!$W$4) -> 0 | F31: =INDEX('Compile Data'!$DK$12:$EH$93,$A31-1921,'Report - ALL (DASHBOARD)'!$W$4) -> 0 | O31: 3 | P31: 0.02469135802 | Q31: =INDEX('Compile Data'!$K$121:$AH$202,$O31,'Report - ALL (DASHBOARD)'!$W$4) -> 0 | R31: =INDEX('Compile Data'!$AK$121:$BH$202,$O31,'Report - ALL (DASHBOARD)'!$W$4) -> 487.120108 | S31: =INDEX('Compile Data'!$BK$121:$CH$202,$O31,'Report - ALL (DASHBOARD)'!$W$4) -> 499.2209828 | T31: =INDEX('Compile Data'!$CK$121:$DH$202,$O31,'Report - ALL (DASHBOARD)'!$W$4) -> 0 | U31: =INDEX('Compile Data'!$DK$121:$EH$202,$O31,'Report - ALL (DASHBOARD)'!$W$4) -> 0
A32: 1925 | B32: =INDEX('Compile Data'!$K$12:$AH$93,$A32-1921,'Report - ALL (DASHBOARD)'!$W$4) -> 0 | C32: =INDEX('Compile Data'!$AK$12:$BH$93,$A32-1921,'Report - ALL (DASHBOARD)'!$W$4) -> 266.7199529 | D32: =INDEX('Compile Data'!$BK$12:$CH$93,$A32-1921,'Report - ALL (DASHBOARD)'!$W$4) -> 361.5316112 | E32: =INDEX('Compile Data'!$CK$12:$DH$93,$A32-1921,'Report - ALL (DASHBOARD)'!$W$4) -> 0 | F32: =INDEX('Compile Data'!$DK$12:$EH$93,$A32-1921,'Report - ALL (DASHBOARD)'!$W$4) -> 0 | O32: 4 | P32: 0.03703703704 | Q32: =INDEX('Compile Data'!$K$121:$AH$202,$O32,'Report - ALL (DASHBOARD)'!$W$4) -> 0 | R32: =INDEX('Compile Data'!$AK$121:$BH$202,$O32,'Report - ALL (DASHBOARD)'!$W$4) -> 480.2620107 | S32: =INDEX('Compile Data'!$BK$121:$CH$202,$O32,'Report - ALL (DASHBOARD)'!$W$4) -> 488.4341415 | T32: =INDEX('Compile Data'!$CK$121:$DH$202,$O32,'Report - ALL (DASHBOARD)'!$W$4) -> 0 | U32: =INDEX('Compile Data'!$DK$121:$EH$202,$O32,'Report - ALL (DASHBOARD)'!$W$4) -> 0
A33: 1926 | B33: =INDEX('Compile Data'!$K$12:$AH$93,$A33-1921,'Report - ALL (DASHBOARD)'!$W$4) -> 0 | C33: =INDEX('Compile Data'!$AK$12:$BH$93,$A33-1921,'Report - ALL (DASHBOARD)'!$W$4) -> 79.19312241 | D33: =INDEX('Compile Data'!$BK$12:$CH$93,$A33-1921,'Report - ALL (DASHBOARD)'!$W$4) -> 276.9530704 | E33: =INDEX('Compile Data'!$CK$12:$DH$93,$A33-1921,'Report - ALL (DASHBOARD)'!$W$4) -> 0 | F33: =INDEX('Compile Data'!$DK$12:$EH$93,$A33-1921,'Report - ALL (DASHBOARD)'!$W$4) -> 0 | O33: 5 | P33: 0.04938271605 | Q33: =INDEX('Compile Data'!$K$121:$AH$202,$O33,'Report - ALL (DASHBOARD)'!$W$4) -> 0 | R33: =INDEX('Compile Data'!$AK$121:$BH$202,$O33,'Report - ALL (DASHBOARD)'!$W$4) -> 471.0634316 | S33: =INDEX('Compile Data'!$BK$121:$CH$202,$O33,'Report - ALL (DASHBOARD)'!$W$4) -> 479.6762646 | T33: =INDEX('Compile Data'!$CK$121:$DH$202,$O33,'Report - ALL (DASHBOARD)'!$W$4) -> 0 | U33: =INDEX('Compile Data'!$DK$121:$EH$202,$O33,'Report - ALL (DASHBOARD)'!$W$4) -> 0
A34: 1927 | B34: =INDEX('Compile Data'!$K$12:$AH$93,$A34-1921,'Report - ALL (DASHBOARD)'!$W$4) -> 0 | C34: =INDEX('Compile Data'!$AK$12:$BH$93,$A34-1921,'Report - ALL (DASHBOARD)'!$W$4) -> 48.1293431 | D34: =INDEX('Compile Data'!$BK$12:$CH$93,$A34-1921,'Report - ALL (DASHBOARD)'!$W$4) -> 67.01672594 | E34: =INDEX('Compile Data'!$CK$12:$DH$93,$A34-1921,'Report - ALL (DASHBOARD)'!$W$4) -> 0 | F34: =INDEX('Compile Data'!$DK$12:$EH$93,$A34-1921,'Report - ALL (DASHBOARD)'!$W$4) -> 0 | O34: 6 | P34: 0.06172839506 | Q34: =INDEX('Compile Data'!$K$121:$AH$202,$O34,'Report - ALL (DASHBOARD)'!$W$4) -> 0 | R34: =INDEX('Compile Data'!$AK$121:$BH$202,$O34,'Report - ALL (DASHBOARD)'!$W$4) -> 469.8492325 | S34: =INDEX('Compile Data'!$BK$121:$CH$202,$O34,'Report - ALL (DASHBOARD)'!$W$4) -> 470.9497219 | T34: =INDEX('Compile Data'!$CK$121:$DH$202,$O34,'Report - ALL (DASHBOARD)'!$W$4) -> 0 | U34: =INDEX('Compile Data'!$DK$121:$EH$202,$O34,'Report - ALL (DASHBOARD)'!$W$4) -> 0
A35: 1928 | B35: =INDEX('Compile Data'!$K$12:$AH$93,$A35-1921,'Report - ALL (DASHBOARD)'!$W$4) -> 0 | C35: =INDEX('Compile Data'!$AK$12:$BH$93,$A35-1921,'Report - ALL (DASHBOARD)'!$W$4) -> 134.4702512 | D35: =INDEX('Compile Data'!$BK$12:$CH$93,$A35-1921,'Report - ALL (DASHBOARD)'!$W$4) -> 183.9858565 | E35: =INDEX('Compile Data'!$CK$12:$DH$93,$A35-1921,'Report - ALL (DASHBOARD)'!$W$4) -> 0 | F35: =INDEX('Compile Data'!$DK$12:$EH$93,$A35-1921,'Report - ALL (DASHBOARD)'!$W$4) -> 0 | O35: 7 | P35: 0.07407407407 | Q35: =INDEX('Compile Data'!$K$121:$AH$202,$O35,'Report - ALL (DASHBOARD)'!$W$4) -> 0 | R35: =INDEX('Compile Data'!$AK$121:$BH$202,$O35,'Report - ALL (DASHBOARD)'!$W$4) -> 461.6139241 | S35: =INDEX('Compile Data'!$BK$121:$CH$202,$O35,'Report - ALL (DASHBOARD)'!$W$4) -> 456.4119313 | T35: =INDEX('Compile Data'!$CK$121:$DH$202,$O35,'Report - ALL (DASHBOARD)'!$W$4) -> 0 | U35: =INDEX('Compile Data'!$DK$121:$EH$202,$O35,'Report - ALL (DASHBOARD)'!$W$4) -> 0
A36: 1929 | B36: =INDEX('Compile Data'!$K$12:$AH$93,$A36-1921,'Report - ALL (DASHBOARD)'!$W$4) -> 0 | C36: =INDEX('Compile Data'!$AK$12:$BH$93,$A36-1921,'Report - ALL (DASHBOARD)'!$W$4) -> 354.6600703 | D36: =INDEX('Compile Data'!$BK$12:$CH$93,$A36-1921,'Report - ALL (DASHBOARD)'!$W$4) -> 375.8481662 | E36: =INDEX('Compile Data'!$CK$12:$DH$93,$A36-1921,'Report - ALL (DASHBOARD)'!$W$4) -> 0 | F36: =INDEX('Compile Data'!$DK$12:$EH$93,$A36-1921,'Report - ALL (DASHBOARD)'!$W$4) -> 0 | O36: 8 | P36: 0.08641975309 | Q36: =INDEX('Compile Data'!$K$121:$AH$202,$O36,'Report - ALL (DASHBOARD)'!$W$4) -> 0 | R36: =INDEX('Compile Data'!$AK$121:$BH$202,$O36,'Report - ALL (DASHBOARD)'!$W$4) -> 447.8881502 | S36: =INDEX('Compile Data'!$BK$121:$CH$202,$O36,'Report - ALL (DASHBOARD)'!$W$4) -> 444.761944 | T36: =INDEX('Compile Data'!$CK$121:$DH$202,$O36,'Report - ALL (DASHBOARD)'!$W$4) -> 0 | U36: =INDEX('Compile Data'!$DK$121:$EH$202,$O36,'Report - ALL (DASHBOARD)'!$W$4) -> 0
A37: 1930 | B37: =INDEX('Compile Data'!$K$12:$AH$93,$A37-1921,'Report - ALL (DASHBOARD)'!$W$4) -> 0 | C37: =INDEX('Compile Data'!$AK$12:$BH$93,$A37-1921,'Report - ALL (DASHBOARD)'!$W$4) -> 197.8842763 | D37: =INDEX('Compile Data'!$BK$12:$CH$93,$A37-1921,'Report - ALL (DASHBOARD)'!$W$4) -> 398.817385 | E37: =INDEX('Compile Data'!$CK$12:$DH$93,$A37-1921,'Report - ALL (DASHBOARD)'!$W$4) -> 0 | F37: =INDEX('Compile Data'!$DK$12:$EH$93,$A37-1921,'Report - ALL (DASHBOARD)'!$W$4) -> 0 | O37: 9 | P37: 0.0987654321 | Q37: =INDEX('Compile Data'!$K$121:$AH$202,$O37,'Report - ALL (DASHBOARD)'!$W$4) -> 0 | R37: =INDEX('Compile Data'!$AK$121:$BH$202,$O37,'Report - ALL (DASHBOARD)'!$W$4) -> 430.8093447 | S37: =INDEX('Compile Data'!$BK$121:$CH$202,$O37,'Report - ALL (DASHBOARD)'!$W$4) -> 439.3487557 | T37: =INDEX('Compile Data'!$CK$121:$DH$202,$O37,'Report - ALL (DASHBOARD)'!$W$4) -> 0 | U37: =INDEX('Compile Data'!$DK$121:$EH$202,$O37,'Report - ALL (DASHBOARD)'!$W$4) -> 0
A38: 1931 | B38: =INDEX('Compile Data'!$K$12:$AH$93,$A38-1921,'Report - ALL (DASHBOARD)'!$W$4) -> 0 | C38: =INDEX('Compile Data'!$AK$12:$BH$93,$A38-1921,'Report - ALL (DASHBOARD)'!$W$4) -> 67.11500345 | D38: =INDEX('Compile Data'!$BK$12:$CH$93,$A38-1921,'Report - ALL (DASHBOARD)'!$W$4) -> 110.0010572 | E38: =INDEX('Compile Data'!$CK$12:$DH$93,$A38-1921,'Report - ALL (DASHBOARD)'!$W$4) -> 0 | F38: =INDEX('Compile Data'!$DK$12:$EH$93,$A38-1921,'Report - ALL (DASHBOARD)'!$W$4) -> 0 | O38: 10 | P38: 0.1111111111 | Q38: =INDEX('Compile Data'!$K$121:$AH$202,$O38,'Report - ALL (DASHBOARD)'!$W$4) -> 0 | R38: =INDEX('Compile Data'!$AK$121:$BH$202,$O38,'Report - ALL (DASHBOARD)'!$W$4) -> 371.546074 | S38: =INDEX('Compile Data'!$BK$121:$CH$202,$O38,'Report - ALL (DASHBOARD)'!$W$4) -> 416.086843 | T38: =INDEX('Compile Data'!$CK$121:$DH$202,$O38,'Report - ALL (DASHBOARD)'!$W$4) -> 0 | U38: =INDEX('Compile Data'!$DK$121:$EH$202,$O38,'Report - ALL (DASHBOARD)'!$W$4) -> 0
A39: 1932 | B39: =INDEX('Compile Data'!$K$12:$AH$93,$A39-1921,'Report - ALL (DASHBOARD)'!$W$4) -> 0 | C39: =INDEX('Compile Data'!$AK$12:$BH$93,$A39-1921,'Report - ALL (DASHBOARD)'!$W$4) -> 83.56070714 | D39: =INDEX('Compile Data'!$BK$12:$CH$93,$A39-1921,'Report - ALL (DASHBOARD)'!$W$4) -> 113.6701052 | E39: =INDEX('Compile Data'!$CK$12:$DH$93,$A39-1921,'Report - ALL (DASHBOARD)'!$W$4) -> 0 | F39: =INDEX('Compile Data'!$DK$12:$EH$93,$A39-1921,'Report - ALL (DASHBOARD)'!$W$4) -> 0 | O39: 11 | P39: 0.1234567901 | Q39: =INDEX('Compile Data'!$K$121:$AH$202,$O39,'Report - ALL (DASHBOARD)'!$W$4) -> 0 | R39: =INDEX('Compile Data'!$AK$121:$BH$202,$O39,'Report - ALL (DASHBOARD)'!$W$4) -> 361.9354843 | S39: =INDEX('Compile Data'!$BK$121:$CH$202,$O39,'Report - ALL (DASHBOARD)'!$W$4) -> 406.0158782 | T39: =INDEX('Compile Data'!$CK$121:$DH$202,$O39,'Report - ALL (DASHBOARD)'!$W$4) -> 0 | U39: =INDEX('Compile Data'!$DK$121:$EH$202,$O39,'Report - ALL (DASHBOARD)'!$W$4) -> 0
A40: 1933 | B40: =INDEX('Compile Data'!$K$12:$AH$93,$A40-1921,'Report - ALL (DASHBOARD)'!$W$4) -> 0 | C40: =INDEX('Compile Data'!$AK$12:$BH$93,$A40-1921,'Report - ALL (DASHBOARD)'!$W$4) -> 27.51788934 | D40: =INDEX('Compile Data'!$BK$12:$CH$93,$A40-1921,'Report - ALL (DASHBOARD)'!$W$4) -> 37.3666298 | E40: =INDEX('Compile Data'!$CK$12:$DH$93,$A40-1921,'Report - ALL (DASHBOARD)'!$W$4) -> 0 | F40: =INDEX('Compile Data'!$DK$12:$EH$93,$A40-1921,'Report - ALL (DASHBOARD)'!$W$4) -> 0 | O40: 12 | P40: 0.1358024691 | Q40: =INDEX('Compile Data'!$K$121:$AH$202,$O40,'Report - ALL (DASHBOARD)'!$W$4) -> 0 | R40: =INDEX('Compile Data'!$AK$121:$BH$202,$O40,'Report - ALL (DASHBOARD)'!$W$4) -> 354.6600703 | S40: =INDEX('Compile Data'!$BK$121:$CH$202,$O40,'Report - ALL (DASHBOARD)'!$W$4) -> 398.817385 | T40: =INDEX('Compile Data'!$CK$121:$DH$202,$O40,'Report - ALL (DASHBOARD)'!$W$4) -> 0 | U40: =INDEX('Compile Data'!$DK$121:$EH$202,$O40,'Report - ALL (DASHBOARD)'!$W$4) -> 0
A41: 1934 | B41: =INDEX('Compile Data'!$K$12:$AH$93,$A41-1921,'Report - ALL (DASHBOARD)'!$W$4) -> 0 | C41: =INDEX('Compile Data'!$AK$12:$BH$93,$A41-1921,'Report - ALL (DASHBOARD)'!$W$4) -> 73.12889694 | D41: =INDEX('Compile Data'!$BK$12:$CH$93,$A41-1921,'Report - ALL (DASHBOARD)'!$W$4) -> 104.3440591 | E41: =INDEX('Compile Data'!$CK$12:$DH$93,$A41-1921,'Report - ALL (DASHBOARD)'!$W$4) -> 0 | F41: =INDEX('Compile Data'!$DK$12:$EH$93,$A41-1921,'Report - ALL (DASHBOARD)'!$W$4) -> 0 | O41: 13 | P41: 0.1481481481 | Q41: =INDEX('Compile Data'!$K$121:$AH$202,$O41,'Report - ALL (DASHBOARD)'!$W$4) -> 0 | R41: =INDEX('Compile Data'!$AK$121:$BH$202,$O41,'Report - ALL (DASHBOARD)'!$W$4) -> 352.8239492 | S41: =INDEX('Compile Data'!$BK$121:$CH$202,$O41,'Report - ALL (DASHBOARD)'!$W$4) -> 375.8481662 | T41: =INDEX('Compile Data'!$CK$121:$DH$202,$O41,'Report - ALL (DASHBOARD)'!$W$4) -> 0 | U41: =INDEX('Compile Data'!$DK$121:$EH$202,$O41,'Report - ALL (DASHBOARD)'!$W$4) -> 0
A42: 1935 | B42: =INDEX('Compile Data'!$K$12:$AH$93,$A42-1921,'Report - ALL (DASHBOARD)'!$W$4) -> 0 | C42: =INDEX('Compile Data'!$AK$12:$BH$93,$A42-1921,'Report - ALL (DASHBOARD)'!$W$4) -> 119.4081408 | D42: =INDEX('Compile Data'!$BK$12:$CH$93,$A42-1921,'Report - ALL (DASHBOARD)'!$W$4) -> 150.1481023 | E42: =INDEX('Compile Data'!$CK$12:$DH$93,$A42-1921,'Report - ALL (DASHBOARD)'!$W$4) -> 0 | F42: =INDEX('Compile Data'!$DK$12:$EH$93,$A42-1921,'Report - ALL (DASHBOARD)'!$W$4) -> 0 | O42: 14 | P42: 0.1604938272 | Q42: =INDEX('Compile Data'!$K$121:$AH$202,$O42,'Report - ALL (DASHBOARD)'!$W$4) -> 0 | R42: =INDEX('Compile Data'!$AK$121:$BH$202,$O42,'Report - ALL (DASHBOARD)'!$W$4) -> 349.4796982 | S42: =INDEX('Compile Data'!$BK$121:$CH$202,$O42,'Report - ALL (DASHBOARD)'!$W$4) -> 370.7911372 | T42: =INDEX('Compile Data'!$CK$121:$DH$202,$O42,'Report - ALL (DASHBOARD)'!$W$4) -> 0 | U42: =INDEX('Compile Data'!$DK$121:$EH$202,$O42,'Report - ALL (DASHBOARD)'!$W$4) -> 0
A43: 1936 | B43: =INDEX('Compile Data'!$K$12:$AH$93,$A43-1921,'Report - ALL (DASHBOARD)'!$W$4) -> 0 | C43: =INDEX('Compile Data'!$AK$12:$BH$93,$A43-1921,'Report - ALL (DASHBOARD)'!$W$4) -> 176.7537332 | D43: =INDEX('Compile Data'!$BK$12:$CH$93,$A43-1921,'Report - ALL (DASHBOARD)'!$W$4) -> 212.455312 | E43: =INDEX('Compile Data'!$CK$12:$DH$93,$A43-1921,'Report - ALL (DASHBOARD)'!$W$4) -> 0 | F43: =INDEX('Compile Data'!$DK$12:$EH$93,$A43-1921,'Report - ALL (DASHBOARD)'!$W$4) -> 0 | O43: 15 | P43: 0.1728395062 | Q43: =INDEX('Compile Data'!$K$121:$AH$202,$O43,'Report - ALL (DASHBOARD)'!$W$4) -> 0 | R43: =INDEX('Compile Data'!$AK$121:$BH$202,$O43,'Report - ALL (DASHBOARD)'!$W$4) -> 343.1582386 | S43: =INDEX('Compile Data'!$BK$121:$CH$202,$O43,'Report - ALL (DASHBOARD)'!$W$4) -> 365.8768704 | T43: =INDEX('Compile Data'!$CK$121:$DH$202,$O43,'Report - ALL (DASHBOARD)'!$W$4) -> 0 | U43: =INDEX('Compile Data'!$DK$121:$EH$202,$O43,'Report - ALL (DASHBOARD)'!$W$4) -> 0
A44: 1937 | B44: =INDEX('Compile Data'!$K$12:$AH$93,$A44-1921,'Report - ALL (DASHBOARD)'!$W$4) -> 0 | C44: =INDEX('Compile Data'!$AK$12:$BH$93,$A44-1921,'Report - ALL (DASHBOARD)'!$W$4) -> 96.94219672 | D44: =INDEX('Compile Data'!$BK$12:$CH$93,$A44-1921,'Report - ALL (DASHBOARD)'!$W$4) -> 152.992442 | E44: =INDEX('Compile Data'!$CK$12:$DH$93,$A44-1921,'Report - ALL (DASHBOARD)'!$W$4) -> 0 | F44: =INDEX('Compile Data'!$DK$12:$EH$93,$A44-1921,'Report - ALL (DASHBOARD)'!$W$4) -> 0 | O44: 16 | P44: 0.1851851852 | Q44: =INDEX('Compile Data'!$K$121:$AH$202,$O44,'Report - ALL (DASHBOARD)'!$W$4) -> 0 | R44: =INDEX('Compile Data'!$AK$121:$BH$202,$O44,'Report - ALL (DASHBOARD)'!$W$4) -> 327.9935039 | S44: =INDEX('Compile Data'!$BK$121:$CH$202,$O44,'Report - ALL (DASHBOARD)'!$W$4) -> 361.5316112 | T44: =INDEX('Compile Data'!$CK$121:$DH$202,$O44,'Report - ALL (DASHBOARD)'!$W$4) -> 0 | U44: =INDEX('Compile Data'!$DK$121:$EH$202,$O44,'Report - ALL (DASHBOARD)'!$W$4) -> 0
A45: 1938 | B45: =INDEX('Compile Data'!$K$12:$AH$93,$A45-1921,'Report - ALL (DASHBOARD)'!$W$4) -> 0 | C45: =INDEX('Compile Data'!$AK$12:$BH$93,$A45-1921,'Report - ALL (DASHBOARD)'!$W$4) -> 31.8162069 | D45: =INDEX('Compile Data'!$BK$12:$CH$93,$A45-1921,'Report - ALL (DASHBOARD)'!$W$4) -> 31.8162069 | E45: =INDEX('Compile Data'!$CK$12:$DH$93,$A45-1921,'Report - ALL (DASHBOARD)'!$W$4) -> 0 | F45: =INDEX('Compile Data'!$DK$12:$EH$93,$A45-1921,'Report - ALL (DASHBOARD)'!$W$4) -> 0 | O45: 17 | P45: 0.1975308642 | Q45: =INDEX('Compile Data'!$K$121:$AH$202,$O45,'Report - ALL (DASHBOARD)'!$W$4) -> 0 | R45: =INDEX('Compile Data'!$AK$121:$BH$202,$O45,'Report - ALL (DASHBOARD)'!$W$4) -> 295.2351995 | S45: =INDEX('Compile Data'!$BK$121:$CH$202,$O45,'Report - ALL (DASHBOARD)'!$W$4) -> 351.4056579 | T45: =INDEX('Compile Data'!$CK$121:$DH$202,$O45,'Report - ALL (DASHBOARD)'!$W$4) -> 0 | U45: =INDEX('Compile Data'!$DK$121:$EH$202,$O45,'Report - ALL (DASHBOARD)'!$W$4) -> 0
A46: 1939 | B46: =INDEX('Compile Data'!$K$12:$AH$93,$A46-1921,'Report - ALL (DASHBOARD)'!$W$4) -> 0 | C46: =INDEX('Compile Data'!$AK$12:$BH$93,$A46-1921,'Report - ALL (DASHBOARD)'!$W$4) -> 461.6139241 | D46: =INDEX('Compile Data'!$BK$12:$CH$93,$A46-1921,'Report - ALL (DASHBOARD)'!$W$4) -> 444.761944 | E46: =INDEX('Compile Data'!$CK$12:$DH$93,$A46-1921,'Report - ALL (DASHBOARD)'!$W$4) -> 0 | F46: =INDEX('Compile Data'!$DK$12:$EH$93,$A46-1921,'Report - ALL (DASHBOARD)'!$W$4) -> 0 | O46: 18 | P46: 0.2098765432 | Q46: =INDEX('Compile Data'!$K$121:$AH$202,$O46,'Report - ALL (DASHBOARD)'!$W$4) -> 0 | R46: =INDEX('Compile Data'!$AK$121:$BH$202,$O46,'Report - ALL (DASHBOARD)'!$W$4) -> 280.8031732 | S46: =INDEX('Compile Data'!$BK$121:$CH$202,$O46,'Report - ALL (DASHBOARD)'!$W$4) -> 350.4056939 | T46: =INDEX('Compile Data'!$CK$121:$DH$202,$O46,'Report - ALL (DASHBOARD)'!$W$4) -> 0 | U46: =INDEX('Compile Data'!$DK$121:$EH$202,$O46,'Report - ALL (DASHBOARD)'!$W$4) -> 0
A47: 1940 | B47: =INDEX('Compile Data'!$K$12:$AH$93,$A47-1921,'Report - ALL (DASHBOARD)'!$W$4) -> 0 | C47: =INDEX('Compile Data'!$AK$12:$BH$93,$A47-1921,'Report - ALL (DASHBOARD)'!$W$4) -> 215.6976601 | D47: =INDEX('Compile Data'!$BK$12:$CH$93,$A47-1921,'Report - ALL (DASHBOARD)'!$W$4) -> 242.8356584 | E47: =INDEX('Compile Data'!$CK$12:$DH$93,$A47-1921,'Report - ALL (DASHBOARD)'!$W$4) -> 0 | F47: =INDEX('Compile Data'!$DK$12:$EH$93,$A47-1921,'Report - ALL (DASHBOARD)'!$W$4) -> 0 | O47: 19 | P47: 0.2222222222 | Q47: =INDEX('Compile Data'!$K$121:$AH$202,$O47,'Report - ALL (DASHBOARD)'!$W$4) -> 0 | R47: =INDEX('Compile Data'!$AK$121:$BH$202,$O47,'Report - ALL (DASHBOARD)'!$W$4) -> 275.6086798 | S47: =INDEX('Compile Data'!$BK$121:$CH$202,$O47,'Report - ALL (DASHBOARD)'!$W$4) -> 348.3816376 | T47: =INDEX('Compile Data'!$CK$121:$DH$202,$O47,'Report - ALL (DASHBOARD)'!$W$4) -> 0 | U47: =INDEX('Compile Data'!$DK$121:$EH$202,$O47,'Report - ALL (DASHBOARD)'!$W$4) -> 0
A48: 1941 | B48: =INDEX('Compile Data'!$K$12:$AH$93,$A48-1921,'Report - ALL (DASHBOARD)'!$W$4) -> 0 | C48: =INDEX('Compile Data'!$AK$12:$BH$93,$A48-1921,'Report - ALL (DASHBOARD)'!$W$4) -> 47.1077199 | D48: =INDEX('Compile Data'!$BK$12:$CH$93,$A48-1921,'Report - ALL (DASHBOARD)'!$W$4) -> 48.1017631 | E48: =INDEX('Compile Data'!$CK$12:$DH$93,$A48-1921,'Report - ALL (DASHBOARD)'!$W$4) -> 0 | F48: =INDEX('Compile Data'!$DK$12:$EH$93,$A48-1921,'Report - ALL (DASHBOARD)'!$W$4) -> 0 | O48: 20 | P48: 0.2345679012 | Q48: =INDEX('Compile Data'!$K$121:$AH$202,$O48,'Report - ALL (DASHBOARD)'!$W$4) -> 0 | R48: =INDEX('Compile Data'!$AK$121:$BH$202,$O48,'Report - ALL (DASHBOARD)'!$W$4) -> 267.581639 | S48: =INDEX('Compile Data'!$BK$121:$CH$202,$O48,'Report - ALL (DASHBOARD)'!$W$4) -> 342.9102624 | T48: =INDEX('Compile Data'!$CK$121:$DH$202,$O48,'Report - ALL (DASHBOARD)'!$W$4) -> 0 | U48: =INDEX('Compile Data'!$DK$121:$EH$202,$O48,'Report - ALL (DASHBOARD)'!$W$4) -> 0
A49: 1942 | B49: =INDEX('Compile Data'!$K$12:$AH$93,$A49-1921,'Report - ALL (DASHBOARD)'!$W$4) -> 0 | C49: =INDEX('Compile Data'!$AK$12:$BH$93,$A49-1921,'Report - ALL (DASHBOARD)'!$W$4) -> 55.1724138 | D49: =INDEX('Compile Data'!$BK$12:$CH$93,$A49-1921,'Report - ALL (DASHBOARD)'!$W$4) -> 55.1724138 | E49: =INDEX('Compile Data'!$CK$12:$DH$93,$A49-1921,'Report - ALL (DASHBOARD)'!$W$4) -> 0 | F49: =INDEX('Compile Data'!$DK$12:$EH$93,$A49-1921,'Report - ALL (DASHBOARD)'!$W$4) -> 0 | O49: 21 | P49: 0.2469135802 | Q49: =INDEX('Compile Data'!$K$121:$AH$202,$O49,'Report - ALL (DASHBOARD)'!$W$4) -> 0 | R49: =INDEX('Compile Data'!$AK$121:$BH$202,$O49,'Report - ALL (DASHBOARD)'!$W$4) -> 266.7199529 | S49: =INDEX('Compile Data'!$BK$121:$CH$202,$O49,'Report - ALL (DASHBOARD)'!$W$4) -> 330.6963525 | T49: =INDEX('Compile Data'!$CK$121:$DH$202,$O49,'Report - ALL (DASHBOARD)'!$W$4) -> 0 | U49: =INDEX('Compile Data'!$DK$121:$EH$202,$O49,'Report - ALL (DASHBOARD)'!$W$4) -> 0
A50: 1943 | B50: =INDEX('Compile Data'!$K$12:$AH$93,$A50-1921,'Report - ALL (DASHBOARD)'!$W$4) -> 0 | C50: =INDEX('Compile Data'!$AK$12:$BH$93,$A50-1921,'Report - ALL (DASHBOARD)'!$W$4) -> 126.9165844 | D50: =INDEX('Compile Data'!$BK$12:$CH$93,$A50-1921,'Report - ALL (DASHBOARD)'!$W$4) -> 126.9164712 | E50: =INDEX('Compile Data'!$CK$12:$DH$93,$A50-1921,'Report - ALL (DASHBOARD)'!$W$4) -> 0 | F50: =INDEX('Compile Data'!$DK$12:$EH$93,$A50-1921,'Report - ALL (DASHBOARD)'!$W$4) -> 0 | O50: 22 | P50: 0.2592592593 | Q50: =INDEX('Compile Data'!$K$121:$AH$202,$O50,'Report - ALL (DASHBOARD)'!$W$4) -> 0 | R50: =INDEX('Compile Data'!$AK$121:$BH$202,$O50,'Report - ALL (DASHBOARD)'!$W$4) -> 258.4956387 | S50: =INDEX('Compile Data'!$BK$121:$CH$202,$O50,'Report - ALL (DASHBOARD)'!$W$4) -> 321.5605637 | T50: =INDEX('Compile Data'!$CK$121:$DH$202,$O50,'Report - ALL (DASHBOARD)'!$W$4) -> 0 | U50: =INDEX('Compile Data'!$DK$121:$EH$202,$O50,'Report - ALL (DASHBOARD)'!$W$4) -> 0
A51: 1944 | B51: =INDEX('Compile Data'!$K$12:$AH$93,$A51-1921,'Report - ALL (DASHBOARD)'!$W$4) -> 0 | C51: =INDEX('Compile Data'!$AK$12:$BH$93,$A51-1921,'Report - ALL (DASHBOARD)'!$W$4) -> 487.120108 | D51: =INDEX('Compile Data'!$BK$12:$CH$93,$A51-1921,'Report - ALL (DASHBOARD)'!$W$4) -> 499.2209828 | E51: =INDEX('Compile Data'!$CK$12:$DH$93,$A51-1921,'Report - ALL (DASHBOARD)'!$W$4) -> 0 | F51: =INDEX('Compile Data'!$DK$12:$EH$93,$A51-1921,'Report - ALL (DASHBOARD)'!$W$4) -> 0 | O51: 23 | P51: 0.2716049383 | Q51: =INDEX('Compile Data'!$K$121:$AH$202,$O51,'Report - ALL (DASHBOARD)'!$W$4) -> 0 | R51: =INDEX('Compile Data'!$AK$121:$BH$202,$O51,'Report - ALL (DASHBOARD)'!$W$4) -> 251.5520555 | S51: =INDEX('Compile Data'!$BK$121:$CH$202,$O51,'Report - ALL (DASHBOARD)'!$W$4) -> 313.8493682 | T51: =INDEX('Compile Data'!$CK$121:$DH$202,$O51,'Report - ALL (DASHBOARD)'!$W$4) -> 0 | U51: =INDEX('Compile Data'!$DK$121:$EH$202,$O51,'Report - ALL (DASHBOARD)'!$W$4) -> 0
A52: 1945 | B52: =INDEX('Compile Data'!$K$12:$AH$93,$A52-1921,'Report - ALL (DASHBOARD)'!$W$4) -> 0 | C52: =INDEX('Compile Data'!$AK$12:$BH$93,$A52-1921,'Report - ALL (DASHBOARD)'!$W$4) -> 137.7624339 | D52: =INDEX('Compile Data'!$BK$12:$CH$93,$A52-1921,'Report - ALL (DASHBOARD)'!$W$4) -> 142.9913713 | E52: =INDEX('Compile Data'!$CK$12:$DH$93,$A52-1921,'Report - ALL (DASHBOARD)'!$W$4) -> 0 | F52: =INDEX('Compile Data'!$DK$12:$EH$93,$A52-1921,'Report - ALL (DASHBOARD)'!$W$4) -> 0 | O52: 24 | P52: 0.2839506173 | Q52: =INDEX('Compile Data'!$K$121:$AH$202,$O52,'Report - ALL (DASHBOARD)'!$W$4) -> 0 | R52: =INDEX('Compile Data'!$AK$121:$BH$202,$O52,'Report - ALL (DASHBOARD)'!$W$4) -> 246.318654 | S52: =INDEX('Compile Data'!$BK$121:$CH$202,$O52,'Report - ALL (DASHBOARD)'!$W$4) -> 303.5422182 | T52: =INDEX('Compile Data'!$CK$121:$DH$202,$O52,'Report - ALL (DASHBOARD)'!$W$4) -> 0 | U52: =INDEX('Compile Data'!$DK$121:$EH$202,$O52,'Report - ALL (DASHBOARD)'!$W$4) -> 0
A53: 1946 | B53: =INDEX('Compile Data'!$K$12:$AH$93,$A53-1921,'Report - ALL (DASHBOARD)'!$W$4) -> 0 | C53: =INDEX('Compile Data'!$AK$12:$BH$93,$A53-1921,'Report - ALL (DASHBOARD)'!$W$4) -> 100.5026427 | D53: =INDEX('Compile Data'!$BK$12:$CH$93,$A53-1921,'Report - ALL (DASHBOARD)'!$W$4) -> 134.8824782 | E53: =INDEX('Compile Data'!$CK$12:$DH$93,$A53-1921,'Report - ALL (DASHBOARD)'!$W$4) -> 0 | F53: =INDEX('Compile Data'!$DK$12:$EH$93,$A53-1921,'Report - ALL (DASHBOARD)'!$W$4) -> 0 | O53: 25 | P53: 0.2962962963 | Q53: =INDEX('Compile Data'!$K$121:$AH$202,$O53,'Report - ALL (DASHBOARD)'!$W$4) -> 0 | R53: =INDEX('Compile Data'!$AK$121:$BH$202,$O53,'Report - ALL (DASHBOARD)'!$W$4) -> 241.6337329 | S53: =INDEX('Compile Data'!$BK$121:$CH$202,$O53,'Report - ALL (DASHBOARD)'!$W$4) -> 292.1298317 | T53: =INDEX('Compile Data'!$CK$121:$DH$202,$O53,'Report - ALL (DASHBOARD)'!$W$4) -> 0 | U53: =INDEX('Compile Data'!$DK$121:$EH$202,$O53,'Report - ALL (DASHBOARD)'!$W$4) -> 0
A54: 1947 | B54: =INDEX('Compile Data'!$K$12:$AH$93,$A54-1921,'Report - ALL (DASHBOARD)'!$W$4) -> 0 | C54: =INDEX('Compile Data'!$AK$12:$BH$93,$A54-1921,'Report - ALL (DASHBOARD)'!$W$4) -> 275.6086798 | D54: =INDEX('Compile Data'!$BK$12:$CH$93,$A54-1921,'Report - ALL (DASHBOARD)'!$W$4) -> 321.5605637 | E54: =INDEX('Compile Data'!$CK$12:$DH$93,$A54-1921,'Report - ALL (DASHBOARD)'!$W$4) -> 0 | F54: =INDEX('Compile Data'!$DK$12:$EH$93,$A54-1921,'Report - ALL (DASHBOARD)'!$W$4) -> 0 | O54: 26 | P54: 0.3086419753 | Q54: =INDEX('Compile Data'!$K$121:$AH$202,$O54,'Report - ALL (DASHBOARD)'!$W$4) -> 0 | R54: =INDEX('Compile Data'!$AK$121:$BH$202,$O54,'Report - ALL (DASHBOARD)'!$W$4) -> 240.3056843 | S54: =INDEX('Compile Data'!$BK$121:$CH$202,$O54,'Report - ALL (DASHBOARD)'!$W$4) -> 279.5565011 | T54: =INDEX('Compile Data'!$CK$121:$DH$202,$O54,'Report - ALL (DASHBOARD)'!$W$4) -> 0 | U54: =INDEX('Compile Data'!$DK$121:$EH$202,$O54,'Report - ALL (DASHBOARD)'!$W$4) -> 0
A55: 1948 | B55: =INDEX('Compile Data'!$K$12:$AH$93,$A55-1921,'Report - ALL (DASHBOARD)'!$W$4) -> 0 | C55: =INDEX('Compile Data'!$AK$12:$BH$93,$A55-1921,'Report - ALL (DASHBOARD)'!$W$4) -> 128.8856943 | D55: =INDEX('Compile Data'!$BK$12:$CH$93,$A55-1921,'Report - ALL (DASHBOARD)'!$W$4) -> 199.0445506 | E55: =INDEX('Compile Data'!$CK$12:$DH$93,$A55-1921,'Report - ALL (DASHBOARD)'!$W$4) -> 0 | F55: =INDEX('Compile Data'!$DK$12:$EH$93,$A55-1921,'Report - ALL (DASHBOARD)'!$W$4) -> 0 | O55: 27 | P55: 0.3209876543 | Q55: =INDEX('Compile Data'!$K$121:$AH$202,$O55,'Report - ALL (DASHBOARD)'!$W$4) -> 0 | R55: =INDEX('Compile Data'!$AK$121:$BH$202,$O55,'Report - ALL (DASHBOARD)'!$W$4) -> 233.8879387 | S55: =INDEX('Compile Data'!$BK$121:$CH$202,$O55,'Report - ALL (DASHBOARD)'!$W$4) -> 279.481509 | T55: =INDEX('Compile Data'!$CK$121:$DH$202,$O55,'Report - ALL (DASHBOARD)'!$W$4) -> 0 | U55: =INDEX('Compile Data'!$DK$121:$EH$202,$O55,'Report - ALL (DASHBOARD)'!$W$4) -> 0
A56: 1949 | B56: =INDEX('Compile Data'!$K$12:$AH$93,$A56-1921,'Report - ALL (DASHBOARD)'!$W$4) -> 0 | C56: =INDEX('Compile Data'!$AK$12:$BH$93,$A56-1921,'Report - ALL (DASHBOARD)'!$W$4) -> 258.4956387 | D56: =INDEX('Compile Data'!$BK$12:$CH$93,$A56-1921,'Report - ALL (DASHBOARD)'!$W$4) -> 303.5422182 | E56: =INDEX('Compile Data'!$CK$12:$DH$93,$A56-1921,'Report - ALL (DASHBOARD)'!$W$4) -> 0 | F56: =INDEX('Compile Data'!$DK$12:$EH$93,$A56-1921,'Report - ALL (DASHBOARD)'!$W$4) -> 0 | O56: 28 | P56: 0.3333333333 | Q56: =INDEX('Compile Data'!$K$121:$AH$202,$O56,'Report - ALL (DASHBOARD)'!$W$4) -> 0 | R56: =INDEX('Compile Data'!$AK$121:$BH$202,$O56,'Report - ALL (DASHBOARD)'!$W$4) -> 215.6976601 | S56: =INDEX('Compile Data'!$BK$121:$CH$202,$O56,'Report - ALL (DASHBOARD)'!$W$4) -> 276.9530704 | T56: =INDEX('Compile Data'!$CK$121:$DH$202,$O56,'Report - ALL (DASHBOARD)'!$W$4) -> 0 | U56: =INDEX('Compile Data'!$DK$121:$EH$202,$O56,'Report - ALL (DASHBOARD)'!$W$4) -> 0
A57: 1950 | B57: =INDEX('Compile Data'!$K$12:$AH$93,$A57-1921,'Report - ALL (DASHBOARD)'!$W$4) -> 0 | C57: =INDEX('Compile Data'!$AK$12:$BH$93,$A57-1921,'Report - ALL (DASHBOARD)'!$W$4) -> 106.2897779 | D57: =INDEX('Compile Data'!$BK$12:$CH$93,$A57-1921,'Report - ALL (DASHBOARD)'!$W$4) -> 348.3816376 | E57: =INDEX('Compile Data'!$CK$12:$DH$93,$A57-1921,'Report - ALL (DASHBOARD)'!$W$4) -> 0 | F57: =INDEX('Compile Data'!$DK$12:$EH$93,$A57-1921,'Report - ALL (DASHBOARD)'!$W$4) -> 0 | O57: 29 | P57: 0.3456790123 | Q57: =INDEX('Compile Data'!$K$121:$AH$202,$O57,'Report - ALL (DASHBOARD)'!$W$4) -> 0 | R57: =INDEX('Compile Data'!$AK$121:$BH$202,$O57,'Report - ALL (DASHBOARD)'!$W$4) -> 210.3286846 | S57: =INDEX('Compile Data'!$BK$121:$CH$202,$O57,'Report - ALL (DASHBOARD)'!$W$4) -> 267.581639 | T57: =INDEX('Compile Data'!$CK$121:$DH$202,$O57,'Report - ALL (DASHBOARD)'!$W$4) -> 0 | U57: =INDEX('Compile Data'!$DK$121:$EH$202,$O57,'Report - ALL (DASHBOARD)'!$W$4) -> 0
A58: 1951 | B58: =INDEX('Compile Data'!$K$12:$AH$93,$A58-1921,'Report - ALL (DASHBOARD)'!$W$4) -> 0 | C58: =INDEX('Compile Data'!$AK$12:$BH$93,$A58-1921,'Report - ALL (DASHBOARD)'!$W$4) -> 141.4028872 | D58: =INDEX('Compile Data'!$BK$12:$CH$93,$A58-1921,'Report - ALL (DASHBOARD)'!$W$4) -> 163.5991498 | E58: =INDEX('Compile Data'!$CK$12:$DH$93,$A58-1921,'Report - ALL (DASHBOARD)'!$W$4) -> 0 | F58: =INDEX('Compile Data'!$DK$12:$EH$93,$A58-1921,'Report - ALL (DASHBOARD)'!$W$4) -> 0 | O58: 30 | P58: 0.3580246914 | Q58: =INDEX('Compile Data'!$K$121:$AH$202,$O58,'Report - ALL (DASHBOARD)'!$W$4) -> 0 | R58: =INDEX('Compile Data'!$AK$121:$BH$202,$O58,'Report - ALL (DASHBOARD)'!$W$4) -> 206.102847 | S58: =INDEX('Compile Data'!$BK$121:$CH$202,$O58,'Report - ALL (DASHBOARD)'!$W$4) -> 251.5520555 | T58: =INDEX('Compile Data'!$CK$121:$DH$202,$O58,'Report - ALL (DASHBOARD)'!$W$4) -> 0 | U58: =INDEX('Compile Data'!$DK$121:$EH$202,$O58,'Report - ALL (DASHBOARD)'!$W$4) -> 0
A59: 1952 | B59: =INDEX('Compile Data'!$K$12:$AH$93,$A59-1921,'Report - ALL (DASHBOARD)'!$W$4) -> 0 | C59: =INDEX('Compile Data'!$AK$12:$BH$93,$A59-1921,'Report - ALL (DASHBOARD)'!$W$4) -> 42.17154962 | D59: =INDEX('Compile Data'!$BK$12:$CH$93,$A59-1921,'Report - ALL (DASHBOARD)'!$W$4) -> 40.43154962 | E59: =INDEX('Compile Data'!$CK$12:$DH$93,$A59-1921,'Report - ALL (DASHBOARD)'!$W$4) -> 0 | F59: =INDEX('Compile Data'!$DK$12:$EH$93,$A59-1921,'Report - ALL (DASHBOARD)'!$W$4) -> 0 | O59: 31 | P59: 0.3703703704 | Q59: =INDEX('Compile Data'!$K$121:$AH$202,$O59,'Report - ALL (DASHBOARD)'!$W$4) -> 0 | R59: =INDEX('Compile Data'!$AK$121:$BH$202,$O59,'Report - ALL (DASHBOARD)'!$W$4) -> 199.8322985 | S59: =INDEX('Compile Data'!$BK$121:$CH$202,$O59,'Report - ALL (DASHBOARD)'!$W$4) -> 244.8377458 | T59: =INDEX('Compile Data'!$CK$121:$DH$202,$O59,'Report - ALL (DASHBOARD)'!$W$4) -> 0 | U59: =INDEX('Compile Data'!$DK$121:$EH$202,$O59,'Report - ALL (DASHBOARD)'!$W$4) -> 0
A60: 1953 | B60: =INDEX('Compile Data'!$K$12:$AH$93,$A60-1921,'Report - ALL (DASHBOARD)'!$W$4) -> 0 | C60: =INDEX('Compile Data'!$AK$12:$BH$93,$A60-1921,'Report - ALL (DASHBOARD)'!$W$4) -> 80.712293 | D60: =INDEX('Compile Data'!$BK$12:$CH$93,$A60-1921,'Report - ALL (DASHBOARD)'!$W$4) -> 80.71229294 | E60: =INDEX('Compile Data'!$CK$12:$DH$93,$A60-1921,'Report - ALL (DASHBOARD)'!$W$4) -> 0 | F60: =INDEX('Compile Data'!$DK$12:$EH$93,$A60-1921,'Report - ALL (DASHBOARD)'!$W$4) -> 0 | O60: 32 | P60: 0.3827160494 | Q60: =INDEX('Compile Data'!$K$121:$AH$202,$O60,'Report - ALL (DASHBOARD)'!$W$4) -> 0 | R60: =INDEX('Compile Data'!$AK$121:$BH$202,$O60,'Report - ALL (DASHBOARD)'!$W$4) -> 197.8842763 | S60: =INDEX('Compile Data'!$BK$121:$CH$202,$O60,'Report - ALL (DASHBOARD)'!$W$4) -> 242.8356584 | T60: =INDEX('Compile Data'!$CK$121:$DH$202,$O60,'Report - ALL (DASHBOARD)'!$W$4) -> 0 | U60: =INDEX('Compile Data'!$DK$121:$EH$202,$O60,'Report - ALL (DASHBOARD)'!$W$4) -> 0
A61: 1954 | B61: =INDEX('Compile Data'!$K$12:$AH$93,$A61-1921,'Report - ALL (DASHBOARD)'!$W$4) -> 0 | C61: =INDEX('Compile Data'!$AK$12:$BH$93,$A61-1921,'Report - ALL (DASHBOARD)'!$W$4) -> 267.581639 | D61: =INDEX('Compile Data'!$BK$12:$CH$93,$A61-1921,'Report - ALL (DASHBOARD)'!$W$4) -> 267.581639 | E61: =INDEX('Compile Data'!$CK$12:$DH$93,$A61-1921,'Report - ALL (DASHBOARD)'!$W$4) -> 0 | F61: =INDEX('Compile Data'!$DK$12:$EH$93,$A61-1921,'Report - ALL (DASHBOARD)'!$W$4) -> 0 | O61: 33 | P61: 0.3950617284 | Q61: =INDEX('Compile Data'!$K$121:$AH$202,$O61,'Report - ALL (DASHBOARD)'!$W$4) -> 0 | R61: =INDEX('Compile Data'!$AK$121:$BH$202,$O61,'Report - ALL (DASHBOARD)'!$W$4) -> 176.7537332 | S61: =INDEX('Compile Data'!$BK$121:$CH$202,$O61,'Report - ALL (DASHBOARD)'!$W$4) -> 233.9658585 | T61: =INDEX('Compile Data'!$CK$121:$DH$202,$O61,'Report - ALL (DASHBOARD)'!$W$4) -> 0 | U61: =INDEX('Compile Data'!$DK$121:$EH$202,$O61,'Report - ALL (DASHBOARD)'!$W$4) -> 0
A62: 1955 | B62: =INDEX('Compile Data'!$K$12:$AH$93,$A62-1921,'Report - ALL (DASHBOARD)'!$W$4) -> 0 | C62: =INDEX('Compile Data'!$AK$12:$BH$93,$A62-1921,'Report - ALL (DASHBOARD)'!$W$4) -> 430.8093447 | D62: =INDEX('Compile Data'!$BK$12:$CH$93,$A62-1921,'Report - ALL (DASHBOARD)'!$W$4) -> 439.3487557 | E62: =INDEX('Compile Data'!$CK$12:$DH$93,$A62-1921,'Report - ALL (DASHBOARD)'!$W$4) -> 0 | F62: =INDEX('Compile Data'!$DK$12:$EH$93,$A62-1921,'Report - ALL (DASHBOARD)'!$W$4) -> 0 | O62: 34 | P62: 0.4074074074 | Q62: =INDEX('Compile Data'!$K$121:$AH$202,$O62,'Report - ALL (DASHBOARD)'!$W$4) -> 0 | R62: =INDEX('Compile Data'!$AK$121:$BH$202,$O62,'Report - ALL (DASHBOARD)'!$W$4) -> 159.4438569 | S62: =INDEX('Compile Data'!$BK$121:$CH$202,$O62,'Report - ALL (DASHBOARD)'!$W$4) -> 233.8926317 | T62: =INDEX('Compile Data'!$CK$121:$DH$202,$O62,'Report - ALL (DASHBOARD)'!$W$4) -> 0 | U62: =INDEX('Compile Data'!$DK$121:$EH$202,$O62,'Report - ALL (DASHBOARD)'!$W$4) -> 0
A63: 1956 | B63: =INDEX('Compile Data'!$K$12:$AH$93,$A63-1921,'Report - ALL (DASHBOARD)'!$W$4) -> 0 | C63: =INDEX('Compile Data'!$AK$12:$BH$93,$A63-1921,'Report - ALL (DASHBOARD)'!$W$4) -> 210.3286846 | D63: =INDEX('Compile Data'!$BK$12:$CH$93,$A63-1921,'Report - ALL (DASHBOARD)'!$W$4) -> 210.3304575 | E63: =INDEX('Compile Data'!$CK$12:$DH$93,$A63-1921,'Report - ALL (DASHBOARD)'!$W$4) -> 0 | F63: =INDEX('Compile Data'!$DK$12:$EH$93,$A63-1921,'Report - ALL (DASHBOARD)'!$W$4) -> 0 | O63: 35 | P63: 0.4197530864 | Q63: =INDEX('Compile Data'!$K$121:$AH$202,$O63,'Report - ALL (DASHBOARD)'!$W$4) -> 0 | R63: =INDEX('Compile Data'!$AK$121:$BH$202,$O63,'Report - ALL (DASHBOARD)'!$W$4) -> 158.9261349 | S63: =INDEX('Compile Data'!$BK$121:$CH$202,$O63,'Report - ALL (DASHBOARD)'!$W$4) -> 220.9829757 | T63: =INDEX('Compile Data'!$CK$121:$DH$202,$O63,'Report - ALL (DASHBOARD)'!$W$4) -> 0 | U63: =INDEX('Compile Data'!$DK$121:$EH$202,$O63,'Report - ALL (DASHBOARD)'!$W$4) -> 0
A64: 1957 | B64: =INDEX('Compile Data'!$K$12:$AH$93,$A64-1921,'Report - ALL (DASHBOARD)'!$W$4) -> 0 | C64: =INDEX('Compile Data'!$AK$12:$BH$93,$A64-1921,'Report - ALL (DASHBOARD)'!$W$4) -> 118.8119822 | D64: =INDEX('Compile Data'!$BK$12:$CH$93,$A64-1921,'Report - ALL (DASHBOARD)'!$W$4) -> 279.5565011 | E64: =INDEX('Compile Data'!$CK$12:$DH$93,$A64-1921,'Report - ALL (DASHBOARD)'!$W$4) -> 0 | F64: =INDEX('Compile Data'!$DK$12:$EH$93,$A64-1921,'Report - ALL (DASHBOARD)'!$W$4) -> 0 | O64: 36 | P64: 0.4320987654 | Q64: =INDEX('Compile Data'!$K$121:$AH$202,$O64,'Report - ALL (DASHBOARD)'!$W$4) -> 0 | R64: =INDEX('Compile Data'!$AK$121:$BH$202,$O64,'Report - ALL (DASHBOARD)'!$W$4) -> 148.8351247 | S64: =INDEX('Compile Data'!$BK$121:$CH$202,$O64,'Report - ALL (DASHBOARD)'!$W$4) -> 212.455312 | T64: =INDEX('Compile Data'!$CK$121:$DH$202,$O64,'Report - ALL (DASHBOARD)'!$W$4) -> 0 | U64: =INDEX('Compile Data'!$DK$121:$EH$202,$O64,'Report - ALL (DASHBOARD)'!$W$4) -> 0
A65: 1958 | B65: =INDEX('Compile Data'!$K$12:$AH$93,$A65-1921,'Report - ALL (DASHBOARD)'!$W$4) -> 0 | C65: =INDEX('Compile Data'!$AK$12:$BH$93,$A65-1921,'Report - ALL (DASHBOARD)'!$W$4) -> 29.2462069 | D65: =INDEX('Compile Data'!$BK$12:$CH$93,$A65-1921,'Report - ALL (DASHBOARD)'!$W$4) -> 29.2462069 | E65: =INDEX('Compile Data'!$CK$12:$DH$93,$A65-1921,'Report - ALL (DASHBOARD)'!$W$4) -> 0 | F65: =INDEX('Compile Data'!$DK$12:$EH$93,$A65-1921,'Report - ALL (DASHBOARD)'!$W$4) -> 0 | O65: 37 | P65: 0.4444444444 | Q65: =INDEX('Compile Data'!$K$121:$AH$202,$O65,'Report - ALL (DASHBOARD)'!$W$4) -> 0 | R65: =INDEX('Compile Data'!$AK$121:$BH$202,$O65,'Report - ALL (DASHBOARD)'!$W$4) -> 147.7323535 | S65: =INDEX('Compile Data'!$BK$121:$CH$202,$O65,'Report - ALL (DASHBOARD)'!$W$4) -> 210.3304575 | T65: =INDEX('Compile Data'!$CK$121:$DH$202,$O65,'Report - ALL (DASHBOARD)'!$W$4) -> 0 | U65: =INDEX('Compile Data'!$DK$121:$EH$202,$O65,'Report - ALL (DASHBOARD)'!$W$4) -> 0
A66: 1959 | B66: =INDEX('Compile Data'!$K$12:$AH$93,$A66-1921,'Report - ALL (DASHBOARD)'!$W$4) -> 0 | C66: =INDEX('Compile Data'!$AK$12:$BH$93,$A66-1921,'Report - ALL (DASHBOARD)'!$W$4) -> 343.1582386 | D66: =INDEX('Compile Data'!$BK$12:$CH$93,$A66-1921,'Report - ALL (DASHBOARD)'!$W$4) -> 342.9102624 | E66: =INDEX('Compile Data'!$CK$12:$DH$93,$A66-1921,'Report - ALL (DASHBOARD)'!$W$4) -> 0 | F66: =INDEX('Compile Data'!$DK$12:$EH$93,$A66-1921,'Report - ALL (DASHBOARD)'!$W$4) -> 0 | O66: 38 | P66: 0.4567901235 | Q66: =INDEX('Compile Data'!$K$121:$AH$202,$O66,'Report - ALL (DASHBOARD)'!$W$4) -> 0 | R66: =INDEX('Compile Data'!$AK$121:$BH$202,$O66,'Report - ALL (DASHBOARD)'!$W$4) -> 144.7363425 | S66: =INDEX('Compile Data'!$BK$121:$CH$202,$O66,'Report - ALL (DASHBOARD)'!$W$4) -> 205.8567975 | T66: =INDEX('Compile Data'!$CK$121:$DH$202,$O66,'Report - ALL (DASHBOARD)'!$W$4) -> 0 | U66: =INDEX('Compile Data'!$DK$121:$EH$202,$O66,'Report - ALL (DASHBOARD)'!$W$4) -> 0
A67: 1960 | B67: =INDEX('Compile Data'!$K$12:$AH$93,$A67-1921,'Report - ALL (DASHBOARD)'!$W$4) -> 0 | C67: =INDEX('Compile Data'!$AK$12:$BH$93,$A67-1921,'Report - ALL (DASHBOARD)'!$W$4) -> 499.7567464 | D67: =INDEX('Compile Data'!$BK$12:$CH$93,$A67-1921,'Report - ALL (DASHBOARD)'!$W$4) -> 508.4950965 | E67: =INDEX('Compile Data'!$CK$12:$DH$93,$A67-1921,'Report - ALL (DASHBOARD)'!$W$4) -> 0 | F67: =INDEX('Compile Data'!$DK$12:$EH$93,$A67-1921,'Report - ALL (DASHBOARD)'!$W$4) -> 0 | O67: 39 | P67: 0.4691358025 | Q67: =INDEX('Compile Data'!$K$121:$AH$202,$O67,'Report - ALL (DASHBOARD)'!$W$4) -> 0 | R67: =INDEX('Compile Data'!$AK$121:$BH$202,$O67,'Report - ALL (DASHBOARD)'!$W$4) -> 143.1912294 | S67: =INDEX('Compile Data'!$BK$121:$CH$202,$O67,'Report - ALL (DASHBOARD)'!$W$4) -> 200.2335717 | T67: =INDEX('Compile Data'!$CK$121:$DH$202,$O67,'Report - ALL (DASHBOARD)'!$W$4) -> 0 | U67: =INDEX('Compile Data'!$DK$121:$EH$202,$O67,'Report - ALL (DASHBOARD)'!$W$4) -> 0
A68: 1961 | B68: =INDEX('Compile Data'!$K$12:$AH$93,$A68-1921,'Report - ALL (DASHBOARD)'!$W$4) -> 0 | C68: =INDEX('Compile Data'!$AK$12:$BH$93,$A68-1921,'Report - ALL (DASHBOARD)'!$W$4) -> 349.4796982 | D68: =INDEX('Compile Data'!$BK$12:$CH$93,$A68-1921,'Report - ALL (DASHBOARD)'!$W$4) -> 370.7911372 | E68: =INDEX('Compile Data'!$CK$12:$DH$93,$A68-1921,'Report - ALL (DASHBOARD)'!$W$4) -> 0 | F68: =INDEX('Compile Data'!$DK$12:$EH$93,$A68-1921,'Report - ALL (DASHBOARD)'!$W$4) -> 0 | O68: 40 | P68: 0.4814814815 | Q68: =INDEX('Compile Data'!$K$121:$AH$202,$O68,'Report - ALL (DASHBOARD)'!$W$4) -> 0 | R68: =INDEX('Compile Data'!$AK$121:$BH$202,$O68,'Report - ALL (DASHBOARD)'!$W$4) -> 141.4028872 | S68: =INDEX('Compile Data'!$BK$121:$CH$202,$O68,'Report - ALL (DASHBOARD)'!$W$4) -> 199.4196296 | T68: =INDEX('Compile Data'!$CK$121:$DH$202,$O68,'Report - ALL (DASHBOARD)'!$W$4) -> 0 | U68: =INDEX('Compile Data'!$DK$121:$EH$202,$O68,'Report - ALL (DASHBOARD)'!$W$4) -> 0
A69: 1962 | B69: =INDEX('Compile Data'!$K$12:$AH$93,$A69-1921,'Report - ALL (DASHBOARD)'!$W$4) -> 0 | C69: =INDEX('Compile Data'!$AK$12:$BH$93,$A69-1921,'Report - ALL (DASHBOARD)'!$W$4) -> 143.1912294 | D69: =INDEX('Compile Data'!$BK$12:$CH$93,$A69-1921,'Report - ALL (DASHBOARD)'!$W$4) -> 149.136601 | E69: =INDEX('Compile Data'!$CK$12:$DH$93,$A69-1921,'Report - ALL (DASHBOARD)'!$W$4) -> 0 | F69: =INDEX('Compile Data'!$DK$12:$EH$93,$A69-1921,'Report - ALL (DASHBOARD)'!$W$4) -> 0 | O69: 41 | P69: 0.4938271605 | Q69: =INDEX('Compile Data'!$K$121:$AH$202,$O69,'Report - ALL (DASHBOARD)'!$W$4) -> 0 | R69: =INDEX('Compile Data'!$AK$121:$BH$202,$O69,'Report - ALL (DASHBOARD)'!$W$4) -> 137.7624339 | S69: =INDEX('Compile Data'!$BK$121:$CH$202,$O69,'Report - ALL (DASHBOARD)'!$W$4) -> 199.0445506 | T69: =INDEX('Compile Data'!$CK$121:$DH$202,$O69,'Report - ALL (DASHBOARD)'!$W$4) -> 0 | U69: =INDEX('Compile Data'!$DK$121:$EH$202,$O69,'Report - ALL (DASHBOARD)'!$W$4) -> 0
A70: 1963 | B70: =INDEX('Compile Data'!$K$12:$AH$93,$A70-1921,'Report - ALL (DASHBOARD)'!$W$4) -> 0 | C70: =INDEX('Compile Data'!$AK$12:$BH$93,$A70-1921,'Report - ALL (DASHBOARD)'!$W$4) -> 45.7264205 | D70: =INDEX('Compile Data'!$BK$12:$CH$93,$A70-1921,'Report - ALL (DASHBOARD)'!$W$4) -> 51.72093637 | E70: =INDEX('Compile Data'!$CK$12:$DH$93,$A70-1921,'Report - ALL (DASHBOARD)'!$W$4) -> 0 | F70: =INDEX('Compile Data'!$DK$12:$EH$93,$A70-1921,'Report - ALL (DASHBOARD)'!$W$4) -> 0 | O70: 42 | P70: 0.5061728395 | Q70: =INDEX('Compile Data'!$K$121:$AH$202,$O70,'Report - ALL (DASHBOARD)'!$W$4) -> 0 | R70: =INDEX('Compile Data'!$AK$121:$BH$202,$O70,'Report - ALL (DASHBOARD)'!$W$4) -> 134.4702512 | S70: =INDEX('Compile Data'!$BK$121:$CH$202,$O70,'Report - ALL (DASHBOARD)'!$W$4) -> 183.9858565 | T70: =INDEX('Compile Data'!$CK$121:$DH$202,$O70,'Report - ALL (DASHBOARD)'!$W$4) -> 0 | U70: =INDEX('Compile Data'!$DK$121:$EH$202,$O70,'Report - ALL (DASHBOARD)'!$W$4) -> 0
A71: 1964 | B71: =INDEX('Compile Data'!$K$12:$AH$93,$A71-1921,'Report - ALL (DASHBOARD)'!$W$4) -> 0 | C71: =INDEX('Compile Data'!$AK$12:$BH$93,$A71-1921,'Report - ALL (DASHBOARD)'!$W$4) -> 295.2351995 | D71: =INDEX('Compile Data'!$BK$12:$CH$93,$A71-1921,'Report - ALL (DASHBOARD)'!$W$4) -> 313.8493682 | E71: =INDEX('Compile Data'!$CK$12:$DH$93,$A71-1921,'Report - ALL (DASHBOARD)'!$W$4) -> 0 | F71: =INDEX('Compile Data'!$DK$12:$EH$93,$A71-1921,'Report - ALL (DASHBOARD)'!$W$4) -> 0 | O71: 43 | P71: 0.5185185185 | Q71: =INDEX('Compile Data'!$K$121:$AH$202,$O71,'Report - ALL (DASHBOARD)'!$W$4) -> 0 | R71: =INDEX('Compile Data'!$AK$121:$BH$202,$O71,'Report - ALL (DASHBOARD)'!$W$4) -> 128.8856943 | S71: =INDEX('Compile Data'!$BK$121:$CH$202,$O71,'Report - ALL (DASHBOARD)'!$W$4) -> 178.3403789 | T71: =INDEX('Compile Data'!$CK$121:$DH$202,$O71,'Report - ALL (DASHBOARD)'!$W$4) -> 0 | U71: =INDEX('Compile Data'!$DK$121:$EH$202,$O71,'Report - ALL (DASHBOARD)'!$W$4) -> 0
A72: 1965 | B72: =INDEX('Compile Data'!$K$12:$AH$93,$A72-1921,'Report - ALL (DASHBOARD)'!$W$4) -> 0 | C72: =INDEX('Compile Data'!$AK$12:$BH$93,$A72-1921,'Report - ALL (DASHBOARD)'!$W$4) -> 81.56075923 | D72: =INDEX('Compile Data'!$BK$12:$CH$93,$A72-1921,'Report - ALL (DASHBOARD)'!$W$4) -> 90.63307042 | E72: =INDEX('Compile Data'!$CK$12:$DH$93,$A72-1921,'Report - ALL (DASHBOARD)'!$W$4) -> 0 | F72: =INDEX('Compile Data'!$DK$12:$EH$93,$A72-1921,'Report - ALL (DASHBOARD)'!$W$4) -> 0 | O72: 44 | P72: 0.5308641975 | Q72: =INDEX('Compile Data'!$K$121:$AH$202,$O72,'Report - ALL (DASHBOARD)'!$W$4) -> 0 | R72: =INDEX('Compile Data'!$AK$121:$BH$202,$O72,'Report - ALL (DASHBOARD)'!$W$4) -> 128.2354766 | S72: =INDEX('Compile Data'!$BK$121:$CH$202,$O72,'Report - ALL (DASHBOARD)'!$W$4) -> 163.5991498 | T72: =INDEX('Compile Data'!$CK$121:$DH$202,$O72,'Report - ALL (DASHBOARD)'!$W$4) -> 0 | U72: =INDEX('Compile Data'!$DK$121:$EH$202,$O72,'Report - ALL (DASHBOARD)'!$W$4) -> 0
A73: 1966 | B73: =INDEX('Compile Data'!$K$12:$AH$93,$A73-1921,'Report - ALL (DASHBOARD)'!$W$4) -> 0 | C73: =INDEX('Compile Data'!$AK$12:$BH$93,$A73-1921,'Report - ALL (DASHBOARD)'!$W$4) -> 280.8031732 | D73: =INDEX('Compile Data'!$BK$12:$CH$93,$A73-1921,'Report - ALL (DASHBOARD)'!$W$4) -> 292.1298317 | E73: =INDEX('Compile Data'!$CK$12:$DH$93,$A73-1921,'Report - ALL (DASHBOARD)'!$W$4) -> 0 | F73: =INDEX('Compile Data'!$DK$12:$EH$93,$A73-1921,'Report - ALL (DASHBOARD)'!$W$4) -> 0 | O73: 45 | P73: 0.5432098765 | Q73: =INDEX('Compile Data'!$K$121:$AH$202,$O73,'Report - ALL (DASHBOARD)'!$W$4) -> 0 | R73: =INDEX('Compile Data'!$AK$121:$BH$202,$O73,'Report - ALL (DASHBOARD)'!$W$4) -> 126.9165844 | S73: =INDEX('Compile Data'!$BK$121:$CH$202,$O73,'Report - ALL (DASHBOARD)'!$W$4) -> 152.992442 | T73: =INDEX('Compile Data'!$CK$121:$DH$202,$O73,'Report - ALL (DASHBOARD)'!$W$4) -> 0 | U73: =INDEX('Compile Data'!$DK$121:$EH$202,$O73,'Report - ALL (DASHBOARD)'!$W$4) -> 0
A74: 1967 | B74: =INDEX('Compile Data'!$K$12:$AH$93,$A74-1921,'Report - ALL (DASHBOARD)'!$W$4) -> 0 | C74: =INDEX('Compile Data'!$AK$12:$BH$93,$A74-1921,'Report - ALL (DASHBOARD)'!$W$4) -> 57.40970621 | D74: =INDEX('Compile Data'!$BK$12:$CH$93,$A74-1921,'Report - ALL (DASHBOARD)'!$W$4) -> 68.99162408 | E74: =INDEX('Compile Data'!$CK$12:$DH$93,$A74-1921,'Report - ALL (DASHBOARD)'!$W$4) -> 0 | F74: =INDEX('Compile Data'!$DK$12:$EH$93,$A74-1921,'Report - ALL (DASHBOARD)'!$W$4) -> 0 | O74: 46 | P74: 0.5555555556 | Q74: =INDEX('Compile Data'!$K$121:$AH$202,$O74,'Report - ALL (DASHBOARD)'!$W$4) -> 0 | R74: =INDEX('Compile Data'!$AK$121:$BH$202,$O74,'Report - ALL (DASHBOARD)'!$W$4) -> 119.4081408 | S74: =INDEX('Compile Data'!$BK$121:$CH$202,$O74,'Report - ALL (DASHBOARD)'!$W$4) -> 150.1481023 | T74: =INDEX('Compile Data'!$CK$121:$DH$202,$O74,'Report - ALL (DASHBOARD)'!$W$4) -> 0 | U74: =INDEX('Compile Data'!$DK$121:$EH$202,$O74,'Report - ALL (DASHBOARD)'!$W$4) -> 0
A75: 1968 | B75: =INDEX('Compile Data'!$K$12:$AH$93,$A75-1921,'Report - ALL (DASHBOARD)'!$W$4) -> 0 | C75: =INDEX('Compile Data'!$AK$12:$BH$93,$A75-1921,'Report - ALL (DASHBOARD)'!$W$4) -> 361.9354843 | D75: =INDEX('Compile Data'!$BK$12:$CH$93,$A75-1921,'Report - ALL (DASHBOARD)'!$W$4) -> 365.8768704 | E75: =INDEX('Compile Data'!$CK$12:$DH$93,$A75-1921,'Report - ALL (DASHBOARD)'!$W$4) -> 0 | F75: =INDEX('Compile Data'!$DK$12:$EH$93,$A75-1921,'Report - ALL (DASHBOARD)'!$W$4) -> 0 | O75: 47 | P75: 0.5679012346 | Q75: =INDEX('Compile Data'!$K$121:$AH$202,$O75,'Report - ALL (DASHBOARD)'!$W$4) -> 0 | R75: =INDEX('Compile Data'!$AK$121:$BH$202,$O75,'Report - ALL (DASHBOARD)'!$W$4) -> 118.8119822 | S75: =INDEX('Compile Data'!$BK$121:$CH$202,$O75,'Report - ALL (DASHBOARD)'!$W$4) -> 149.136601 | T75: =INDEX('Compile Data'!$CK$121:$DH$202,$O75,'Report - ALL (DASHBOARD)'!$W$4) -> 0 | U75: =INDEX('Compile Data'!$DK$121:$EH$202,$O75,'Report - ALL (DASHBOARD)'!$W$4) -> 0
A76: 1969 | B76: =INDEX('Compile Data'!$K$12:$AH$93,$A76-1921,'Report - ALL (DASHBOARD)'!$W$4) -> 0 | C76: =INDEX('Compile Data'!$AK$12:$BH$93,$A76-1921,'Report - ALL (DASHBOARD)'!$W$4) -> 75.75223971 | D76: =INDEX('Compile Data'!$BK$12:$CH$93,$A76-1921,'Report - ALL (DASHBOARD)'!$W$4) -> 103.3384466 | E76: =INDEX('Compile Data'!$CK$12:$DH$93,$A76-1921,'Report - ALL (DASHBOARD)'!$W$4) -> 0 | F76: =INDEX('Compile Data'!$DK$12:$EH$93,$A76-1921,'Report - ALL (DASHBOARD)'!$W$4) -> 0 | O76: 48 | P76: 0.5802469136 | Q76: =INDEX('Compile Data'!$K$121:$AH$202,$O76,'Report - ALL (DASHBOARD)'!$W$4) -> 0 | R76: =INDEX('Compile Data'!$AK$121:$BH$202,$O76,'Report - ALL (DASHBOARD)'!$W$4) -> 116.1246089 | S76: =INDEX('Compile Data'!$BK$121:$CH$202,$O76,'Report - ALL (DASHBOARD)'!$W$4) -> 147.7323535 | T76: =INDEX('Compile Data'!$CK$121:$DH$202,$O76,'Report - ALL (DASHBOARD)'!$W$4) -> 0 | U76: =INDEX('Compile Data'!$DK$121:$EH$202,$O76,'Report - ALL (DASHBOARD)'!$W$4) -> 0
A77: 1970 | B77: =INDEX('Compile Data'!$K$12:$AH$93,$A77-1921,'Report - ALL (DASHBOARD)'!$W$4) -> 0 | C77: =INDEX('Compile Data'!$AK$12:$BH$93,$A77-1921,'Report - ALL (DASHBOARD)'!$W$4) -> 128.2354766 | D77: =INDEX('Compile Data'!$BK$12:$CH$93,$A77-1921,'Report - ALL (DASHBOARD)'!$W$4) -> 128.2354766 | E77: =INDEX('Compile Data'!$CK$12:$DH$93,$A77-1921,'Report - ALL (DASHBOARD)'!$W$4) -> 0 | F77: =INDEX('Compile Data'!$DK$12:$EH$93,$A77-1921,'Report - ALL (DASHBOARD)'!$W$4) -> 0 | O77: 49 | P77: 0.5925925926 | Q77: =INDEX('Compile Data'!$K$121:$AH$202,$O77,'Report - ALL (DASHBOARD)'!$W$4) -> 0 | R77: =INDEX('Compile Data'!$AK$121:$BH$202,$O77,'Report - ALL (DASHBOARD)'!$W$4) -> 114.8320074 | S77: =INDEX('Compile Data'!$BK$121:$CH$202,$O77,'Report - ALL (DASHBOARD)'!$W$4) -> 147.0344376 | T77: =INDEX('Compile Data'!$CK$121:$DH$202,$O77,'Report - ALL (DASHBOARD)'!$W$4) -> 0 | U77: =INDEX('Compile Data'!$DK$121:$EH$202,$O77,'Report - ALL (DASHBOARD)'!$W$4) -> 0
A78: 1971 | B78: =INDEX('Compile Data'!$K$12:$AH$93,$A78-1921,'Report - ALL (DASHBOARD)'!$W$4) -> 0 | C78: =INDEX('Compile Data'!$AK$12:$BH$93,$A78-1921,'Report - ALL (DASHBOARD)'!$W$4) -> 112.1755199 | D78: =INDEX('Compile Data'!$BK$12:$CH$93,$A78-1921,'Report - ALL (DASHBOARD)'!$W$4) -> 112.175523 | E78: =INDEX('Compile Data'!$CK$12:$DH$93,$A78-1921,'Report - ALL (DASHBOARD)'!$W$4) -> 0 | F78: =INDEX('Compile Data'!$DK$12:$EH$93,$A78-1921,'Report - ALL (DASHBOARD)'!$W$4) -> 0 | O78: 50 | P78: 0.6049382716 | Q78: =INDEX('Compile Data'!$K$121:$AH$202,$O78,'Report - ALL (DASHBOARD)'!$W$4) -> 0 | R78: =INDEX('Compile Data'!$AK$121:$BH$202,$O78,'Report - ALL (DASHBOARD)'!$W$4) -> 112.1755199 | S78: =INDEX('Compile Data'!$BK$121:$CH$202,$O78,'Report - ALL (DASHBOARD)'!$W$4) -> 143.9940382 | T78: =INDEX('Compile Data'!$CK$121:$DH$202,$O78,'Report - ALL (DASHBOARD)'!$W$4) -> 0 | U78: =INDEX('Compile Data'!$DK$121:$EH$202,$O78,'Report - ALL (DASHBOARD)'!$W$4) -> 0
A79: 1972 | B79: =INDEX('Compile Data'!$K$12:$AH$93,$A79-1921,'Report - ALL (DASHBOARD)'!$W$4) -> 0 | C79: =INDEX('Compile Data'!$AK$12:$BH$93,$A79-1921,'Report - ALL (DASHBOARD)'!$W$4) -> 233.8879387 | D79: =INDEX('Compile Data'!$BK$12:$CH$93,$A79-1921,'Report - ALL (DASHBOARD)'!$W$4) -> 233.8926317 | E79: =INDEX('Compile Data'!$CK$12:$DH$93,$A79-1921,'Report - ALL (DASHBOARD)'!$W$4) -> 0 | F79: =INDEX('Compile Data'!$DK$12:$EH$93,$A79-1921,'Report - ALL (DASHBOARD)'!$W$4) -> 0 | O79: 51 | P79: 0.6172839506 | Q79: =INDEX('Compile Data'!$K$121:$AH$202,$O79,'Report - ALL (DASHBOARD)'!$W$4) -> 0 | R79: =INDEX('Compile Data'!$AK$121:$BH$202,$O79,'Report - ALL (DASHBOARD)'!$W$4) -> 106.4835888 | S79: =INDEX('Compile Data'!$BK$121:$CH$202,$O79,'Report - ALL (DASHBOARD)'!$W$4) -> 142.9913713 | T79: =INDEX('Compile Data'!$CK$121:$DH$202,$O79,'Report - ALL (DASHBOARD)'!$W$4) -> 0 | U79: =INDEX('Compile Data'!$DK$121:$EH$202,$O79,'Report - ALL (DASHBOARD)'!$W$4) -> 0
A80: 1973 | B80: =INDEX('Compile Data'!$K$12:$AH$93,$A80-1921,'Report - ALL (DASHBOARD)'!$W$4) -> 0 | C80: =INDEX('Compile Data'!$AK$12:$BH$93,$A80-1921,'Report - ALL (DASHBOARD)'!$W$4) -> 206.102847 | D80: =INDEX('Compile Data'!$BK$12:$CH$93,$A80-1921,'Report - ALL (DASHBOARD)'!$W$4) -> 205.8567975 | E80: =INDEX('Compile Data'!$CK$12:$DH$93,$A80-1921,'Report - ALL (DASHBOARD)'!$W$4) -> 0 | F80: =INDEX('Compile Data'!$DK$12:$EH$93,$A80-1921,'Report - ALL (DASHBOARD)'!$W$4) -> 0 | O80: 52 | P80: 0.6296296296 | Q80: =INDEX('Compile Data'!$K$121:$AH$202,$O80,'Report - ALL (DASHBOARD)'!$W$4) -> 0 | R80: =INDEX('Compile Data'!$AK$121:$BH$202,$O80,'Report - ALL (DASHBOARD)'!$W$4) -> 106.2897779 | S80: =INDEX('Compile Data'!$BK$121:$CH$202,$O80,'Report - ALL (DASHBOARD)'!$W$4) -> 135.8715009 | T80: =INDEX('Compile Data'!$CK$121:$DH$202,$O80,'Report - ALL (DASHBOARD)'!$W$4) -> 0 | U80: =INDEX('Compile Data'!$DK$121:$EH$202,$O80,'Report - ALL (DASHBOARD)'!$W$4) -> 0
A81: 1974 | B81: =INDEX('Compile Data'!$K$12:$AH$93,$A81-1921,'Report - ALL (DASHBOARD)'!$W$4) -> 0 | C81: =INDEX('Compile Data'!$AK$12:$BH$93,$A81-1921,'Report - ALL (DASHBOARD)'!$W$4) -> 64.73558453 | D81: =INDEX('Compile Data'!$BK$12:$CH$93,$A81-1921,'Report - ALL (DASHBOARD)'!$W$4) -> 66.30317316 | E81: =INDEX('Compile Data'!$CK$12:$DH$93,$A81-1921,'Report - ALL (DASHBOARD)'!$W$4) -> 0 | F81: =INDEX('Compile Data'!$DK$12:$EH$93,$A81-1921,'Report - ALL (DASHBOARD)'!$W$4) -> 0 | O81: 53 | P81: 0.6419753086 | Q81: =INDEX('Compile Data'!$K$121:$AH$202,$O81,'Report - ALL (DASHBOARD)'!$W$4) -> 0 | R81: =INDEX('Compile Data'!$AK$121:$BH$202,$O81,'Report - ALL (DASHBOARD)'!$W$4) -> 100.5026427 | S81: =INDEX('Compile Data'!$BK$121:$CH$202,$O81,'Report - ALL (DASHBOARD)'!$W$4) -> 134.8824782 | T81: =INDEX('Compile Data'!$CK$121:$DH$202,$O81,'Report - ALL (DASHBOARD)'!$W$4) -> 0 | U81: =INDEX('Compile Data'!$DK$121:$EH$202,$O81,'Report - ALL (DASHBOARD)'!$W$4) -> 0
A82: 1975 | B82: =INDEX('Compile Data'!$K$12:$AH$93,$A82-1921,'Report - ALL (DASHBOARD)'!$W$4) -> 0 | C82: =INDEX('Compile Data'!$AK$12:$BH$93,$A82-1921,'Report - ALL (DASHBOARD)'!$W$4) -> 33.28358484 | D82: =INDEX('Compile Data'!$BK$12:$CH$93,$A82-1921,'Report - ALL (DASHBOARD)'!$W$4) -> 33.28358484 | E82: =INDEX('Compile Data'!$CK$12:$DH$93,$A82-1921,'Report - ALL (DASHBOARD)'!$W$4) -> 0 | F82: =INDEX('Compile Data'!$DK$12:$EH$93,$A82-1921,'Report - ALL (DASHBOARD)'!$W$4) -> 0 | O82: 54 | P82: 0.6543209877 | Q82: =INDEX('Compile Data'!$K$121:$AH$202,$O82,'Report - ALL (DASHBOARD)'!$W$4) -> 0 | R82: =INDEX('Compile Data'!$AK$121:$BH$202,$O82,'Report - ALL (DASHBOARD)'!$W$4) -> 98.3683909 | S82: =INDEX('Compile Data'!$BK$121:$CH$202,$O82,'Report - ALL (DASHBOARD)'!$W$4) -> 128.2354766 | T82: =INDEX('Compile Data'!$CK$121:$DH$202,$O82,'Report - ALL (DASHBOARD)'!$W$4) -> 0 | U82: =INDEX('Compile Data'!$DK$121:$EH$202,$O82,'Report - ALL (DASHBOARD)'!$W$4) -> 0
A83: 1976 | B83: =INDEX('Compile Data'!$K$12:$AH$93,$A83-1921,'Report - ALL (DASHBOARD)'!$W$4) -> 0 | C83: =INDEX('Compile Data'!$AK$12:$BH$93,$A83-1921,'Report - ALL (DASHBOARD)'!$W$4) -> 447.8881502 | D83: =INDEX('Compile Data'!$BK$12:$CH$93,$A83-1921,'Report - ALL (DASHBOARD)'!$W$4) -> 456.4119313 | E83: =INDEX('Compile Data'!$CK$12:$DH$93,$A83-1921,'Report - ALL (DASHBOARD)'!$W$4) -> 0 | F83: =INDEX('Compile Data'!$DK$12:$EH$93,$A83-1921,'Report - ALL (DASHBOARD)'!$W$4) -> 0 | O83: 55 | P83: 0.6666666667 | Q83: =INDEX('Compile Data'!$K$121:$AH$202,$O83,'Report - ALL (DASHBOARD)'!$W$4) -> 0 | R83: =INDEX('Compile Data'!$AK$121:$BH$202,$O83,'Report - ALL (DASHBOARD)'!$W$4) -> 96.94219672 | S83: =INDEX('Compile Data'!$BK$121:$CH$202,$O83,'Report - ALL (DASHBOARD)'!$W$4) -> 126.9164712 | T83: =INDEX('Compile Data'!$CK$121:$DH$202,$O83,'Report - ALL (DASHBOARD)'!$W$4) -> 0 | U83: =INDEX('Compile Data'!$DK$121:$EH$202,$O83,'Report - ALL (DASHBOARD)'!$W$4) -> 0
A84: 1977 | B84: =INDEX('Compile Data'!$K$12:$AH$93,$A84-1921,'Report - ALL (DASHBOARD)'!$W$4) -> 0 | C84: =INDEX('Compile Data'!$AK$12:$BH$93,$A84-1921,'Report - ALL (DASHBOARD)'!$W$4) -> 471.0634316 | D84: =INDEX('Compile Data'!$BK$12:$CH$93,$A84-1921,'Report - ALL (DASHBOARD)'!$W$4) -> 470.9497219 | E84: =INDEX('Compile Data'!$CK$12:$DH$93,$A84-1921,'Report - ALL (DASHBOARD)'!$W$4) -> 0 | F84: =INDEX('Compile Data'!$DK$12:$EH$93,$A84-1921,'Report - ALL (DASHBOARD)'!$W$4) -> 0 | O84: 56 | P84: 0.6790123457 | Q84: =INDEX('Compile Data'!$K$121:$AH$202,$O84,'Report - ALL (DASHBOARD)'!$W$4) -> 0 | R84: =INDEX('Compile Data'!$AK$121:$BH$202,$O84,'Report - ALL (DASHBOARD)'!$W$4) -> 87.53484484 | S84: =INDEX('Compile Data'!$BK$121:$CH$202,$O84,'Report - ALL (DASHBOARD)'!$W$4) -> 121.5398203 | T84: =INDEX('Compile Data'!$CK$121:$DH$202,$O84,'Report - ALL (DASHBOARD)'!$W$4) -> 0 | U84: =INDEX('Compile Data'!$DK$121:$EH$202,$O84,'Report - ALL (DASHBOARD)'!$W$4) -> 0
A85: 1978 | B85: =INDEX('Compile Data'!$K$12:$AH$93,$A85-1921,'Report - ALL (DASHBOARD)'!$W$4) -> 0 | C85: =INDEX('Compile Data'!$AK$12:$BH$93,$A85-1921,'Report - ALL (DASHBOARD)'!$W$4) -> 246.318654 | D85: =INDEX('Compile Data'!$BK$12:$CH$93,$A85-1921,'Report - ALL (DASHBOARD)'!$W$4) -> 279.481509 | E85: =INDEX('Compile Data'!$CK$12:$DH$93,$A85-1921,'Report - ALL (DASHBOARD)'!$W$4) -> 0 | F85: =INDEX('Compile Data'!$DK$12:$EH$93,$A85-1921,'Report - ALL (DASHBOARD)'!$W$4) -> 0 | O85: 57 | P85: 0.6913580247 | Q85: =INDEX('Compile Data'!$K$121:$AH$202,$O85,'Report - ALL (DASHBOARD)'!$W$4) -> 0 | R85: =INDEX('Compile Data'!$AK$121:$BH$202,$O85,'Report - ALL (DASHBOARD)'!$W$4) -> 83.56070714 | S85: =INDEX('Compile Data'!$BK$121:$CH$202,$O85,'Report - ALL (DASHBOARD)'!$W$4) -> 116.1246089 | T85: =INDEX('Compile Data'!$CK$121:$DH$202,$O85,'Report - ALL (DASHBOARD)'!$W$4) -> 0 | U85: =INDEX('Compile Data'!$DK$121:$EH$202,$O85,'Report - ALL (DASHBOARD)'!$W$4) -> 0
A86: 1979 | B86: =INDEX('Compile Data'!$K$12:$AH$93,$A86-1921,'Report - ALL (DASHBOARD)'!$W$4) -> 0 | C86: =INDEX('Compile Data'!$AK$12:$BH$93,$A86-1921,'Report - ALL (DASHBOARD)'!$W$4) -> 159.4438569 | D86: =INDEX('Compile Data'!$BK$12:$CH$93,$A86-1921,'Report - ALL (DASHBOARD)'!$W$4) -> 121.5398203 | E86: =INDEX('Compile Data'!$CK$12:$DH$93,$A86-1921,'Report - ALL (DASHBOARD)'!$W$4) -> 0 | F86: =INDEX('Compile Data'!$DK$12:$EH$93,$A86-1921,'Report - ALL (DASHBOARD)'!$W$4) -> 0 | O86: 58 | P86: 0.7037037037 | Q86: =INDEX('Compile Data'!$K$121:$AH$202,$O86,'Report - ALL (DASHBOARD)'!$W$4) -> 0 | R86: =INDEX('Compile Data'!$AK$121:$BH$202,$O86,'Report - ALL (DASHBOARD)'!$W$4) -> 81.56075923 | S86: =INDEX('Compile Data'!$BK$121:$CH$202,$O86,'Report - ALL (DASHBOARD)'!$W$4) -> 113.6701052 | T86: =INDEX('Compile Data'!$CK$121:$DH$202,$O86,'Report - ALL (DASHBOARD)'!$W$4) -> 0 | U86: =INDEX('Compile Data'!$DK$121:$EH$202,$O86,'Report - ALL (DASHBOARD)'!$W$4) -> 0
A87: 1980 | B87: =INDEX('Compile Data'!$K$12:$AH$93,$A87-1921,'Report - ALL (DASHBOARD)'!$W$4) -> 0 | C87: =INDEX('Compile Data'!$AK$12:$BH$93,$A87-1921,'Report - ALL (DASHBOARD)'!$W$4) -> 114.8320074 | D87: =INDEX('Compile Data'!$BK$12:$CH$93,$A87-1921,'Report - ALL (DASHBOARD)'!$W$4) -> 200.2335717 | E87: =INDEX('Compile Data'!$CK$12:$DH$93,$A87-1921,'Report - ALL (DASHBOARD)'!$W$4) -> 0 | F87: =INDEX('Compile Data'!$DK$12:$EH$93,$A87-1921,'Report - ALL (DASHBOARD)'!$W$4) -> 0 | O87: 59 | P87: 0.7160493827 | Q87: =INDEX('Compile Data'!$K$121:$AH$202,$O87,'Report - ALL (DASHBOARD)'!$W$4) -> 0 | R87: =INDEX('Compile Data'!$AK$121:$BH$202,$O87,'Report - ALL (DASHBOARD)'!$W$4) -> 80.712293 | S87: =INDEX('Compile Data'!$BK$121:$CH$202,$O87,'Report - ALL (DASHBOARD)'!$W$4) -> 112.175523 | T87: =INDEX('Compile Data'!$CK$121:$DH$202,$O87,'Report - ALL (DASHBOARD)'!$W$4) -> 0 | U87: =INDEX('Compile Data'!$DK$121:$EH$202,$O87,'Report - ALL (DASHBOARD)'!$W$4) -> 0
A88: 1981 | B88: =INDEX('Compile Data'!$K$12:$AH$93,$A88-1921,'Report - ALL (DASHBOARD)'!$W$4) -> 0 | C88: =INDEX('Compile Data'!$AK$12:$BH$93,$A88-1921,'Report - ALL (DASHBOARD)'!$W$4) -> 240.3056843 | D88: =INDEX('Compile Data'!$BK$12:$CH$93,$A88-1921,'Report - ALL (DASHBOARD)'!$W$4) -> 416.086843 | E88: =INDEX('Compile Data'!$CK$12:$DH$93,$A88-1921,'Report - ALL (DASHBOARD)'!$W$4) -> 0 | F88: =INDEX('Compile Data'!$DK$12:$EH$93,$A88-1921,'Report - ALL (DASHBOARD)'!$W$4) -> 0 | O88: 60 | P88: 0.7283950617 | Q88: =INDEX('Compile Data'!$K$121:$AH$202,$O88,'Report - ALL (DASHBOARD)'!$W$4) -> 0 | R88: =INDEX('Compile Data'!$AK$121:$BH$202,$O88,'Report - ALL (DASHBOARD)'!$W$4) -> 79.19312241 | S88: =INDEX('Compile Data'!$BK$121:$CH$202,$O88,'Report - ALL (DASHBOARD)'!$W$4) -> 110.0010572 | T88: =INDEX('Compile Data'!$CK$121:$DH$202,$O88,'Report - ALL (DASHBOARD)'!$W$4) -> 0 | U88: =INDEX('Compile Data'!$DK$121:$EH$202,$O88,'Report - ALL (DASHBOARD)'!$W$4) -> 0
A89: 1982 | B89: =INDEX('Compile Data'!$K$12:$AH$93,$A89-1921,'Report - ALL (DASHBOARD)'!$W$4) -> 0 | C89: =INDEX('Compile Data'!$AK$12:$BH$93,$A89-1921,'Report - ALL (DASHBOARD)'!$W$4) -> 37.87420545 | D89: =INDEX('Compile Data'!$BK$12:$CH$93,$A89-1921,'Report - ALL (DASHBOARD)'!$W$4) -> 60.18359224 | E89: =INDEX('Compile Data'!$CK$12:$DH$93,$A89-1921,'Report - ALL (DASHBOARD)'!$W$4) -> 0 | F89: =INDEX('Compile Data'!$DK$12:$EH$93,$A89-1921,'Report - ALL (DASHBOARD)'!$W$4) -> 0 | O89: 61 | P89: 0.7407407407 | Q89: =INDEX('Compile Data'!$K$121:$AH$202,$O89,'Report - ALL (DASHBOARD)'!$W$4) -> 0 | R89: =INDEX('Compile Data'!$AK$121:$BH$202,$O89,'Report - ALL (DASHBOARD)'!$W$4) -> 75.75223971 | S89: =INDEX('Compile Data'!$BK$121:$CH$202,$O89,'Report - ALL (DASHBOARD)'!$W$4) -> 104.3440591 | T89: =INDEX('Compile Data'!$CK$121:$DH$202,$O89,'Report - ALL (DASHBOARD)'!$W$4) -> 0 | U89: =INDEX('Compile Data'!$DK$121:$EH$202,$O89,'Report - ALL (DASHBOARD)'!$W$4) -> 0
A90: 1983 | B90: =INDEX('Compile Data'!$K$12:$AH$93,$A90-1921,'Report - ALL (DASHBOARD)'!$W$4) -> 0 | C90: =INDEX('Compile Data'!$AK$12:$BH$93,$A90-1921,'Report - ALL (DASHBOARD)'!$W$4) -> 0 | D90: =INDEX('Compile Data'!$BK$12:$CH$93,$A90-1921,'Report - ALL (DASHBOARD)'!$W$4) -> 0 | E90: =INDEX('Compile Data'!$CK$12:$DH$93,$A90-1921,'Report - ALL (DASHBOARD)'!$W$4) -> 0 | F90: =INDEX('Compile Data'!$DK$12:$EH$93,$A90-1921,'Report - ALL (DASHBOARD)'!$W$4) -> 0 | O90: 62 | P90: 0.7530864198 | Q90: =INDEX('Compile Data'!$K$121:$AH$202,$O90,'Report - ALL (DASHBOARD)'!$W$4) -> 0 | R90: =INDEX('Compile Data'!$AK$121:$BH$202,$O90,'Report - ALL (DASHBOARD)'!$W$4) -> 75.52365347 | S90: =INDEX('Compile Data'!$BK$121:$CH$202,$O90,'Report - ALL (DASHBOARD)'!$W$4) -> 103.3384466 | T90: =INDEX('Compile Data'!$CK$121:$DH$202,$O90,'Report - ALL (DASHBOARD)'!$W$4) -> 0 | U90: =INDEX('Compile Data'!$DK$121:$EH$202,$O90,'Report - ALL (DASHBOARD)'!$W$4) -> 0
A91: 1984 | B91: =INDEX('Compile Data'!$K$12:$AH$93,$A91-1921,'Report - ALL (DASHBOARD)'!$W$4) -> 0 | C91: =INDEX('Compile Data'!$AK$12:$BH$93,$A91-1921,'Report - ALL (DASHBOARD)'!$W$4) -> 116.1246089 | D91: =INDEX('Compile Data'!$BK$12:$CH$93,$A91-1921,'Report - ALL (DASHBOARD)'!$W$4) -> 116.1246089 | E91: =INDEX('Compile Data'!$CK$12:$DH$93,$A91-1921,'Report - ALL (DASHBOARD)'!$W$4) -> 0 | F91: =INDEX('Compile Data'!$DK$12:$EH$93,$A91-1921,'Report - ALL (DASHBOARD)'!$W$4) -> 0 | O91: 63 | P91: 0.7654320988 | Q91: =INDEX('Compile Data'!$K$121:$AH$202,$O91,'Report - ALL (DASHBOARD)'!$W$4) -> 0 | R91: =INDEX('Compile Data'!$AK$121:$BH$202,$O91,'Report - ALL (DASHBOARD)'!$W$4) -> 73.12889694 | S91: =INDEX('Compile Data'!$BK$121:$CH$202,$O91,'Report - ALL (DASHBOARD)'!$W$4) -> 90.63307042 | T91: =INDEX('Compile Data'!$CK$121:$DH$202,$O91,'Report - ALL (DASHBOARD)'!$W$4) -> 0 | U91: =INDEX('Compile Data'!$DK$121:$EH$202,$O91,'Report - ALL (DASHBOARD)'!$W$4) -> 0
A92: 1985 | B92: =INDEX('Compile Data'!$K$12:$AH$93,$A92-1921,'Report - ALL (DASHBOARD)'!$W$4) -> 0 | C92: =INDEX('Compile Data'!$AK$12:$BH$93,$A92-1921,'Report - ALL (DASHBOARD)'!$W$4) -> 352.8239492 | D92: =INDEX('Compile Data'!$BK$12:$CH$93,$A92-1921,'Report - ALL (DASHBOARD)'!$W$4) -> 351.4056579 | E92: =INDEX('Compile Data'!$CK$12:$DH$93,$A92-1921,'Report - ALL (DASHBOARD)'!$W$4) -> 0 | F92: =INDEX('Compile Data'!$DK$12:$EH$93,$A92-1921,'Report - ALL (DASHBOARD)'!$W$4) -> 0 | O92: 64 | P92: 0.7777777778 | Q92: =INDEX('Compile Data'!$K$121:$AH$202,$O92,'Report - ALL (DASHBOARD)'!$W$4) -> 0 | R92: =INDEX('Compile Data'!$AK$121:$BH$202,$O92,'Report - ALL (DASHBOARD)'!$W$4) -> 67.11500345 | S92: =INDEX('Compile Data'!$BK$121:$CH$202,$O92,'Report - ALL (DASHBOARD)'!$W$4) -> 87.46484708 | T92: =INDEX('Compile Data'!$CK$121:$DH$202,$O92,'Report - ALL (DASHBOARD)'!$W$4) -> 0 | U92: =INDEX('Compile Data'!$DK$121:$EH$202,$O92,'Report - ALL (DASHBOARD)'!$W$4) -> 0
A93: 1986 | B93: =INDEX('Compile Data'!$K$12:$AH$93,$A93-1921,'Report - ALL (DASHBOARD)'!$W$4) -> 0 | C93: =INDEX('Compile Data'!$AK$12:$BH$93,$A93-1921,'Report - ALL (DASHBOARD)'!$W$4) -> 199.8322985 | D93: =INDEX('Compile Data'!$BK$12:$CH$93,$A93-1921,'Report - ALL (DASHBOARD)'!$W$4) -> 220.9829757 | E93: =INDEX('Compile Data'!$CK$12:$DH$93,$A93-1921,'Report - ALL (DASHBOARD)'!$W$4) -> 0 | F93: =INDEX('Compile Data'!$DK$12:$EH$93,$A93-1921,'Report - ALL (DASHBOARD)'!$W$4) -> 0 | O93: 65 | P93: =(O93-1)/81 -> 0.7901234568 | Q93: =INDEX('Compile Data'!$K$121:$AH$202,$O93,'Report - ALL (DASHBOARD)'!$W$4) -> 0 | R93: =INDEX('Compile Data'!$AK$121:$BH$202,$O93,'Report - ALL (DASHBOARD)'!$W$4) -> 64.73558453 | S93: =INDEX('Compile Data'!$BK$121:$CH$202,$O93,'Report - ALL (DASHBOARD)'!$W$4) -> 80.71229294 | T93: =INDEX('Compile Data'!$CK$121:$DH$202,$O93,'Report - ALL (DASHBOARD)'!$W$4) -> 0 | U93: =INDEX('Compile Data'!$DK$121:$EH$202,$O93,'Report - ALL (DASHBOARD)'!$W$4) -> 0
A94: 1987 | B94: =INDEX('Compile Data'!$K$12:$AH$93,$A94-1921,'Report - ALL (DASHBOARD)'!$W$4) -> 0 | C94: =INDEX('Compile Data'!$AK$12:$BH$93,$A94-1921,'Report - ALL (DASHBOARD)'!$W$4) -> 469.8492325 | D94: =INDEX('Compile Data'!$BK$12:$CH$93,$A94-1921,'Report - ALL (DASHBOARD)'!$W$4) -> 503.3628374 | E94: =INDEX('Compile Data'!$CK$12:$DH$93,$A94-1921,'Report - ALL (DASHBOARD)'!$W$4) -> 0 | F94: =INDEX('Compile Data'!$DK$12:$EH$93,$A94-1921,'Report - ALL (DASHBOARD)'!$W$4) -> 0 | O94: 66 | P94: 0.8024691358 | Q94: =INDEX('Compile Data'!$K$121:$AH$202,$O94,'Report - ALL (DASHBOARD)'!$W$4) -> 0 | R94: =INDEX('Compile Data'!$AK$121:$BH$202,$O94,'Report - ALL (DASHBOARD)'!$W$4) -> 64.67810602 | S94: =INDEX('Compile Data'!$BK$121:$CH$202,$O94,'Report - ALL (DASHBOARD)'!$W$4) -> 75.52365347 | T94: =INDEX('Compile Data'!$CK$121:$DH$202,$O94,'Report - ALL (DASHBOARD)'!$W$4) -> 0 | U94: =INDEX('Compile Data'!$DK$121:$EH$202,$O94,'Report - ALL (DASHBOARD)'!$W$4) -> 0
A95: =A94+1 -> 1988 | B95: =INDEX('Compile Data'!$K$12:$AH$93,$A95-1921,'Report - ALL (DASHBOARD)'!$W$4) -> 0 | C95: =INDEX('Compile Data'!$AK$12:$BH$93,$A95-1921,'Report - ALL (DASHBOARD)'!$W$4) -> 480.2620107 | D95: =INDEX('Compile Data'!$BK$12:$CH$93,$A95-1921,'Report - ALL (DASHBOARD)'!$W$4) -> 479.6762646 | E95: =INDEX('Compile Data'!$CK$12:$DH$93,$A95-1921,'Report - ALL (DASHBOARD)'!$W$4) -> 0 | F95: =INDEX('Compile Data'!$DK$12:$EH$93,$A95-1921,'Report - ALL (DASHBOARD)'!$W$4) -> 0 | O95: 67 | P95: 0.8148148148 | Q95: =INDEX('Compile Data'!$K$121:$AH$202,$O95,'Report - ALL (DASHBOARD)'!$W$4) -> 0 | R95: =INDEX('Compile Data'!$AK$121:$BH$202,$O95,'Report - ALL (DASHBOARD)'!$W$4) -> 59.91442089 | S95: =INDEX('Compile Data'!$BK$121:$CH$202,$O95,'Report - ALL (DASHBOARD)'!$W$4) -> 71.44122102 | T95: =INDEX('Compile Data'!$CK$121:$DH$202,$O95,'Report - ALL (DASHBOARD)'!$W$4) -> 0 | U95: =INDEX('Compile Data'!$DK$121:$EH$202,$O95,'Report - ALL (DASHBOARD)'!$W$4) -> 0
A96: 1989 | B96: =INDEX('Compile Data'!$K$12:$AH$93,$A96-1921,'Report - ALL (DASHBOARD)'!$W$4) -> 0 | C96: =INDEX('Compile Data'!$AK$12:$BH$93,$A96-1921,'Report - ALL (DASHBOARD)'!$W$4) -> 106.4835888 | D96: =INDEX('Compile Data'!$BK$12:$CH$93,$A96-1921,'Report - ALL (DASHBOARD)'!$W$4) -> 233.9658585 | E96: =INDEX('Compile Data'!$CK$12:$DH$93,$A96-1921,'Report - ALL (DASHBOARD)'!$W$4) -> 0 | F96: =INDEX('Compile Data'!$DK$12:$EH$93,$A96-1921,'Report - ALL (DASHBOARD)'!$W$4) -> 0 | O96: 68 | P96: 0.8271604938 | Q96: =INDEX('Compile Data'!$K$121:$AH$202,$O96,'Report - ALL (DASHBOARD)'!$W$4) -> 0 | R96: =INDEX('Compile Data'!$AK$121:$BH$202,$O96,'Report - ALL (DASHBOARD)'!$W$4) -> 57.40970621 | S96: =INDEX('Compile Data'!$BK$121:$CH$202,$O96,'Report - ALL (DASHBOARD)'!$W$4) -> 68.99162408 | T96: =INDEX('Compile Data'!$CK$121:$DH$202,$O96,'Report - ALL (DASHBOARD)'!$W$4) -> 0 | U96: =INDEX('Compile Data'!$DK$121:$EH$202,$O96,'Report - ALL (DASHBOARD)'!$W$4) -> 0
A97: 1990 | B97: =INDEX('Compile Data'!$K$12:$AH$93,$A97-1921,'Report - ALL (DASHBOARD)'!$W$4) -> 0 | C97: =INDEX('Compile Data'!$AK$12:$BH$93,$A97-1921,'Report - ALL (DASHBOARD)'!$W$4) -> 98.3683909 | D97: =INDEX('Compile Data'!$BK$12:$CH$93,$A97-1921,'Report - ALL (DASHBOARD)'!$W$4) -> 143.9940382 | E97: =INDEX('Compile Data'!$CK$12:$DH$93,$A97-1921,'Report - ALL (DASHBOARD)'!$W$4) -> 0 | F97: =INDEX('Compile Data'!$DK$12:$EH$93,$A97-1921,'Report - ALL (DASHBOARD)'!$W$4) -> 0 | O97: 69 | P97: 0.8395061728 | Q97: =INDEX('Compile Data'!$K$121:$AH$202,$O97,'Report - ALL (DASHBOARD)'!$W$4) -> 0 | R97: =INDEX('Compile Data'!$AK$121:$BH$202,$O97,'Report - ALL (DASHBOARD)'!$W$4) -> 55.1724138 | S97: =INDEX('Compile Data'!$BK$121:$CH$202,$O97,'Report - ALL (DASHBOARD)'!$W$4) -> 67.01672594 | T97: =INDEX('Compile Data'!$CK$121:$DH$202,$O97,'Report - ALL (DASHBOARD)'!$W$4) -> 0 | U97: =INDEX('Compile Data'!$DK$121:$EH$202,$O97,'Report - ALL (DASHBOARD)'!$W$4) -> 0
A98: 1991 | B98: =INDEX('Compile Data'!$K$12:$AH$93,$A98-1921,'Report - ALL (DASHBOARD)'!$W$4) -> 0 | C98: =INDEX('Compile Data'!$AK$12:$BH$93,$A98-1921,'Report - ALL (DASHBOARD)'!$W$4) -> 59.91442089 | D98: =INDEX('Compile Data'!$BK$12:$CH$93,$A98-1921,'Report - ALL (DASHBOARD)'!$W$4) -> 135.8715009 | E98: =INDEX('Compile Data'!$CK$12:$DH$93,$A98-1921,'Report - ALL (DASHBOARD)'!$W$4) -> 0 | F98: =INDEX('Compile Data'!$DK$12:$EH$93,$A98-1921,'Report - ALL (DASHBOARD)'!$W$4) -> 0 | O98: 70 | P98: 0.8518518519 | Q98: =INDEX('Compile Data'!$K$121:$AH$202,$O98,'Report - ALL (DASHBOARD)'!$W$4) -> 0 | R98: =INDEX('Compile Data'!$AK$121:$BH$202,$O98,'Report - ALL (DASHBOARD)'!$W$4) -> 48.1293431 | S98: =INDEX('Compile Data'!$BK$121:$CH$202,$O98,'Report - ALL (DASHBOARD)'!$W$4) -> 66.30317316 | T98: =INDEX('Compile Data'!$CK$121:$DH$202,$O98,'Report - ALL (DASHBOARD)'!$W$4) -> 0 | U98: =INDEX('Compile Data'!$DK$121:$EH$202,$O98,'Report - ALL (DASHBOARD)'!$W$4) -> 0
A99: 1992 | B99: =INDEX('Compile Data'!$K$12:$AH$93,$A99-1921,'Report - ALL (DASHBOARD)'!$W$4) -> 0 | C99: =INDEX('Compile Data'!$AK$12:$BH$93,$A99-1921,'Report - ALL (DASHBOARD)'!$W$4) -> 23.6697959 | D99: =INDEX('Compile Data'!$BK$12:$CH$93,$A99-1921,'Report - ALL (DASHBOARD)'!$W$4) -> 71.44122102 | E99: =INDEX('Compile Data'!$CK$12:$DH$93,$A99-1921,'Report - ALL (DASHBOARD)'!$W$4) -> 0 | F99: =INDEX('Compile Data'!$DK$12:$EH$93,$A99-1921,'Report - ALL (DASHBOARD)'!$W$4) -> 0 | O99: 71 | P99: 0.8641975309 | Q99: =INDEX('Compile Data'!$K$121:$AH$202,$O99,'Report - ALL (DASHBOARD)'!$W$4) -> 0 | R99: =INDEX('Compile Data'!$AK$121:$BH$202,$O99,'Report - ALL (DASHBOARD)'!$W$4) -> 47.1077199 | S99: =INDEX('Compile Data'!$BK$121:$CH$202,$O99,'Report - ALL (DASHBOARD)'!$W$4) -> 64.67928443 | T99: =INDEX('Compile Data'!$CK$121:$DH$202,$O99,'Report - ALL (DASHBOARD)'!$W$4) -> 0 | U99: =INDEX('Compile Data'!$DK$121:$EH$202,$O99,'Report - ALL (DASHBOARD)'!$W$4) -> 0
A100: 1993 | B100: =INDEX('Compile Data'!$K$12:$AH$93,$A100-1921,'Report - ALL (DASHBOARD)'!$W$4) -> 0 | C100: =INDEX('Compile Data'!$AK$12:$BH$93,$A100-1921,'Report - ALL (DASHBOARD)'!$W$4) -> 158.9261349 | D100: =INDEX('Compile Data'!$BK$12:$CH$93,$A100-1921,'Report - ALL (DASHBOARD)'!$W$4) -> 199.4196296 | E100: =INDEX('Compile Data'!$CK$12:$DH$93,$A100-1921,'Report - ALL (DASHBOARD)'!$W$4) -> 0 | F100: =INDEX('Compile Data'!$DK$12:$EH$93,$A100-1921,'Report - ALL (DASHBOARD)'!$W$4) -> 0 | O100: 72 | P100: 0.8765432099 | Q100: =INDEX('Compile Data'!$K$121:$AH$202,$O100,'Report - ALL (DASHBOARD)'!$W$4) -> 0 | R100: =INDEX('Compile Data'!$AK$121:$BH$202,$O100,'Report - ALL (DASHBOARD)'!$W$4) -> 45.7264205 | S100: =INDEX('Compile Data'!$BK$121:$CH$202,$O100,'Report - ALL (DASHBOARD)'!$W$4) -> 60.18359224 | T100: =INDEX('Compile Data'!$CK$121:$DH$202,$O100,'Report - ALL (DASHBOARD)'!$W$4) -> 0 | U100: =INDEX('Compile Data'!$DK$121:$EH$202,$O100,'Report - ALL (DASHBOARD)'!$W$4) -> 0
A101: 1994 | B101: =INDEX('Compile Data'!$K$12:$AH$93,$A101-1921,'Report - ALL (DASHBOARD)'!$W$4) -> 0 | C101: =INDEX('Compile Data'!$AK$12:$BH$93,$A101-1921,'Report - ALL (DASHBOARD)'!$W$4) -> 148.8351247 | D101: =INDEX('Compile Data'!$BK$12:$CH$93,$A101-1921,'Report - ALL (DASHBOARD)'!$W$4) -> 350.4056939 | E101: =INDEX('Compile Data'!$CK$12:$DH$93,$A101-1921,'Report - ALL (DASHBOARD)'!$W$4) -> 0 | F101: =INDEX('Compile Data'!$DK$12:$EH$93,$A101-1921,'Report - ALL (DASHBOARD)'!$W$4) -> 0 | O101: 73 | P101: 0.8888888889 | Q101: =INDEX('Compile Data'!$K$121:$AH$202,$O101,'Report - ALL (DASHBOARD)'!$W$4) -> 0 | R101: =INDEX('Compile Data'!$AK$121:$BH$202,$O101,'Report - ALL (DASHBOARD)'!$W$4) -> 42.17154962 | S101: =INDEX('Compile Data'!$BK$121:$CH$202,$O101,'Report - ALL (DASHBOARD)'!$W$4) -> 55.1724138 | T101: =INDEX('Compile Data'!$CK$121:$DH$202,$O101,'Report - ALL (DASHBOARD)'!$W$4) -> 0 | U101: =INDEX('Compile Data'!$DK$121:$EH$202,$O101,'Report - ALL (DASHBOARD)'!$W$4) -> 0
A102: 1995 | B102: =INDEX('Compile Data'!$K$12:$AH$93,$A102-1921,'Report - ALL (DASHBOARD)'!$W$4) -> 0 | C102: =INDEX('Compile Data'!$AK$12:$BH$93,$A102-1921,'Report - ALL (DASHBOARD)'!$W$4) -> 0.4446217506 | D102: =INDEX('Compile Data'!$BK$12:$CH$93,$A102-1921,'Report - ALL (DASHBOARD)'!$W$4) -> 87.46484708 | E102: =INDEX('Compile Data'!$CK$12:$DH$93,$A102-1921,'Report - ALL (DASHBOARD)'!$W$4) -> 0 | F102: =INDEX('Compile Data'!$DK$12:$EH$93,$A102-1921,'Report - ALL (DASHBOARD)'!$W$4) -> 0 | O102: 74 | P102: 0.9012345679 | Q102: =INDEX('Compile Data'!$K$121:$AH$202,$O102,'Report - ALL (DASHBOARD)'!$W$4) -> 0 | R102: =INDEX('Compile Data'!$AK$121:$BH$202,$O102,'Report - ALL (DASHBOARD)'!$W$4) -> 37.87420545 | S102: =INDEX('Compile Data'!$BK$121:$CH$202,$O102,'Report - ALL (DASHBOARD)'!$W$4) -> 51.72093637 | T102: =INDEX('Compile Data'!$CK$121:$DH$202,$O102,'Report - ALL (DASHBOARD)'!$W$4) -> 0 | U102: =INDEX('Compile Data'!$DK$121:$EH$202,$O102,'Report - ALL (DASHBOARD)'!$W$4) -> 0
A103: 1996 | B103: =INDEX('Compile Data'!$K$12:$AH$93,$A103-1921,'Report - ALL (DASHBOARD)'!$W$4) -> 0 | C103: =INDEX('Compile Data'!$AK$12:$BH$93,$A103-1921,'Report - ALL (DASHBOARD)'!$W$4) -> 75.52365347 | D103: =INDEX('Compile Data'!$BK$12:$CH$93,$A103-1921,'Report - ALL (DASHBOARD)'!$W$4) -> 75.52365347 | E103: =INDEX('Compile Data'!$CK$12:$DH$93,$A103-1921,'Report - ALL (DASHBOARD)'!$W$4) -> 0 | F103: =INDEX('Compile Data'!$DK$12:$EH$93,$A103-1921,'Report - ALL (DASHBOARD)'!$W$4) -> 0 | O103: 75 | P103: 0.9135802469 | Q103: =INDEX('Compile Data'!$K$121:$AH$202,$O103,'Report - ALL (DASHBOARD)'!$W$4) -> 0 | R103: =INDEX('Compile Data'!$AK$121:$BH$202,$O103,'Report - ALL (DASHBOARD)'!$W$4) -> 33.28358484 | S103: =INDEX('Compile Data'!$BK$121:$CH$202,$O103,'Report - ALL (DASHBOARD)'!$W$4) -> 48.1017631 | T103: =INDEX('Compile Data'!$CK$121:$DH$202,$O103,'Report - ALL (DASHBOARD)'!$W$4) -> 0 | U103: =INDEX('Compile Data'!$DK$121:$EH$202,$O103,'Report - ALL (DASHBOARD)'!$W$4) -> 0
A104: 1997 | B104: =INDEX('Compile Data'!$K$12:$AH$93,$A104-1921,'Report - ALL (DASHBOARD)'!$W$4) -> 0 | C104: =INDEX('Compile Data'!$AK$12:$BH$93,$A104-1921,'Report - ALL (DASHBOARD)'!$W$4) -> 147.7323535 | D104: =INDEX('Compile Data'!$BK$12:$CH$93,$A104-1921,'Report - ALL (DASHBOARD)'!$W$4) -> 147.7323535 | E104: =INDEX('Compile Data'!$CK$12:$DH$93,$A104-1921,'Report - ALL (DASHBOARD)'!$W$4) -> 0 | F104: =INDEX('Compile Data'!$DK$12:$EH$93,$A104-1921,'Report - ALL (DASHBOARD)'!$W$4) -> 0 | O104: 76 | P104: 0.9259259259 | Q104: =INDEX('Compile Data'!$K$121:$AH$202,$O104,'Report - ALL (DASHBOARD)'!$W$4) -> 0 | R104: =INDEX('Compile Data'!$AK$121:$BH$202,$O104,'Report - ALL (DASHBOARD)'!$W$4) -> 31.8162069 | S104: =INDEX('Compile Data'!$BK$121:$CH$202,$O104,'Report - ALL (DASHBOARD)'!$W$4) -> 40.43154962 | T104: =INDEX('Compile Data'!$CK$121:$DH$202,$O104,'Report - ALL (DASHBOARD)'!$W$4) -> 0 | U104: =INDEX('Compile Data'!$DK$121:$EH$202,$O104,'Report - ALL (DASHBOARD)'!$W$4) -> 0
A105: 1998 | B105: =INDEX('Compile Data'!$K$12:$AH$93,$A105-1921,'Report - ALL (DASHBOARD)'!$W$4) -> 0 | C105: =INDEX('Compile Data'!$AK$12:$BH$93,$A105-1921,'Report - ALL (DASHBOARD)'!$W$4) -> 27.5862069 | D105: =INDEX('Compile Data'!$BK$12:$CH$93,$A105-1921,'Report - ALL (DASHBOARD)'!$W$4) -> 27.5862069 | E105: =INDEX('Compile Data'!$CK$12:$DH$93,$A105-1921,'Report - ALL (DASHBOARD)'!$W$4) -> 0 | F105: =INDEX('Compile Data'!$DK$12:$EH$93,$A105-1921,'Report - ALL (DASHBOARD)'!$W$4) -> 0 | O105: 77 | P105: 0.9382716049 | Q105: =INDEX('Compile Data'!$K$121:$AH$202,$O105,'Report - ALL (DASHBOARD)'!$W$4) -> 0 | R105: =INDEX('Compile Data'!$AK$121:$BH$202,$O105,'Report - ALL (DASHBOARD)'!$W$4) -> 29.2462069 | S105: =INDEX('Compile Data'!$BK$121:$CH$202,$O105,'Report - ALL (DASHBOARD)'!$W$4) -> 37.3666298 | T105: =INDEX('Compile Data'!$CK$121:$DH$202,$O105,'Report - ALL (DASHBOARD)'!$W$4) -> 0 | U105: =INDEX('Compile Data'!$DK$121:$EH$202,$O105,'Report - ALL (DASHBOARD)'!$W$4) -> 0
A106: 1999 | B106: =INDEX('Compile Data'!$K$12:$AH$93,$A106-1921,'Report - ALL (DASHBOARD)'!$W$4) -> 0 | C106: =INDEX('Compile Data'!$AK$12:$BH$93,$A106-1921,'Report - ALL (DASHBOARD)'!$W$4) -> 64.67810602 | D106: =INDEX('Compile Data'!$BK$12:$CH$93,$A106-1921,'Report - ALL (DASHBOARD)'!$W$4) -> 64.67928443 | E106: =INDEX('Compile Data'!$CK$12:$DH$93,$A106-1921,'Report - ALL (DASHBOARD)'!$W$4) -> 0 | F106: =INDEX('Compile Data'!$DK$12:$EH$93,$A106-1921,'Report - ALL (DASHBOARD)'!$W$4) -> 0 | O106: 78 | P106: 0.950617284 | Q106: =INDEX('Compile Data'!$K$121:$AH$202,$O106,'Report - ALL (DASHBOARD)'!$W$4) -> 0 | R106: =INDEX('Compile Data'!$AK$121:$BH$202,$O106,'Report - ALL (DASHBOARD)'!$W$4) -> 27.5862069 | S106: =INDEX('Compile Data'!$BK$121:$CH$202,$O106,'Report - ALL (DASHBOARD)'!$W$4) -> 33.28358484 | T106: =INDEX('Compile Data'!$CK$121:$DH$202,$O106,'Report - ALL (DASHBOARD)'!$W$4) -> 0 | U106: =INDEX('Compile Data'!$DK$121:$EH$202,$O106,'Report - ALL (DASHBOARD)'!$W$4) -> 0
A107: 2000 | B107: =INDEX('Compile Data'!$K$12:$AH$93,$A107-1921,'Report - ALL (DASHBOARD)'!$W$4) -> 0 | C107: =INDEX('Compile Data'!$AK$12:$BH$93,$A107-1921,'Report - ALL (DASHBOARD)'!$W$4) -> 251.5520555 | D107: =INDEX('Compile Data'!$BK$12:$CH$93,$A107-1921,'Report - ALL (DASHBOARD)'!$W$4) -> 251.5520555 | E107: =INDEX('Compile Data'!$CK$12:$DH$93,$A107-1921,'Report - ALL (DASHBOARD)'!$W$4) -> 0 | F107: =INDEX('Compile Data'!$DK$12:$EH$93,$A107-1921,'Report - ALL (DASHBOARD)'!$W$4) -> 0 | O107: 79 | P107: 0.962962963 | Q107: =INDEX('Compile Data'!$K$121:$AH$202,$O107,'Report - ALL (DASHBOARD)'!$W$4) -> 0 | R107: =INDEX('Compile Data'!$AK$121:$BH$202,$O107,'Report - ALL (DASHBOARD)'!$W$4) -> 27.51788934 | S107: =INDEX('Compile Data'!$BK$121:$CH$202,$O107,'Report - ALL (DASHBOARD)'!$W$4) -> 31.8162069 | T107: =INDEX('Compile Data'!$CK$121:$DH$202,$O107,'Report - ALL (DASHBOARD)'!$W$4) -> 0 | U107: =INDEX('Compile Data'!$DK$121:$EH$202,$O107,'Report - ALL (DASHBOARD)'!$W$4) -> 0
A108: 2001 | B108: =INDEX('Compile Data'!$K$12:$AH$93,$A108-1921,'Report - ALL (DASHBOARD)'!$W$4) -> 0 | C108: =INDEX('Compile Data'!$AK$12:$BH$93,$A108-1921,'Report - ALL (DASHBOARD)'!$W$4) -> 371.546074 | D108: =INDEX('Compile Data'!$BK$12:$CH$93,$A108-1921,'Report - ALL (DASHBOARD)'!$W$4) -> 406.0158782 | E108: =INDEX('Compile Data'!$CK$12:$DH$93,$A108-1921,'Report - ALL (DASHBOARD)'!$W$4) -> 0 | F108: =INDEX('Compile Data'!$DK$12:$EH$93,$A108-1921,'Report - ALL (DASHBOARD)'!$W$4) -> 0 | O108: 80 | P108: 0.975308642 | Q108: =INDEX('Compile Data'!$K$121:$AH$202,$O108,'Report - ALL (DASHBOARD)'!$W$4) -> 0 | R108: =INDEX('Compile Data'!$AK$121:$BH$202,$O108,'Report - ALL (DASHBOARD)'!$W$4) -> 23.6697959 | S108: =INDEX('Compile Data'!$BK$121:$CH$202,$O108,'Report - ALL (DASHBOARD)'!$W$4) -> 29.2462069 | T108: =INDEX('Compile Data'!$CK$121:$DH$202,$O108,'Report - ALL (DASHBOARD)'!$W$4) -> 0 | U108: =INDEX('Compile Data'!$DK$121:$EH$202,$O108,'Report - ALL (DASHBOARD)'!$W$4) -> 0
A109: 2002 | B109: =INDEX('Compile Data'!$K$12:$AH$93,$A109-1921,'Report - ALL (DASHBOARD)'!$W$4) -> 0 | C109: =INDEX('Compile Data'!$AK$12:$BH$93,$A109-1921,'Report - ALL (DASHBOARD)'!$W$4) -> 327.9935039 | D109: =INDEX('Compile Data'!$BK$12:$CH$93,$A109-1921,'Report - ALL (DASHBOARD)'!$W$4) -> 330.6963525 | E109: =INDEX('Compile Data'!$CK$12:$DH$93,$A109-1921,'Report - ALL (DASHBOARD)'!$W$4) -> 0 | F109: =INDEX('Compile Data'!$DK$12:$EH$93,$A109-1921,'Report - ALL (DASHBOARD)'!$W$4) -> 0 | O109: 81 | P109: 0.987654321 | Q109: =INDEX('Compile Data'!$K$121:$AH$202,$O109,'Report - ALL (DASHBOARD)'!$W$4) -> 0 | R109: =INDEX('Compile Data'!$AK$121:$BH$202,$O109,'Report - ALL (DASHBOARD)'!$W$4) -> 0.4446217506 | S109: =INDEX('Compile Data'!$BK$121:$CH$202,$O109,'Report - ALL (DASHBOARD)'!$W$4) -> 27.5862069 | T109: =INDEX('Compile Data'!$CK$121:$DH$202,$O109,'Report - ALL (DASHBOARD)'!$W$4) -> 0 | U109: =INDEX('Compile Data'!$DK$121:$EH$202,$O109,'Report - ALL (DASHBOARD)'!$W$4) -> 0
A110: 2003 | B110: =INDEX('Compile Data'!$K$12:$AH$93,$A110-1921,'Report - ALL (DASHBOARD)'!$W$4) -> 0 | C110: =INDEX('Compile Data'!$AK$12:$BH$93,$A110-1921,'Report - ALL (DASHBOARD)'!$W$4) -> 87.53484484 | D110: =INDEX('Compile Data'!$BK$12:$CH$93,$A110-1921,'Report - ALL (DASHBOARD)'!$W$4) -> 178.3403789 | E110: =INDEX('Compile Data'!$CK$12:$DH$93,$A110-1921,'Report - ALL (DASHBOARD)'!$W$4) -> 0 | F110: =INDEX('Compile Data'!$DK$12:$EH$93,$A110-1921,'Report - ALL (DASHBOARD)'!$W$4) -> 0 | O110: 82 | P110: 1 | Q110: =INDEX('Compile Data'!$K$121:$AH$202,$O110,'Report - ALL (DASHBOARD)'!$W$4) -> 0 | R110: =INDEX('Compile Data'!$AK$121:$BH$202,$O110,'Report - ALL (DASHBOARD)'!$W$4) -> 0 | S110: =INDEX('Compile Data'!$BK$121:$CH$202,$O110,'Report - ALL (DASHBOARD)'!$W$4) -> 0 | T110: =INDEX('Compile Data'!$CK$121:$DH$202,$O110,'Report - ALL (DASHBOARD)'!$W$4) -> 0 | U110: =INDEX('Compile Data'!$DK$121:$EH$202,$O110,'Report - ALL (DASHBOARD)'!$W$4) -> 0

Sheet Compile Data
B1: =Control!$B$5 -> NAA 091720 | C1: =Control!$B$6 -> ALTA2 | D1: =Control!$B$7 -> ALTA2 PEA | E1: =Control!$B$8 -> EXTRA1 | F1: =Control!$B$9 -> EXTRA2 | AD1: =$B$8 -> PER-AVER | BD1: =$C$8 -> PER-AVER | CD1: ='Compile Data'!$D$8 -> PER-AVER | DD1: ='Compile Data'!$E$8 -> PER-AVER | ED1: ='Compile Data'!$F$8 -> PER-AVER
A2: Index: | B2: ='Report - ALL (DASHBOARD)'!W2 -> 32 | C2: =B2 -> 32 | D2: 32 | E2: 32 | F2: 32
A3: Convert? | B3: =IF('Report - ALL (DASHBOARD)'!W5,1,0) -> 1 | C3: 1 | D3: 1 | E3: 1 | F3: 1
A4: Column: | B4: =TRIM(VLOOKUP(B$2+2,DSSPathnames!$H$7:$K$183,2)) -> AH | C4: AH | D4: AH | E4: AH | F4: AH
A5: Title: | B5: =TRIM(VLOOKUP(B$2+2,DSSPathnames!$H$7:$K$183,4)) -> Total Sites Release | C5: =TRIM(VLOOKUP(C$2+2,DSSPathnames!$H$7:$K$183,4)) -> Total Sites Release | D5: =TRIM(VLOOKUP(D$2+2,DSSPathnames!$H$7:$K$183,4)) -> Total Sites Release | E5: =TRIM(VLOOKUP(E$2+2,DSSPathnames!$H$7:$K$183,4)) -> Total Sites Release | F5: =TRIM(VLOOKUP(F$2+2,DSSPathnames!$H$7:$K$183,4)) -> Total Sites Release
A6: Parameter: | B6: =INDIRECT(CONCATENATE("'",B$1,"'!",B$4,2)) -> C17604 | C6: C17604 | D6: C17604 | E6: C17604 | F6: C17604
B7: =INDIRECT(CONCATENATE("'",B$1,"'!",B$4,3)) -> FLOW-CHANNEL | C7: FLOW-CHANNEL | D7: FLOW-CHANNEL | E7: FLOW-CHANNEL | F7: FLOW-CHANNEL
A8: Type: | B8: =TRIM(VLOOKUP(B$2+2,DSSPathnames!$H$7:$K$183,3)) -> PER-AVER | C8: =TRIM(VLOOKUP(C$2+2,DSSPathnames!$H$7:$K$183,3)) -> PER-AVER | D8: =TRIM(VLOOKUP(D$2+2,DSSPathnames!$H$7:$K$183,3)) -> PER-AVER | E8: =TRIM(VLOOKUP(E$2+2,DSSPathnames!$H$7:$K$183,3)) -> PER-AVER | F8: =TRIM(VLOOKUP(F$2+2,DSSPathnames!$H$7:$K$183,3)) -> PER-AVER | J8: =CONCATENATE(TRIM(B$1),": ",TRIM(B$5)," - ",TRIM(B$6)," ",TRIM(B$7)," (",TRIM(B$10),") ",TRIM(B$11)) -> NAA 091720: Total Sites Release - C17604 FLOW-CHANNEL (TAF) | AJ8: =CONCATENATE(TRIM(C$1),": ",TRIM(C$5)," - ",TRIM(C$6)," ",TRIM(C$7)," (",TRIM(C$10),") ",TRIM(C$11)) -> ALTA2: Total Sites Release - C17604 FLOW-CHANNEL (TAF) | BJ8: =CONCATENATE(TRIM('Compile Data'!D$1),": ",TRIM('Compile Data'!D$5)," - ",TRIM('Compile Data'!D$6)," ",TRIM('Compile Data'!D$7)," (",TRIM('Compile Data'!D$10),") ",TRIM('Compile Data'!D$11)) -> ALTA2 PEA: Total Sites Release - C17604 FLOW-CHANNEL (TAF) | CJ8: =CONCATENATE(TRIM('Compile Data'!E$1),": ",TRIM('Compile Data'!E$5)," - ",TRIM('Compile Data'!E$6)," ",TRIM('Compile Data'!E$7)," (",TRIM('Compile Data'!E$10),") ",TRIM('Compile Data'!E$11)) -> EXTRA1: Total Sites Release - C17604 FLOW-CHANNEL (TAF) | DJ8: =CONCATENATE(TRIM('Compile Data'!F$1),": ",TRIM('Compile Data'!F$5)," - ",TRIM('Compile Data'!F$6)," ",TRIM('Compile Data'!F$7)," (",TRIM('Compile Data'!F$10),") ",TRIM('Compile Data'!F$11)) -> EXTRA2: Total Sites Release - C17604 FLOW-CHANNEL (TAF)
A9: Units-native: | B9: =TRIM(INDIRECT(CONCATENATE("'",B$1,"'!",B$4,11))) -> CFS | C9: CFS | D9: CFS | E9: CFS | F9: CFS
A10: Units-shown: | B10: =IF(AND(B$3>0,B$9="CFS"),"TAF",B$9) -> TAF | C10: TAF | D10: TAF | E10: TAF | F10: TAF | X10: Jan-Dec | Y10: Mar-Feb | Z10: Oct-Sep | AB10: Nov-Mar | AC10: Aug-Oct | AD10: Oct-Jan | AE10: Dec-Feb | AF10: Mar-Jun | AG10: Jun-Sep | AH10: Sep-Nov | AX10: Jan-Dec | AY10: Mar-Feb | AZ10: Oct-Sep | BB10: Nov-Mar | BC10: Aug-Oct | BD10: Oct-Jan | BE10: Dec-Feb | BF10: Mar-Jun | BG10: Jun-Sep | BH10: Sep-Nov | BX10: Jan-Dec | BY10: Mar-Feb | BZ10: Oct-Sep | CB10: Nov-Mar | CC10: Aug-Oct | CD10: Oct-Jan | CE10: Dec-Feb | CF10: Mar-Jun | CG10: Jun-Sep | CH10: Sep-Nov | CX10: Jan-Dec | CY10: Mar-Feb | CZ10: Oct-Sep | DB10: Nov-Mar | DC10: Aug-Oct | DD10: Oct-Jan | DE10: Dec-Feb | DF10: Mar-Jun | DG10: Jun-Sep | DH10: Sep-Nov | DX10: Jan-Dec | DY10: Mar-Feb | DZ10: Oct-Sep | EB10: Nov-Mar | EC10: Aug-Oct | ED10: Oct-Jan | EE10: Dec-Feb | EF10: Mar-Jun | EG10: Jun-Sep | EH10: Sep-Nov
A11: Date | B11: =IF(ISNUMBER(FIND("PRV",B$6)),"SHIFTED","") ->  | J11: YEAR | K11: OCT | L11: NOV | M11: DEC | N11: JAN | O11: FEB | P11: MAR | Q11: APR | R11: MAY | S11: JUN | T11: JUL | U11: AUG | V11: SEP | X11: =IF(AND($B$10="TAF",$B$8="PER-AVER"),"TOT","AVG") -> TOT | Y11: =IF(AND($B$10="TAF",$B$8="PER-AVER"),"TOT","AVG") -> TOT | Z11: =IF(AND($B$10="TAF",$B$8="PER-AVER"),"TOT","AVG") -> TOT | AB11: =IF(AND($B$10="TAF",$B$8="PER-AVER"),"TOT","AVG") -> TOT | AC11: TOT | AD11: =IF(AND($B$10="TAF",$B$8="PER-AVER"),"TOT","AVG") -> TOT | AE11: =IF(AND($B$10="TAF",$B$8="PER-AVER"),"TOT","AVG") -> TOT | AF11: =IF(AND($B$10="TAF",$B$8="PER-AVER"),"TOT","AVG") -> TOT | AG11: =IF(AND($B$10="TAF",$B$8="PER-AVER"),"TOT","AVG") -> TOT | AH11: =IF(AND($B$10="TAF",$B$8="PER-AVER"),"TOT","AVG") -> TOT | AJ11: YEAR | AK11: OCT | AL11: NOV | AM11: DEC | AN11: JAN | AO11: FEB | AP11: MAR | AQ11: APR | AR11: MAY | AS11: JUN | AT11: JUL | AU11: AUG | AV11: SEP | AX11: =IF(AND($C$10="TAF",$C$8="PER-AVER"),"TOT","AVG") -> TOT | AY11: =IF(AND($C$10="TAF",$C$8="PER-AVER"),"TOT","AVG") -> TOT | AZ11: =IF(AND($C$10="TAF",$C$8="PER-AVER"),"TOT","AVG") -> TOT | BB11: =IF(AND($B$10="TAF",$B$8="PER-AVER"),"TOT","AVG") -> TOT | BC11: TOT | BD11: =IF(AND($C$10="TAF",$C$8="PER-AVER"),"TOT","AVG") -> TOT | BE11: =IF(AND($C$10="TAF",$C$8="PER-AVER"),"TOT","AVG") -> TOT | BF11: =IF(AND($C$10="TAF",$C$8="PER-AVER"),"TOT","AVG") -> TOT | BG11: =IF(AND($C$10="TAF",$C$8="PER-AVER"),"TOT","AVG") -> TOT | BH11: =IF(AND($C$10="TAF",$C$8="PER-AVER"),"TOT","AVG") -> TOT | BJ11: YEAR | BK11: OCT | BL11: NOV | BM11: DEC | BN11: JAN | BO11: FEB | BP11: MAR | BQ11: APR | BR11: MAY | BS11: JUN | BT11: JUL | BU11: AUG | BV11: SEP | BX11: =IF(AND('Compile Data'!$D$10="TAF",'Compile Data'!$D$8="PER-AVER"),"TOT","AVG") -> TOT | BY11: =IF(AND('Compile Data'!$D$10="TAF",'Compile Data'!$D$8="PER-AVER"),"TOT","AVG") -> TOT | BZ11: =IF(AND('Compile Data'!$D$10="TAF",'Compile Data'!$D$8="PER-AVER"),"TOT","AVG") -> TOT | CB11: =IF(AND($B$10="TAF",$B$8="PER-AVER"),"TOT","AVG") -> TOT | CC11: TOT | CD11: =IF(AND('Compile Data'!$D$10="TAF",'Compile Data'!$D$8="PER-AVER"),"TOT","AVG") -> TOT | CE11: =IF(AND('Compile Data'!$D$10="TAF",'Compile Data'!$D$8="PER-AVER"),"TOT","AVG") -> TOT | CF11: =IF(AND('Compile Data'!$D$10="TAF",'Compile Data'!$D$8="PER-AVER"),"TOT","AVG") -> TOT | CG11: =IF(AND('Compile Data'!$D$10="TAF",'Compile Data'!$D$8="PER-AVER"),"TOT","AVG") -> TOT | CH11: =IF(AND('Compile Data'!$D$10="TAF",'Compile Data'!$D$8="PER-AVER"),"TOT","AVG") -> TOT | CJ11: YEAR | CK11: OCT | CL11: NOV | CM11: DEC | CN11: JAN | CO11: FEB | CP11: MAR | CQ11: APR | CR11: MAY | CS11: JUN | CT11: JUL | CU11: AUG | CV11: SEP | CX11: =IF(AND('Compile Data'!$E$10="TAF",'Compile Data'!$E$8="PER-AVER"),"TOT","AVG") -> TOT | CY11: =IF(AND('Compile Data'!$E$10="TAF",'Compile Data'!$E$8="PER-AVER"),"TOT","AVG") -> TOT | CZ11: =IF(AND('Compile Data'!$E$10="TAF",'Compile Data'!$E$8="PER-AVER"),"TOT","AVG") -> TOT | DB11: =IF(AND($B$10="TAF",$B$8="PER-AVER"),"TOT","AVG") -> TOT | DC11: TOT | DD11: =IF(AND('Compile Data'!$E$10="TAF",'Compile Data'!$E$8="PER-AVER"),"TOT","AVG") -> TOT | DE11: =IF(AND('Compile Data'!$E$10="TAF",'Compile Data'!$E$8="PER-AVER"),"TOT","AVG") -> TOT | DF11: =IF(AND('Compile Data'!$E$10="TAF",'Compile Data'!$E$8="PER-AVER"),"TOT","AVG") -> TOT | DG11: =IF(AND('Compile Data'!$E$10="TAF",'Compile Data'!$E$8="PER-AVER"),"TOT","AVG") -> TOT | DH11: =IF(AND('Compile Data'!$E$10="TAF",'Compile Data'!$E$8="PER-AVER"),"TOT","AVG") -> TOT | DJ11: YEAR | DK11: OCT | DL11: NOV | DM11: DEC | DN11: JAN | DO11: FEB | DP11: MAR | DQ11: APR | DR11: MAY | DS11: JUN | DT11: JUL | DU11: AUG | DV11: SEP | DX11: =IF(AND('Compile Data'!$F$10="TAF",'Compile Data'!$F$8="PER-AVER"),"TOT","AVG") -> TOT | DY11: =IF(AND('Compile Data'!$F$10="TAF",'Compile Data'!$F$8="PER-AVER"),"TOT","AVG") -> TOT | DZ11: =IF(AND('Compile Data'!$F$10="TAF",'Compile Data'!$F$8="PER-AVER"),"TOT","AVG") -> TOT | EB11: =IF(AND($B$10="TAF",$B$8="PER-AVER"),"TOT","AVG") -> TOT | EC11: TOT | ED11: =IF(AND('Compile Data'!$F$10="TAF",'Compile Data'!$F$8="PER-AVER"),"TOT","AVG") -> TOT | EE11: =IF(AND('Compile Data'!$F$10="TAF",'Compile Data'!$F$8="PER-AVER"),"TOT","AVG") -> TOT | EF11: =IF(AND('Compile Data'!$F$10="TAF",'Compile Data'!$F$8="PER-AVER"),"TOT","AVG") -> TOT | EG11: =IF(AND('Compile Data'!$F$10="TAF",'Compile Data'!$F$8="PER-AVER"),"TOT","AVG") -> TOT | EH11: =IF(AND('Compile Data'!$F$10="TAF",'Compile Data'!$F$8="PER-AVER"),"TOT","AVG") -> TOT
A12: 1921-09-30 | J12: 1922 | K12: =B13 -> 0 | L12: =B14 -> 0 | M12: =B15 -> 0 | N12: =B16 -> 0 | O12: =B17 -> 0 | P12: =B18 -> 0 | Q12: =B19 -> 0 | R12: =B20 -> 0 | S12: =B21 -> 0 | T12: =B22 -> 0 | U12: =B23 -> 0 | V12: =B24 -> 0 | X12: =IF(X$11="AVG",AVERAGE(N12:V12,K13:M13),SUM(N12:V12,K13:M13)) -> 0 | Y12: =IF(Y$11="AVG",AVERAGE(P12:V12,K13:O13),SUM(P12:V12,K13:O13)) -> 0 | Z12: =IF(Z$11="AVG",AVERAGE(K12:V12),SUM(K12:V12)) -> 0 | AB12: =IF(AB$11="AVG",IF(AD$1="INST-VAL",AVERAGE(K12:O12,L12:P12),AVERAGE(L12:P12)),SUM(L12:P12)) -> 0 | AC12: =IF(AC$11="AVG",IF(AD$1="INST-VAL",AVERAGE(T12:V12,U12:V12,K13),AVERAGE(U12:V12,K13)),SUM(U12:V12,K13)) -> 0 | AD12: =IF(AD$11="AVG",IF(AD$1="INST-VAL",AVERAGE(V11,K12:M12,K12:N12),AVERAGE(K12:N12)),SUM(K12:N12)) -> 0 | AE12: =IF(AE$11="AVG",IF(AD$1="INST-VAL",AVERAGE(L12:N12,M12:O12),AVERAGE(M12:O12)),SUM(M12:O12)) -> 0 | AF12: =IF(AF$11="AVG",IF(AD$1="INST-VAL",AVERAGE(O12:R12,P12:S12),AVERAGE(P12:S12)),SUM(P12:S12)) -> 0 | AG12: =IF(AG$11="AVG",IF(AD$1="INST-VAL",AVERAGE(R12:U12,S12:V12),AVERAGE(S12:V12)),SUM(S12:V12)) -> 0 | AH12: =IF(AH$11="AVG",IF(AD$1="INST-VAL",AVERAGE(U12:V12,K13,V12,K13:L13),AVERAGE(V12,K13:L13)),SUM(V12,K13:L13)) -> 0 | AJ12: 1922 | AK12: ='Compile Data'!C13 -> 17.85123967 | AL12: ='Compile Data'!C14 -> 18.34924492 | AM12: ='Compile Data'!C15 -> 0 | AN12: ='Compile Data'!C16 -> 0 | AO12: ='Compile Data'!C17 -> 0 | AP12: ='Compile Data'!C18 -> 0 | AQ12: ='Compile Data'!C19 -> 0 | AR12: ='Compile Data'!C20 -> 0 | AS12: ='Compile Data'!C21 -> 2.5 | AT12: ='Compile Data'!C22 -> 42.87344411 | AU12: ='Compile Data'!C23 -> 31.3362069 | AV12: ='Compile Data'!C24 -> 31.8262069 | AX12: =IF(AX$11="AVG",AVERAGE(AN12:AV12,AK13:AM13),SUM(AN12:AV12,AK13:AM13)) -> 140.2720648 | AY12: =IF(AY$11="AVG",AVERAGE(AP12:AV12,AK13:AO13),SUM(AP12:AV12,AK13:AO13)) -> 147.5205439 | AZ12: =IF(AZ$11="AVG",AVERAGE(AK12:AV12),SUM(AK12:AV12)) -> 144.7363425 | BB12: =IF(BB$11="AVG",IF(BD$1="INST-VAL",AVERAGE(AK12:AO12,AL12:AP12),AVERAGE(AL12:AP12)),SUM(AL12:AP12)) -> 18.34924492 | BC12: =IF(BC$11="AVG",IF(BD$1="INST-VAL",AVERAGE(AT12:AV12,AU12:AV12,AK13),AVERAGE(AU12:AV12,AK13)),SUM(AU12:AV12,AK13)) -> 93.2386207 | BD12: =IF(BD$11="AVG",IF(BD$1="INST-VAL",AVERAGE(AV11,AK12:AM12,AK12:AN12),AVERAGE(AK12:AN12)),SUM(AK12:AN12)) -> 36.20048459 | BE12: =IF(BE$11="AVG",IF(BD$1="INST-VAL",AVERAGE(AL12:AN12,AM12:AO12),AVERAGE(AM12:AO12)),SUM(AM12:AO12)) -> 0 | BF12: =IF(BF$11="AVG",IF(BD$1="INST-VAL",AVERAGE(AO12:AR12,AP12:AS12),AVERAGE(AP12:AS12)),SUM(AP12:AS12)) -> 2.5 | BG12: =IF(BG$11="AVG",IF(BD$1="INST-VAL",AVERAGE(AR12:AU12,AS12:AV12),AVERAGE(AS12:AV12)),SUM(AS12:AV12)) -> 108.5358579 | BH12: =IF(BH$11="AVG",IF(BD$1="INST-VAL",AVERAGE(AU12:AV12,AK13,AV12,AK13:AL13),AVERAGE(AV12,AK13:AL13)),SUM(AV12,AK13:AL13)) -> 61.9024138 | BJ12: 1922 | BK12: ='Compile Data'!D13 -> 17.85123967 | BL12: ='Compile Data'!D14 -> 18.34924492 | BM12: ='Compile Data'!D15 -> 0 | BN12: ='Compile Data'!D16 -> 0 | BO12: ='Compile Data'!D17 -> 0 | BP12: ='Compile Data'!D18 -> 0 | BQ12: ='Compile Data'!D19 -> 0 | BR12: ='Compile Data'!D20 -> 0 | BS12: ='Compile Data'!D21 -> 2.5 | BT12: ='Compile Data'!D22 -> 45.17153918 | BU12: ='Compile Data'!D23 -> 31.3362069 | BV12: ='Compile Data'!D24 -> 31.8262069 | BX12: =IF(BX$11="AVG",AVERAGE(BN12:BV12,BK13:BM13),SUM(BN12:BV12,BK13:BM13)) -> 142.5701599 | BY12: =IF(BY$11="AVG",AVERAGE(BP12:BV12,BK13:BO13),SUM(BP12:BV12,BK13:BO13)) -> 150.6850069 | BZ12: =IF(BZ$11="AVG",AVERAGE(BK12:BV12),SUM(BK12:BV12)) -> 147.0344376 | CB12: =IF(CB$11="AVG",IF(CD$1="INST-VAL",AVERAGE(BK12:BO12,BL12:BP12),AVERAGE(BL12:BP12)),SUM(BL12:BP12)) -> 18.34924492 | CC12: =IF(CC$11="AVG",IF(CD$1="INST-VAL",AVERAGE(BT12:BV12,BU12:BV12,BK13),AVERAGE(BU12:BV12,BK13)),SUM(BU12:BV12,BK13)) -> 93.2386207 | CD12: =IF(CD$11="AVG",IF(CD$1="INST-VAL",AVERAGE(BV11,BK12:BM12,BK12:BN12),AVERAGE(BK12:BN12)),SUM(BK12:BN12)) -> 36.20048459 | CE12: =IF(CE$11="AVG",IF(CD$1="INST-VAL",AVERAGE(BL12:BN12,BM12:BO12),AVERAGE(BM12:BO12)),SUM(BM12:BO12)) -> 0 | CF12: =IF(CF$11="AVG",IF(CD$1="INST-VAL",AVERAGE(BO12:BR12,BP12:BS12),AVERAGE(BP12:BS12)),SUM(BP12:BS12)) -> 2.5 | CG12: =IF(CG$11="AVG",IF(CD$1="INST-VAL",AVERAGE(BR12:BU12,BS12:BV12),AVERAGE(BS12:BV12)),SUM(BS12:BV12)) -> 110.833953 | CH12: =IF(CH$11="AVG",IF(CD$1="INST-VAL",AVERAGE(BU12:BV12,BK13,BV12,BK13:BL13),AVERAGE(BV12,BK13:BL13)),SUM(BV12,BK13:BL13)) -> 61.9024138 | CJ12: 1922 | CK12: ='Compile Data'!E13 -> 0 | CL12: ='Compile Data'!E14 -> 0 | CM12: ='Compile Data'!E15 -> 0 | CN12: ='Compile Data'!E16 -> 0 | CO12: ='Compile Data'!E17 -> 0 | CP12: ='Compile Data'!E18 -> 0 | CQ12: ='Compile Data'!E19 -> 0 | CR12: ='Compile Data'!E20 -> 0 | CS12: ='Compile Data'!E21 -> 0 | CT12: ='Compile Data'!E22 -> 0 | CU12: ='Compile Data'!E23 -> 0 | CV12: ='Compile Data'!E24 -> 0 | CX12: =IF(CX$11="AVG",AVERAGE(CN12:CV12,CK13:CM13),SUM(CN12:CV12,CK13:CM13)) -> 0 | CY12: =IF(CY$11="AVG",AVERAGE(CP12:CV12,CK13:CO13),SUM(CP12:CV12,CK13:CO13)) -> 0 | CZ12: =IF(CZ$11="AVG",AVERAGE(CK12:CV12),SUM(CK12:CV12)) -> 0 | DB12: =IF(DB$11="AVG",IF(DD$1="INST-VAL",AVERAGE(CK12:CO12,CL12:CP12),AVERAGE(CL12:CP12)),SUM(CL12:CP12)) -> 0 | DC12: =IF(DC$11="AVG",IF(DD$1="INST-VAL",AVERAGE(CT12:CV12,CU12:CV12,CK13),AVERAGE(CU12:CV12,CK13)),SUM(CU12:CV12,CK13)) -> 0 | DD12: =IF(DD$11="AVG",IF(DD$1="INST-VAL",AVERAGE(CV11,CK12:CM12,CK12:CN12),AVERAGE(CK12:CN12)),SUM(CK12:CN12)) -> 0 | DE12: =IF(DE$11="AVG",IF(DD$1="INST-VAL",AVERAGE(CL12:CN12,CM12:CO12),AVERAGE(CM12:CO12)),SUM(CM12:CO12)) -> 0 | DF12: =IF(DF$11="AVG",IF(DD$1="INST-VAL",AVERAGE(CO12:CR12,CP12:CS12),AVERAGE(CP12:CS12)),SUM(CP12:CS12)) -> 0 | DG12: =IF(DG$11="AVG",IF(DD$1="INST-VAL",AVERAGE(CR12:CU12,CS12:CV12),AVERAGE(CS12:CV12)),SUM(CS12:CV12)) -> 0 | DH12: =IF(DH$11="AVG",IF(DD$1="INST-VAL",AVERAGE(CU12:CV12,CK13,CV12,CK13:CL13),AVERAGE(CV12,CK13:CL13)),SUM(CV12,CK13:CL13)) -> 0 | DJ12: 1922 | DK12: ='Compile Data'!F13 -> 0 | DL12: ='Compile Data'!F14 -> 0 | DM12: ='Compile Data'!F15 -> 0 | DN12: ='Compile Data'!F16 -> 0 | DO12: ='Compile Data'!F17 -> 0 | DP12: ='Compile Data'!F18 -> 0 | DQ12: ='Compile Data'!F19 -> 0 | DR12: ='Compile Data'!F20 -> 0 | DS12: ='Compile Data'!F21 -> 0 | DT12: ='Compile Data'!F22 -> 0 | DU12: ='Compile Data'!F23 -> 0 | DV12: ='Compile Data'!F24 -> 0 | DX12: =IF(DX$11="AVG",AVERAGE(DN12:DV12,DK13:DM13),SUM(DN12:DV12,DK13:DM13)) -> 0 | DY12: =IF(DY$11="AVG",AVERAGE(DP12:DV12,DK13:DO13),SUM(DP12:DV12,DK13:DO13)) -> 0 | DZ12: =IF(DZ$11="AVG",AVERAGE(DK12:DV12),SUM(DK12:DV12)) -> 0 | EB12: =IF(EB$11="AVG",IF(ED$1="INST-VAL",AVERAGE(DK12:DO12,DL12:DP12),AVERAGE(DL12:DP12)),SUM(DL12:DP12)) -> 0 | EC12: =IF(EC$11="AVG",IF(ED$1="INST-VAL",AVERAGE(DT12:DV12,DU12:DV12,DK13),AVERAGE(DU12:DV12,DK13)),SUM(DU12:DV12,DK13)) -> 0 | ED12: =IF(ED$11="AVG",IF(ED$1="INST-VAL",AVERAGE(DV11,DK12:DM12,DK12:DN12),AVERAGE(DK12:DN12)),SUM(DK12:DN12)) -> 0 | EE12: =IF(EE$11="AVG",IF(ED$1="INST-VAL",AVERAGE(DL12:DN12,DM12:DO12),AVERAGE(DM12:DO12)),SUM(DM12:DO12)) -> 0 | EF12: =IF(EF$11="AVG",IF(ED$1="INST-VAL",AVERAGE(DO12:DR12,DP12:DS12),AVERAGE(DP12:DS12)),SUM(DP12:DS12)) -> 0 | EG12: =IF(EG$11="AVG",IF(ED$1="INST-VAL",AVERAGE(DR12:DU12,DS12:DV12),AVERAGE(DS12:DV12)),SUM(DS12:DV12)) -> 0 | EH12: =IF(EH$11="AVG",IF(ED$1="INST-VAL",AVERAGE(DU12:DV12,DK13,DV12,DK13:DL13),AVERAGE(DV12,DK13:DL13)),SUM(DV12,DK13:DL13)) -> 0
A13: 1921-10-31 | B13: =INDIRECT(CONCATENATE("'",B$1,"'!",B$4,(YEAR($A13)-1921)*12+MONTH($A13)+3+IF(ISNUMBER(FIND("PRV",B$6)),1,0)))*IF(AND(B$3>0,TRIM(B$9)="CFS"),Conv_Flags!$C13,1) -> 0 | C13: =INDIRECT(CONCATENATE("'",C$1,"'!",C$4,(YEAR($A13)-1921)*12+MONTH($A13)+3+IF(ISNUMBER(FIND("PRV",C$6)),1,0)))*IF(AND(C$3>0,TRIM(C$9)="CFS"),Conv_Flags!$C13,1) -> 17.85123967 | D13: =INDIRECT(CONCATENATE("'",D$1,"'!",D$4,(YEAR($A13)-1921)*12+MONTH($A13)+3+IF(ISNUMBER(FIND("PRV",D$6)),1,0)))*IF(AND(D$3>0,TRIM(D$9)="CFS"),Conv_Flags!$C13,1) -> 17.85123967 | E13: =INDIRECT(CONCATENATE("'",E$1,"'!",E$4,(YEAR($A13)-1921)*12+MONTH($A13)+3+IF(ISNUMBER(FIND("PRV",E$6)),1,0)))*IF(AND(E$3>0,TRIM(E$9)="CFS"),Conv_Flags!$C13,1) -> 0 | F13: =INDIRECT(CONCATENATE("'",F$1,"'!",F$4,(YEAR($A13)-1921)*12+MONTH($A13)+3+IF(ISNUMBER(FIND("PRV",F$6)),1,0)))*IF(AND(F$3>0,TRIM(F$9)="CFS"),Conv_Flags!$C13,1) -> 0 | J13: 1923 | K13: =B25 -> 0 | L13: =B26 -> 0 | M13: =B27 -> 0 | N13: =B28 -> 0 | O13: =B29 -> 0 | P13: =B30 -> 0 | Q13: =B31 -> 0 | R13: =B32 -> 0 | S13: =B33 -> 0 | T13: =B34 -> 0 | U13: =B35 -> 0 | V13: =B36 -> 0 | X13: 0 | Y13: 0 | Z13: 0 | AB13: =IF(AB$11="AVG",IF(AD$1="INST-VAL",AVERAGE(K13:O13,L13:P13),AVERAGE(L13:P13)),SUM(L13:P13)) -> 0 | AC13: =IF(AC$11="AVG",IF(AD$1="INST-VAL",AVERAGE(T13:V13,U13:V13,K14),AVERAGE(U13:V13,K14)),SUM(U13:V13,K14)) -> 0 | AD13: =IF(AD$11="AVG",IF(AD$1="INST-VAL",AVERAGE(V12,K13:M13,K13:N13),AVERAGE(K13:N13)),SUM(K13:N13)) -> 0 | AE13: 0 | AF13: 0 | AG13: 0 | AH13: 0 | AJ13: 1923 | AK13: ='Compile Data'!C25 -> 30.0762069 | AL13: ='Compile Data'!C26 -> 0 | AM13: ='Compile Data'!C27 -> 1.66 | AN13: ='Compile Data'!C28 -> 0 | AO13: ='Compile Data'!C29 -> 7.248479048 | AP13: ='Compile Data'!C30 -> 0.3486241904 | AQ13: ='Compile Data'!C31 -> 1.692059224 | AR13: ='Compile Data'!C32 -> 0 | AS13: ='Compile Data'!C33 -> 2.5 | AT13: ='Compile Data'!C34 -> 103.172498 | AU13: ='Compile Data'!C35 -> 91.01231344 | AV13: ='Compile Data'!C36 -> 3.923552056 | AX13: 267.982648 | AY13: 260.7341689 | AZ13: 241.6337329 | BB13: =IF(BB$11="AVG",IF(BD$1="INST-VAL",AVERAGE(AK13:AO13,AL13:AP13),AVERAGE(AL13:AP13)),SUM(AL13:AP13)) -> 9.257103238 | BC13: =IF(BC$11="AVG",IF(BD$1="INST-VAL",AVERAGE(AT13:AV13,AU13:AV13,AK14),AVERAGE(AU13:AV13,AK14)),SUM(AU13:AV13,AK14)) -> 115.7736088 | BD13: 31.7362069 | BE13: 8.908479048 | BF13: 4.540683415 | BG13: 200.6083635 | BH13: 45.43254701 | BJ13: 1923 | BK13: ='Compile Data'!D25 -> 30.0762069 | BL13: ='Compile Data'!D26 -> 0 | BM13: ='Compile Data'!D27 -> 1.66 | BN13: ='Compile Data'!D28 -> 0 | BO13: ='Compile Data'!D29 -> 8.11484703 | BP13: ='Compile Data'!D30 -> 0.3473456655 | BQ13: ='Compile Data'!D31 -> 1.685853861 | BR13: ='Compile Data'!D32 -> 0 | BS13: ='Compile Data'!D33 -> 2.5 | BT13: ='Compile Data'!D34 -> 104.3450624 | BU13: ='Compile Data'!D35 -> 92.18487784 | BV13: ='Compile Data'!D36 -> 3.923552056 | BX13: 271.1866609 | BY13: 263.0718138 | BZ13: 244.8377458 | CB13: =IF(CB$11="AVG",IF(CD$1="INST-VAL",AVERAGE(BK13:BO13,BL13:BP13),AVERAGE(BL13:BP13)),SUM(BL13:BP13)) -> 10.1221927 | CC13: =IF(CC$11="AVG",IF(CD$1="INST-VAL",AVERAGE(BT13:BV13,BU13:BV13,BK14),AVERAGE(BU13:BV13,BK14)),SUM(BU13:BV13,BK14)) -> 116.9461732 | CD13: 31.7362069 | CE13: 9.77484703 | CF13: 4.533199527 | CG13: 202.9534923 | CH13: 45.43254701 | CJ13: 1923 | CK13: ='Compile Data'!E25 -> 0 | CL13: ='Compile Data'!E26 -> 0 | CM13: ='Compile Data'!E27 -> 0 | CN13: ='Compile Data'!E28 -> 0 | CO13: ='Compile Data'!E29 -> 0 | CP13: ='Compile Data'!E30 -> 0 | CQ13: ='Compile Data'!E31 -> 0 | CR13: ='Compile Data'!E32 -> 0 | CS13: ='Compile Data'!E33 -> 0 | CT13: ='Compile Data'!E34 -> 0 | CU13: ='Compile Data'!E35 -> 0 | CV13: ='Compile Data'!E36 -> 0 | CX13: 0 | CY13: 0 | CZ13: 0 | DB13: =IF(DB$11="AVG",IF(DD$1="INST-VAL",AVERAGE(CK13:CO13,CL13:CP13),AVERAGE(CL13:CP13)),SUM(CL13:CP13)) -> 0 | DC13: =IF(DC$11="AVG",IF(DD$1="INST-VAL",AVERAGE(CT13:CV13,CU13:CV13,CK14),AVERAGE(CU13:CV13,CK14)),SUM(CU13:CV13,CK14)) -> 0 | DD13: 0 | DE13: 0 | DF13: 0 | DG13: 0 | DH13: 0 | DJ13: 1923 | DK13: ='Compile Data'!F25 -> 0 | DL13: ='Compile Data'!F26 -> 0 | DM13: ='Compile Data'!F27 -> 0 | DN13: ='Compile Data'!F28 -> 0 | DO13: ='Compile Data'!F29 -> 0 | DP13: ='Compile Data'!F30 -> 0 | DQ13: ='Compile Data'!F31 -> 0 | DR13: ='Compile Data'!F32 -> 0 | DS13: ='Compile Data'!F33 -> 0 | DT13: ='Compile Data'!F34 -> 0 | DU13: ='Compile Data'!F35 -> 0 | DV13: ='Compile Data'!F36 -> 0 | DX13: 0 | DY13: 0 | DZ13: 0 | EB13: =IF(EB$11="AVG",IF(ED$1="INST-VAL",AVERAGE(DK13:DO13,DL13:DP13),AVERAGE(DL13:DP13)),SUM(DL13:DP13)) -> 0 | EC13: =IF(EC$11="AVG",IF(ED$1="INST-VAL",AVERAGE(DT13:DV13,DU13:DV13,DK14),AVERAGE(DU13:DV13,DK14)),SUM(DU13:DV13,DK14)) -> 0 | ED13: 0 | EE13: 0 | EF13: 0 | EG13: 0 | EH13: 0
A14: 1921-11-30 | B14: =INDIRECT(CONCATENATE("'",B$1,"'!",B$4,(YEAR($A14)-1921)*12+MONTH($A14)+3+IF(ISNUMBER(FIND("PRV",B$6)),1,0)))*IF(AND(B$3>0,TRIM(B$9)="CFS"),Conv_Flags!$C14,1) -> 0 | C14: =INDIRECT(CONCATENATE("'",C$1,"'!",C$4,(YEAR($A14)-1921)*12+MONTH($A14)+3+IF(ISNUMBER(FIND("PRV",C$6)),1,0)))*IF(AND(C$3>0,TRIM(C$9)="CFS"),Conv_Flags!$C14,1) -> 18.34924492 | D14: =INDIRECT(CONCATENATE("'",D$1,"'!",D$4,(YEAR($A14)-1921)*12+MONTH($A14)+3+IF(ISNUMBER(FIND("PRV",D$6)),1,0)))*IF(AND(D$3>0,TRIM(D$9)="CFS"),Conv_Flags!$C14,1) -> 18.34924492 | E14: =INDIRECT(CONCATENATE("'",E$1,"'!",E$4,(YEAR($A14)-1921)*12+MONTH($A14)+3+IF(ISNUMBER(FIND("PRV",E$6)),1,0)))*IF(AND(E$3>0,TRIM(E$9)="CFS"),Conv_Flags!$C14,1) -> 0 | F14: =INDIRECT(CONCATENATE("'",F$1,"'!",F$4,(YEAR($A14)-1921)*12+MONTH($A14)+3+IF(ISNUMBER(FIND("PRV",F$6)),1,0)))*IF(AND(F$3>0,TRIM(F$9)="CFS"),Conv_Flags!$C14,1) -> 0 | J14: 1924 | K14: =B37 -> 0 | L14: =B38 -> 0 | M14: =B39 -> 0 | N14: =B40 -> 0 | O14: =B41 -> 0 | P14: =B42 -> 0 | Q14: =B43 -> 0 | R14: =B44 -> 0 | S14: =B45 -> 0 | T14: =B46 -> 0 | U14: =B47 -> 0 | V14: =B48 -> 0 | X14: 0 | Y14: 0 | Z14: 0 | AB14: =IF(AB$11="AVG",IF(AD$1="INST-VAL",AVERAGE(K14:O14,L14:P14),AVERAGE(L14:P14)),SUM(L14:P14)) -> 0 | AC14: =IF(AC$11="AVG",IF(AD$1="INST-VAL",AVERAGE(T14:V14,U14:V14,K15),AVERAGE(U14:V14,K15)),SUM(U14:V14,K15)) -> 0 | AD14: =IF(AD$11="AVG",IF(AD$1="INST-VAL",AVERAGE(V13,K14:M14,K14:N14),AVERAGE(K14:N14)),SUM(K14:N14)) -> 0 | AE14: 0 | AF14: 0 | AG14: 0 | AH14: 0 | AJ14: 1924 | AK14: ='Compile Data'!C37 -> 20.8377433 | AL14: ='Compile Data'!C38 -> 20.67125165 | AM14: ='Compile Data'!C39 -> 16.57612701 | AN14: ='Compile Data'!C40 -> 0 | AO14: ='Compile Data'!C41 -> 0 | AP14: ='Compile Data'!C42 -> 3.094488338 | AQ14: ='Compile Data'!C43 -> 19.71750342 | AR14: ='Compile Data'!C44 -> 23.77447719 | AS14: ='Compile Data'!C45 -> 22.55466582 | AT14: ='Compile Data'!C46 -> 142.4755993 | AU14: ='Compile Data'!C47 -> 131.6488782 | AV14: ='Compile Data'!C48 -> 85.90259969 | AX14: 562.6107396 | AY14: 562.6107396 | AZ14: 487.2533339 | BB14: =IF(BB$11="AVG",IF(BD$1="INST-VAL",AVERAGE(AK14:AO14,AL14:AP14),AVERAGE(AL14:AP14)),SUM(AL14:AP14)) -> 40.34186699 | BC14: 282.7019455 | BD14: 58.08512196 | BE14: 16.57612701 | BF14: 69.14113477 | BG14: 382.581743 | BH14: 219.345127 | BJ14: 1924 | BK14: ='Compile Data'!D37 -> 20.8377433 | BL14: ='Compile Data'!D38 -> 20.67125165 | BM14: ='Compile Data'!D39 -> 16.57612701 | BN14: ='Compile Data'!D40 -> 0 | BO14: ='Compile Data'!D41 -> 0 | BP14: ='Compile Data'!D42 -> 3.092736957 | BQ14: ='Compile Data'!D43 -> 19.96466385 | BR14: ='Compile Data'!D44 -> 23.7638005 | BS14: ='Compile Data'!D45 -> 22.54331552 | BT14: ='Compile Data'!D46 -> 142.4624976 | BU14: ='Compile Data'!D47 -> 132.4680825 | BV14: ='Compile Data'!D48 -> 86.0539226 | BX14: 567.0159829 | BY14: 567.0159829 | BZ14: 488.4341415 | CB14: =IF(CB$11="AVG",IF(CD$1="INST-VAL",AVERAGE(BK14:BO14,BL14:BP14),AVERAGE(BL14:BP14)),SUM(BL14:BP14)) -> 40.34011561 | CC14: 286.8959924 | CD14: 58.08512196 | CE14: 16.57612701 | CF14: 69.36451683 | CG14: 383.5278182 | CH14: 222.7208855 | CJ14: 1924 | CK14: ='Compile Data'!E37 -> 0 | CL14: ='Compile Data'!E38 -> 0 | CM14: ='Compile Data'!E39 -> 0 | CN14: ='Compile Data'!E40 -> 0 | CO14: ='Compile Data'!E41 -> 0 | CP14: ='Compile Data'!E42 -> 0 | CQ14: ='Compile Data'!E43 -> 0 | CR14: ='Compile Data'!E44 -> 0 | CS14: ='Compile Data'!E45 -> 0 | CT14: ='Compile Data'!E46 -> 0 | CU14: ='Compile Data'!E47 -> 0 | CV14: ='Compile Data'!E48 -> 0 | CX14: 0 | CY14: 0 | CZ14: 0 | DB14: =IF(DB$11="AVG",IF(DD$1="INST-VAL",AVERAGE(CK14:CO14,CL14:CP14),AVERAGE(CL14:CP14)),SUM(CL14:CP14)) -> 0 | DC14: 0 | DD14: 0 | DE14: 0 | DF14: 0 | DG14: 0 | DH14: 0 | DJ14: 1924 | DK14: ='Compile Data'!F37 -> 0 | DL14: ='Compile Data'!F38 -> 0 | DM14: ='Compile Data'!F39 -> 0 | DN14: ='Compile Data'!F40 -> 0 | DO14: ='Compile Data'!F41 -> 0 | DP14: ='Compile Data'!F42 -> 0 | DQ14: ='Compile Data'!F43 -> 0 | DR14: ='Compile Data'!F44 -> 0 | DS14: ='Compile Data'!F45 -> 0 | DT14: ='Compile Data'!F46 -> 0 | DU14: ='Compile Data'!F47 -> 0 | DV14: ='Compile Data'!F48 -> 0 | DX14: 0 | DY14: 0 | DZ14: 0 | EB14: =IF(EB$11="AVG",IF(ED$1="INST-VAL",AVERAGE(DK14:DO14,DL14:DP14),AVERAGE(DL14:DP14)),SUM(DL14:DP14)) -> 0 | EC14: 0 | ED14: 0 | EE14: 0 | EF14: 0 | EG14: 0 | EH14: 0
A15: 1921-12-31 | B15: =INDIRECT(CONCATENATE("'",B$1,"'!",B$4,(YEAR($A15)-1921)*12+MONTH($A15)+3+IF(ISNUMBER(FIND("PRV",B$6)),1,0)))*IF(AND(B$3>0,TRIM(B$9)="CFS"),Conv_Flags!$C15,1) -> 0 | C15: =INDIRECT(CONCATENATE("'",C$1,"'!",C$4,(YEAR($A15)-1921)*12+MONTH($A15)+3+IF(ISNUMBER(FIND("PRV",C$6)),1,0)))*IF(AND(C$3>0,TRIM(C$9)="CFS"),Conv_Flags!$C15,1) -> 0 | D15: =INDIRECT(CONCATENATE("'",D$1,"'!",D$4,(YEAR($A15)-1921)*12+MONTH($A15)+3+IF(ISNUMBER(FIND("PRV",D$6)),1,0)))*IF(AND(D$3>0,TRIM(D$9)="CFS"),Conv_Flags!$C15,1) -> 0 | E15: =INDIRECT(CONCATENATE("'",E$1,"'!",E$4,(YEAR($A15)-1921)*12+MONTH($A15)+3+IF(ISNUMBER(FIND("PRV",E$6)),1,0)))*IF(AND(E$3>0,TRIM(E$9)="CFS"),Conv_Flags!$C15,1) -> 0 | F15: =INDIRECT(CONCATENATE("'",F$1,"'!",F$4,(YEAR($A15)-1921)*12+MONTH($A15)+3+IF(ISNUMBER(FIND("PRV",F$6)),1,0)))*IF(AND(F$3>0,TRIM(F$9)="CFS"),Conv_Flags!$C15,1) -> 0 | J15: 1925 | K15: =B49 -> 0 | L15: =B50 -> 0 | M15: =B51 -> 0 | N15: =B52 -> 0 | O15: =B53 -> 0 | P15: =B54 -> 0 | Q15: =B55 -> 0 | R15: =B56 -> 0 | S15: =B57 -> 0 | T15: =B58 -> 0 | U15: =B59 -> 0 | V15: =B60 -> 0 | X15: 0 | Y15: 0 | Z15: 0 | AB15: =IF(AB$11="AVG",IF(AD$1="INST-VAL",AVERAGE(K15:O15,L15:P15),AVERAGE(L15:P15)),SUM(L15:P15)) -> 0 | AC15: 0 | AD15: 0 | AE15: 0 | AF15: 0 | AG15: 0 | AH15: 0 | AJ15: 1925 | AK15: ='Compile Data'!C49 -> 65.15046758 | AL15: ='Compile Data'!C50 -> 68.29205976 | AM15: ='Compile Data'!C51 -> 3.027654193e-07 | AN15: ='Compile Data'!C52 -> 0 | AO15: ='Compile Data'!C53 -> 0 | AP15: ='Compile Data'!C54 -> 0 | AQ15: ='Compile Data'!C55 -> 0 | AR15: ='Compile Data'!C56 -> 0 | AS15: ='Compile Data'!C57 -> 11.89932374 | AT15: ='Compile Data'!C58 -> 57.83884298 | AU15: ='Compile Data'!C59 -> 57.08957987 | AV15: ='Compile Data'!C60 -> 6.449678664 | AX15: 136.8411864 | AY15: 136.8411864 | AZ15: 266.7199529 | BB15: =IF(BB$11="AVG",IF(BD$1="INST-VAL",AVERAGE(AK15:AO15,AL15:AP15),AVERAGE(AL15:AP15)),SUM(AL15:AP15)) -> 68.29206006 | BC15: =IF(BC$11="AVG",IF(BD$1="INST-VAL",AVERAGE(AT15:AV15,AU15:AV15,AK16),AVERAGE(AU15:AV15,AK16)),SUM(AU15:AV15,AK16)) -> 67.10301967 | BD15: 133.4425276 | BE15: 3.027654193e-07 | BF15: 11.89932374 | BG15: 133.2774253 | BH15: 10.01343979 | BJ15: 1925 | BK15: ='Compile Data'!D49 -> 68.37398729 | BL15: ='Compile Data'!D50 -> 68.29297565 | BM15: ='Compile Data'!D51 -> 4.886122834e-07 | BN15: ='Compile Data'!D52 -> 0 | BO15: ='Compile Data'!D53 -> 0 | BP15: ='Compile Data'!D54 -> 0 | BQ15: ='Compile Data'!D55 -> 0 | BR15: ='Compile Data'!D56 -> 0 | BS15: ='Compile Data'!D57 -> 15.13970655 | BT15: ='Compile Data'!D58 -> 57.83884298 | BU15: ='Compile Data'!D59 -> 117.2054473 | BV15: ='Compile Data'!D60 -> 34.68065099 | BX15: 241.7269493 | BY15: 241.7269493 | BZ15: 361.5316112 | CB15: 68.29297614 | CC15: 168.7483998 | CD15: 136.6669634 | CE15: 4.886122834e-07 | CF15: 15.13970655 | CG15: 224.8646478 | CH15: 51.54295248 | CJ15: 1925 | CK15: ='Compile Data'!E49 -> 0 | CL15: ='Compile Data'!E50 -> 0 | CM15: ='Compile Data'!E51 -> 0 | CN15: ='Compile Data'!E52 -> 0 | CO15: ='Compile Data'!E53 -> 0 | CP15: ='Compile Data'!E54 -> 0 | CQ15: ='Compile Data'!E55 -> 0 | CR15: ='Compile Data'!E56 -> 0 | CS15: ='Compile Data'!E57 -> 0 | CT15: ='Compile Data'!E58 -> 0 | CU15: ='Compile Data'!E59 -> 0 | CV15: ='Compile Data'!E60 -> 0 | CX15: 0 | CY15: 0 | CZ15: 0 | DB15: 0 | DC15: 0 | DD15: 0 | DE15: 0 | DF15: 0 | DG15: 0 | DH15: 0 | DJ15: 1925 | DK15: ='Compile Data'!F49 -> 0 | DL15: ='Compile Data'!F50 -> 0 | DM15: ='Compile Data'!F51 -> 0 | DN15: ='Compile Data'!F52 -> 0 | DO15: ='Compile Data'!F53 -> 0 | DP15: ='Compile Data'!F54 -> 0 | DQ15: ='Compile Data'!F55 -> 0 | DR15: ='Compile Data'!F56 -> 0 | DS15: ='Compile Data'!F57 -> 0 | DT15: ='Compile Data'!F58 -> 0 | DU15: ='Compile Data'!F59 -> 0 | DV15: ='Compile Data'!F60 -> 0 | DX15: 0 | DY15: 0 | DZ15: 0 | EB15: 0 | EC15: 0 | ED15: 0 | EE15: 0 | EF15: 0 | EG15: 0 | EH15: 0
A16: 1922-01-31 | B16: =INDIRECT(CONCATENATE("'",B$1,"'!",B$4,(YEAR($A16)-1921)*12+MONTH($A16)+3+IF(ISNUMBER(FIND("PRV",B$6)),1,0)))*IF(AND(B$3>0,TRIM(B$9)="CFS"),Conv_Flags!$C16,1) -> 0 | C16: =INDIRECT(CONCATENATE("'",C$1,"'!",C$4,(YEAR($A16)-1921)*12+MONTH($A16)+3+IF(ISNUMBER(FIND("PRV",C$6)),1,0)))*IF(AND(C$3>0,TRIM(C$9)="CFS"),Conv_Flags!$C16,1) -> 0 | D16: =INDIRECT(CONCATENATE("'",D$1,"'!",D$4,(YEAR($A16)-1921)*12+MONTH($A16)+3+IF(ISNUMBER(FIND("PRV",D$6)),1,0)))*IF(AND(D$3>0,TRIM(D$9)="CFS"),Conv_Flags!$C16,1) -> 0 | E16: =INDIRECT(CONCATENATE("'",E$1,"'!",E$4,(YEAR($A16)-1921)*12+MONTH($A16)+3+IF(ISNUMBER(FIND("PRV",E$6)),1,0)))*IF(AND(E$3>0,TRIM(E$9)="CFS"),Conv_Flags!$C16,1) -> 0 | F16: =INDIRECT(CONCATENATE("'",F$1,"'!",F$4,(YEAR($A16)-1921)*12+MONTH($A16)+3+IF(ISNUMBER(FIND("PRV",F$6)),1,0)))*IF(AND(F$3>0,TRIM(F$9)="CFS"),Conv_Flags!$C16,1) -> 0 | J16: 1926 | K16: =B61 -> 0 | L16: =B62 -> 0 | M16: =B63 -> 0 | N16: =B64 -> 0 | O16: =B65 -> 0 | P16: =B66 -> 0 | Q16: =B67 -> 0 | R16: =B68 -> 0 | S16: =B69 -> 0 | T16: =B70 -> 0 | U16: =B71 -> 0 | V16: =B72 -> 0 | X16: 0 | Y16: 0 | Z16: 0 | AB16: 0 | AC16: 0 | AD16: 0 | AE16: 0 | AF16: 0 | AG16: 0 | AH16: 0 | AJ16: 1926 | AK16: ='Compile Data'!C61 -> 3.563761131 | AL16: ='Compile Data'!C62 -> 0 | AM16: ='Compile Data'!C63 -> 0 | AN16: ='Compile Data'!C64 -> 0 | AO16: ='Compile Data'!C65 -> 0 | AP16: ='Compile Data'!C66 -> 0.5671139104 | AQ16: ='Compile Data'!C67 -> 1.630501074 | AR16: ='Compile Data'!C68 -> 1.29379833 | AS16: ='Compile Data'!C69 -> 2.5 | AT16: ='Compile Data'!C70 -> 57.83884298 | AU16: ='Compile Data'!C71 -> 9.299104991 | AV16: ='Compile Data'!C72 -> 2.5 | AX16: 75.62936128 | AY16: 75.62936128 | AZ16: 79.19312241 | BB16: 0.5671139104 | BC16: 11.79910499 | BD16: 3.563761131 | BE16: 0 | BF16: 5.991413315 | BG16: 72.13794797 | BH16: 2.5 | BJ16: 1926 | BK16: ='Compile Data'!D61 -> 16.86230149 | BL16: ='Compile Data'!D62 -> 0 | BM16: ='Compile Data'!D63 -> 0 | BN16: ='Compile Data'!D64 -> 0 | BO16: ='Compile Data'!D65 -> 0 | BP16: ='Compile Data'!D66 -> 15.16070878 | BQ16: ='Compile Data'!D67 -> 1.632102214 | BR16: ='Compile Data'!D68 -> 13.67633157 | BS16: ='Compile Data'!D69 -> 2.5 | BT16: ='Compile Data'!D70 -> 123.5388638 | BU16: ='Compile Data'!D71 -> 95.10725869 | BV16: ='Compile Data'!D72 -> 8.475503941 | BX16: 262.8765573 | BY16: 262.8765573 | BZ16: 276.9530704 | CB16: 15.16070878 | CC16: 106.368551 | CD16: 16.86230149 | CE16: 0 | CF16: 32.96914256 | CG16: 229.6216264 | CH16: 11.26129228 | CJ16: 1926 | CK16: ='Compile Data'!E61 -> 0 | CL16: ='Compile Data'!E62 -> 0 | CM16: ='Compile Data'!E63 -> 0 | CN16: ='Compile Data'!E64 -> 0 | CO16: ='Compile Data'!E65 -> 0 | CP16: ='Compile Data'!E66 -> 0 | CQ16: ='Compile Data'!E67 -> 0 | CR16: ='Compile Data'!E68 -> 0 | CS16: ='Compile Data'!E69 -> 0 | CT16: ='Compile Data'!E70 -> 0 | CU16: ='Compile Data'!E71 -> 0 | CV16: ='Compile Data'!E72 -> 0 | CX16: 0 | CY16: 0 | CZ16: 0 | DB16: 0 | DC16: 0 | DD16: 0 | DE16: 0 | DF16: 0 | DG16: 0 | DH16: 0 | DJ16: 1926 | DK16: ='Compile Data'!F61 -> 0 | DL16: ='Compile Data'!F62 -> 0 | DM16: ='Compile Data'!F63 -> 0 | DN16: ='Compile Data'!F64 -> 0 | DO16: ='Compile Data'!F65 -> 0 | DP16: ='Compile Data'!F66 -> 0 | DQ16: ='Compile Data'!F67 -> 0 | DR16: ='Compile Data'!F68 -> 0 | DS16: ='Compile Data'!F69 -> 0 | DT16: ='Compile Data'!F70 -> 0 | DU16: ='Compile Data'!F71 -> 0 | DV16: ='Compile Data'!F72 -> 0 | DX16: 0 | DY16: 0 | DZ16: 0 | EB16: 0 | EC16: 0 | ED16: 0 | EE16: 0 | EF16: 0 | EG16: 0 | EH16: 0
A17: 1922-02-28 | B17: =INDIRECT(CONCATENATE("'",B$1,"'!",B$4,(YEAR($A17)-1921)*12+MONTH($A17)+3+IF(ISNUMBER(FIND("PRV",B$6)),1,0)))*IF(AND(B$3>0,TRIM(B$9)="CFS"),Conv_Flags!$C17,1) -> 0 | C17: =INDIRECT(CONCATENATE("'",C$1,"'!",C$4,(YEAR($A17)-1921)*12+MONTH($A17)+3+IF(ISNUMBER(FIND("PRV",C$6)),1,0)))*IF(AND(C$3>0,TRIM(C$9)="CFS"),Conv_Flags!$C17,1) -> 0 | D17: =INDIRECT(CONCATENATE("'",D$1,"'!",D$4,(YEAR($A17)-1921)*12+MONTH($A17)+3+IF(ISNUMBER(FIND("PRV",D$6)),1,0)))*IF(AND(D$3>0,TRIM(D$9)="CFS"),Conv_Flags!$C17,1) -> 0 | E17: =INDIRECT(CONCATENATE("'",E$1,"'!",E$4,(YEAR($A17)-1921)*12+MONTH($A17)+3+IF(ISNUMBER(FIND("PRV",E$6)),1,0)))*IF(AND(E$3>0,TRIM(E$9)="CFS"),Conv_Flags!$C17,1) -> 0 | F17: =INDIRECT(CONCATENATE("'",F$1,"'!",F$4,(YEAR($A17)-1921)*12+MONTH($A17)+3+IF(ISNUMBER(FIND("PRV",F$6)),1,0)))*IF(AND(F$3>0,TRIM(F$9)="CFS"),Conv_Flags!$C17,1) -> 0 | J17: 1927 | K17: =B73 -> 0 | L17: =B74 -> 0 | M17: =B75 -> 0 | N17: =B76 -> 0 | O17: =B77 -> 0 | P17: =B78 -> 0 | Q17: =B79 -> 0 | R17: =B80 -> 0 | S17: =B81 -> 0 | T17: =B82 -> 0 | U17: =B83 -> 0 | V17: =B84 -> 0 | X17: 0 | Y17: 0 | Z17: 0 | AB17: 0 | AC17: 0 | AD17: 0 | AE17: 0 | AF17: 0 | AG17: 0 | AH17: 0 | AJ17: 1927 | AK17: ='Compile Data'!C73 -> 0 | AL17: ='Compile Data'!C74 -> 0 | AM17: ='Compile Data'!C75 -> 0 | AN17: ='Compile Data'!C76 -> 0 | AO17: ='Compile Data'!C77 -> 0 | AP17: ='Compile Data'!C78 -> 0 | AQ17: ='Compile Data'!C79 -> 0 | AR17: ='Compile Data'!C80 -> 0 | AS17: ='Compile Data'!C81 -> 1.966778492 | AT17: ='Compile Data'!C82 -> 2.5 | AU17: ='Compile Data'!C83 -> 29.67795222 | AV17: ='Compile Data'!C84 -> 13.98461239 | AX17: 48.1293431 | AY17: 48.1293431 | AZ17: 48.1293431 | BB17: 0 | BC17: 43.6625646 | BD17: 0 | BE17: 0 | BF17: 1.966778492 | BG17: 48.1293431 | BH17: 13.98461239 | BJ17: 1927 | BK17: ='Compile Data'!D73 -> 2.785788338 | BL17: ='Compile Data'!D74 -> 0 | BM17: ='Compile Data'!D75 -> 0 | BN17: ='Compile Data'!D76 -> 0 | BO17: ='Compile Data'!D77 -> 0 | BP17: ='Compile Data'!D78 -> 0 | BQ17: ='Compile Data'!D79 -> 0 | BR17: ='Compile Data'!D80 -> 0 | BS17: ='Compile Data'!D81 -> 1.966778492 | BT17: ='Compile Data'!D82 -> 2.5 | BU17: ='Compile Data'!D83 -> 29.67795222 | BV17: ='Compile Data'!D84 -> 30.0862069 | BX17: 83.49831854 | BY17: 83.49831854 | BZ17: 67.01672594 | CB17: =IF(CB$11="AVG",IF(CD$1="INST-VAL",AVERAGE(BK17:BO17,BL17:BP17),AVERAGE(BL17:BP17)),SUM(BL17:BP17)) -> 0 | CC17: =IF(CC$11="AVG",IF(CD$1="INST-VAL",AVERAGE(BT17:BV17,BU17:BV17,BK18),AVERAGE(BU17:BV17,BK18)),SUM(BU17:BV17,BK18)) -> 79.03154005 | CD17: 2.785788338 | CE17: 0 | CF17: 1.966778492 | CG17: 64.23093761 | CH17: 49.35358783 | CJ17: 1927 | CK17: ='Compile Data'!E73 -> 0 | CL17: ='Compile Data'!E74 -> 0 | CM17: ='Compile Data'!E75 -> 0 | CN17: ='Compile Data'!E76 -> 0 | CO17: ='Compile Data'!E77 -> 0 | CP17: ='Compile Data'!E78 -> 0 | CQ17: ='Compile Data'!E79 -> 0 | CR17: ='Compile Data'!E80 -> 0 | CS17: ='Compile Data'!E81 -> 0 | CT17: ='Compile Data'!E82 -> 0 | CU17: ='Compile Data'!E83 -> 0 | CV17: ='Compile Data'!E84 -> 0 | CX17: 0 | CY17: 0 | CZ17: 0 | DB17: =IF(DB$11="AVG",IF(DD$1="INST-VAL",AVERAGE(CK17:CO17,CL17:CP17),AVERAGE(CL17:CP17)),SUM(CL17:CP17)) -> 0 | DC17: =IF(DC$11="AVG",IF(DD$1="INST-VAL",AVERAGE(CT17:CV17,CU17:CV17,CK18),AVERAGE(CU17:CV17,CK18)),SUM(CU17:CV17,CK18)) -> 0 | DD17: 0 | DE17: 0 | DF17: 0 | DG17: 0 | DH17: 0 | DJ17: 1927 | DK17: ='Compile Data'!F73 -> 0 | DL17: ='Compile Data'!F74 -> 0 | DM17: ='Compile Data'!F75 -> 0 | DN17: ='Compile Data'!F76 -> 0 | DO17: ='Compile Data'!F77 -> 0 | DP17: ='Compile Data'!F78 -> 0 | DQ17: ='Compile Data'!F79 -> 0 | DR17: ='Compile Data'!F80 -> 0 | DS17: ='Compile Data'!F81 -> 0 | DT17: ='Compile Data'!F82 -> 0 | DU17: ='Compile Data'!F83 -> 0 | DV17: ='Compile Data'!F84 -> 0 | DX17: 0 | DY17: 0 | DZ17: 0 | EB17: =IF(EB$11="AVG",IF(ED$1="INST-VAL",AVERAGE(DK17:DO17,DL17:DP17),AVERAGE(DL17:DP17)),SUM(DL17:DP17)) -> 0 | EC17: =IF(EC$11="AVG",IF(ED$1="INST-VAL",AVERAGE(DT17:DV17,DU17:DV17,DK18),AVERAGE(DU17:DV17,DK18)),SUM(DU17:DV17,DK18)) -> 0 | ED17: 0 | EE17: 0 | EF17: 0 | EG17: 0 | EH17: 0
A18: 1922-03-31 | B18: =INDIRECT(CONCATENATE("'",B$1,"'!",B$4,(YEAR($A18)-1921)*12+MONTH($A18)+3+IF(ISNUMBER(FIND("PRV",B$6)),1,0)))*IF(AND(B$3>0,TRIM(B$9)="CFS"),Conv_Flags!$C18,1) -> 0 | C18: =INDIRECT(CONCATENATE("'",C$1,"'!",C$4,(YEAR($A18)-1921)*12+MONTH($A18)+3+IF(ISNUMBER(FIND("PRV",C$6)),1,0)))*IF(AND(C$3>0,TRIM(C$9)="CFS"),Conv_Flags!$C18,1) -> 0 | D18: =INDIRECT(CONCATENATE("'",D$1,"'!",D$4,(YEAR($A18)-1921)*12+MONTH($A18)+3+IF(ISNUMBER(FIND("PRV",D$6)),1,0)))*IF(AND(D$3>0,TRIM(D$9)="CFS"),Conv_Flags!$C18,1) -> 0 | E18: =INDIRECT(CONCATENATE("'",E$1,"'!",E$4,(YEAR($A18)-1921)*12+MONTH($A18)+3+IF(ISNUMBER(FIND("PRV",E$6)),1,0)))*IF(AND(E$3>0,TRIM(E$9)="CFS"),Conv_Flags!$C18,1) -> 0 | F18: =INDIRECT(CONCATENATE("'",F$1,"'!",F$4,(YEAR($A18)-1921)*12+MONTH($A18)+3+IF(ISNUMBER(FIND("PRV",F$6)),1,0)))*IF(AND(F$3>0,TRIM(F$9)="CFS"),Conv_Flags!$C18,1) -> 0 | J18: 1928 | K18: =B85 -> 0 | L18: =B86 -> 0 | M18: =B87 -> 0 | N18: =B88 -> 0 | O18: =B89 -> 0 | P18: =B90 -> 0 | Q18: =B91 -> 0 | R18: =B92 -> 0 | S18: =B93 -> 0 | T18: =B94 -> 0 | U18: =B95 -> 0 | V18: =B96 -> 0 | X18: 0 | Y18: 0 | Z18: 0 | AB18: 0 | AC18: 0 | AD18: 0 | AE18: 0 | AF18: 0 | AG18: 0 | AH18: 0 | AJ18: 1928 | AK18: ='Compile Data'!C85 -> 0 | AL18: ='Compile Data'!C86 -> 0 | AM18: ='Compile Data'!C87 -> 0 | AN18: ='Compile Data'!C88 -> 0 | AO18: ='Compile Data'!C89 -> 0 | AP18: ='Compile Data'!C90 -> 0 | AQ18: ='Compile Data'!C91 -> 2.392142529 | AR18: ='Compile Data'!C92 -> 68.20076467 | AS18: ='Compile Data'!C93 -> 6.795409205 | AT18: ='Compile Data'!C94 -> 43.27821133 | AU18: ='Compile Data'!C95 -> 7.782724328 | AV18: ='Compile Data'!C96 -> 6.020999113 | AX18: 140.967441 | AY18: 140.967441 | AZ18: 134.4702512 | BB18: 0 | BC18: 16.90091328 | BD18: 0 | BE18: 0 | BF18: 77.3883164 | BG18: 63.87734397 | BH18: 10.85818895 | BJ18: 1928 | BK18: ='Compile Data'!D85 -> 19.26738093 | BL18: ='Compile Data'!D86 -> 0 | BM18: ='Compile Data'!D87 -> 0 | BN18: ='Compile Data'!D88 -> 0 | BO18: ='Compile Data'!D89 -> 0 | BP18: ='Compile Data'!D90 -> 0 | BQ18: ='Compile Data'!D91 -> 2.392195897 | BR18: ='Compile Data'!D92 -> 70.464568 | BS18: ='Compile Data'!D93 -> 6.795677807 | BT18: ='Compile Data'!D94 -> 43.68905252 | BU18: ='Compile Data'!D95 -> 34.10587541 | BV18: ='Compile Data'!D96 -> 7.271105901 | BX18: 171.2157018 | BY18: 171.2157018 | BZ18: 183.9858565 | CB18: 0 | CC18: 44.47420756 | CD18: 19.26738093 | CE18: 0 | CF18: 79.6524417 | CG18: 91.86171164 | CH18: 12.10833214 | CJ18: 1928 | CK18: ='Compile Data'!E85 -> 0 | CL18: ='Compile Data'!E86 -> 0 | CM18: ='Compile Data'!E87 -> 0 | CN18: ='Compile Data'!E88 -> 0 | CO18: ='Compile Data'!E89 -> 0 | CP18: ='Compile Data'!E90 -> 0 | CQ18: ='Compile Data'!E91 -> 0 | CR18: ='Compile Data'!E92 -> 0 | CS18: ='Compile Data'!E93 -> 0 | CT18: ='Compile Data'!E94 -> 0 | CU18: ='Compile Data'!E95 -> 0 | CV18: ='Compile Data'!E96 -> 0 | CX18: 0 | CY18: 0 | CZ18: 0 | DB18: =IF(DB$11="AVG",IF(DD$1="INST-VAL",AVERAGE(CK18:CO18,CL18:CP18),AVERAGE(CL18:CP18)),SUM(CL18:CP18)) -> 0 | DC18: =IF(DC$11="AVG",IF(DD$1="INST-VAL",AVERAGE(CT18:CV18,CU18:CV18,CK19),AVERAGE(CU18:CV18,CK19)),SUM(CU18:CV18,CK19)) -> 0 | DD18: 0 | DE18: 0 | DF18: 0 | DG18: 0 | DH18: 0 | DJ18: 1928 | DK18: ='Compile Data'!F85 -> 0 | DL18: ='Compile Data'!F86 -> 0 | DM18: ='Compile Data'!F87 -> 0 | DN18: ='Compile Data'!F88 -> 0 | DO18: ='Compile Data'!F89 -> 0 | DP18: ='Compile Data'!F90 -> 0 | DQ18: ='Compile Data'!F91 -> 0 | DR18: ='Compile Data'!F92 -> 0 | DS18: ='Compile Data'!F93 -> 0 | DT18: ='Compile Data'!F94 -> 0 | DU18: ='Compile Data'!F95 -> 0 | DV18: ='Compile Data'!F96 -> 0 | DX18: 0 | DY18: 0 | DZ18: 0 | EB18: =IF(EB$11="AVG",IF(ED$1="INST-VAL",AVERAGE(DK18:DO18,DL18:DP18),AVERAGE(DL18:DP18)),SUM(DL18:DP18)) -> 0 | EC18: =IF(EC$11="AVG",IF(ED$1="INST-VAL",AVERAGE(DT18:DV18,DU18:DV18,DK19),AVERAGE(DU18:DV18,DK19)),SUM(DU18:DV18,DK19)) -> 0 | ED18: 0 | EE18: 0 | EF18: 0 | EG18: 0 | EH18: 0
A19: 1922-04-30 | B19: =INDIRECT(CONCATENATE("'",B$1,"'!",B$4,(YEAR($A19)-1921)*12+MONTH($A19)+3+IF(ISNUMBER(FIND("PRV",B$6)),1,0)))*IF(AND(B$3>0,TRIM(B$9)="CFS"),Conv_Flags!$C19,1) -> 0 | C19: =INDIRECT(CONCATENATE("'",C$1,"'!",C$4,(YEAR($A19)-1921)*12+MONTH($A19)+3+IF(ISNUMBER(FIND("PRV",C$6)),1,0)))*IF(AND(C$3>0,TRIM(C$9)="CFS"),Conv_Flags!$C19,1) -> 0 | D19: =INDIRECT(CONCATENATE("'",D$1,"'!",D$4,(YEAR($A19)-1921)*12+MONTH($A19)+3+IF(ISNUMBER(FIND("PRV",D$6)),1,0)))*IF(AND(D$3>0,TRIM(D$9)="CFS"),Conv_Flags!$C19,1) -> 0 | E19: =INDIRECT(CONCATENATE("'",E$1,"'!",E$4,(YEAR($A19)-1921)*12+MONTH($A19)+3+IF(ISNUMBER(FIND("PRV",E$6)),1,0)))*IF(AND(E$3>0,TRIM(E$9)="CFS"),Conv_Flags!$C19,1) -> 0 | F19: =INDIRECT(CONCATENATE("'",F$1,"'!",F$4,(YEAR($A19)-1921)*12+MONTH($A19)+3+IF(ISNUMBER(FIND("PRV",F$6)),1,0)))*IF(AND(F$3>0,TRIM(F$9)="CFS"),Conv_Flags!$C19,1) -> 0 | J19: 1929 | K19: =B97 -> 0 | L19: =B98 -> 0 | M19: =B99 -> 0 | N19: =B100 -> 0 | O19: =B101 -> 0 | P19: =B102 -> 0 | Q19: =B103 -> 0 | R19: =B104 -> 0 | S19: =B105 -> 0 | T19: =B106 -> 0 | U19: =B107 -> 0 | V19: =B108 -> 0 | X19: 0 | Y19: 0 | Z19: 0 | AB19: 0 | AC19: 0 | AD19: 0 | AE19: 0 | AF19: 0 | AG19: 0 | AH19: 0 | AJ19: 1929 | AK19: ='Compile Data'!C97 -> 3.097189836 | AL19: ='Compile Data'!C98 -> 1.74 | AM19: ='Compile Data'!C99 -> 1.66 | AN19: ='Compile Data'!C100 -> 0 | AO19: ='Compile Data'!C101 -> 0 | AP19: ='Compile Data'!C102 -> 0.7295162817 | AQ19: ='Compile Data'!C103 -> 17.66368062 | AR19: ='Compile Data'!C104 -> 9.755757263 | AS19: ='Compile Data'!C105 -> 2.5 | AT19: ='Compile Data'!C106 -> 123.4726437 | AU19: ='Compile Data'!C107 -> 114.4506163 | AV19: ='Compile Data'!C108 -> 79.59066626 | AX19: 508.7780806 | AY19: 508.7780806 | AZ19: 354.6600703 | BB19: 4.129516282 | BC19: 274.1295429 | BD19: 6.497189836 | BE19: 1.66 | BF19: 30.64895417 | BG19: 320.0139263 | BH19: 240.2058663 | BJ19: 1929 | BK19: ='Compile Data'!D97 -> 3.097226243 | BL19: ='Compile Data'!D98 -> 1.74 | BM19: ='Compile Data'!D99 -> 1.66 | BN19: ='Compile Data'!D100 -> 0 | BO19: ='Compile Data'!D101 -> 0 | BP19: ='Compile Data'!D102 -> 0.7301561066 | BQ19: ='Compile Data'!D103 -> 17.67868832 | BR19: ='Compile Data'!D104 -> 28.64844608 | BS19: ='Compile Data'!D105 -> 3.176654697 | BT19: ='Compile Data'!D106 -> 123.4427054 | BU19: ='Compile Data'!D107 -> 115.7970141 | BV19: ='Compile Data'!D108 -> 79.87727534 | BX19: 530.7746107 | BY19: 530.7746107 | BZ19: 375.8481662 | CB19: 4.130156107 | CC19: 276.4582437 | CD19: 6.497226243 | CE19: 1.66 | CF19: 50.2339452 | CG19: 322.2936495 | CH19: 241.3009461 | CJ19: 1929 | CK19: ='Compile Data'!E97 -> 0 | CL19: ='Compile Data'!E98 -> 0 | CM19: ='Compile Data'!E99 -> 0 | CN19: ='Compile Data'!E100 -> 0 | CO19: ='Compile Data'!E101 -> 0 | CP19: ='Compile Data'!E102 -> 0 | CQ19: ='Compile Data'!E103 -> 0 | CR19: ='Compile Data'!E104 -> 0 | CS19: ='Compile Data'!E105 -> 0 | CT19: ='Compile Data'!E106 -> 0 | CU19: ='Compile Data'!E107 -> 0 | CV19: ='Compile Data'!E108 -> 0 | CX19: 0 | CY19: 0 | CZ19: 0 | DB19: 0 | DC19: 0 | DD19: 0 | DE19: 0 | DF19: 0 | DG19: 0 | DH19: 0 | DJ19: 1929 | DK19: ='Compile Data'!F97 -> 0 | DL19: ='Compile Data'!F98 -> 0 | DM19: ='Compile Data'!F99 -> 0 | DN19: ='Compile Data'!F100 -> 0 | DO19: ='Compile Data'!F101 -> 0 | DP19: ='Compile Data'!F102 -> 0 | DQ19: ='Compile Data'!F103 -> 0 | DR19: ='Compile Data'!F104 -> 0 | DS19: ='Compile Data'!F105 -> 0 | DT19: ='Compile Data'!F106 -> 0 | DU19: ='Compile Data'!F107 -> 0 | DV19: ='Compile Data'!F108 -> 0 | DX19: 0 | DY19: 0 | DZ19: 0 | EB19: 0 | EC19: 0 | ED19: 0 | EE19: 0 | EF19: 0 | EG19: 0 | EH19: 0
A20: 1922-05-31 | B20: =INDIRECT(CONCATENATE("'",B$1,"'!",B$4,(YEAR($A20)-1921)*12+MONTH($A20)+3+IF(ISNUMBER(FIND("PRV",B$6)),1,0)))*IF(AND(B$3>0,TRIM(B$9)="CFS"),Conv_Flags!$C20,1) -> 0 | C20: =INDIRECT(CONCATENATE("'",C$1,"'!",C$4,(YEAR($A20)-1921)*12+MONTH($A20)+3+IF(ISNUMBER(FIND("PRV",C$6)),1,0)))*IF(AND(C$3>0,TRIM(C$9)="CFS"),Conv_Flags!$C20,1) -> 0 | D20: =INDIRECT(CONCATENATE("'",D$1,"'!",D$4,(YEAR($A20)-1921)*12+MONTH($A20)+3+IF(ISNUMBER(FIND("PRV",D$6)),1,0)))*IF(AND(D$3>0,TRIM(D$9)="CFS"),Conv_Flags!$C20,1) -> 0 | E20: =INDIRECT(CONCATENATE("'",E$1,"'!",E$4,(YEAR($A20)-1921)*12+MONTH($A20)+3+IF(ISNUMBER(FIND("PRV",E$6)),1,0)))*IF(AND(E$3>0,TRIM(E$9)="CFS"),Conv_Flags!$C20,1) -> 0 | F20: =INDIRECT(CONCATENATE("'",F$1,"'!",F$4,(YEAR($A20)-1921)*12+MONTH($A20)+3+IF(ISNUMBER(FIND("PRV",F$6)),1,0)))*IF(AND(F$3>0,TRIM(F$9)="CFS"),Conv_Flags!$C20,1) -> 0 | J20: 1930 | K20: =B109 -> 0 | L20: =B110 -> 0 | M20: =B111 -> 0 | N20: =B112 -> 0 | O20: =B113 -> 0 | P20: =B114 -> 0 | Q20: =B115 -> 0 | R20: =B116 -> 0 | S20: =B117 -> 0 | T20: =B118 -> 0 | U20: =B119 -> 0 | V20: =B120 -> 0 | X20: 0 | Y20: 0 | Z20: 0 | AB20: 0 | AC20: 0 | AD20: 0 | AE20: 0 | AF20: 0 | AG20: 0 | AH20: 0 | AJ20: 1930 | AK20: ='Compile Data'!C109 -> 80.08826032 | AL20: ='Compile Data'!C110 -> 80.52693975 | AM20: ='Compile Data'!C111 -> 0 | AN20: ='Compile Data'!C112 -> 0 | AO20: ='Compile Data'!C113 -> 0 | AP20: ='Compile Data'!C114 -> 0 | AQ20: ='Compile Data'!C115 -> 1.382771928 | AR20: ='Compile Data'!C116 -> 0 | AS20: ='Compile Data'!C117 -> 0.6467527591 | AT20: ='Compile Data'!C118 -> 35.23955151 | AU20: ='Compile Data'!C119 -> 0 | AV20: ='Compile Data'!C120 -> 0 | AX20: 37.26907619 | AY20: 37.26907619 | AZ20: 197.8842763 | BB20: 80.52693975 | BC20: 0 | BD20: 160.6152001 | BE20: 0 | BF20: 2.029524687 | BG20: 35.88630426 | BH20: 0 | BJ20: 1930 | BK20: ='Compile Data'!D109 -> 80.78395424 | BL20: ='Compile Data'!D110 -> 80.63971648 | BM20: ='Compile Data'!D111 -> 0 | BN20: ='Compile Data'!D112 -> 0 | BO20: ='Compile Data'!D113 -> 0 | BP20: ='Compile Data'!D114 -> 0 | BQ20: ='Compile Data'!D115 -> 3.881779837 | BR20: ='Compile Data'!D116 -> 10.59428585 | BS20: ='Compile Data'!D117 -> 2.5 | BT20: ='Compile Data'!D118 -> 119.3264463 | BU20: ='Compile Data'!D119 -> 94.17207448 | BV20: ='Compile Data'!D120 -> 6.919127834 | BX20: 237.3937143 | BY20: 237.3937143 | BZ20: 398.817385 | CB20: 80.63971648 | CC20: 101.0912023 | CD20: 161.4236707 | CE20: 0 | CF20: 16.97606568 | CG20: 222.9176486 | CH20: 6.919127834 | CJ20: 1930 | CK20: ='Compile Data'!E109 -> 0 | CL20: ='Compile Data'!E110 -> 0 | CM20: ='Compile Data'!E111 -> 0 | CN20: ='Compile Data'!E112 -> 0 | CO20: ='Compile Data'!E113 -> 0 | CP20: ='Compile Data'!E114 -> 0 | CQ20: ='Compile Data'!E115 -> 0 | CR20: ='Compile Data'!E116 -> 0 | CS20: ='Compile Data'!E117 -> 0 | CT20: ='Compile Data'!E118 -> 0 | CU20: ='Compile Data'!E119 -> 0 | CV20: ='Compile Data'!E120 -> 0 | CX20: 0 | CY20: 0 | CZ20: 0 | DB20: 0 | DC20: 0 | DD20: 0 | DE20: 0 | DF20: 0 | DG20: 0 | DH20: 0 | DJ20: 1930 | DK20: ='Compile Data'!F109 -> 0 | DL20: ='Compile Data'!F110 -> 0 | DM20: ='Compile Data'!F111 -> 0 | DN20: ='Compile Data'!F112 -> 0 | DO20: ='Compile Data'!F113 -> 0 | DP20: ='Compile Data'!F114 -> 0 | DQ20: ='Compile Data'!F115 -> 0 | DR20: ='Compile Data'!F116 -> 0 | DS20: ='Compile Data'!F117 -> 0 | DT20: ='Compile Data'!F118 -> 0 | DU20: ='Compile Data'!F119 -> 0 | DV20: ='Compile Data'!F120 -> 0 | DX20: 0 | DY20: 0 | DZ20: 0 | EB20: 0 | EC20: 0 | ED20: 0 | EE20: 0 | EF20: 0 | EG20: 0 | EH20: 0
A21: 1922-06-30 | B21: =INDIRECT(CONCATENATE("'",B$1,"'!",B$4,(YEAR($A21)-1921)*12+MONTH($A21)+3+IF(ISNUMBER(FIND("PRV",B$6)),1,0)))*IF(AND(B$3>0,TRIM(B$9)="CFS"),Conv_Flags!$C21,1) -> 0 | C21: =INDIRECT(CONCATENATE("'",C$1,"'!",C$4,(YEAR($A21)-1921)*12+MONTH($A21)+3+IF(ISNUMBER(FIND("PRV",C$6)),1,0)))*IF(AND(C$3>0,TRIM(C$9)="CFS"),Conv_Flags!$C21,1) -> 2.5 | D21: =INDIRECT(CONCATENATE("'",D$1,"'!",D$4,(YEAR($A21)-1921)*12+MONTH($A21)+3+IF(ISNUMBER(FIND("PRV",D$6)),1,0)))*IF(AND(D$3>0,TRIM(D$9)="CFS"),Conv_Flags!$C21,1) -> 2.5 | E21: =INDIRECT(CONCATENATE("'",E$1,"'!",E$4,(YEAR($A21)-1921)*12+MONTH($A21)+3+IF(ISNUMBER(FIND("PRV",E$6)),1,0)))*IF(AND(E$3>0,TRIM(E$9)="CFS"),Conv_Flags!$C21,1) -> 0 | F21: =INDIRECT(CONCATENATE("'",F$1,"'!",F$4,(YEAR($A21)-1921)*12+MONTH($A21)+3+IF(ISNUMBER(FIND("PRV",F$6)),1,0)))*IF(AND(F$3>0,TRIM(F$9)="CFS"),Conv_Flags!$C21,1) -> 0 | J21: 1931 | K21: =B121 -> 0 | L21: =B122 -> 0 | M21: =B123 -> 0 | N21: =B124 -> 0 | O21: =B125 -> 0 | P21: =B126 -> 0 | Q21: =B127 -> 0 | R21: =B128 -> 0 | S21: =B129 -> 0 | T21: =B130 -> 0 | U21: =B131 -> 0 | V21: =B132 -> 0 | X21: 0 | Y21: 0 | Z21: 0 | AB21: 0 | AC21: 0 | AD21: 0 | AE21: 0 | AF21: 0 | AG21: 0 | AH21: 0 | AJ21: 1931 | AK21: ='Compile Data'!C121 -> 0 | AL21: ='Compile Data'!C122 -> 0 | AM21: ='Compile Data'!C123 -> 0 | AN21: ='Compile Data'!C124 -> 0 | AO21: ='Compile Data'!C125 -> 0 | AP21: ='Compile Data'!C126 -> 0 | AQ21: ='Compile Data'!C127 -> 25.37563017 | AR21: ='Compile Data'!C128 -> 19.66862046 | AS21: ='Compile Data'!C129 -> 19.57357649 | AT21: ='Compile Data'!C130 -> 2.497176332 | AU21: ='Compile Data'!C131 -> 0 | AV21: ='Compile Data'!C132 -> 0 | AX21: 67.11500345 | AY21: 67.11500345 | AZ21: 67.11500345 | BB21: 0 | BC21: 0 | BD21: 0 | BE21: 0 | BF21: 64.61782711 | BG21: 22.07075282 | BH21: 0 | BJ21: 1931 | BK21: ='Compile Data'!D121 -> 0 | BL21: ='Compile Data'!D122 -> 0 | BM21: ='Compile Data'!D123 -> 0 | BN21: ='Compile Data'!D124 -> 0 | BO21: ='Compile Data'!D125 -> 0 | BP21: ='Compile Data'!D126 -> 2.78435809 | BQ21: ='Compile Data'!D127 -> 26.34619072 | BR21: ='Compile Data'!D128 -> 22.09354767 | BS21: ='Compile Data'!D129 -> 22.22208894 | BT21: ='Compile Data'!D130 -> 33.25337291 | BU21: ='Compile Data'!D131 -> 2.5 | BV21: ='Compile Data'!D132 -> 0.8014988603 | BX21: 110.0010572 | BY21: 110.0010572 | BZ21: 110.0010572 | CB21: 2.78435809 | CC21: 3.30149886 | CD21: 0 | CE21: 0 | CF21: 73.44618542 | CG21: 58.7769607 | CH21: 0.8014988603 | CJ21: 1931 | CK21: ='Compile Data'!E121 -> 0 | CL21: ='Compile Data'!E122 -> 0 | CM21: ='Compile Data'!E123 -> 0 | CN21: ='Compile Data'!E124 -> 0 | CO21: ='Compile Data'!E125 -> 0 | CP21: ='Compile Data'!E126 -> 0 | CQ21: ='Compile Data'!E127 -> 0 | CR21: ='Compile Data'!E128 -> 0 | CS21: ='Compile Data'!E129 -> 0 | CT21: ='Compile Data'!E130 -> 0 | CU21: ='Compile Data'!E131 -> 0 | CV21: ='Compile Data'!E132 -> 0 | CX21: 0 | CY21: 0 | CZ21: 0 | DB21: 0 | DC21: 0 | DD21: 0 | DE21: 0 | DF21: 0 | DG21: 0 | DH21: 0 | DJ21: 1931 | DK21: ='Compile Data'!F121 -> 0 | DL21: ='Compile Data'!F122 -> 0 | DM21: ='Compile Data'!F123 -> 0 | DN21: ='Compile Data'!F124 -> 0 | DO21: ='Compile Data'!F125 -> 0 | DP21: ='Compile Data'!F126 -> 0 | DQ21: ='Compile Data'!F127 -> 0 | DR21: ='Compile Data'!F128 -> 0 | DS21: ='Compile Data'!F129 -> 0 | DT21: ='Compile Data'!F130 -> 0 | DU21: ='Compile Data'!F131 -> 0 | DV21: ='Compile Data'!F132 -> 0 | DX21: 0 | DY21: 0 | DZ21: 0 | EB21: 0 | EC21: 0 | ED21: 0 | EE21: 0 | EF21: 0 | EG21: 0 | EH21: 0
A22: 1922-07-31 | B22: =INDIRECT(CONCATENATE("'",B$1,"'!",B$4,(YEAR($A22)-1921)*12+MONTH($A22)+3+IF(ISNUMBER(FIND("PRV",B$6)),1,0)))*IF(AND(B$3>0,TRIM(B$9)="CFS"),Conv_Flags!$C22,1) -> 0 | C22: =INDIRECT(CONCATENATE("'",C$1,"'!",C$4,(YEAR($A22)-1921)*12+MONTH($A22)+3+IF(ISNUMBER(FIND("PRV",C$6)),1,0)))*IF(AND(C$3>0,TRIM(C$9)="CFS"),Conv_Flags!$C22,1) -> 42.87344411 | D22: =INDIRECT(CONCATENATE("'",D$1,"'!",D$4,(YEAR($A22)-1921)*12+MONTH($A22)+3+IF(ISNUMBER(FIND("PRV",D$6)),1,0)))*IF(AND(D$3>0,TRIM(D$9)="CFS"),Conv_Flags!$C22,1) -> 45.17153918 | E22: =INDIRECT(CONCATENATE("'",E$1,"'!",E$4,(YEAR($A22)-1921)*12+MONTH($A22)+3+IF(ISNUMBER(FIND("PRV",E$6)),1,0)))*IF(AND(E$3>0,TRIM(E$9)="CFS"),Conv_Flags!$C22,1) -> 0 | F22: =INDIRECT(CONCATENATE("'",F$1,"'!",F$4,(YEAR($A22)-1921)*12+MONTH($A22)+3+IF(ISNUMBER(FIND("PRV",F$6)),1,0)))*IF(AND(F$3>0,TRIM(F$9)="CFS"),Conv_Flags!$C22,1) -> 0 | J22: 1932 | K22: =B133 -> 0 | L22: =B134 -> 0 | M22: =B135 -> 0 | N22: =B136 -> 0 | O22: =B137 -> 0 | P22: =B138 -> 0 | Q22: =B139 -> 0 | R22: =B140 -> 0 | S22: =B141 -> 0 | T22: =B142 -> 0 | U22: =B143 -> 0 | V22: =B144 -> 0 | X22: 0 | Y22: 0 | Z22: 0 | AB22: 0 | AC22: 0 | AD22: 0 | AE22: 0 | AF22: 0 | AG22: 0 | AH22: 0 | AJ22: 1932 | AK22: ='Compile Data'!C133 -> 0 | AL22: ='Compile Data'!C134 -> 0 | AM22: ='Compile Data'!C135 -> 0 | AN22: ='Compile Data'!C136 -> 0 | AO22: ='Compile Data'!C137 -> 0 | AP22: ='Compile Data'!C138 -> 0.1151632805 | AQ22: ='Compile Data'!C139 -> 18.80379762 | AR22: ='Compile Data'!C140 -> 3.80936284 | AS22: ='Compile Data'!C141 -> 2.5 | AT22: ='Compile Data'!C142 -> 58.3323834 | AU22: ='Compile Data'!C143 -> 0 | AV22: ='Compile Data'!C144 -> 0 | AX22: 83.56070714 | AY22: 83.56070714 | AZ22: 83.56070714 | BB22: 0.1151632805 | BC22: 0 | BD22: 0 | BE22: 0 | BF22: 25.22832374 | BG22: 60.8323834 | BH22: 0 | BJ22: 1932 | BK22: ='Compile Data'!D133 -> 0 | BL22: ='Compile Data'!D134 -> 0 | BM22: ='Compile Data'!D135 -> 0 | BN22: ='Compile Data'!D136 -> 0 | BO22: ='Compile Data'!D137 -> 0 | BP22: ='Compile Data'!D138 -> 0.1118512835 | BQ22: ='Compile Data'!D139 -> 21.36408212 | BR22: ='Compile Data'!D140 -> 8.115170398 | BS22: ='Compile Data'!D141 -> 2.5 | BT22: ='Compile Data'!D142 -> 81.57900141 | BU22: ='Compile Data'!D143 -> 0 | BV22: ='Compile Data'!D144 -> 0 | BX22: 113.6701052 | BY22: 113.6701052 | BZ22: 113.6701052 | CB22: 0.1118512835 | CC22: 0 | CD22: 0 | CE22: 0 | CF22: 32.0911038 | CG22: 84.07900141 | CH22: 0 | CJ22: 1932 | CK22: ='Compile Data'!E133 -> 0 | CL22: ='Compile Data'!E134 -> 0 | CM22: ='Compile Data'!E135 -> 0 | CN22: ='Compile Data'!E136 -> 0 | CO22: ='Compile Data'!E137 -> 0 | CP22: ='Compile Data'!E138 -> 0 | CQ22: ='Compile Data'!E139 -> 0 | CR22: ='Compile Data'!E140 -> 0 | CS22: ='Compile Data'!E141 -> 0 | CT22: ='Compile Data'!E142 -> 0 | CU22: ='Compile Data'!E143 -> 0 | CV22: ='Compile Data'!E144 -> 0 | CX22: 0 | CY22: 0 | CZ22: 0 | DB22: 0 | DC22: 0 | DD22: 0 | DE22: 0 | DF22: 0 | DG22: 0 | DH22: 0 | DJ22: 1932 | DK22: ='Compile Data'!F133 -> 0 | DL22: ='Compile Data'!F134 -> 0 | DM22: ='Compile Data'!F135 -> 0 | DN22: ='Compile Data'!F136 -> 0 | DO22: ='Compile Data'!F137 -> 0 | DP22: ='Compile Data'!F138 -> 0 | DQ22: ='Compile Data'!F139 -> 0 | DR22: ='Compile Data'!F140 -> 0 | DS22: ='Compile Data'!F141 -> 0 | DT22: ='Compile Data'!F142 -> 0 | DU22: ='Compile Data'!F143 -> 0 | DV22: ='Compile Data'!F144 -> 0 | DX22: 0 | DY22: 0 | DZ22: 0 | EB22: 0 | EC22: 0 | ED22: 0 | EE22: 0 | EF22: 0 | EG22: 0 | EH22: 0
A23: 1922-08-31 | B23: =INDIRECT(CONCATENATE("'",B$1,"'!",B$4,(YEAR($A23)-1921)*12+MONTH($A23)+3+IF(ISNUMBER(FIND("PRV",B$6)),1,0)))*IF(AND(B$3>0,TRIM(B$9)="CFS"),Conv_Flags!$C23,1) -> 0 | C23: =INDIRECT(CONCATENATE("'",C$1,"'!",C$4,(YEAR($A23)-1921)*12+MONTH($A23)+3+IF(ISNUMBER(FIND("PRV",C$6)),1,0)))*IF(AND(C$3>0,TRIM(C$9)="CFS"),Conv_Flags!$C23,1) -> 31.3362069 | D23: =INDIRECT(CONCATENATE("'",D$1,"'!",D$4,(YEAR($A23)-1921)*12+MONTH($A23)+3+IF(ISNUMBER(FIND("PRV",D$6)),1,0)))*IF(AND(D$3>0,TRIM(D$9)="CFS"),Conv_Flags!$C23,1) -> 31.3362069 | E23: =INDIRECT(CONCATENATE("'",E$1,"'!",E$4,(YEAR($A23)-1921)*12+MONTH($A23)+3+IF(ISNUMBER(FIND("PRV",E$6)),1,0)))*IF(AND(E$3>0,TRIM(E$9)="CFS"),Conv_Flags!$C23,1) -> 0 | F23: =INDIRECT(CONCATENATE("'",F$1,"'!",F$4,(YEAR($A23)-1921)*12+MONTH($A23)+3+IF(ISNUMBER(FIND("PRV",F$6)),1,0)))*IF(AND(F$3>0,TRIM(F$9)="CFS"),Conv_Flags!$C23,1) -> 0 | J23: 1933 | K23: =B145 -> 0 | L23: =B146 -> 0 | M23: =B147 -> 0 | N23: =B148 -> 0 | O23: =B149 -> 0 | P23: =B150 -> 0 | Q23: =B151 -> 0 | R23: =B152 -> 0 | S23: =B153 -> 0 | T23: =B154 -> 0 | U23: =B155 -> 0 | V23: =B156 -> 0 | X23: 0 | Y23: 0 | Z23: 0 | AB23: 0 | AC23: 0 | AD23: 0 | AE23: 0 | AF23: 0 | AG23: 0 | AH23: 0 | AJ23: 1933 | AK23: ='Compile Data'!C145 -> 0 | AL23: ='Compile Data'!C146 -> 0 | AM23: ='Compile Data'!C147 -> 0 | AN23: ='Compile Data'!C148 -> 0 | AO23: ='Compile Data'!C149 -> 0 | AP23: ='Compile Data'!C150 -> 3.27948549 | AQ23: ='Compile Data'!C151 -> 4.996584492 | AR23: ='Compile Data'!C152 -> 3.300078701 | AS23: ='Compile Data'!C153 -> 0.9881506694 | AT23: ='Compile Data'!C154 -> 14.95358999 | AU23: ='Compile Data'!C155 -> 0 | AV23: ='Compile Data'!C156 -> 0 | AX23: 27.51788934 | AY23: 27.51788934 | AZ23: 27.51788934 | BB23: 3.27948549 | BC23: 0 | BD23: 0 | BE23: 0 | BF23: 12.56429935 | BG23: 15.94174066 | BH23: 0 | BJ23: 1933 | BK23: ='Compile Data'!D145 -> 0 | BL23: ='Compile Data'!D146 -> 0 | BM23: ='Compile Data'!D147 -> 0 | BN23: ='Compile Data'!D148 -> 0 | BO23: ='Compile Data'!D149 -> 0 | BP23: ='Compile Data'!D150 -> 3.274382459 | BQ23: ='Compile Data'!D151 -> 6.295028959 | BR23: ='Compile Data'!D152 -> 3.383696278 | BS23: ='Compile Data'!D153 -> 1.039773694 | BT23: ='Compile Data'!D154 -> 23.37374841 | BU23: ='Compile Data'!D155 -> 0 | BV23: ='Compile Data'!D156 -> 0 | BX23: 37.3666298 | BY23: 37.3666298 | BZ23: 37.3666298 | CB23: 3.274382459 | CC23: 0 | CD23: 0 | CE23: 0 | CF23: 13.99288139 | CG23: 24.41352211 | CH23: 0 | CJ23: 1933 | CK23: ='Compile Data'!E145 -> 0 | CL23: ='Compile Data'!E146 -> 0 | CM23: ='Compile Data'!E147 -> 0 | CN23: ='Compile Data'!E148 -> 0 | CO23: ='Compile Data'!E149 -> 0 | CP23: ='Compile Data'!E150 -> 0 | CQ23: ='Compile Data'!E151 -> 0 | CR23: ='Compile Data'!E152 -> 0 | CS23: ='Compile Data'!E153 -> 0 | CT23: ='Compile Data'!E154 -> 0 | CU23: ='Compile Data'!E155 -> 0 | CV23: ='Compile Data'!E156 -> 0 | CX23: 0 | CY23: 0 | CZ23: 0 | DB23: 0 | DC23: 0 | DD23: 0 | DE23: 0 | DF23: 0 | DG23: 0 | DH23: 0 | DJ23: 1933 | DK23: ='Compile Data'!F145 -> 0 | DL23: ='Compile Data'!F146 -> 0 | DM23: ='Compile Data'!F147 -> 0 | DN23: ='Compile Data'!F148 -> 0 | DO23: ='Compile Data'!F149 -> 0 | DP23: ='Compile Data'!F150 -> 0 | DQ23: ='Compile Data'!F151 -> 0 | DR23: ='Compile Data'!F152 -> 0 | DS23: ='Compile Data'!F153 -> 0 | DT23: ='Compile Data'!F154 -> 0 | DU23: ='Compile Data'!F155 -> 0 | DV23: ='Compile Data'!F156 -> 0 | DX23: 0 | DY23: 0 | DZ23: 0 | EB23: 0 | EC23: 0 | ED23: 0 | EE23: 0 | EF23: 0 | EG23: 0 | EH23: 0
A24: 1922-09-30 | B24: =INDIRECT(CONCATENATE("'",B$1,"'!",B$4,(YEAR($A24)-1921)*12+MONTH($A24)+3+IF(ISNUMBER(FIND("PRV",B$6)),1,0)))*IF(AND(B$3>0,TRIM(B$9)="CFS"),Conv_Flags!$C24,1) -> 0 | C24: =INDIRECT(CONCATENATE("'",C$1,"'!",C$4,(YEAR($A24)-1921)*12+MONTH($A24)+3+IF(ISNUMBER(FIND("PRV",C$6)),1,0)))*IF(AND(C$3>0,TRIM(C$9)="CFS"),Conv_Flags!$C24,1) -> 31.8262069 | D24: =INDIRECT(CONCATENATE("'",D$1,"'!",D$4,(YEAR($A24)-1921)*12+MONTH($A24)+3+IF(ISNUMBER(FIND("PRV",D$6)),1,0)))*IF(AND(D$3>0,TRIM(D$9)="CFS"),Conv_Flags!$C24,1) -> 31.8262069 | E24: =INDIRECT(CONCATENATE("'",E$1,"'!",E$4,(YEAR($A24)-1921)*12+MONTH($A24)+3+IF(ISNUMBER(FIND("PRV",E$6)),1,0)))*IF(AND(E$3>0,TRIM(E$9)="CFS"),Conv_Flags!$C24,1) -> 0 | F24: =INDIRECT(CONCATENATE("'",F$1,"'!",F$4,(YEAR($A24)-1921)*12+MONTH($A24)+3+IF(ISNUMBER(FIND("PRV",F$6)),1,0)))*IF(AND(F$3>0,TRIM(F$9)="CFS"),Conv_Flags!$C24,1) -> 0 | J24: 1934 | K24: =B157 -> 0 | L24: =B158 -> 0 | M24: =B159 -> 0 | N24: =B160 -> 0 | O24: =B161 -> 0 | P24: =B162 -> 0 | Q24: =B163 -> 0 | R24: =B164 -> 0 | S24: =B165 -> 0 | T24: =B166 -> 0 | U24: =B167 -> 0 | V24: =B168 -> 0 | X24: 0 | Y24: 0 | Z24: 0 | AB24: 0 | AC24: 0 | AD24: 0 | AE24: 0 | AF24: 0 | AG24: 0 | AH24: 0 | AJ24: 1934 | AK24: ='Compile Data'!C157 -> 0 | AL24: ='Compile Data'!C158 -> 0 | AM24: ='Compile Data'!C159 -> 0 | AN24: ='Compile Data'!C160 -> 0 | AO24: ='Compile Data'!C161 -> 0 | AP24: ='Compile Data'!C162 -> 8.116554231 | AQ24: ='Compile Data'!C163 -> 11.86696023 | AR24: ='Compile Data'!C164 -> 0.03399122178 | AS24: ='Compile Data'!C165 -> 2.5 | AT24: ='Compile Data'!C166 -> 50.61139126 | AU24: ='Compile Data'!C167 -> 0 | AV24: ='Compile Data'!C168 -> 0 | AX24: 73.12889694 | AY24: 73.12889694 | AZ24: 73.12889694 | BB24: 8.116554231 | BC24: 0 | BD24: 0 | BE24: 0 | BF24: 22.51750569 | BG24: 53.11139126 | BH24: 0 | BJ24: 1934 | BK24: ='Compile Data'!D157 -> 0 | BL24: ='Compile Data'!D158 -> 0 | BM24: ='Compile Data'!D159 -> 0 | BN24: ='Compile Data'!D160 -> 0 | BO24: ='Compile Data'!D161 -> 0 | BP24: ='Compile Data'!D162 -> 9.92392305 | BQ24: ='Compile Data'!D163 -> 15.81998216 | BR24: ='Compile Data'!D164 -> 6.577253936 | BS24: ='Compile Data'!D165 -> 2.5 | BT24: ='Compile Data'!D166 -> 69.52289998 | BU24: ='Compile Data'!D167 -> 0 | BV24: ='Compile Data'!D168 -> 0 | BX24: 104.3440591 | BY24: 104.3440591 | BZ24: 104.3440591 | CB24: 9.92392305 | CC24: 0 | CD24: 0 | CE24: 0 | CF24: 34.82115915 | CG24: 72.02289998 | CH24: 0 | CJ24: 1934 | CK24: ='Compile Data'!E157 -> 0 | CL24: ='Compile Data'!E158 -> 0 | CM24: ='Compile Data'!E159 -> 0 | CN24: ='Compile Data'!E160 -> 0 | CO24: ='Compile Data'!E161 -> 0 | CP24: ='Compile Data'!E162 -> 0 | CQ24: ='Compile Data'!E163 -> 0 | CR24: ='Compile Data'!E164 -> 0 | CS24: ='Compile Data'!E165 -> 0 | CT24: ='Compile Data'!E166 -> 0 | CU24: ='Compile Data'!E167 -> 0 | CV24: ='Compile Data'!E168 -> 0 | CX24: 0 | CY24: 0 | CZ24: 0 | DB24: 0 | DC24: 0 | DD24: 0 | DE24: 0 | DF24: 0 | DG24: 0 | DH24: 0 | DJ24: 1934 | DK24: ='Compile Data'!F157 -> 0 | DL24: ='Compile Data'!F158 -> 0 | DM24: ='Compile Data'!F159 -> 0 | DN24: ='Compile Data'!F160 -> 0 | DO24: ='Compile Data'!F161 -> 0 | DP24: ='Compile Data'!F162 -> 0 | DQ24: ='Compile Data'!F163 -> 0 | DR24: ='Compile Data'!F164 -> 0 | DS24: ='Compile Data'!F165 -> 0 | DT24: ='Compile Data'!F166 -> 0 | DU24: ='Compile Data'!F167 -> 0 | DV24: ='Compile Data'!F168 -> 0 | DX24: 0 | DY24: 0 | DZ24: 0 | EB24: 0 | EC24: 0 | ED24: 0 | EE24: 0 | EF24: 0 | EG24: 0 | EH24: 0
A25: 1922-10-31 | B25: =INDIRECT(CONCATENATE("'",B$1,"'!",B$4,(YEAR($A25)-1921)*12+MONTH($A25)+3+IF(ISNUMBER(FIND("PRV",B$6)),1,0)))*IF(AND(B$3>0,TRIM(B$9)="CFS"),Conv_Flags!$C25,1) -> 0 | C25: =INDIRECT(CONCATENATE("'",C$1,"'!",C$4,(YEAR($A25)-1921)*12+MONTH($A25)+3+IF(ISNUMBER(FIND("PRV",C$6)),1,0)))*IF(AND(C$3>0,TRIM(C$9)="CFS"),Conv_Flags!$C25,1) -> 30.0762069 | D25: =INDIRECT(CONCATENATE("'",D$1,"'!",D$4,(YEAR($A25)-1921)*12+MONTH($A25)+3+IF(ISNUMBER(FIND("PRV",D$6)),1,0)))*IF(AND(D$3>0,TRIM(D$9)="CFS"),Conv_Flags!$C25,1) -> 30.0762069 | E25: =INDIRECT(CONCATENATE("'",E$1,"'!",E$4,(YEAR($A25)-1921)*12+MONTH($A25)+3+IF(ISNUMBER(FIND("PRV",E$6)),1,0)))*IF(AND(E$3>0,TRIM(E$9)="CFS"),Conv_Flags!$C25,1) -> 0 | F25: =INDIRECT(CONCATENATE("'",F$1,"'!",F$4,(YEAR($A25)-1921)*12+MONTH($A25)+3+IF(ISNUMBER(FIND("PRV",F$6)),1,0)))*IF(AND(F$3>0,TRIM(F$9)="CFS"),Conv_Flags!$C25,1) -> 0 | J25: 1935 | K25: =B169 -> 0 | L25: =B170 -> 0 | M25: =B171 -> 0 | N25: =B172 -> 0 | O25: =B173 -> 0 | P25: =B174 -> 0 | Q25: =B175 -> 0 | R25: =B176 -> 0 | S25: =B177 -> 0 | T25: =B178 -> 0 | U25: =B179 -> 0 | V25: =B180 -> 0 | X25: 0 | Y25: 0 | Z25: 0 | AB25: 0 | AC25: 0 | AD25: 0 | AE25: 0 | AF25: 0 | AG25: 0 | AH25: 0 | AJ25: 1935 | AK25: ='Compile Data'!C169 -> 0 | AL25: ='Compile Data'!C170 -> 0 | AM25: ='Compile Data'!C171 -> 0 | AN25: ='Compile Data'!C172 -> 0 | AO25: ='Compile Data'!C173 -> 0 | AP25: ='Compile Data'!C174 -> 0 | AQ25: ='Compile Data'!C175 -> 0.04210187334 | AR25: ='Compile Data'!C176 -> 9.078819815 | AS25: ='Compile Data'!C177 -> 16.1249933 | AT25: ='Compile Data'!C178 -> 46.960254 | AU25: ='Compile Data'!C179 -> 31.83946496 | AV25: ='Compile Data'!C180 -> 15.36250684 | AX25: 136.9868306 | AY25: 136.9868306 | AZ25: 119.4081408 | BB25: 0 | BC25: 57.54987126 | BD25: 0 | BE25: 0 | BF25: 25.24591499 | BG25: 110.2872191 | BH25: 32.94119667 | BJ25: 1935 | BK25: ='Compile Data'!D169 -> 0 | BL25: ='Compile Data'!D170 -> 0 | BM25: ='Compile Data'!D171 -> 0 | BN25: ='Compile Data'!D172 -> 0 | BO25: ='Compile Data'!D173 -> 0 | BP25: ='Compile Data'!D174 -> 0 | BQ25: ='Compile Data'!D175 -> 0.05071296662 | BR25: ='Compile Data'!D176 -> 13.32378668 | BS25: ='Compile Data'!D177 -> 25.16062446 | BT25: ='Compile Data'!D178 -> 47.79704643 | BU25: ='Compile Data'!D179 -> 34.08842551 | BV25: ='Compile Data'!D180 -> 29.7275063 | BX25: 179.6849797 | BY25: 179.6905895 | BZ25: 150.1481023 | CB25: 0 | CC25: 78.61546307 | CD25: 0 | CE25: 0 | CF25: 38.53512411 | CG25: 136.7736027 | CH25: 56.75133769 | CJ25: 1935 | CK25: ='Compile Data'!E169 -> 0 | CL25: ='Compile Data'!E170 -> 0 | CM25: ='Compile Data'!E171 -> 0 | CN25: ='Compile Data'!E172 -> 0 | CO25: ='Compile Data'!E173 -> 0 | CP25: ='Compile Data'!E174 -> 0 | CQ25: ='Compile Data'!E175 -> 0 | CR25: ='Compile Data'!E176 -> 0 | CS25: ='Compile Data'!E177 -> 0 | CT25: ='Compile Data'!E178 -> 0 | CU25: ='Compile Data'!E179 -> 0 | CV25: ='Compile Data'!E180 -> 0 | CX25: 0 | CY25: 0 | CZ25: 0 | DB25: 0 | DC25: 0 | DD25: 0 | DE25: 0 | DF25: 0 | DG25: 0 | DH25: 0 | DJ25: 1935 | DK25: ='Compile Data'!F169 -> 0 | DL25: ='Compile Data'!F170 -> 0 | DM25: ='Compile Data'!F171 -> 0 | DN25: ='Compile Data'!F172 -> 0 | DO25: ='Compile Data'!F173 -> 0 | DP25: ='Compile Data'!F174 -> 0 | DQ25: ='Compile Data'!F175 -> 0 | DR25: ='Compile Data'!F176 -> 0 | DS25: ='Compile Data'!F177 -> 0 | DT25: ='Compile Data'!F178 -> 0 | DU25: ='Compile Data'!F179 -> 0 | DV25: ='Compile Data'!F180 -> 0 | DX25: 0 | DY25: 0 | DZ25: 0 | EB25: 0 | EC25: 0 | ED25: 0 | EE25: 0 | EF25: 0 | EG25: 0 | EH25: 0
A26: 1922-11-30 | B26: =INDIRECT(CONCATENATE("'",B$1,"'!",B$4,(YEAR($A26)-1921)*12+MONTH($A26)+3+IF(ISNUMBER(FIND("PRV",B$6)),1,0)))*IF(AND(B$3>0,TRIM(B$9)="CFS"),Conv_Flags!$C26,1) -> 0 | C26: =INDIRECT(CONCATENATE("'",C$1,"'!",C$4,(YEAR($A26)-1921)*12+MONTH($A26)+3+IF(ISNUMBER(FIND("PRV",C$6)),1,0)))*IF(AND(C$3>0,TRIM(C$9)="CFS"),Conv_Flags!$C26,1) -> 0 | D26: =INDIRECT(CONCATENATE("'",D$1,"'!",D$4,(YEAR($A26)-1921)*12+MONTH($A26)+3+IF(ISNUMBER(FIND("PRV",D$6)),1,0)))*IF(AND(D$3>0,TRIM(D$9)="CFS"),Conv_Flags!$C26,1) -> 0 | E26: =INDIRECT(CONCATENATE("'",E$1,"'!",E$4,(YEAR($A26)-1921)*12+MONTH($A26)+3+IF(ISNUMBER(FIND("PRV",E$6)),1,0)))*IF(AND(E$3>0,TRIM(E$9)="CFS"),Conv_Flags!$C26,1) -> 0 | F26: =INDIRECT(CONCATENATE("'",F$1,"'!",F$4,(YEAR($A26)-1921)*12+MONTH($A26)+3+IF(ISNUMBER(FIND("PRV",F$6)),1,0)))*IF(AND(F$3>0,TRIM(F$9)="CFS"),Conv_Flags!$C26,1) -> 0 | J26: 1936 | K26: =B181 -> 0 | L26: =B182 -> 0 | M26: =B183 -> 0 | N26: =B184 -> 0 | O26: =B185 -> 0 | P26: =B186 -> 0 | Q26: =B187 -> 0 | R26: =B188 -> 0 | S26: =B189 -> 0 | T26: =B190 -> 0 | U26: =B191 -> 0 | V26: =B192 -> 0 | X26: 0 | Y26: 0 | Z26: 0 | AB26: 0 | AC26: 0 | AD26: 0 | AE26: 0 | AF26: 0 | AG26: 0 | AH26: 0 | AJ26: 1936 | AK26: ='Compile Data'!C181 -> 10.34789947 | AL26: ='Compile Data'!C182 -> 7.23079036 | AM26: ='Compile Data'!C183 -> 0 | AN26: ='Compile Data'!C184 -> 0 | AO26: ='Compile Data'!C185 -> 0 | AP26: ='Compile Data'!C186 -> 0 | AQ26: ='Compile Data'!C187 -> 3.92370973 | AR26: ='Compile Data'!C188 -> 6.588596713 | AS26: ='Compile Data'!C189 -> 2.5 | AT26: ='Compile Data'!C190 -> 131.5214183 | AU26: ='Compile Data'!C191 -> 13.04406187 | AV26: ='Compile Data'!C192 -> 1.597256759 | AX26: 164.6215934 | AY26: 164.6215934 | AZ26: 176.7537332 | BB26: 7.23079036 | BC26: 16.92704813 | BD26: 17.57868983 | BE26: 0 | BF26: 13.01230644 | BG26: 148.662737 | BH26: 7.043806795 | BJ26: 1936 | BK26: ='Compile Data'!D181 -> 14.79953127 | BL26: ='Compile Data'!D182 -> 12.22430013 | BM26: ='Compile Data'!D183 -> 2.513045955 | BN26: ='Compile Data'!D184 -> 0.005609821217 | BO26: ='Compile Data'!D185 -> 0 | BP26: ='Compile Data'!D186 -> 0 | BQ26: ='Compile Data'!D187 -> 3.9135012 | BR26: ='Compile Data'!D188 -> 7.412997592 | BS26: ='Compile Data'!D189 -> 8.004050255 | BT26: ='Compile Data'!D190 -> 137.8692045 | BU26: ='Compile Data'!D191 -> 22.58407902 | BV26: ='Compile Data'!D192 -> 3.128992285 | BX26: 194.6284201 | BY26: 194.6228103 | BZ26: 212.455312 | CB26: 14.7429559 | CC26: 28.20307131 | CD26: 29.54248717 | CE26: 2.518655776 | CF26: 19.33054905 | CG26: 171.586326 | CH26: 12.152265 | CJ26: 1936 | CK26: ='Compile Data'!E181 -> 0 | CL26: ='Compile Data'!E182 -> 0 | CM26: ='Compile Data'!E183 -> 0 | CN26: ='Compile Data'!E184 -> 0 | CO26: ='Compile Data'!E185 -> 0 | CP26: ='Compile Data'!E186 -> 0 | CQ26: ='Compile Data'!E187 -> 0 | CR26: ='Compile Data'!E188 -> 0 | CS26: ='Compile Data'!E189 -> 0 | CT26: ='Compile Data'!E190 -> 0 | CU26: ='Compile Data'!E191 -> 0 | CV26: ='Compile Data'!E192 -> 0 | CX26: 0 | CY26: 0 | CZ26: 0 | DB26: 0 | DC26: 0 | DD26: 0 | DE26: 0 | DF26: 0 | DG26: 0 | DH26: 0 | DJ26: 1936 | DK26: ='Compile Data'!F181 -> 0 | DL26: ='Compile Data'!F182 -> 0 | DM26: ='Compile Data'!F183 -> 0 | DN26: ='Compile Data'!F184 -> 0 | DO26: ='Compile Data'!F185 -> 0 | DP26: ='Compile Data'!F186 -> 0 | DQ26: ='Compile Data'!F187 -> 0 | DR26: ='Compile Data'!F188 -> 0 | DS26: ='Compile Data'!F189 -> 0 | DT26: ='Compile Data'!F190 -> 0 | DU26: ='Compile Data'!F191 -> 0 | DV26: ='Compile Data'!F192 -> 0 | DX26: 0 | DY26: 0 | DZ26: 0 | EB26: 0 | EC26: 0 | ED26: 0 | EE26: 0 | EF26: 0 | EG26: 0 | EH26: 0
A27: 1922-12-31 | B27: =INDIRECT(CONCATENATE("'",B$1,"'!",B$4,(YEAR($A27)-1921)*12+MONTH($A27)+3+IF(ISNUMBER(FIND("PRV",B$6)),1,0)))*IF(AND(B$3>0,TRIM(B$9)="CFS"),Conv_Flags!$C27,1) -> 0 | C27: =INDIRECT(CONCATENATE("'",C$1,"'!",C$4,(YEAR($A27)-1921)*12+MONTH($A27)+3+IF(ISNUMBER(FIND("PRV",C$6)),1,0)))*IF(AND(C$3>0,TRIM(C$9)="CFS"),Conv_Flags!$C27,1) -> 1.66 | D27: =INDIRECT(CONCATENATE("'",D$1,"'!",D$4,(YEAR($A27)-1921)*12+MONTH($A27)+3+IF(ISNUMBER(FIND("PRV",D$6)),1,0)))*IF(AND(D$3>0,TRIM(D$9)="CFS"),Conv_Flags!$C27,1) -> 1.66 | E27: =INDIRECT(CONCATENATE("'",E$1,"'!",E$4,(YEAR($A27)-1921)*12+MONTH($A27)+3+IF(ISNUMBER(FIND("PRV",E$6)),1,0)))*IF(AND(E$3>0,TRIM(E$9)="CFS"),Conv_Flags!$C27,1) -> 0 | F27: =INDIRECT(CONCATENATE("'",F$1,"'!",F$4,(YEAR($A27)-1921)*12+MONTH($A27)+3+IF(ISNUMBER(FIND("PRV",F$6)),1,0)))*IF(AND(F$3>0,TRIM(F$9)="CFS"),Conv_Flags!$C27,1) -> 0 | J27: 1937 | K27: =B193 -> 0 | L27: =B194 -> 0 | M27: =B195 -> 0 | N27: =B196 -> 0 | O27: =B197 -> 0 | P27: =B198 -> 0 | Q27: =B199 -> 0 | R27: =B200 -> 0 | S27: =B201 -> 0 | T27: =B202 -> 0 | U27: =B203 -> 0 | V27: =B204 -> 0 | X27: 0 | Y27: 0 | Z27: 0 | AB27: 0 | AC27: 0 | AD27: 0 | AE27: 0 | AF27: 0 | AG27: 0 | AH27: 0 | AJ27: 1937 | AK27: ='Compile Data'!C193 -> 2.2857295 | AL27: ='Compile Data'!C194 -> 3.160820536 | AM27: ='Compile Data'!C195 -> 0 | AN27: ='Compile Data'!C196 -> 0 | AO27: ='Compile Data'!C197 -> 0 | AP27: ='Compile Data'!C198 -> 0 | AQ27: ='Compile Data'!C199 -> 4.510536645 | AR27: ='Compile Data'!C200 -> 7.977267053 | AS27: ='Compile Data'!C201 -> 15.17453175 | AT27: ='Compile Data'!C202 -> 57.83884298 | AU27: ='Compile Data'!C203 -> 4.254468264 | AV27: ='Compile Data'!C204 -> 1.74 | AX27: 95.72564669 | AY27: 95.72564669 | AZ27: 96.94219672 | BB27: 3.160820536 | BC27: 8.484468265 | BD27: 5.446550036 | BE27: 0 | BF27: 27.66233544 | BG27: 79.00784299 | BH27: 5.97 | BJ27: 1937 | BK27: ='Compile Data'!D193 -> 2.49 | BL27: ='Compile Data'!D194 -> 6.533272715 | BM27: ='Compile Data'!D195 -> 2.686712729 | BN27: ='Compile Data'!D196 -> 0 | BO27: ='Compile Data'!D197 -> 0 | BP27: ='Compile Data'!D198 -> 0 | BQ27: ='Compile Data'!D199 -> 4.50126654 | BR27: ='Compile Data'!D200 -> 12.78176679 | BS27: ='Compile Data'!D201 -> 19.56813349 | BT27: ='Compile Data'!D202 -> 57.83884298 | BU27: ='Compile Data'!D203 -> 33.42898939 | BV27: ='Compile Data'!D204 -> 13.16345737 | BX27: 145.5124566 | BY27: 145.5124566 | BZ27: 152.992442 | CB27: 9.219985445 | CC27: 49.08244676 | CD27: 11.70998544 | CE27: 2.686712729 | CF27: 36.85116682 | CG27: 123.9994232 | CH27: 17.39345737 | CJ27: 1937 | CK27: ='Compile Data'!E193 -> 0 | CL27: ='Compile Data'!E194 -> 0 | CM27: ='Compile Data'!E195 -> 0 | CN27: ='Compile Data'!E196 -> 0 | CO27: ='Compile Data'!E197 -> 0 | CP27: ='Compile Data'!E198 -> 0 | CQ27: ='Compile Data'!E199 -> 0 | CR27: ='Compile Data'!E200 -> 0 | CS27: ='Compile Data'!E201 -> 0 | CT27: ='Compile Data'!E202 -> 0 | CU27: ='Compile Data'!E203 -> 0 | CV27: ='Compile Data'!E204 -> 0 | CX27: 0 | CY27: 0 | CZ27: 0 | DB27: 0 | DC27: 0 | DD27: 0 | DE27: 0 | DF27: 0 | DG27: 0 | DH27: 0 | DJ27: 1937 | DK27: ='Compile Data'!F193 -> 0 | DL27: ='Compile Data'!F194 -> 0 | DM27: ='Compile Data'!F195 -> 0 | DN27: ='Compile Data'!F196 -> 0 | DO27: ='Compile Data'!F197 -> 0 | DP27: ='Compile Data'!F198 -> 0 | DQ27: ='Compile Data'!F199 -> 0 | DR27: ='Compile Data'!F200 -> 0 | DS27: ='Compile Data'!F201 -> 0 | DT27: ='Compile Data'!F202 -> 0 | DU27: ='Compile Data'!F203 -> 0 | DV27: ='Compile Data'!F204 -> 0 | DX27: 0 | DY27: 0 | DZ27: 0 | EB27: 0 | EC27: 0 | ED27: 0 | EE27: 0 | EF27: 0 | EG27: 0 | EH27: 0
A28: 1923-01-31 | B28: =INDIRECT(CONCATENATE("'",B$1,"'!",B$4,(YEAR($A28)-1921)*12+MONTH($A28)+3+IF(ISNUMBER(FIND("PRV",B$6)),1,0)))*IF(AND(B$3>0,TRIM(B$9)="CFS"),Conv_Flags!$C28,1) -> 0 | C28: =INDIRECT(CONCATENATE("'",C$1,"'!",C$4,(YEAR($A28)-1921)*12+MONTH($A28)+3+IF(ISNUMBER(FIND("PRV",C$6)),1,0)))*IF(AND(C$3>0,TRIM(C$9)="CFS"),Conv_Flags!$C28,1) -> 0 | D28: =INDIRECT(CONCATENATE("'",D$1,"'!",D$4,(YEAR($A28)-1921)*12+MONTH($A28)+3+IF(ISNUMBER(FIND("PRV",D$6)),1,0)))*IF(AND(D$3>0,TRIM(D$9)="CFS"),Conv_Flags!$C28,1) -> 0 | E28: =INDIRECT(CONCATENATE("'",E$1,"'!",E$4,(YEAR($A28)-1921)*12+MONTH($A28)+3+IF(ISNUMBER(FIND("PRV",E$6)),1,0)))*IF(AND(E$3>0,TRIM(E$9)="CFS"),Conv_Flags!$C28,1) -> 0 | F28: =INDIRECT(CONCATENATE("'",F$1,"'!",F$4,(YEAR($A28)-1921)*12+MONTH($A28)+3+IF(ISNUMBER(FIND("PRV",F$6)),1,0)))*IF(AND(F$3>0,TRIM(F$9)="CFS"),Conv_Flags!$C28,1) -> 0 | J28: 1938 | K28: =B205 -> 0 | L28: =B206 -> 0 | M28: =B207 -> 0 | N28: =B208 -> 0 | O28: =B209 -> 0 | P28: =B210 -> 0 | Q28: =B211 -> 0 | R28: =B212 -> 0 | S28: =B213 -> 0 | T28: =B214 -> 0 | U28: =B215 -> 0 | V28: =B216 -> 0 | X28: 0 | Y28: 0 | Z28: 0 | AB28: 0 | AC28: 0 | AD28: 0 | AE28: 0 | AF28: 0 | AG28: 0 | AH28: 0 | AJ28: 1938 | AK28: ='Compile Data'!C205 -> 2.49 | AL28: ='Compile Data'!C206 -> 1.74 | AM28: ='Compile Data'!C207 -> 0 | AN28: ='Compile Data'!C208 -> 0 | AO28: ='Compile Data'!C209 -> 0 | AP28: ='Compile Data'!C210 -> 0 | AQ28: ='Compile Data'!C211 -> 0 | AR28: ='Compile Data'!C212 -> 0 | AS28: ='Compile Data'!C213 -> 0 | AT28: ='Compile Data'!C214 -> 0 | AU28: ='Compile Data'!C215 -> 0 | AV28: ='Compile Data'!C216 -> 27.5862069 | AX28: 90.87489314 | AY28: 90.87489314 | AZ28: 31.8162069 | BB28: 1.74 | BC28: 55.1724138 | BD28: 4.23 | BE28: 0 | BF28: 0 | BG28: 27.5862069 | BH28: 73.02365347 | BJ28: 1938 | BK28: ='Compile Data'!D205 -> 2.49 | BL28: ='Compile Data'!D206 -> 1.74 | BM28: ='Compile Data'!D207 -> 0 | BN28: ='Compile Data'!D208 -> 0 | BO28: ='Compile Data'!D209 -> 0 | BP28: ='Compile Data'!D210 -> 0 | BQ28: ='Compile Data'!D211 -> 0 | BR28: ='Compile Data'!D212 -> 0 | BS28: ='Compile Data'!D213 -> 0 | BT28: ='Compile Data'!D214 -> 0 | BU28: ='Compile Data'!D215 -> 0 | BV28: ='Compile Data'!D216 -> 27.5862069 | BX28: 90.87489314 | BY28: 90.87489314 | BZ28: 31.8162069 | CB28: 1.74 | CC28: 55.1724138 | CD28: 4.23 | CE28: 0 | CF28: 0 | CG28: 27.5862069 | CH28: 73.02365347 | CJ28: 1938 | CK28: ='Compile Data'!E205 -> 0 | CL28: ='Compile Data'!E206 -> 0 | CM28: ='Compile Data'!E207 -> 0 | CN28: ='Compile Data'!E208 -> 0 | CO28: ='Compile Data'!E209 -> 0 | CP28: ='Compile Data'!E210 -> 0 | CQ28: ='Compile Data'!E211 -> 0 | CR28: ='Compile Data'!E212 -> 0 | CS28: ='Compile Data'!E213 -> 0 | CT28: ='Compile Data'!E214 -> 0 | CU28: ='Compile Data'!E215 -> 0 | CV28: ='Compile Data'!E216 -> 0 | CX28: 0 | CY28: 0 | CZ28: 0 | DB28: 0 | DC28: 0 | DD28: 0 | DE28: 0 | DF28: 0 | DG28: 0 | DH28: 0 | DJ28: 1938 | DK28: ='Compile Data'!F205 -> 0 | DL28: ='Compile Data'!F206 -> 0 | DM28: ='Compile Data'!F207 -> 0 | DN28: ='Compile Data'!F208 -> 0 | DO28: ='Compile Data'!F209 -> 0 | DP28: ='Compile Data'!F210 -> 0 | DQ28: ='Compile Data'!F211 -> 0 | DR28: ='Compile Data'!F212 -> 0 | DS28: ='Compile Data'!F213 -> 0 | DT28: ='Compile Data'!F214 -> 0 | DU28: ='Compile Data'!F215 -> 0 | DV28: ='Compile Data'!F216 -> 0 | DX28: 0 | DY28: 0 | DZ28: 0 | EB28: 0 | EC28: 0 | ED28: 0 | EE28: 0 | EF28: 0 | EG28: 0 | EH28: 0
A29: 1923-02-28 | B29: =INDIRECT(CONCATENATE("'",B$1,"'!",B$4,(YEAR($A29)-1921)*12+MONTH($A29)+3+IF(ISNUMBER(FIND("PRV",B$6)),1,0)))*IF(AND(B$3>0,TRIM(B$9)="CFS"),Conv_Flags!$C29,1) -> 0 | C29: =INDIRECT(CONCATENATE("'",C$1,"'!",C$4,(YEAR($A29)-1921)*12+MONTH($A29)+3+IF(ISNUMBER(FIND("PRV",C$6)),1,0)))*IF(AND(C$3>0,TRIM(C$9)="CFS"),Conv_Flags!$C29,1) -> 7.248479048 | D29: =INDIRECT(CONCATENATE("'",D$1,"'!",D$4,(YEAR($A29)-1921)*12+MONTH($A29)+3+IF(ISNUMBER(FIND("PRV",D$6)),1,0)))*IF(AND(D$3>0,TRIM(D$9)="CFS"),Conv_Flags!$C29,1) -> 8.11484703 | E29: =INDIRECT(CONCATENATE("'",E$1,"'!",E$4,(YEAR($A29)-1921)*12+MONTH($A29)+3+IF(ISNUMBER(FIND("PRV",E$6)),1,0)))*IF(AND(E$3>0,TRIM(E$9)="CFS"),Conv_Flags!$C29,1) -> 0 | F29: =INDIRECT(CONCATENATE("'",F$1,"'!",F$4,(YEAR($A29)-1921)*12+MONTH($A29)+3+IF(ISNUMBER(FIND("PRV",F$6)),1,0)))*IF(AND(F$3>0,TRIM(F$9)="CFS"),Conv_Flags!$C29,1) -> 0 | J29: 1939 | K29: =B217 -> 0 | L29: =B218 -> 0 | M29: =B219 -> 0 | N29: =B220 -> 0 | O29: =B221 -> 0 | P29: =B222 -> 0 | Q29: =B223 -> 0 | R29: =B224 -> 0 | S29: =B225 -> 0 | T29: =B226 -> 0 | U29: =B227 -> 0 | V29: =B228 -> 0 | X29: 0 | Y29: 0 | Z29: 0 | AB29: 0 | AC29: 0 | AD29: 0 | AE29: 0 | AF29: 0 | AG29: 0 | AH29: 0 | AJ29: 1939 | AK29: ='Compile Data'!C217 -> 27.5862069 | AL29: ='Compile Data'!C218 -> 17.85123967 | AM29: ='Compile Data'!C219 -> 17.85123967 | AN29: ='Compile Data'!C220 -> 0 | AO29: ='Compile Data'!C221 -> 0 | AP29: ='Compile Data'!C222 -> 6.923277821 | AQ29: ='Compile Data'!C223 -> 28.30282974 | AR29: ='Compile Data'!C224 -> 9.401950862 | AS29: ='Compile Data'!C225 -> 13.62377754 | AT29: ='Compile Data'!C226 -> 138.4080487 | AU29: ='Compile Data'!C227 -> 121.3415833 | AV29: ='Compile Data'!C228 -> 80.32376979 | AX29: 483.0708333 | AY29: 483.0708333 | AZ29: 461.6139241 | BB29: 42.62575716 | BC29: 277.8254192 | BD29: 63.28868624 | BE29: 17.85123967 | BF29: 58.25183597 | BG29: 353.6971794 | BH29: 165.0693653 | BJ29: 1939 | BK29: ='Compile Data'!D217 -> 27.5862069 | BL29: ='Compile Data'!D218 -> 17.85123967 | BM29: ='Compile Data'!D219 -> 17.85123967 | BN29: ='Compile Data'!D220 -> 0 | BO29: ='Compile Data'!D221 -> 0 | BP29: ='Compile Data'!D222 -> 6.876983907 | BQ29: ='Compile Data'!D223 -> 28.30282974 | BR29: ='Compile Data'!D224 -> 9.318441833 | BS29: ='Compile Data'!D225 -> 21.31295826 | BT29: ='Compile Data'!D226 -> 136.0175137 | BU29: ='Compile Data'!D227 -> 129.2328819 | BV29: ='Compile Data'!D228 -> 50.41164851 | BX29: 477.4593706 | BY29: 477.4593706 | BZ29: 444.761944 | CB29: 42.57946325 | CC29: 252.9877639 | CD29: 63.28868624 | CE29: 17.85123967 | CF29: 65.81121375 | CG29: 336.9750023 | CH29: 143.2875649 | CJ29: 1939 | CK29: ='Compile Data'!E217 -> 0 | CL29: ='Compile Data'!E218 -> 0 | CM29: ='Compile Data'!E219 -> 0 | CN29: ='Compile Data'!E220 -> 0 | CO29: ='Compile Data'!E221 -> 0 | CP29: ='Compile Data'!E222 -> 0 | CQ29: ='Compile Data'!E223 -> 0 | CR29: ='Compile Data'!E224 -> 0 | CS29: ='Compile Data'!E225 -> 0 | CT29: ='Compile Data'!E226 -> 0 | CU29: ='Compile Data'!E227 -> 0 | CV29: ='Compile Data'!E228 -> 0 | CX29: 0 | CY29: 0 | CZ29: 0 | DB29: 0 | DC29: 0 | DD29: 0 | DE29: 0 | DF29: 0 | DG29: 0 | DH29: 0 | DJ29: 1939 | DK29: ='Compile Data'!F217 -> 0 | DL29: ='Compile Data'!F218 -> 0 | DM29: ='Compile Data'!F219 -> 0 | DN29: ='Compile Data'!F220 -> 0 | DO29: ='Compile Data'!F221 -> 0 | DP29: ='Compile Data'!F222 -> 0 | DQ29: ='Compile Data'!F223 -> 0 | DR29: ='Compile Data'!F224 -> 0 | DS29: ='Compile Data'!F225 -> 0 | DT29: ='Compile Data'!F226 -> 0 | DU29: ='Compile Data'!F227 -> 0 | DV29: ='Compile Data'!F228 -> 0 | DX29: 0 | DY29: 0 | DZ29: 0 | EB29: 0 | EC29: 0 | ED29: 0 | EE29: 0 | EF29: 0 | EG29: 0 | EH29: 0
A30: 1923-03-31 | B30: =INDIRECT(CONCATENATE("'",B$1,"'!",B$4,(YEAR($A30)-1921)*12+MONTH($A30)+3+IF(ISNUMBER(FIND("PRV",B$6)),1,0)))*IF(AND(B$3>0,TRIM(B$9)="CFS"),Conv_Flags!$C30,1) -> 0 | C30: =INDIRECT(CONCATENATE("'",C$1,"'!",C$4,(YEAR($A30)-1921)*12+MONTH($A30)+3+IF(ISNUMBER(FIND("PRV",C$6)),1,0)))*IF(AND(C$3>0,TRIM(C$9)="CFS"),Conv_Flags!$C30,1) -> 0.3486241904 | D30: =INDIRECT(CONCATENATE("'",D$1,"'!",D$4,(YEAR($A30)-1921)*12+MONTH($A30)+3+IF(ISNUMBER(FIND("PRV",D$6)),1,0)))*IF(AND(D$3>0,TRIM(D$9)="CFS"),Conv_Flags!$C30,1) -> 0.3473456655 | E30: =INDIRECT(CONCATENATE("'",E$1,"'!",E$4,(YEAR($A30)-1921)*12+MONTH($A30)+3+IF(ISNUMBER(FIND("PRV",E$6)),1,0)))*IF(AND(E$3>0,TRIM(E$9)="CFS"),Conv_Flags!$C30,1) -> 0 | F30: =INDIRECT(CONCATENATE("'",F$1,"'!",F$4,(YEAR($A30)-1921)*12+MONTH($A30)+3+IF(ISNUMBER(FIND("PRV",F$6)),1,0)))*IF(AND(F$3>0,TRIM(F$9)="CFS"),Conv_Flags!$C30,1) -> 0 | J30: 1940 | K30: =B229 -> 0 | L30: =B230 -> 0 | M30: =B231 -> 0 | N30: =B232 -> 0 | O30: =B233 -> 0 | P30: =B234 -> 0 | Q30: =B235 -> 0 | R30: =B236 -> 0 | S30: =B237 -> 0 | T30: =B238 -> 0 | U30: =B239 -> 0 | V30: =B240 -> 0 | X30: 0 | Y30: 0 | Z30: 0 | AB30: 0 | AC30: 0 | AD30: 0 | AE30: 0 | AF30: 0 | AG30: 0 | AH30: 0 | AJ30: 1940 | AK30: ='Compile Data'!C229 -> 76.16006609 | AL30: ='Compile Data'!C230 -> 8.58552939 | AM30: ='Compile Data'!C231 -> 0 | AN30: ='Compile Data'!C232 -> 0 | AO30: ='Compile Data'!C233 -> 0 | AP30: ='Compile Data'!C234 -> 0 | AQ30: ='Compile Data'!C235 -> 0 | AR30: ='Compile Data'!C236 -> 0 | AS30: ='Compile Data'!C237 -> 35.11946004 | AT30: ='Compile Data'!C238 -> 47.80487805 | AU30: ='Compile Data'!C239 -> 31.98494707 | AV30: ='Compile Data'!C240 -> 16.0427795 | AX30: 147.9735777 | AY30: 147.9735777 | AZ30: 215.6976601 | BB30: 8.58552939 | BC30: 50.51772657 | BD30: 84.74559548 | BE30: 0 | BF30: 35.11946004 | BG30: 130.9520647 | BH30: 31.40429251 | BJ30: 1940 | BK30: ='Compile Data'!D229 -> 73.34323351 | BL30: ='Compile Data'!D230 -> 19.53268293 | BM30: ='Compile Data'!D231 -> 3.110196373 | BN30: ='Compile Data'!D232 -> 0 | BO30: ='Compile Data'!D233 -> 0 | BP30: ='Compile Data'!D234 -> 0 | BQ30: ='Compile Data'!D235 -> 0 | BR30: ='Compile Data'!D236 -> 0 | BS30: ='Compile Data'!D237 -> 37.7335792 | BT30: ='Compile Data'!D238 -> 47.80487805 | BU30: ='Compile Data'!D239 -> 31.9848814 | BV30: ='Compile Data'!D240 -> 29.3262069 | BX30: 164.8651018 | BY30: 164.8651018 | BZ30: 242.8356584 | CB30: 22.6428793 | CC30: 61.3110883 | CD30: 95.98611281 | CE30: 3.110196373 | CF30: 37.7335792 | CG30: 146.8495456 | CH30: 45.6817631 | CJ30: 1940 | CK30: ='Compile Data'!E229 -> 0 | CL30: ='Compile Data'!E230 -> 0 | CM30: ='Compile Data'!E231 -> 0 | CN30: ='Compile Data'!E232 -> 0 | CO30: ='Compile Data'!E233 -> 0 | CP30: ='Compile Data'!E234 -> 0 | CQ30: ='Compile Data'!E235 -> 0 | CR30: ='Compile Data'!E236 -> 0 | CS30: ='Compile Data'!E237 -> 0 | CT30: ='Compile Data'!E238 -> 0 | CU30: ='Compile Data'!E239 -> 0 | CV30: ='Compile Data'!E240 -> 0 | CX30: 0 | CY30: 0 | CZ30: 0 | DB30: 0 | DC30: 0 | DD30: 0 | DE30: 0 | DF30: 0 | DG30: 0 | DH30: 0 | DJ30: 1940 | DK30: ='Compile Data'!F229 -> 0 | DL30: ='Compile Data'!F230 -> 0 | DM30: ='Compile Data'!F231 -> 0 | DN30: ='Compile Data'!F232 -> 0 | DO30: ='Compile Data'!F233 -> 0 | DP30: ='Compile Data'!F234 -> 0 | DQ30: ='Compile Data'!F235 -> 0 | DR30: ='Compile Data'!F236 -> 0 | DS30: ='Compile Data'!F237 -> 0 | DT30: ='Compile Data'!F238 -> 0 | DU30: ='Compile Data'!F239 -> 0 | DV30: ='Compile Data'!F240 -> 0 | DX30: 0 | DY30: 0 | DZ30: 0 | EB30: 0 | EC30: 0 | ED30: 0 | EE30: 0 | EF30: 0 | EG30: 0 | EH30: 0
A31: 1923-04-30 | B31: =INDIRECT(CONCATENATE("'",B$1,"'!",B$4,(YEAR($A31)-1921)*12+MONTH($A31)+3+IF(ISNUMBER(FIND("PRV",B$6)),1,0)))*IF(AND(B$3>0,TRIM(B$9)="CFS"),Conv_Flags!$C31,1) -> 0 | C31: =INDIRECT(CONCATENATE("'",C$1,"'!",C$4,(YEAR($A31)-1921)*12+MONTH($A31)+3+IF(ISNUMBER(FIND("PRV",C$6)),1,0)))*IF(AND(C$3>0,TRIM(C$9)="CFS"),Conv_Flags!$C31,1) -> 1.692059224 | D31: =INDIRECT(CONCATENATE("'",D$1,"'!",D$4,(YEAR($A31)-1921)*12+MONTH($A31)+3+IF(ISNUMBER(FIND("PRV",D$6)),1,0)))*IF(AND(D$3>0,TRIM(D$9)="CFS"),Conv_Flags!$C31,1) -> 1.685853861 | E31: =INDIRECT(CONCATENATE("'",E$1,"'!",E$4,(YEAR($A31)-1921)*12+MONTH($A31)+3+IF(ISNUMBER(FIND("PRV",E$6)),1,0)))*IF(AND(E$3>0,TRIM(E$9)="CFS"),Conv_Flags!$C31,1) -> 0 | F31: =INDIRECT(CONCATENATE("'",F$1,"'!",F$4,(YEAR($A31)-1921)*12+MONTH($A31)+3+IF(ISNUMBER(FIND("PRV",F$6)),1,0)))*IF(AND(F$3>0,TRIM(F$9)="CFS"),Conv_Flags!$C31,1) -> 0 | J31: 1941 | K31: =B241 -> 0 | L31: =B242 -> 0 | M31: =B243 -> 0 | N31: =B244 -> 0 | O31: =B245 -> 0 | P31: =B246 -> 0 | Q31: =B247 -> 0 | R31: =B248 -> 0 | S31: =B249 -> 0 | T31: =B250 -> 0 | U31: =B251 -> 0 | V31: =B252 -> 0 | X31: 0 | Y31: 0 | Z31: 0 | AB31: 0 | AC31: 0 | AD31: 0 | AE31: 0 | AF31: 0 | AG31: 0 | AH31: 0 | AJ31: 1941 | AK31: ='Compile Data'!C241 -> 2.49 | AL31: ='Compile Data'!C242 -> 12.871513 | AM31: ='Compile Data'!C243 -> 1.66 | AN31: ='Compile Data'!C244 -> 0 | AO31: ='Compile Data'!C245 -> 0 | AP31: ='Compile Data'!C246 -> 0 | AQ31: ='Compile Data'!C247 -> 0 | AR31: ='Compile Data'!C248 -> 0 | AS31: ='Compile Data'!C249 -> 0 | AT31: ='Compile Data'!C250 -> 0 | AU31: ='Compile Data'!C251 -> 0 | AV31: ='Compile Data'!C252 -> 30.0862069 | AX31: 57.6724138 | AY31: 57.6724138 | AZ31: 47.1077199 | BB31: 14.531513 | BC31: 57.6724138 | BD31: 17.021513 | BE31: 1.66 | BF31: 0 | BG31: 30.0862069 | BH31: 57.6724138 | BJ31: 1941 | BK31: ='Compile Data'!D241 -> 0 | BL31: ='Compile Data'!D242 -> 16.3555562 | BM31: ='Compile Data'!D243 -> 1.66 | BN31: ='Compile Data'!D244 -> 0 | BO31: ='Compile Data'!D245 -> 0 | BP31: ='Compile Data'!D246 -> 0 | BQ31: ='Compile Data'!D247 -> 0 | BR31: ='Compile Data'!D248 -> 0 | BS31: ='Compile Data'!D249 -> 0 | BT31: ='Compile Data'!D250 -> 0 | BU31: ='Compile Data'!D251 -> 0 | BV31: ='Compile Data'!D252 -> 30.0862069 | BX31: 57.6724138 | BY31: 57.6724138 | BZ31: 48.1017631 | CB31: 18.0155562 | CC31: 57.6724138 | CD31: 18.0155562 | CE31: 1.66 | CF31: 0 | CG31: 30.0862069 | CH31: 57.6724138 | CJ31: 1941 | CK31: ='Compile Data'!E241 -> 0 | CL31: ='Compile Data'!E242 -> 0 | CM31: ='Compile Data'!E243 -> 0 | CN31: ='Compile Data'!E244 -> 0 | CO31: ='Compile Data'!E245 -> 0 | CP31: ='Compile Data'!E246 -> 0 | CQ31: ='Compile Data'!E247 -> 0 | CR31: ='Compile Data'!E248 -> 0 | CS31: ='Compile Data'!E249 -> 0 | CT31: ='Compile Data'!E250 -> 0 | CU31: ='Compile Data'!E251 -> 0 | CV31: ='Compile Data'!E252 -> 0 | CX31: 0 | CY31: 0 | CZ31: 0 | DB31: 0 | DC31: 0 | DD31: 0 | DE31: 0 | DF31: 0 | DG31: 0 | DH31: 0 | DJ31: 1941 | DK31: ='Compile Data'!F241 -> 0 | DL31: ='Compile Data'!F242 -> 0 | DM31: ='Compile Data'!F243 -> 0 | DN31: ='Compile Data'!F244 -> 0 | DO31: ='Compile Data'!F245 -> 0 | DP31: ='Compile Data'!F246 -> 0 | DQ31: ='Compile Data'!F247 -> 0 | DR31: ='Compile Data'!F248 -> 0 | DS31: ='Compile Data'!F249 -> 0 | DT31: ='Compile Data'!F250 -> 0 | DU31: ='Compile Data'!F251 -> 0 | DV31: ='Compile Data'!F252 -> 0 | DX31: 0 | DY31: 0 | DZ31: 0 | EB31: 0 | EC31: 0 | ED31: 0 | EE31: 0 | EF31: 0 | EG31: 0 | EH31: 0
A32: 1923-05-31 | B32: =INDIRECT(CONCATENATE("'",B$1,"'!",B$4,(YEAR($A32)-1921)*12+MONTH($A32)+3+IF(ISNUMBER(FIND("PRV",B$6)),1,0)))*IF(AND(B$3>0,TRIM(B$9)="CFS"),Conv_Flags!$C32,1) -> 0 | C32: =INDIRECT(CONCATENATE("'",C$1,"'!",C$4,(YEAR($A32)-1921)*12+MONTH($A32)+3+IF(ISNUMBER(FIND("PRV",C$6)),1,0)))*IF(AND(C$3>0,TRIM(C$9)="CFS"),Conv_Flags!$C32,1) -> 0 | D32: =INDIRECT(CONCATENATE("'",D$1,"'!",D$4,(YEAR($A32)-1921)*12+MONTH($A32)+3+IF(ISNUMBER(FIND("PRV",D$6)),1,0)))*IF(AND(D$3>0,TRIM(D$9)="CFS"),Conv_Flags!$C32,1) -> 0 | E32: =INDIRECT(CONCATENATE("'",E$1,"'!",E$4,(YEAR($A32)-1921)*12+MONTH($A32)+3+IF(ISNUMBER(FIND("PRV",E$6)),1,0)))*IF(AND(E$3>0,TRIM(E$9)="CFS"),Conv_Flags!$C32,1) -> 0 | F32: =INDIRECT(CONCATENATE("'",F$1,"'!",F$4,(YEAR($A32)-1921)*12+MONTH($A32)+3+IF(ISNUMBER(FIND("PRV",F$6)),1,0)))*IF(AND(F$3>0,TRIM(F$9)="CFS"),Conv_Flags!$C32,1) -> 0 | J32: 1942 | K32: =B253 -> 0 | L32: =B254 -> 0 | M32: =B255 -> 0 | N32: =B256 -> 0 | O32: =B257 -> 0 | P32: =B258 -> 0 | Q32: =B259 -> 0 | R32: =B260 -> 0 | S32: =B261 -> 0 | T32: =B262 -> 0 | U32: =B263 -> 0 | V32: =B264 -> 0 | X32: 0 | Y32: 0 | Z32: 0 | AB32: 0 | AC32: 0 | AD32: 0 | AE32: 0 | AF32: 0 | AG32: 0 | AH32: 0 | AJ32: 1942 | AK32: ='Compile Data'!C253 -> 27.5862069 | AL32: ='Compile Data'!C254 -> 0 | AM32: ='Compile Data'!C255 -> 0 | AN32: ='Compile Data'!C256 -> 0 | AO32: ='Compile Data'!C257 -> 0 | AP32: ='Compile Data'!C258 -> 0 | AQ32: ='Compile Data'!C259 -> 0 | AR32: ='Compile Data'!C260 -> 0 | AS32: ='Compile Data'!C261 -> 0 | AT32: ='Compile Data'!C262 -> 0 | AU32: ='Compile Data'!C263 -> 0 | AV32: ='Compile Data'!C264 -> 27.5862069 | AX32: 55.1724138 | AY32: 55.1724138 | AZ32: 55.1724138 | BB32: 0 | BC32: 55.1724138 | BD32: 27.5862069 | BE32: 0 | BF32: 0 | BG32: 27.5862069 | BH32: 55.1724138 | BJ32: 1942 | BK32: ='Compile Data'!D253 -> 27.5862069 | BL32: ='Compile Data'!D254 -> 0 | BM32: ='Compile Data'!D255 -> 0 | BN32: ='Compile Data'!D256 -> 0 | BO32: ='Compile Data'!D257 -> 0 | BP32: ='Compile Data'!D258 -> 0 | BQ32: ='Compile Data'!D259 -> 0 | BR32: ='Compile Data'!D260 -> 0 | BS32: ='Compile Data'!D261 -> 0 | BT32: ='Compile Data'!D262 -> 0 | BU32: ='Compile Data'!D263 -> 0 | BV32: ='Compile Data'!D264 -> 27.5862069 | BX32: 55.1724138 | BY32: 55.1724138 | BZ32: 55.1724138 | CB32: 0 | CC32: 55.1724138 | CD32: 27.5862069 | CE32: 0 | CF32: 0 | CG32: 27.5862069 | CH32: 55.1724138 | CJ32: 1942 | CK32: ='Compile Data'!E253 -> 0 | CL32: ='Compile Data'!E254 -> 0 | CM32: ='Compile Data'!E255 -> 0 | CN32: ='Compile Data'!E256 -> 0 | CO32: ='Compile Data'!E257 -> 0 | CP32: ='Compile Data'!E258 -> 0 | CQ32: ='Compile Data'!E259 -> 0 | CR32: ='Compile Data'!E260 -> 0 | CS32: ='Compile Data'!E261 -> 0 | CT32: ='Compile Data'!E262 -> 0 | CU32: ='Compile Data'!E263 -> 0 | CV32: ='Compile Data'!E264 -> 0 | CX32: 0 | CY32: 0 | CZ32: 0 | DB32: 0 | DC32: 0 | DD32: 0 | DE32: 0 | DF32: 0 | DG32: 0 | DH32: 0 | DJ32: 1942 | DK32: ='Compile Data'!F253 -> 0 | DL32: ='Compile Data'!F254 -> 0 | DM32: ='Compile Data'!F255 -> 0 | DN32: ='Compile Data'!F256 -> 0 | DO32: ='Compile Data'!F257 -> 0 | DP32: ='Compile Data'!F258 -> 0 | DQ32: ='Compile Data'!F259 -> 0 | DR32: ='Compile Data'!F260 -> 0 | DS32: ='Compile Data'!F261 -> 0 | DT32: ='Compile Data'!F262 -> 0 | DU32: ='Compile Data'!F263 -> 0 | DV32: ='Compile Data'!F264 -> 0 | DX32: 0 | DY32: 0 | DZ32: 0 | EB32: 0 | EC32: 0 | ED32: 0 | EE32: 0 | EF32: 0 | EG32: 0 | EH32: 0
A33: 1923-06-30 | B33: =INDIRECT(CONCATENATE("'",B$1,"'!",B$4,(YEAR($A33)-1921)*12+MONTH($A33)+3+IF(ISNUMBER(FIND("PRV",B$6)),1,0)))*IF(AND(B$3>0,TRIM(B$9)="CFS"),Conv_Flags!$C33,1) -> 0 | C33: =INDIRECT(CONCATENATE("'",C$1,"'!",C$4,(YEAR($A33)-1921)*12+MONTH($A33)+3+IF(ISNUMBER(FIND("PRV",C$6)),1,0)))*IF(AND(C$3>0,TRIM(C$9)="CFS"),Conv_Flags!$C33,1) -> 2.5 | D33: =INDIRECT(CONCATENATE("'",D$1,"'!",D$4,(YEAR($A33)-1921)*12+MONTH($A33)+3+IF(ISNUMBER(FIND("PRV",D$6)),1,0)))*IF(AND(D$3>0,TRIM(D$9)="CFS"),Conv_Flags!$C33,1) -> 2.5 | E33: =INDIRECT(CONCATENATE("'",E$1,"'!",E$4,(YEAR($A33)-1921)*12+MONTH($A33)+3+IF(ISNUMBER(FIND("PRV",E$6)),1,0)))*IF(AND(E$3>0,TRIM(E$9)="CFS"),Conv_Flags!$C33,1) -> 0 | F33: =INDIRECT(CONCATENATE("'",F$1,"'!",F$4,(YEAR($A33)-1921)*12+MONTH($A33)+3+IF(ISNUMBER(FIND("PRV",F$6)),1,0)))*IF(AND(F$3>0,TRIM(F$9)="CFS"),Conv_Flags!$C33,1) -> 0 | J33: 1943 | K33: =B265 -> 0 | L33: =B266 -> 0 | M33: =B267 -> 0 | N33: =B268 -> 0 | O33: =B269 -> 0 | P33: =B270 -> 0 | Q33: =B271 -> 0 | R33: =B272 -> 0 | S33: =B273 -> 0 | T33: =B274 -> 0 | U33: =B275 -> 0 | V33: =B276 -> 0 | X33: 0 | Y33: 0 | Z33: 0 | AB33: 0 | AC33: 0 | AD33: 0 | AE33: 0 | AF33: 0 | AG33: 0 | AH33: 0 | AJ33: 1943 | AK33: ='Compile Data'!C265 -> 27.5862069 | AL33: ='Compile Data'!C266 -> 0 | AM33: ='Compile Data'!C267 -> 0 | AN33: ='Compile Data'!C268 -> 0 | AO33: ='Compile Data'!C269 -> 0 | AP33: ='Compile Data'!C270 -> 0 | AQ33: ='Compile Data'!C271 -> 0.1901793833 | AR33: ='Compile Data'!C272 -> 0 | AS33: ='Compile Data'!C273 -> 2.004728869 | AT33: ='Compile Data'!C274 -> 36.96305548 | AU33: ='Compile Data'!C275 -> 30.0862069 | AV33: ='Compile Data'!C276 -> 30.0862069 | AX33: 144.7678241 | AY33: 144.7678241 | AZ33: 126.9165844 | BB33: 0 | BC33: 87.7586207 | BD33: 27.5862069 | BE33: 0 | BF33: 2.194908252 | BG33: 99.14019814 | BH33: 75.52365347 | BJ33: 1943 | BK33: ='Compile Data'!D265 -> 27.5862069 | BL33: ='Compile Data'!D266 -> 0 | BM33: ='Compile Data'!D267 -> 0 | BN33: ='Compile Data'!D268 -> 0 | BO33: ='Compile Data'!D269 -> 0 | BP33: ='Compile Data'!D270 -> 0 | BQ33: ='Compile Data'!D271 -> 0.1900661939 | BR33: ='Compile Data'!D272 -> 0 | BS33: ='Compile Data'!D273 -> 2.004728869 | BT33: ='Compile Data'!D274 -> 36.96305548 | BU33: ='Compile Data'!D275 -> 30.0862069 | BV33: ='Compile Data'!D276 -> 30.0862069 | BX33: 144.7677109 | BY33: 144.7677109 | BZ33: 126.9164712 | CB33: 0 | CC33: 87.7586207 | CD33: 27.5862069 | CE33: 0 | CF33: 2.194795063 | CG33: 99.14019814 | CH33: 75.52365347 | CJ33: 1943 | CK33: ='Compile Data'!E265 -> 0 | CL33: ='Compile Data'!E266 -> 0 | CM33: ='Compile Data'!E267 -> 0 | CN33: ='Compile Data'!E268 -> 0 | CO33: ='Compile Data'!E269 -> 0 | CP33: ='Compile Data'!E270 -> 0 | CQ33: ='Compile Data'!E271 -> 0 | CR33: ='Compile Data'!E272 -> 0 | CS33: ='Compile Data'!E273 -> 0 | CT33: ='Compile Data'!E274 -> 0 | CU33: ='Compile Data'!E275 -> 0 | CV33: ='Compile Data'!E276 -> 0 | CX33: 0 | CY33: 0 | CZ33: 0 | DB33: 0 | DC33: 0 | DD33: 0 | DE33: 0 | DF33: 0 | DG33: 0 | DH33: 0 | DJ33: 1943 | DK33: ='Compile Data'!F265 -> 0 | DL33: ='Compile Data'!F266 -> 0 | DM33: ='Compile Data'!F267 -> 0 | DN33: ='Compile Data'!F268 -> 0 | DO33: ='Compile Data'!F269 -> 0 | DP33: ='Compile Data'!F270 -> 0 | DQ33: ='Compile Data'!F271 -> 0 | DR33: ='Compile Data'!F272 -> 0 | DS33: ='Compile Data'!F273 -> 0 | DT33: ='Compile Data'!F274 -> 0 | DU33: ='Compile Data'!F275 -> 0 | DV33: ='Compile Data'!F276 -> 0 | DX33: 0 | DY33: 0 | DZ33: 0 | EB33: 0 | EC33: 0 | ED33: 0 | EE33: 0 | EF33: 0 | EG33: 0 | EH33: 0
A34: 1923-07-31 | B34: =INDIRECT(CONCATENATE("'",B$1,"'!",B$4,(YEAR($A34)-1921)*12+MONTH($A34)+3+IF(ISNUMBER(FIND("PRV",B$6)),1,0)))*IF(AND(B$3>0,TRIM(B$9)="CFS"),Conv_Flags!$C34,1) -> 0 | C34: =INDIRECT(CONCATENATE("'",C$1,"'!",C$4,(YEAR($A34)-1921)*12+MONTH($A34)+3+IF(ISNUMBER(FIND("PRV",C$6)),1,0)))*IF(AND(C$3>0,TRIM(C$9)="CFS"),Conv_Flags!$C34,1) -> 103.172498 | D34: =INDIRECT(CONCATENATE("'",D$1,"'!",D$4,(YEAR($A34)-1921)*12+MONTH($A34)+3+IF(ISNUMBER(FIND("PRV",D$6)),1,0)))*IF(AND(D$3>0,TRIM(D$9)="CFS"),Conv_Flags!$C34,1) -> 104.3450624 | E34: =INDIRECT(CONCATENATE("'",E$1,"'!",E$4,(YEAR($A34)-1921)*12+MONTH($A34)+3+IF(ISNUMBER(FIND("PRV",E$6)),1,0)))*IF(AND(E$3>0,TRIM(E$9)="CFS"),Conv_Flags!$C34,1) -> 0 | F34: =INDIRECT(CONCATENATE("'",F$1,"'!",F$4,(YEAR($A34)-1921)*12+MONTH($A34)+3+IF(ISNUMBER(FIND("PRV",F$6)),1,0)))*IF(AND(F$3>0,TRIM(F$9)="CFS"),Conv_Flags!$C34,1) -> 0 | J34: 1944 | K34: =B277 -> 0 | L34: =B278 -> 0 | M34: =B279 -> 0 | N34: =B280 -> 0 | O34: =B281 -> 0 | P34: =B282 -> 0 | Q34: =B283 -> 0 | R34: =B284 -> 0 | S34: =B285 -> 0 | T34: =B286 -> 0 | U34: =B287 -> 0 | V34: =B288 -> 0 | X34: 0 | Y34: 0 | Z34: 0 | AB34: 0 | AC34: 0 | AD34: 0 | AE34: 0 | AF34: 0 | AG34: 0 | AH34: 0 | AJ34: 1944 | AK34: ='Compile Data'!C277 -> 27.5862069 | AL34: ='Compile Data'!C278 -> 17.85123967 | AM34: ='Compile Data'!C279 -> 0 | AN34: ='Compile Data'!C280 -> 0 | AO34: ='Compile Data'!C281 -> 0 | AP34: ='Compile Data'!C282 -> 0.1204532912 | AQ34: ='Compile Data'!C283 -> 7.347620086 | AR34: ='Compile Data'!C284 -> 13.7504228 | AS34: ='Compile Data'!C285 -> 92.0331594 | AT34: ='Compile Data'!C286 -> 162.4133539 | AU34: ='Compile Data'!C287 -> 136.0289143 | AV34: ='Compile Data'!C288 -> 29.98873771 | AX34: 482.5839709 | AY34: 482.5839709 | AZ34: 487.120108 | BB34: 17.97169296 | BC34: 187.3277218 | BD34: 45.43744657 | BE34: 0 | BF34: 113.2516556 | BG34: 420.4641653 | BH34: 53.03880751 | BJ34: 1944 | BK34: ='Compile Data'!D277 -> 27.5862069 | BL34: ='Compile Data'!D278 -> 17.85123967 | BM34: ='Compile Data'!D279 -> 0 | BN34: ='Compile Data'!D280 -> 0 | BO34: ='Compile Data'!D281 -> 0 | BP34: ='Compile Data'!D282 -> 0.1202569604 | BQ34: ='Compile Data'!D283 -> 7.335643958 | BR34: ='Compile Data'!D284 -> 13.74841196 | BS34: ='Compile Data'!D285 -> 92.0331594 | BT34: ='Compile Data'!D286 -> 163.2414358 | BU34: ='Compile Data'!D287 -> 136.8409443 | BV34: ='Compile Data'!D288 -> 40.46368386 | BX34: 494.6848457 | BY34: 494.6848457 | BZ34: 499.2209828 | CB34: 17.97149663 | CC34: 198.614698 | CD34: 45.43744657 | CE34: 0 | CF34: 113.2374723 | CG34: 432.5792233 | CH34: 63.51375366 | CJ34: 1944 | CK34: ='Compile Data'!E277 -> 0 | CL34: ='Compile Data'!E278 -> 0 | CM34: ='Compile Data'!E279 -> 0 | CN34: ='Compile Data'!E280 -> 0 | CO34: ='Compile Data'!E281 -> 0 | CP34: ='Compile Data'!E282 -> 0 | CQ34: ='Compile Data'!E283 -> 0 | CR34: ='Compile Data'!E284 -> 0 | CS34: ='Compile Data'!E285 -> 0 | CT34: ='Compile Data'!E286 -> 0 | CU34: ='Compile Data'!E287 -> 0 | CV34: ='Compile Data'!E288 -> 0 | CX34: 0 | CY34: 0 | CZ34: 0 | DB34: 0 | DC34: 0 | DD34: 0 | DE34: 0 | DF34: 0 | DG34: 0 | DH34: 0 | DJ34: 1944 | DK34: ='Compile Data'!F277 -> 0 | DL34: ='Compile Data'!F278 -> 0 | DM34: ='Compile Data'!F279 -> 0 | DN34: ='Compile Data'!F280 -> 0 | DO34: ='Compile Data'!F281 -> 0 | DP34: ='Compile Data'!F282 -> 0 | DQ34: ='Compile Data'!F283 -> 0 | DR34: ='Compile Data'!F284 -> 0 | DS34: ='Compile Data'!F285 -> 0 | DT34: ='Compile Data'!F286 -> 0 | DU34: ='Compile Data'!F287 -> 0 | DV34: ='Compile Data'!F288 -> 0 | DX34: 0 | DY34: 0 | DZ34: 0 | EB34: 0 | EC34: 0 | ED34: 0 | EE34: 0 | EF34: 0 | EG34: 0 | EH34: 0
A35: 1923-08-31 | B35: =INDIRECT(CONCATENATE("'",B$1,"'!",B$4,(YEAR($A35)-1921)*12+MONTH($A35)+3+IF(ISNUMBER(FIND("PRV",B$6)),1,0)))*IF(AND(B$3>0,TRIM(B$9)="CFS"),Conv_Flags!$C35,1) -> 0 | C35: =INDIRECT(CONCATENATE("'",C$1,"'!",C$4,(YEAR($A35)-1921)*12+MONTH($A35)+3+IF(ISNUMBER(FIND("PRV",C$6)),1,0)))*IF(AND(C$3>0,TRIM(C$9)="CFS"),Conv_Flags!$C35,1) -> 91.01231344 | D35: =INDIRECT(CONCATENATE("'",D$1,"'!",D$4,(YEAR($A35)-1921)*12+MONTH($A35)+3+IF(ISNUMBER(FIND("PRV",D$6)),1,0)))*IF(AND(D$3>0,TRIM(D$9)="CFS"),Conv_Flags!$C35,1) -> 92.18487784 | E35: =INDIRECT(CONCATENATE("'",E$1,"'!",E$4,(YEAR($A35)-1921)*12+MONTH($A35)+3+IF(ISNUMBER(FIND("PRV",E$6)),1,0)))*IF(AND(E$3>0,TRIM(E$9)="CFS"),Conv_Flags!$C35,1) -> 0 | F35: =INDIRECT(CONCATENATE("'",F$1,"'!",F$4,(YEAR($A35)-1921)*12+MONTH($A35)+3+IF(ISNUMBER(FIND("PRV",F$6)),1,0)))*IF(AND(F$3>0,TRIM(F$9)="CFS"),Conv_Flags!$C35,1) -> 0 | J35: 1945 | K35: =B289 -> 0 | L35: =B290 -> 0 | M35: =B291 -> 0 | N35: =B292 -> 0 | O35: =B293 -> 0 | P35: =B294 -> 0 | Q35: =B295 -> 0 | R35: =B296 -> 0 | S35: =B297 -> 0 | T35: =B298 -> 0 | U35: =B299 -> 0 | V35: =B300 -> 0 | X35: 0 | Y35: 0 | Z35: 0 | AB35: 0 | AC35: 0 | AD35: 0 | AE35: 0 | AF35: 0 | AG35: 0 | AH35: 0 | AJ35: 1945 | AK35: ='Compile Data'!C289 -> 21.31006979 | AL35: ='Compile Data'!C290 -> 1.74 | AM35: ='Compile Data'!C291 -> 17.85123967 | AN35: ='Compile Data'!C292 -> 0 | AO35: ='Compile Data'!C293 -> 0 | AP35: ='Compile Data'!C294 -> 0 | AQ35: ='Compile Data'!C295 -> 1.202815621 | AR35: ='Compile Data'!C296 -> 0 | AS35: ='Compile Data'!C297 -> 13.27017796 | AT35: ='Compile Data'!C298 -> 57.83884298 | AU35: ='Compile Data'!C299 -> 11.74408887 | AV35: ='Compile Data'!C300 -> 12.80519904 | AX35: 109.4791111 | AY35: 123.0424565 | AZ35: 137.7624339 | BB35: 19.59123967 | BC35: 33.76727455 | BD35: 40.90130946 | BE35: 17.85123967 | BF35: 14.47299358 | BG35: 95.65830885 | BH35: 23.76318568 | BJ35: 1945 | BK35: ='Compile Data'!D289 -> 21.31006979 | BL35: ='Compile Data'!D290 -> 1.74 | BM35: ='Compile Data'!D291 -> 17.85123967 | BN35: ='Compile Data'!D292 -> 0 | BO35: ='Compile Data'!D293 -> 0 | BP35: ='Compile Data'!D294 -> 0 | BQ35: ='Compile Data'!D295 -> 1.175461703 | BR35: ='Compile Data'!D296 -> 0 | BS35: ='Compile Data'!D297 -> 17.62230137 | BT35: ='Compile Data'!D298 -> 57.83884298 | BU35: ='Compile Data'!D299 -> 12.61512431 | BV35: ='Compile Data'!D300 -> 12.83833149 | BX35: 114.6568683 | BY35: 124.251372 | BZ35: 142.9913713 | CB35: 19.59123967 | CC35: 34.62026228 | CD35: 40.90130946 | CE35: 17.85123967 | CF35: 18.79776307 | CG35: 100.9146001 | CH35: 23.74513797 | CJ35: 1945 | CK35: ='Compile Data'!E289 -> 0 | CL35: ='Compile Data'!E290 -> 0 | CM35: ='Compile Data'!E291 -> 0 | CN35: ='Compile Data'!E292 -> 0 | CO35: ='Compile Data'!E293 -> 0 | CP35: ='Compile Data'!E294 -> 0 | CQ35: ='Compile Data'!E295 -> 0 | CR35: ='Compile Data'!E296 -> 0 | CS35: ='Compile Data'!E297 -> 0 | CT35: ='Compile Data'!E298 -> 0 | CU35: ='Compile Data'!E299 -> 0 | CV35: ='Compile Data'!E300 -> 0 | CX35: 0 | CY35: 0 | CZ35: 0 | DB35: 0 | DC35: 0 | DD35: 0 | DE35: 0 | DF35: 0 | DG35: 0 | DH35: 0 | DJ35: 1945 | DK35: ='Compile Data'!F289 -> 0 | DL35: ='Compile Data'!F290 -> 0 | DM35: ='Compile Data'!F291 -> 0 | DN35: ='Compile Data'!F292 -> 0 | DO35: ='Compile Data'!F293 -> 0 | DP35: ='Compile Data'!F294 -> 0 | DQ35: ='Compile Data'!F295 -> 0 | DR35: ='Compile Data'!F296 -> 0 | DS35: ='Compile Data'!F297 -> 0 | DT35: ='Compile Data'!F298 -> 0 | DU35: ='Compile Data'!F299 -> 0 | DV35: ='Compile Data'!F300 -> 0 | DX35: 0 | DY35: 0 | DZ35: 0 | EB35: 0 | EC35: 0 | ED35: 0 | EE35: 0 | EF35: 0 | EG35: 0 | EH35: 0
A36: 1923-09-30 | B36: =INDIRECT(CONCATENATE("'",B$1,"'!",B$4,(YEAR($A36)-1921)*12+MONTH($A36)+3+IF(ISNUMBER(FIND("PRV",B$6)),1,0)))*IF(AND(B$3>0,TRIM(B$9)="CFS"),Conv_Flags!$C36,1) -> 0 | C36: =INDIRECT(CONCATENATE("'",C$1,"'!",C$4,(YEAR($A36)-1921)*12+MONTH($A36)+3+IF(ISNUMBER(FIND("PRV",C$6)),1,0)))*IF(AND(C$3>0,TRIM(C$9)="CFS"),Conv_Flags!$C36,1) -> 3.923552056 | D36: =INDIRECT(CONCATENATE("'",D$1,"'!",D$4,(YEAR($A36)-1921)*12+MONTH($A36)+3+IF(ISNUMBER(FIND("PRV",D$6)),1,0)))*IF(AND(D$3>0,TRIM(D$9)="CFS"),Conv_Flags!$C36,1) -> 3.923552056 | E36: =INDIRECT(CONCATENATE("'",E$1,"'!",E$4,(YEAR($A36)-1921)*12+MONTH($A36)+3+IF(ISNUMBER(FIND("PRV",E$6)),1,0)))*IF(AND(E$3>0,TRIM(E$9)="CFS"),Conv_Flags!$C36,1) -> 0 | F36: =INDIRECT(CONCATENATE("'",F$1,"'!",F$4,(YEAR($A36)-1921)*12+MONTH($A36)+3+IF(ISNUMBER(FIND("PRV",F$6)),1,0)))*IF(AND(F$3>0,TRIM(F$9)="CFS"),Conv_Flags!$C36,1) -> 0 | J36: 1946 | K36: =B301 -> 0 | L36: =B302 -> 0 | M36: =B303 -> 0 | N36: =B304 -> 0 | O36: =B305 -> 0 | P36: =B306 -> 0 | Q36: =B307 -> 0 | R36: =B308 -> 0 | S36: =B309 -> 0 | T36: =B310 -> 0 | U36: =B311 -> 0 | V36: =B312 -> 0 | X36: 0 | Y36: 0 | Z36: 0 | AB36: 0 | AC36: 0 | AD36: 0 | AE36: 0 | AF36: 0 | AG36: 0 | AH36: 0 | AJ36: 1946 | AK36: ='Compile Data'!C301 -> 9.217986632 | AL36: ='Compile Data'!C302 -> 1.74 | AM36: ='Compile Data'!C303 -> 1.66 | AN36: ='Compile Data'!C304 -> 0 | AO36: ='Compile Data'!C305 -> 13.5633454 | AP36: ='Compile Data'!C306 -> 0.02453355184 | AQ36: ='Compile Data'!C307 -> 0 | AR36: ='Compile Data'!C308 -> 0 | AS36: ='Compile Data'!C309 -> 2.5 | AT36: ='Compile Data'!C310 -> 57.83884298 | AU36: ='Compile Data'!C311 -> 10.02203595 | AV36: ='Compile Data'!C312 -> 3.935898208 | AX36: 102.0300044 | AY36: 88.46665903 | AZ36: 100.5026427 | BB36: 16.98787895 | BC36: 23.49253137 | BD36: 12.61798663 | BE36: 15.2233454 | BF36: 2.524533552 | BG36: 74.29677713 | BH36: 18.08124656 | BJ36: 1946 | BK36: ='Compile Data'!D301 -> 9.166806485 | BL36: ='Compile Data'!D302 -> 1.74 | BM36: ='Compile Data'!D303 -> 1.66 | BN36: ='Compile Data'!D304 -> 0 | BO36: ='Compile Data'!D305 -> 9.594503665 | BP36: ='Compile Data'!D306 -> 0.02531768564 | BQ36: ='Compile Data'!D307 -> 0 | BR36: ='Compile Data'!D308 -> 7.645622759 | BS36: ='Compile Data'!D309 -> 2.5 | BT36: ='Compile Data'!D310 -> 57.83884298 | BU36: ='Compile Data'!D311 -> 39.67498979 | BV36: ='Compile Data'!D312 -> 5.036394867 | BX36: 148.504471 | BY36: 138.9099673 | BZ36: 134.8824782 | CB36: 13.01982135 | CC36: 59.77866469 | CD36: 12.56680649 | CE36: 11.25450367 | CF36: 10.17094045 | CG36: 105.0502276 | CH36: 31.22519411 | CJ36: 1946 | CK36: ='Compile Data'!E301 -> 0 | CL36: ='Compile Data'!E302 -> 0 | CM36: ='Compile Data'!E303 -> 0 | CN36: ='Compile Data'!E304 -> 0 | CO36: ='Compile Data'!E305 -> 0 | CP36: ='Compile Data'!E306 -> 0 | CQ36: ='Compile Data'!E307 -> 0 | CR36: ='Compile Data'!E308 -> 0 | CS36: ='Compile Data'!E309 -> 0 | CT36: ='Compile Data'!E310 -> 0 | CU36: ='Compile Data'!E311 -> 0 | CV36: ='Compile Data'!E312 -> 0 | CX36: 0 | CY36: 0 | CZ36: 0 | DB36: 0 | DC36: 0 | DD36: 0 | DE36: 0 | DF36: 0 | DG36: 0 | DH36: 0 | DJ36: 1946 | DK36: ='Compile Data'!F301 -> 0 | DL36: ='Compile Data'!F302 -> 0 | DM36: ='Compile Data'!F303 -> 0 | DN36: ='Compile Data'!F304 -> 0 | DO36: ='Compile Data'!F305 -> 0 | DP36: ='Compile Data'!F306 -> 0 | DQ36: ='Compile Data'!F307 -> 0 | DR36: ='Compile Data'!F308 -> 0 | DS36: ='Compile Data'!F309 -> 0 | DT36: ='Compile Data'!F310 -> 0 | DU36: ='Compile Data'!F311 -> 0 | DV36: ='Compile Data'!F312 -> 0 | DX36: 0 | DY36: 0 | DZ36: 0 | EB36: 0 | EC36: 0 | ED36: 0 | EE36: 0 | EF36: 0 | EG36: 0 | EH36: 0
A37: 1923-10-31 | B37: =INDIRECT(CONCATENATE("'",B$1,"'!",B$4,(YEAR($A37)-1921)*12+MONTH($A37)+3+IF(ISNUMBER(FIND("PRV",B$6)),1,0)))*IF(AND(B$3>0,TRIM(B$9)="CFS"),Conv_Flags!$C37,1) -> 0 | C37: =INDIRECT(CONCATENATE("'",C$1,"'!",C$4,(YEAR($A37)-1921)*12+MONTH($A37)+3+IF(ISNUMBER(FIND("PRV",C$6)),1,0)))*IF(AND(C$3>0,TRIM(C$9)="CFS"),Conv_Flags!$C37,1) -> 20.8377433 | D37: =INDIRECT(CONCATENATE("'",D$1,"'!",D$4,(YEAR($A37)-1921)*12+MONTH($A37)+3+IF(ISNUMBER(FIND("PRV",D$6)),1,0)))*IF(AND(D$3>0,TRIM(D$9)="CFS"),Conv_Flags!$C37,1) -> 20.8377433 | E37: =INDIRECT(CONCATENATE("'",E$1,"'!",E$4,(YEAR($A37)-1921)*12+MONTH($A37)+3+IF(ISNUMBER(FIND("PRV",E$6)),1,0)))*IF(AND(E$3>0,TRIM(E$9)="CFS"),Conv_Flags!$C37,1) -> 0 | F37: =INDIRECT(CONCATENATE("'",F$1,"'!",F$4,(YEAR($A37)-1921)*12+MONTH($A37)+3+IF(ISNUMBER(FIND("PRV",F$6)),1,0)))*IF(AND(F$3>0,TRIM(F$9)="CFS"),Conv_Flags!$C37,1) -> 0 | J37: 1947 | K37: =B313 -> 0 | L37: =B314 -> 0 | M37: =B315 -> 0 | N37: =B316 -> 0 | O37: =B317 -> 0 | P37: =B318 -> 0 | Q37: =B319 -> 0 | R37: =B320 -> 0 | S37: =B321 -> 0 | T37: =B322 -> 0 | U37: =B323 -> 0 | V37: =B324 -> 0 | X37: 0 | Y37: 0 | Z37: 0 | AB37: 0 | AC37: 0 | AD37: 0 | AE37: 0 | AF37: 0 | AG37: 0 | AH37: 0 | AJ37: 1947 | AK37: ='Compile Data'!C313 -> 9.534597213 | AL37: ='Compile Data'!C314 -> 4.610751136 | AM37: ='Compile Data'!C315 -> 0 | AN37: ='Compile Data'!C316 -> 0 | AO37: ='Compile Data'!C317 -> 0 | AP37: ='Compile Data'!C318 -> 0 | AQ37: ='Compile Data'!C319 -> 5.815888286 | AR37: ='Compile Data'!C320 -> 5.866594295 | AS37: ='Compile Data'!C321 -> 5.563231381 | AT37: ='Compile Data'!C322 -> 119.3264463 | AU37: ='Compile Data'!C323 -> 111.9469697 | AV37: ='Compile Data'!C324 -> 12.94420151 | AX37: 261.4633314 | AY37: 261.4633314 | AZ37: 275.6086798 | BB37: 4.610751136 | BC37: 124.8911712 | BD37: 14.14534835 | BE37: 0 | BF37: 17.24571396 | BG37: 249.7808488 | BH37: 12.94420151 | BJ37: 1947 | BK37: ='Compile Data'!D313 -> 15.06728003 | BL37: ='Compile Data'!D314 -> 11.12151921 | BM37: ='Compile Data'!D315 -> 0 | BN37: ='Compile Data'!D316 -> 0 | BO37: ='Compile Data'!D317 -> 0 | BP37: ='Compile Data'!D318 -> 0 | BQ37: ='Compile Data'!D319 -> 5.733467836 | BR37: ='Compile Data'!D320 -> 5.69865787 | BS37: ='Compile Data'!D321 -> 25.18913568 | BT37: ='Compile Data'!D322 -> 127.5369545 | BU37: ='Compile Data'!D323 -> 118.6748378 | BV37: ='Compile Data'!D324 -> 12.5387108 | BX37: 295.3717645 | BY37: 295.3717645 | BZ37: 321.5605637 | CB37: 11.12151921 | CC37: 131.2135486 | CD37: 26.18879924 | CE37: 0 | CF37: 36.62126138 | CG37: 283.9396388 | CH37: 12.5387108 | CJ37: 1947 | CK37: ='Compile Data'!E313 -> 0 | CL37: ='Compile Data'!E314 -> 0 | CM37: ='Compile Data'!E315 -> 0 | CN37: ='Compile Data'!E316 -> 0 | CO37: ='Compile Data'!E317 -> 0 | CP37: ='Compile Data'!E318 -> 0 | CQ37: ='Compile Data'!E319 -> 0 | CR37: ='Compile Data'!E320 -> 0 | CS37: ='Compile Data'!E321 -> 0 | CT37: ='Compile Data'!E322 -> 0 | CU37: ='Compile Data'!E323 -> 0 | CV37: ='Compile Data'!E324 -> 0 | CX37: 0 | CY37: 0 | CZ37: 0 | DB37: 0 | DC37: 0 | DD37: 0 | DE37: 0 | DF37: 0 | DG37: 0 | DH37: 0 | DJ37: 1947 | DK37: ='Compile Data'!F313 -> 0 | DL37: ='Compile Data'!F314 -> 0 | DM37: ='Compile Data'!F315 -> 0 | DN37: ='Compile Data'!F316 -> 0 | DO37: ='Compile Data'!F317 -> 0 | DP37: ='Compile Data'!F318 -> 0 | DQ37: ='Compile Data'!F319 -> 0 | DR37: ='Compile Data'!F320 -> 0 | DS37: ='Compile Data'!F321 -> 0 | DT37: ='Compile Data'!F322 -> 0 | DU37: ='Compile Data'!F323 -> 0 | DV37: ='Compile Data'!F324 -> 0 | DX37: 0 | DY37: 0 | DZ37: 0 | EB37: 0 | EC37: 0 | ED37: 0 | EE37: 0 | EF37: 0 | EG37: 0 | EH37: 0
A38: 1923-11-30 | B38: =INDIRECT(CONCATENATE("'",B$1,"'!",B$4,(YEAR($A38)-1921)*12+MONTH($A38)+3+IF(ISNUMBER(FIND("PRV",B$6)),1,0)))*IF(AND(B$3>0,TRIM(B$9)="CFS"),Conv_Flags!$C38,1) -> 0 | C38: =INDIRECT(CONCATENATE("'",C$1,"'!",C$4,(YEAR($A38)-1921)*12+MONTH($A38)+3+IF(ISNUMBER(FIND("PRV",C$6)),1,0)))*IF(AND(C$3>0,TRIM(C$9)="CFS"),Conv_Flags!$C38,1) -> 20.67125165 | D38: =INDIRECT(CONCATENATE("'",D$1,"'!",D$4,(YEAR($A38)-1921)*12+MONTH($A38)+3+IF(ISNUMBER(FIND("PRV",D$6)),1,0)))*IF(AND(D$3>0,TRIM(D$9)="CFS"),Conv_Flags!$C38,1) -> 20.67125165 | E38: =INDIRECT(CONCATENATE("'",E$1,"'!",E$4,(YEAR($A38)-1921)*12+MONTH($A38)+3+IF(ISNUMBER(FIND("PRV",E$6)),1,0)))*IF(AND(E$3>0,TRIM(E$9)="CFS"),Conv_Flags!$C38,1) -> 0 | F38: =INDIRECT(CONCATENATE("'",F$1,"'!",F$4,(YEAR($A38)-1921)*12+MONTH($A38)+3+IF(ISNUMBER(FIND("PRV",F$6)),1,0)))*IF(AND(F$3>0,TRIM(F$9)="CFS"),Conv_Flags!$C38,1) -> 0 | J38: 1948 | K38: =B325 -> 0 | L38: =B326 -> 0 | M38: =B327 -> 0 | N38: =B328 -> 0 | O38: =B329 -> 0 | P38: =B330 -> 0 | Q38: =B331 -> 0 | R38: =B332 -> 0 | S38: =B333 -> 0 | T38: =B334 -> 0 | U38: =B335 -> 0 | V38: =B336 -> 0 | X38: 0 | Y38: 0 | Z38: 0 | AB38: 0 | AC38: 0 | AD38: 0 | AE38: 0 | AF38: 0 | AG38: 0 | AH38: 0 | AJ38: 1948 | AK38: ='Compile Data'!C325 -> 0 | AL38: ='Compile Data'!C326 -> 0 | AM38: ='Compile Data'!C327 -> 0 | AN38: ='Compile Data'!C328 -> 0 | AO38: ='Compile Data'!C329 -> 0 | AP38: ='Compile Data'!C330 -> 0 | AQ38: ='Compile Data'!C331 -> 0 | AR38: ='Compile Data'!C332 -> 0 | AS38: ='Compile Data'!C333 -> 0 | AT38: ='Compile Data'!C334 -> 128.0106943 | AU38: ='Compile Data'!C335 -> 0 | AV38: ='Compile Data'!C336 -> 0.8750000001 | AX38: 135.9399205 | AY38: 135.9399205 | AZ38: 128.8856943 | BB38: 0 | BC38: 0.8750000001 | BD38: 0 | BE38: 0 | BF38: 0 | BG38: 128.8856943 | BH38: 7.929226248 | BJ38: 1948 | BK38: ='Compile Data'!D325 -> 0 | BL38: ='Compile Data'!D326 -> 0 | BM38: ='Compile Data'!D327 -> 0 | BN38: ='Compile Data'!D328 -> 0 | BO38: ='Compile Data'!D329 -> 0 | BP38: ='Compile Data'!D330 -> 0 | BQ38: ='Compile Data'!D331 -> 1.342806174 | BR38: ='Compile Data'!D332 -> 0 | BS38: ='Compile Data'!D333 -> 0 | BT38: ='Compile Data'!D334 -> 149.2068345 | BU38: ='Compile Data'!D335 -> 32.43432757 | BV38: ='Compile Data'!D336 -> 16.06058238 | BX38: 228.1648526 | BY38: 228.1648526 | BZ38: 199.0445506 | CB38: 0 | CC38: 58.09364075 | CD38: 0 | CE38: 0 | CF38: 1.342806174 | CG38: 197.7017445 | CH38: 37.63943866 | CJ38: 1948 | CK38: ='Compile Data'!E325 -> 0 | CL38: ='Compile Data'!E326 -> 0 | CM38: ='Compile Data'!E327 -> 0 | CN38: ='Compile Data'!E328 -> 0 | CO38: ='Compile Data'!E329 -> 0 | CP38: ='Compile Data'!E330 -> 0 | CQ38: ='Compile Data'!E331 -> 0 | CR38: ='Compile Data'!E332 -> 0 | CS38: ='Compile Data'!E333 -> 0 | CT38: ='Compile Data'!E334 -> 0 | CU38: ='Compile Data'!E335 -> 0 | CV38: ='Compile Data'!E336 -> 0 | CX38: 0 | CY38: 0 | CZ38: 0 | DB38: 0 | DC38: 0 | DD38: 0 | DE38: 0 | DF38: 0 | DG38: 0 | DH38: 0 | DJ38: 1948 | DK38: ='Compile Data'!F325 -> 0 | DL38: ='Compile Data'!F326 -> 0 | DM38: ='Compile Data'!F327 -> 0 | DN38: ='Compile Data'!F328 -> 0 | DO38: ='Compile Data'!F329 -> 0 | DP38: ='Compile Data'!F330 -> 0 | DQ38: ='Compile Data'!F331 -> 0 | DR38: ='Compile Data'!F332 -> 0 | DS38: ='Compile Data'!F333 -> 0 | DT38: ='Compile Data'!F334 -> 0 | DU38: ='Compile Data'!F335 -> 0 | DV38: ='Compile Data'!F336 -> 0 | DX38: 0 | DY38: 0 | DZ38: 0 | EB38: 0 | EC38: 0 | ED38: 0 | EE38: 0 | EF38: 0 | EG38: 0 | EH38: 0
A39: 1923-12-31 | B39: =INDIRECT(CONCATENATE("'",B$1,"'!",B$4,(YEAR($A39)-1921)*12+MONTH($A39)+3+IF(ISNUMBER(FIND("PRV",B$6)),1,0)))*IF(AND(B$3>0,TRIM(B$9)="CFS"),Conv_Flags!$C39,1) -> 0 | C39: =INDIRECT(CONCATENATE("'",C$1,"'!",C$4,(YEAR($A39)-1921)*12+MONTH($A39)+3+IF(ISNUMBER(FIND("PRV",C$6)),1,0)))*IF(AND(C$3>0,TRIM(C$9)="CFS"),Conv_Flags!$C39,1) -> 16.57612701 | D39: =INDIRECT(CONCATENATE("'",D$1,"'!",D$4,(YEAR($A39)-1921)*12+MONTH($A39)+3+IF(ISNUMBER(FIND("PRV",D$6)),1,0)))*IF(AND(D$3>0,TRIM(D$9)="CFS"),Conv_Flags!$C39,1) -> 16.57612701 | E39: =INDIRECT(CONCATENATE("'",E$1,"'!",E$4,(YEAR($A39)-1921)*12+MONTH($A39)+3+IF(ISNUMBER(FIND("PRV",E$6)),1,0)))*IF(AND(E$3>0,TRIM(E$9)="CFS"),Conv_Flags!$C39,1) -> 0 | F39: =INDIRECT(CONCATENATE("'",F$1,"'!",F$4,(YEAR($A39)-1921)*12+MONTH($A39)+3+IF(ISNUMBER(FIND("PRV",F$6)),1,0)))*IF(AND(F$3>0,TRIM(F$9)="CFS"),Conv_Flags!$C39,1) -> 0 | J39: 1949 | K39: =B337 -> 0 | L39: =B338 -> 0 | M39: =B339 -> 0 | N39: =B340 -> 0 | O39: =B341 -> 0 | P39: =B342 -> 0 | Q39: =B343 -> 0 | R39: =B344 -> 0 | S39: =B345 -> 0 | T39: =B346 -> 0 | U39: =B347 -> 0 | V39: =B348 -> 0 | X39: 0 | Y39: 0 | Z39: 0 | AB39: 0 | AC39: 0 | AD39: 0 | AE39: 0 | AF39: 0 | AG39: 0 | AH39: 0 | AJ39: 1949 | AK39: ='Compile Data'!C337 -> 0 | AL39: ='Compile Data'!C338 -> 7.054226248 | AM39: ='Compile Data'!C339 -> 0 | AN39: ='Compile Data'!C340 -> 0 | AO39: ='Compile Data'!C341 -> 0 | AP39: ='Compile Data'!C342 -> 0 | AQ39: ='Compile Data'!C343 -> 1.989215696 | AR39: ='Compile Data'!C344 -> 11.76834757 | AS39: ='Compile Data'!C345 -> 2.481634965 | AT39: ='Compile Data'!C346 -> 57.83884298 | AU39: ='Compile Data'!C347 -> 118.6628613 | AV39: ='Compile Data'!C348 -> 58.70050997 | AX39: 259.7519627 | AY39: 259.7519627 | AZ39: 258.4956387 | BB39: 7.054226248 | BC39: 185.6739215 | BD39: 7.054226248 | BE39: 0 | BF39: 16.23919823 | BG39: 237.6838492 | BH39: 67.0110602 | BJ39: 1949 | BK39: ='Compile Data'!D337 -> 9.598730797 | BL39: ='Compile Data'!D338 -> 11.98012548 | BM39: ='Compile Data'!D339 -> 7.541445669 | BN39: ='Compile Data'!D340 -> 0 | BO39: ='Compile Data'!D341 -> 0 | BP39: ='Compile Data'!D342 -> 0 | BQ39: ='Compile Data'!D343 -> 1.923000322 | BR39: ='Compile Data'!D344 -> 16.28376342 | BS39: ='Compile Data'!D345 -> 2.481634965 | BT39: ='Compile Data'!D346 -> 57.83884298 | BU39: ='Compile Data'!D347 -> 119.4243661 | BV39: ='Compile Data'!D348 -> 76.47030849 | BX39: 435.2523059 | BY39: 435.2523059 | BZ39: 303.5422182 | CB39: 19.52157115 | CC39: 279.2469724 | CD39: 29.12030194 | CE39: 7.541445669 | CF39: 20.68839871 | CG39: 256.2151526 | CH39: 237.3006981 | CJ39: 1949 | CK39: ='Compile Data'!E337 -> 0 | CL39: ='Compile Data'!E338 -> 0 | CM39: ='Compile Data'!E339 -> 0 | CN39: ='Compile Data'!E340 -> 0 | CO39: ='Compile Data'!E341 -> 0 | CP39: ='Compile Data'!E342 -> 0 | CQ39: ='Compile Data'!E343 -> 0 | CR39: ='Compile Data'!E344 -> 0 | CS39: ='Compile Data'!E345 -> 0 | CT39: ='Compile Data'!E346 -> 0 | CU39: ='Compile Data'!E347 -> 0 | CV39: ='Compile Data'!E348 -> 0 | CX39: 0 | CY39: 0 | CZ39: 0 | DB39: 0 | DC39: 0 | DD39: 0 | DE39: 0 | DF39: 0 | DG39: 0 | DH39: 0 | DJ39: 1949 | DK39: ='Compile Data'!F337 -> 0 | DL39: ='Compile Data'!F338 -> 0 | DM39: ='Compile Data'!F339 -> 0 | DN39: ='Compile Data'!F340 -> 0 | DO39: ='Compile Data'!F341 -> 0 | DP39: ='Compile Data'!F342 -> 0 | DQ39: ='Compile Data'!F343 -> 0 | DR39: ='Compile Data'!F344 -> 0 | DS39: ='Compile Data'!F345 -> 0 | DT39: ='Compile Data'!F346 -> 0 | DU39: ='Compile Data'!F347 -> 0 | DV39: ='Compile Data'!F348 -> 0 | DX39: 0 | DY39: 0 | DZ39: 0 | EB39: 0 | EC39: 0 | ED39: 0 | EE39: 0 | EF39: 0 | EG39: 0 | EH39: 0
A40: 1924-01-31 | B40: =INDIRECT(CONCATENATE("'",B$1,"'!",B$4,(YEAR($A40)-1921)*12+MONTH($A40)+3+IF(ISNUMBER(FIND("PRV",B$6)),1,0)))*IF(AND(B$3>0,TRIM(B$9)="CFS"),Conv_Flags!$C40,1) -> 0 | C40: =INDIRECT(CONCATENATE("'",C$1,"'!",C$4,(YEAR($A40)-1921)*12+MONTH($A40)+3+IF(ISNUMBER(FIND("PRV",C$6)),1,0)))*IF(AND(C$3>0,TRIM(C$9)="CFS"),Conv_Flags!$C40,1) -> 0 | D40: =INDIRECT(CONCATENATE("'",D$1,"'!",D$4,(YEAR($A40)-1921)*12+MONTH($A40)+3+IF(ISNUMBER(FIND("PRV",D$6)),1,0)))*IF(AND(D$3>0,TRIM(D$9)="CFS"),Conv_Flags!$C40,1) -> 0 | E40: =INDIRECT(CONCATENATE("'",E$1,"'!",E$4,(YEAR($A40)-1921)*12+MONTH($A40)+3+IF(ISNUMBER(FIND("PRV",E$6)),1,0)))*IF(AND(E$3>0,TRIM(E$9)="CFS"),Conv_Flags!$C40,1) -> 0 | F40: =INDIRECT(CONCATENATE("'",F$1,"'!",F$4,(YEAR($A40)-1921)*12+MONTH($A40)+3+IF(ISNUMBER(FIND("PRV",F$6)),1,0)))*IF(AND(F$3>0,TRIM(F$9)="CFS"),Conv_Flags!$C40,1) -> 0 | J40: 1950 | K40: =B349 -> 0 | L40: =B350 -> 0 | M40: =B351 -> 0 | N40: =B352 -> 0 | O40: =B353 -> 0 | P40: =B354 -> 0 | Q40: =B355 -> 0 | R40: =B356 -> 0 | S40: =B357 -> 0 | T40: =B358 -> 0 | U40: =B359 -> 0 | V40: =B360 -> 0 | X40: 0 | Y40: 0 | Z40: 0 | AB40: 0 | AC40: 0 | AD40: 0 | AE40: 0 | AF40: 0 | AG40: 0 | AH40: 0 | AJ40: 1950 | AK40: ='Compile Data'!C349 -> 8.310550233 | AL40: ='Compile Data'!C350 -> 0 | AM40: ='Compile Data'!C351 -> 0 | AN40: ='Compile Data'!C352 -> 0 | AO40: ='Compile Data'!C353 -> 0 | AP40: ='Compile Data'!C354 -> 0.186477755 | AQ40: ='Compile Data'!C355 -> 10.00561138 | AR40: ='Compile Data'!C356 -> 24.15038132 | AS40: ='Compile Data'!C357 -> 2.5 | AT40: ='Compile Data'!C358 -> 50.79268293 | AU40: ='Compile Data'!C359 -> 6.768246755 | AV40: ='Compile Data'!C360 -> 3.575827563 | AX40: 99.83989868 | AY40: 99.83989868 | AZ40: 106.2897779 | BB40: 0.186477755 | BC40: 12.2047453 | BD40: 8.310550233 | BE40: 0 | BF40: 36.84247045 | BG40: 63.63675725 | BH40: 5.436498545 | BJ40: 1950 | BK40: ='Compile Data'!D349 -> 83.35229783 | BL40: ='Compile Data'!D350 -> 77.47809173 | BM40: ='Compile Data'!D351 -> 0 | BN40: ='Compile Data'!D352 -> 0 | BO40: ='Compile Data'!D353 -> 0 | BP40: ='Compile Data'!D354 -> 0.1874550485 | BQ40: ='Compile Data'!D355 -> 10.042512 | BR40: ='Compile Data'!D356 -> 37.97568715 | BS40: ='Compile Data'!D357 -> 20.66339288 | BT40: ='Compile Data'!D358 -> 66.92161535 | BU40: ='Compile Data'!D359 -> 36.64806751 | BV40: ='Compile Data'!D360 -> 15.11251812 | BX40: 191.7812481 | BY40: 191.7812481 | BZ40: 348.3816376 | CB40: 77.66554678 | CC40: 54.25058563 | CD40: 160.8303896 | CE40: 0 | CF40: 68.86904709 | CG40: 139.3455939 | CH40: 19.34251812 | CJ40: 1950 | CK40: ='Compile Data'!E349 -> 0 | CL40: ='Compile Data'!E350 -> 0 | CM40: ='Compile Data'!E351 -> 0 | CN40: ='Compile Data'!E352 -> 0 | CO40: ='Compile Data'!E353 -> 0 | CP40: ='Compile Data'!E354 -> 0 | CQ40: ='Compile Data'!E355 -> 0 | CR40: ='Compile Data'!E356 -> 0 | CS40: ='Compile Data'!E357 -> 0 | CT40: ='Compile Data'!E358 -> 0 | CU40: ='Compile Data'!E359 -> 0 | CV40: ='Compile Data'!E360 -> 0 | CX40: 0 | CY40: 0 | CZ40: 0 | DB40: 0 | DC40: 0 | DD40: 0 | DE40: 0 | DF40: 0 | DG40: 0 | DH40: 0 | DJ40: 1950 | DK40: ='Compile Data'!F349 -> 0 | DL40: ='Compile Data'!F350 -> 0 | DM40: ='Compile Data'!F351 -> 0 | DN40: ='Compile Data'!F352 -> 0 | DO40: ='Compile Data'!F353 -> 0 | DP40: ='Compile Data'!F354 -> 0 | DQ40: ='Compile Data'!F355 -> 0 | DR40: ='Compile Data'!F356 -> 0 | DS40: ='Compile Data'!F357 -> 0 | DT40: ='Compile Data'!F358 -> 0 | DU40: ='Compile Data'!F359 -> 0 | DV40: ='Compile Data'!F360 -> 0 | DX40: 0 | DY40: 0 | DZ40: 0 | EB40: 0 | EC40: 0 | ED40: 0 | EE40: 0 | EF40: 0 | EG40: 0 | EH40: 0
A41: 1924-02-29 | B41: =INDIRECT(CONCATENATE("'",B$1,"'!",B$4,(YEAR($A41)-1921)*12+MONTH($A41)+3+IF(ISNUMBER(FIND("PRV",B$6)),1,0)))*IF(AND(B$3>0,TRIM(B$9)="CFS"),Conv_Flags!$C41,1) -> 0 | C41: =INDIRECT(CONCATENATE("'",C$1,"'!",C$4,(YEAR($A41)-1921)*12+MONTH($A41)+3+IF(ISNUMBER(FIND("PRV",C$6)),1,0)))*IF(AND(C$3>0,TRIM(C$9)="CFS"),Conv_Flags!$C41,1) -> 0 | D41: =INDIRECT(CONCATENATE("'",D$1,"'!",D$4,(YEAR($A41)-1921)*12+MONTH($A41)+3+IF(ISNUMBER(FIND("PRV",D$6)),1,0)))*IF(AND(D$3>0,TRIM(D$9)="CFS"),Conv_Flags!$C41,1) -> 0 | E41: =INDIRECT(CONCATENATE("'",E$1,"'!",E$4,(YEAR($A41)-1921)*12+MONTH($A41)+3+IF(ISNUMBER(FIND("PRV",E$6)),1,0)))*IF(AND(E$3>0,TRIM(E$9)="CFS"),Conv_Flags!$C41,1) -> 0 | F41: =INDIRECT(CONCATENATE("'",F$1,"'!",F$4,(YEAR($A41)-1921)*12+MONTH($A41)+3+IF(ISNUMBER(FIND("PRV",F$6)),1,0)))*IF(AND(F$3>0,TRIM(F$9)="CFS"),Conv_Flags!$C41,1) -> 0 | J41: 1951 | K41: =B361 -> 0 | L41: =B362 -> 0 | M41: =B363 -> 0 | N41: =B364 -> 0 | O41: =B365 -> 0 | P41: =B366 -> 0 | Q41: =B367 -> 0 | R41: =B368 -> 0 | S41: =B369 -> 0 | T41: =B370 -> 0 | U41: =B371 -> 0 | V41: =B372 -> 0 | X41: 0 | Y41: 0 | Z41: 0 | AB41: 0 | AC41: 0 | AD41: 0 | AE41: 0 | AF41: 0 | AG41: 0 | AH41: 0 | AJ41: 1951 | AK41: ='Compile Data'!C361 -> 1.860670982 | AL41: ='Compile Data'!C362 -> 0 | AM41: ='Compile Data'!C363 -> 0 | AN41: ='Compile Data'!C364 -> 0 | AO41: ='Compile Data'!C365 -> 0 | AP41: ='Compile Data'!C366 -> 0 | AQ41: ='Compile Data'!C367 -> 0 | AR41: ='Compile Data'!C368 -> 0 | AS41: ='Compile Data'!C369 -> 39.05548261 | AT41: ='Compile Data'!C370 -> 40.30487805 | AU41: ='Compile Data'!C371 -> 35.80204469 | AV41: ='Compile Data'!C372 -> 24.37981088 | AX41: 147.1722162 | AY41: 147.1722162 | AZ41: 141.4028872 | BB41: 0 | BC41: 64.41185556 | BD41: 1.860670982 | BE41: 0 | BF41: 39.05548261 | BG41: 139.5422162 | BH41: 30.34981088 | BJ41: 1951 | BK41: ='Compile Data'!D361 -> 2.49 | BL41: ='Compile Data'!D362 -> 1.74 | BM41: ='Compile Data'!D363 -> 0 | BN41: ='Compile Data'!D364 -> 0 | BO41: ='Compile Data'!D365 -> 0 | BP41: ='Compile Data'!D366 -> 0 | BQ41: ='Compile Data'!D367 -> 0 | BR41: ='Compile Data'!D368 -> 0 | BS41: ='Compile Data'!D369 -> 60.15070158 | BT41: ='Compile Data'!D370 -> 40.30487805 | BU41: ='Compile Data'!D371 -> 36.6680761 | BV41: ='Compile Data'!D372 -> 22.24549402 | BX41: 165.2591498 | BY41: 165.2591498 | BZ41: 163.5991498 | CB41: 1.74 | CC41: 61.40357012 | CD41: 4.23 | CE41: 0 | CF41: 60.15070158 | CG41: 159.3691498 | CH41: 26.47549402 | CJ41: 1951 | CK41: ='Compile Data'!E361 -> 0 | CL41: ='Compile Data'!E362 -> 0 | CM41: ='Compile Data'!E363 -> 0 | CN41: ='Compile Data'!E364 -> 0 | CO41: ='Compile Data'!E365 -> 0 | CP41: ='Compile Data'!E366 -> 0 | CQ41: ='Compile Data'!E367 -> 0 | CR41: ='Compile Data'!E368 -> 0 | CS41: ='Compile Data'!E369 -> 0 | CT41: ='Compile Data'!E370 -> 0 | CU41: ='Compile Data'!E371 -> 0 | CV41: ='Compile Data'!E372 -> 0 | CX41: 0 | CY41: 0 | CZ41: 0 | DB41: 0 | DC41: 0 | DD41: 0 | DE41: 0 | DF41: 0 | DG41: 0 | DH41: 0 | DJ41: 1951 | DK41: ='Compile Data'!F361 -> 0 | DL41: ='Compile Data'!F362 -> 0 | DM41: ='Compile Data'!F363 -> 0 | DN41: ='Compile Data'!F364 -> 0 | DO41: ='Compile Data'!F365 -> 0 | DP41: ='Compile Data'!F366 -> 0 | DQ41: ='Compile Data'!F367 -> 0 | DR41: ='Compile Data'!F368 -> 0 | DS41: ='Compile Data'!F369 -> 0 | DT41: ='Compile Data'!F370 -> 0 | DU41: ='Compile Data'!F371 -> 0 | DV41: ='Compile Data'!F372 -> 0 | DX41: 0 | DY41: 0 | DZ41: 0 | EB41: 0 | EC41: 0 | ED41: 0 | EE41: 0 | EF41: 0 | EG41: 0 | EH41: 0
A42: 1924-03-31 | B42: =INDIRECT(CONCATENATE("'",B$1,"'!",B$4,(YEAR($A42)-1921)*12+MONTH($A42)+3+IF(ISNUMBER(FIND("PRV",B$6)),1,0)))*IF(AND(B$3>0,TRIM(B$9)="CFS"),Conv_Flags!$C42,1) -> 0 | C42: =INDIRECT(CONCATENATE("'",C$1,"'!",C$4,(YEAR($A42)-1921)*12+MONTH($A42)+3+IF(ISNUMBER(FIND("PRV",C$6)),1,0)))*IF(AND(C$3>0,TRIM(C$9)="CFS"),Conv_Flags!$C42,1) -> 3.094488338 | D42: =INDIRECT(CONCATENATE("'",D$1,"'!",D$4,(YEAR($A42)-1921)*12+MONTH($A42)+3+IF(ISNUMBER(FIND("PRV",D$6)),1,0)))*IF(AND(D$3>0,TRIM(D$9)="CFS"),Conv_Flags!$C42,1) -> 3.092736957 | E42: =INDIRECT(CONCATENATE("'",E$1,"'!",E$4,(YEAR($A42)-1921)*12+MONTH($A42)+3+IF(ISNUMBER(FIND("PRV",E$6)),1,0)))*IF(AND(E$3>0,TRIM(E$9)="CFS"),Conv_Flags!$C42,1) -> 0 | F42: =INDIRECT(CONCATENATE("'",F$1,"'!",F$4,(YEAR($A42)-1921)*12+MONTH($A42)+3+IF(ISNUMBER(FIND("PRV",F$6)),1,0)))*IF(AND(F$3>0,TRIM(F$9)="CFS"),Conv_Flags!$C42,1) -> 0 | J42: 1952 | K42: =B373 -> 0 | L42: =B374 -> 0 | M42: =B375 -> 0 | N42: =B376 -> 0 | O42: =B377 -> 0 | P42: =B378 -> 0 | Q42: =B379 -> 0 | R42: =B380 -> 0 | S42: =B381 -> 0 | T42: =B382 -> 0 | U42: =B383 -> 0 | V42: =B384 -> 0 | X42: 0 | Y42: 0 | Z42: 0 | AB42: 0 | AC42: 0 | AD42: 0 | AE42: 0 | AF42: 0 | AG42: 0 | AH42: 0 | AJ42: 1952 | AK42: ='Compile Data'!C373 -> 4.23 | AL42: ='Compile Data'!C374 -> 1.74 | AM42: ='Compile Data'!C375 -> 1.66 | AN42: ='Compile Data'!C376 -> 0 | AO42: ='Compile Data'!C377 -> 0 | AP42: ='Compile Data'!C378 -> 0 | AQ42: ='Compile Data'!C379 -> 0 | AR42: ='Compile Data'!C380 -> 0 | AS42: ='Compile Data'!C381 -> 1.852375478 | AT42: ='Compile Data'!C382 -> 2.345336251 | AU42: ='Compile Data'!C383 -> 1.951234759 | AV42: ='Compile Data'!C384 -> 28.39260313 | AX42: 79.97899618 | AY42: 79.97899618 | AZ42: 42.17154962 | BB42: 3.4 | BC42: 57.93004479 | BD42: 7.630000001 | BE42: 1.66 | BF42: 1.852375478 | BG42: 34.54154962 | BH42: 73.8300497 | BJ42: 1952 | BK42: ='Compile Data'!D373 -> 2.49 | BL42: ='Compile Data'!D374 -> 1.74 | BM42: ='Compile Data'!D375 -> 1.66 | BN42: ='Compile Data'!D376 -> 0 | BO42: ='Compile Data'!D377 -> 0 | BP42: ='Compile Data'!D378 -> 0 | BQ42: ='Compile Data'!D379 -> 0 | BR42: ='Compile Data'!D380 -> 0 | BS42: ='Compile Data'!D381 -> 1.852375478 | BT42: ='Compile Data'!D382 -> 2.345336251 | BU42: ='Compile Data'!D383 -> 1.951234759 | BV42: ='Compile Data'!D384 -> 28.39260313 | BX42: 79.97899618 | BY42: 79.97899618 | BZ42: 40.43154962 | CB42: 3.4 | CC42: 57.93004479 | CD42: 5.89 | CE42: 1.66 | CF42: 1.852375478 | CG42: 34.54154962 | CH42: 73.8300497 | CJ42: 1952 | CK42: ='Compile Data'!E373 -> 0 | CL42: ='Compile Data'!E374 -> 0 | CM42: ='Compile Data'!E375 -> 0 | CN42: ='Compile Data'!E376 -> 0 | CO42: ='Compile Data'!E377 -> 0 | CP42: ='Compile Data'!E378 -> 0 | CQ42: ='Compile Data'!E379 -> 0 | CR42: ='Compile Data'!E380 -> 0 | CS42: ='Compile Data'!E381 -> 0 | CT42: ='Compile Data'!E382 -> 0 | CU42: ='Compile Data'!E383 -> 0 | CV42: ='Compile Data'!E384 -> 0 | CX42: 0 | CY42: 0 | CZ42: 0 | DB42: 0 | DC42: 0 | DD42: 0 | DE42: 0 | DF42: 0 | DG42: 0 | DH42: 0 | DJ42: 1952 | DK42: ='Compile Data'!F373 -> 0 | DL42: ='Compile Data'!F374 -> 0 | DM42: ='Compile Data'!F375 -> 0 | DN42: ='Compile Data'!F376 -> 0 | DO42: ='Compile Data'!F377 -> 0 | DP42: ='Compile Data'!F378 -> 0 | DQ42: ='Compile Data'!F379 -> 0 | DR42: ='Compile Data'!F380 -> 0 | DS42: ='Compile Data'!F381 -> 0 | DT42: ='Compile Data'!F382 -> 0 | DU42: ='Compile Data'!F383 -> 0 | DV42: ='Compile Data'!F384 -> 0 | DX42: 0 | DY42: 0 | DZ42: 0 | EB42: 0 | EC42: 0 | ED42: 0 | EE42: 0 | EF42: 0 | EG42: 0 | EH42: 0
A43: 1924-04-30 | B43: =INDIRECT(CONCATENATE("'",B$1,"'!",B$4,(YEAR($A43)-1921)*12+MONTH($A43)+3+IF(ISNUMBER(FIND("PRV",B$6)),1,0)))*IF(AND(B$3>0,TRIM(B$9)="CFS"),Conv_Flags!$C43,1) -> 0 | C43: =INDIRECT(CONCATENATE("'",C$1,"'!",C$4,(YEAR($A43)-1921)*12+MONTH($A43)+3+IF(ISNUMBER(FIND("PRV",C$6)),1,0)))*IF(AND(C$3>0,TRIM(C$9)="CFS"),Conv_Flags!$C43,1) -> 19.71750342 | D43: =INDIRECT(CONCATENATE("'",D$1,"'!",D$4,(YEAR($A43)-1921)*12+MONTH($A43)+3+IF(ISNUMBER(FIND("PRV",D$6)),1,0)))*IF(AND(D$3>0,TRIM(D$9)="CFS"),Conv_Flags!$C43,1) -> 19.96466385 | E43: =INDIRECT(CONCATENATE("'",E$1,"'!",E$4,(YEAR($A43)-1921)*12+MONTH($A43)+3+IF(ISNUMBER(FIND("PRV",E$6)),1,0)))*IF(AND(E$3>0,TRIM(E$9)="CFS"),Conv_Flags!$C43,1) -> 0 | F43: =INDIRECT(CONCATENATE("'",F$1,"'!",F$4,(YEAR($A43)-1921)*12+MONTH($A43)+3+IF(ISNUMBER(FIND("PRV",F$6)),1,0)))*IF(AND(F$3>0,TRIM(F$9)="CFS"),Conv_Flags!$C43,1) -> 0 | J43: 1953 | K43: =B385 -> 0 | L43: =B386 -> 0 | M43: =B387 -> 0 | N43: =B388 -> 0 | O43: =B389 -> 0 | P43: =B390 -> 0 | Q43: =B391 -> 0 | R43: =B392 -> 0 | S43: =B393 -> 0 | T43: =B394 -> 0 | U43: =B395 -> 0 | V43: =B396 -> 0 | X43: 0 | Y43: 0 | Z43: 0 | AB43: 0 | AC43: 0 | AD43: 0 | AE43: 0 | AF43: 0 | AG43: 0 | AH43: 0 | AJ43: 1953 | AK43: ='Compile Data'!C385 -> 27.5862069 | AL43: ='Compile Data'!C386 -> 17.85123967 | AM43: ='Compile Data'!C387 -> 0 | AN43: ='Compile Data'!C388 -> 0 | AO43: ='Compile Data'!C389 -> 0 | AP43: ='Compile Data'!C390 -> 0.1694446963 | AQ43: ='Compile Data'!C391 -> 0 | AR43: ='Compile Data'!C392 -> 0 | AS43: ='Compile Data'!C393 -> 2.157159989 | AT43: ='Compile Data'!C394 -> 2.5 | AU43: ='Compile Data'!C395 -> 1.959800067 | AV43: ='Compile Data'!C396 -> 28.48844168 | AX43: 80.712293 | AY43: 80.712293 | AZ43: 80.712293 | BB43: 18.02068437 | BC43: 58.03444864 | BD43: 45.43744657 | BE43: 0 | BF43: 2.326604686 | BG43: 35.10540173 | BH43: 56.07464857 | BJ43: 1953 | BK43: ='Compile Data'!D385 -> 27.5862069 | BL43: ='Compile Data'!D386 -> 17.85123967 | BM43: ='Compile Data'!D387 -> 0 | BN43: ='Compile Data'!D388 -> 0 | BO43: ='Compile Data'!D389 -> 0 | BP43: ='Compile Data'!D390 -> 0.1694446946 | BQ43: ='Compile Data'!D391 -> 0 | BR43: ='Compile Data'!D392 -> 0 | BS43: ='Compile Data'!D393 -> 2.157159989 | BT43: ='Compile Data'!D394 -> 2.5 | BU43: ='Compile Data'!D395 -> 1.95980001 | BV43: ='Compile Data'!D396 -> 28.48844168 | BX43: 80.71229294 | BY43: 80.71229294 | BZ43: 80.71229294 | CB43: 18.02068436 | CC43: 58.03444858 | CD43: 45.43744657 | CE43: 0 | CF43: 2.326604684 | CG43: 35.10540167 | CH43: 56.07464857 | CJ43: 1953 | CK43: ='Compile Data'!E385 -> 0 | CL43: ='Compile Data'!E386 -> 0 | CM43: ='Compile Data'!E387 -> 0 | CN43: ='Compile Data'!E388 -> 0 | CO43: ='Compile Data'!E389 -> 0 | CP43: ='Compile Data'!E390 -> 0 | CQ43: ='Compile Data'!E391 -> 0 | CR43: ='Compile Data'!E392 -> 0 | CS43: ='Compile Data'!E393 -> 0 | CT43: ='Compile Data'!E394 -> 0 | CU43: ='Compile Data'!E395 -> 0 | CV43: ='Compile Data'!E396 -> 0 | CX43: 0 | CY43: 0 | CZ43: 0 | DB43: 0 | DC43: 0 | DD43: 0 | DE43: 0 | DF43: 0 | DG43: 0 | DH43: 0 | DJ43: 1953 | DK43: ='Compile Data'!F385 -> 0 | DL43: ='Compile Data'!F386 -> 0 | DM43: ='Compile Data'!F387 -> 0 | DN43: ='Compile Data'!F388 -> 0 | DO43: ='Compile Data'!F389 -> 0 | DP43: ='Compile Data'!F390 -> 0 | DQ43: ='Compile Data'!F391 -> 0 | DR43: ='Compile Data'!F392 -> 0 | DS43: ='Compile Data'!F393 -> 0 | DT43: ='Compile Data'!F394 -> 0 | DU43: ='Compile Data'!F395 -> 0 | DV43: ='Compile Data'!F396 -> 0 | DX43: 0 | DY43: 0 | DZ43: 0 | EB43: 0 | EC43: 0 | ED43: 0 | EE43: 0 | EF43: 0 | EG43: 0 | EH43: 0
A44: 1924-05-31 | B44: =INDIRECT(CONCATENATE("'",B$1,"'!",B$4,(YEAR($A44)-1921)*12+MONTH($A44)+3+IF(ISNUMBER(FIND("PRV",B$6)),1,0)))*IF(AND(B$3>0,TRIM(B$9)="CFS"),Conv_Flags!$C44,1) -> 0 | C44: =INDIRECT(CONCATENATE("'",C$1,"'!",C$4,(YEAR($A44)-1921)*12+MONTH($A44)+3+IF(ISNUMBER(FIND("PRV",C$6)),1,0)))*IF(AND(C$3>0,TRIM(C$9)="CFS"),Conv_Flags!$C44,1) -> 23.77447719 | D44: =INDIRECT(CONCATENATE("'",D$1,"'!",D$4,(YEAR($A44)-1921)*12+MONTH($A44)+3+IF(ISNUMBER(FIND("PRV",D$6)),1,0)))*IF(AND(D$3>0,TRIM(D$9)="CFS"),Conv_Flags!$C44,1) -> 23.7638005 | E44: =INDIRECT(CONCATENATE("'",E$1,"'!",E$4,(YEAR($A44)-1921)*12+MONTH($A44)+3+IF(ISNUMBER(FIND("PRV",E$6)),1,0)))*IF(AND(E$3>0,TRIM(E$9)="CFS"),Conv_Flags!$C44,1) -> 0 | F44: =INDIRECT(CONCATENATE("'",F$1,"'!",F$4,(YEAR($A44)-1921)*12+MONTH($A44)+3+IF(ISNUMBER(FIND("PRV",F$6)),1,0)))*IF(AND(F$3>0,TRIM(F$9)="CFS"),Conv_Flags!$C44,1) -> 0 | J44: 1954 | K44: =B397 -> 0 | L44: =B398 -> 0 | M44: =B399 -> 0 | N44: =B400 -> 0 | O44: =B401 -> 0 | P44: =B402 -> 0 | Q44: =B403 -> 0 | R44: =B404 -> 0 | S44: =B405 -> 0 | T44: =B406 -> 0 | U44: =B407 -> 0 | V44: =B408 -> 0 | X44: 0 | Y44: 0 | Z44: 0 | AB44: 0 | AC44: 0 | AD44: =IF(AD$11="AVG",IF(AD$1="INST-VAL",AVERAGE(V43,K44:M44,K44:N44),AVERAGE(K44:N44)),SUM(K44:N44)) -> 0 | AE44: 0 | AF44: 0 | AG44: 0 | AH44: 0 | AJ44: 1954 | AK44: ='Compile Data'!C397 -> 27.5862069 | AL44: ='Compile Data'!C398 -> 0 | AM44: ='Compile Data'!C399 -> 17.85123967 | AN44: ='Compile Data'!C400 -> 0 | AO44: ='Compile Data'!C401 -> 0 | AP44: ='Compile Data'!C402 -> 0 | AQ44: ='Compile Data'!C403 -> 0 | AR44: ='Compile Data'!C404 -> 51.13418223 | AS44: ='Compile Data'!C405 -> 41.04223671 | AT44: ='Compile Data'!C406 -> 70.96589311 | AU44: ='Compile Data'!C407 -> 29.41422492 | AV44: ='Compile Data'!C408 -> 29.5876555 | AX44: 253.8803994 | AY44: 253.8803994 | AZ44: 267.581639 | BB44: 17.85123967 | BC44: 89.07808733 | BD44: 45.43744657 | BE44: 17.85123967 | BF44: 92.17641893 | BG44: 171.0100102 | BH44: 59.6638624 | BJ44: 1954 | BK44: ='Compile Data'!D397 -> 27.5862069 | BL44: ='Compile Data'!D398 -> 0 | BM44: ='Compile Data'!D399 -> 17.85123967 | BN44: ='Compile Data'!D400 -> 0 | BO44: ='Compile Data'!D401 -> 0 | BP44: ='Compile Data'!D402 -> 0 | BQ44: ='Compile Data'!D403 -> 0 | BR44: ='Compile Data'!D404 -> 44.20961918 | BS44: ='Compile Data'!D405 -> 47.96679975 | BT44: ='Compile Data'!D406 -> 70.96589311 | BU44: ='Compile Data'!D407 -> 29.41422492 | BV44: ='Compile Data'!D408 -> 29.5876555 | BX44: 253.8803994 | BY44: 253.8803994 | BZ44: 267.581639 | CB44: 17.85123967 | CC44: 89.07808733 | CD44: =IF(CD$11="AVG",IF(CD$1="INST-VAL",AVERAGE(BV43,BK44:BM44,BK44:BN44),AVERAGE(BK44:BN44)),SUM(BK44:BN44)) -> 45.43744657 | CE44: =IF(CE$11="AVG",IF(CD$1="INST-VAL",AVERAGE(BL44:BN44,BM44:BO44),AVERAGE(BM44:BO44)),SUM(BM44:BO44)) -> 17.85123967 | CF44: =IF(CF$11="AVG",IF(CD$1="INST-VAL",AVERAGE(BO44:BR44,BP44:BS44),AVERAGE(BP44:BS44)),SUM(BP44:BS44)) -> 92.17641893 | CG44: =IF(CG$11="AVG",IF(CD$1="INST-VAL",AVERAGE(BR44:BU44,BS44:BV44),AVERAGE(BS44:BV44)),SUM(BS44:BV44)) -> 177.9345733 | CH44: =IF(CH$11="AVG",IF(CD$1="INST-VAL",AVERAGE(BU44:BV44,BK45,BV44,BK45:BL45),AVERAGE(BV44,BK45:BL45)),SUM(BV44,BK45:BL45)) -> 59.6638624 | CJ44: 1954 | CK44: ='Compile Data'!E397 -> 0 | CL44: ='Compile Data'!E398 -> 0 | CM44: ='Compile Data'!E399 -> 0 | CN44: ='Compile Data'!E400 -> 0 | CO44: ='Compile Data'!E401 -> 0 | CP44: ='Compile Data'!E402 -> 0 | CQ44: ='Compile Data'!E403 -> 0 | CR44: ='Compile Data'!E404 -> 0 | CS44: ='Compile Data'!E405 -> 0 | CT44: ='Compile Data'!E406 -> 0 | CU44: ='Compile Data'!E407 -> 0 | CV44: ='Compile Data'!E408 -> 0 | CX44: 0 | CY44: 0 | CZ44: 0 | DB44: 0 | DC44: 0 | DD44: 0 | DE44: 0 | DF44: 0 | DG44: 0 | DH44: 0 | DJ44: 1954 | DK44: ='Compile Data'!F397 -> 0 | DL44: ='Compile Data'!F398 -> 0 | DM44: ='Compile Data'!F399 -> 0 | DN44: ='Compile Data'!F400 -> 0 | DO44: ='Compile Data'!F401 -> 0 | DP44: ='Compile Data'!F402 -> 0 | DQ44: ='Compile Data'!F403 -> 0 | DR44: ='Compile Data'!F404 -> 0 | DS44: ='Compile Data'!F405 -> 0 | DT44: ='Compile Data'!F406 -> 0 | DU44: ='Compile Data'!F407 -> 0 | DV44: ='Compile Data'!F408 -> 0 | DX44: 0 | DY44: 0 | DZ44: 0 | EB44: 0 | EC44: 0 | ED44: 0 | EE44: 0 | EF44: 0 | EG44: 0 | EH44: 0
A45: 1924-06-30 | B45: =INDIRECT(CONCATENATE("'",B$1,"'!",B$4,(YEAR($A45)-1921)*12+MONTH($A45)+3+IF(ISNUMBER(FIND("PRV",B$6)),1,0)))*IF(AND(B$3>0,TRIM(B$9)="CFS"),Conv_Flags!$C45,1) -> 0 | C45: =INDIRECT(CONCATENATE("'",C$1,"'!",C$4,(YEAR($A45)-1921)*12+MONTH($A45)+3+IF(ISNUMBER(FIND("PRV",C$6)),1,0)))*IF(AND(C$3>0,TRIM(C$9)="CFS"),Conv_Flags!$C45,1) -> 22.55466582 | D45: =INDIRECT(CONCATENATE("'",D$1,"'!",D$4,(YEAR($A45)-1921)*12+MONTH($A45)+3+IF(ISNUMBER(FIND("PRV",D$6)),1,0)))*IF(AND(D$3>0,TRIM(D$9)="CFS"),Conv_Flags!$C45,1) -> 22.54331552 | E45: =INDIRECT(CONCATENATE("'",E$1,"'!",E$4,(YEAR($A45)-1921)*12+MONTH($A45)+3+IF(ISNUMBER(FIND("PRV",E$6)),1,0)))*IF(AND(E$3>0,TRIM(E$9)="CFS"),Conv_Flags!$C45,1) -> 0 | F45: =INDIRECT(CONCATENATE("'",F$1,"'!",F$4,(YEAR($A45)-1921)*12+MONTH($A45)+3+IF(ISNUMBER(FIND("PRV",F$6)),1,0)))*IF(AND(F$3>0,TRIM(F$9)="CFS"),Conv_Flags!$C45,1) -> 0 | J45: 1955 | K45: =B409 -> 0 | L45: =B410 -> 0 | M45: =B411 -> 0 | N45: =B412 -> 0 | O45: =B413 -> 0 | P45: =B414 -> 0 | Q45: =B415 -> 0 | R45: =B416 -> 0 | S45: =B417 -> 0 | T45: =B418 -> 0 | U45: =B419 -> 0 | V45: =B420 -> 0 | X45: 0 | Y45: 0 | Z45: 0 | AB45: 0 | AC45: 0 | AD45: 0 | AE45: 0 | AF45: 0 | AG45: 0 | AH45: 0 | AJ45: 1955 | AK45: ='Compile Data'!C409 -> 30.0762069 | AL45: ='Compile Data'!C410 -> 0 | AM45: ='Compile Data'!C411 -> 1.66 | AN45: ='Compile Data'!C412 -> 0 | AO45: ='Compile Data'!C413 -> 0 | AP45: ='Compile Data'!C414 -> 1.049414212 | AQ45: ='Compile Data'!C415 -> 8.08101806 | AR45: ='Compile Data'!C416 -> 31.68649617 | AS45: ='Compile Data'!C417 -> 30.59783063 | AT45: ='Compile Data'!C418 -> 128.0565784 | AU45: ='Compile Data'!C419 -> 134.0901576 | AV45: ='Compile Data'!C420 -> 65.5116428 | AX45: 543.4348158 | AY45: 543.4348158 | AZ45: 430.8093447 | BB45: 2.709414212 | BC45: 283.0854829 | BD45: 31.7362069 | BE45: 1.66 | BF45: 71.41475907 | BG45: 358.2562094 | BH45: 208.2133208 | BJ45: 1955 | BK45: ='Compile Data'!D409 -> 30.0762069 | BL45: ='Compile Data'!D410 -> 0 | BM45: ='Compile Data'!D411 -> 1.66 | BN45: ='Compile Data'!D412 -> 0 | BO45: ='Compile Data'!D413 -> 0 | BP45: ='Compile Data'!D414 -> 1.043853123 | BQ45: ='Compile Data'!D415 -> 8.038194875 | BR45: ='Compile Data'!D416 -> 31.54284268 | BS45: ='Compile Data'!D417 -> 38.27159168 | BT45: ='Compile Data'!D418 -> 127.862542 | BU45: ='Compile Data'!D419 -> 133.93105 | BV45: ='Compile Data'!D420 -> 66.92247453 | BX45: 551.9759998 | BY45: 551.9759998 | BZ45: 439.3487557 | CB45: 2.703853123 | CC45: 284.337207 | CD45: 31.7362069 | CE45: 1.66 | CF45: 78.89648237 | CG45: 366.9876582 | CH45: 209.6259255 | CJ45: 1955 | CK45: ='Compile Data'!E409 -> 0 | CL45: ='Compile Data'!E410 -> 0 | CM45: ='Compile Data'!E411 -> 0 | CN45: ='Compile Data'!E412 -> 0 | CO45: ='Compile Data'!E413 -> 0 | CP45: ='Compile Data'!E414 -> 0 | CQ45: ='Compile Data'!E415 -> 0 | CR45: ='Compile Data'!E416 -> 0 | CS45: ='Compile Data'!E417 -> 0 | CT45: ='Compile Data'!E418 -> 0 | CU45: ='Compile Data'!E419 -> 0 | CV45: ='Compile Data'!E420 -> 0 | CX45: 0 | CY45: 0 | CZ45: 0 | DB45: 0 | DC45: 0 | DD45: 0 | DE45: 0 | DF45: 0 | DG45: 0 | DH45: 0 | DJ45: 1955 | DK45: ='Compile Data'!F409 -> 0 | DL45: ='Compile Data'!F410 -> 0 | DM45: ='Compile Data'!F411 -> 0 | DN45: ='Compile Data'!F412 -> 0 | DO45: ='Compile Data'!F413 -> 0 | DP45: ='Compile Data'!F414 -> 0 | DQ45: ='Compile Data'!F415 -> 0 | DR45: ='Compile Data'!F416 -> 0 | DS45: ='Compile Data'!F417 -> 0 | DT45: ='Compile Data'!F418 -> 0 | DU45: ='Compile Data'!F419 -> 0 | DV45: ='Compile Data'!F420 -> 0 | DX45: 0 | DY45: 0 | DZ45: 0 | EB45: 0 | EC45: 0 | ED45: 0 | EE45: 0 | EF45: 0 | EG45: 0 | EH45: 0
A46: 1924-07-31 | B46: =INDIRECT(CONCATENATE("'",B$1,"'!",B$4,(YEAR($A46)-1921)*12+MONTH($A46)+3+IF(ISNUMBER(FIND("PRV",B$6)),1,0)))*IF(AND(B$3>0,TRIM(B$9)="CFS"),Conv_Flags!$C46,1) -> 0 | C46: =INDIRECT(CONCATENATE("'",C$1,"'!",C$4,(YEAR($A46)-1921)*12+MONTH($A46)+3+IF(ISNUMBER(FIND("PRV",C$6)),1,0)))*IF(AND(C$3>0,TRIM(C$9)="CFS"),Conv_Flags!$C46,1) -> 142.4755993 | D46: =INDIRECT(CONCATENATE("'",D$1,"'!",D$4,(YEAR($A46)-1921)*12+MONTH($A46)+3+IF(ISNUMBER(FIND("PRV",D$6)),1,0)))*IF(AND(D$3>0,TRIM(D$9)="CFS"),Conv_Flags!$C46,1) -> 142.4624976 | E46: =INDIRECT(CONCATENATE("'",E$1,"'!",E$4,(YEAR($A46)-1921)*12+MONTH($A46)+3+IF(ISNUMBER(FIND("PRV",E$6)),1,0)))*IF(AND(E$3>0,TRIM(E$9)="CFS"),Conv_Flags!$C46,1) -> 0 | F46: =INDIRECT(CONCATENATE("'",F$1,"'!",F$4,(YEAR($A46)-1921)*12+MONTH($A46)+3+IF(ISNUMBER(FIND("PRV",F$6)),1,0)))*IF(AND(F$3>0,TRIM(F$9)="CFS"),Conv_Flags!$C46,1) -> 0 | J46: 1956 | K46: =B421 -> 0 | L46: =B422 -> 0 | M46: =B423 -> 0 | N46: =B424 -> 0 | O46: =B425 -> 0 | P46: =B426 -> 0 | Q46: =B427 -> 0 | R46: =B428 -> 0 | S46: =B429 -> 0 | T46: =B430 -> 0 | U46: =B431 -> 0 | V46: =B432 -> 0 | X46: 0 | Y46: 0 | Z46: 0 | AB46: 0 | AC46: 0 | AD46: 0 | AE46: 0 | AF46: 0 | AG46: 0 | AH46: 0 | AJ46: 1956 | AK46: ='Compile Data'!C421 -> 83.48368251 | AL46: ='Compile Data'!C422 -> 59.21799549 | AM46: ='Compile Data'!C423 -> 1.66 | AN46: ='Compile Data'!C424 -> 0 | AO46: ='Compile Data'!C425 -> 0 | AP46: ='Compile Data'!C426 -> 0 | AQ46: ='Compile Data'!C427 -> 0 | AR46: ='Compile Data'!C428 -> 0 | AS46: ='Compile Data'!C429 -> 2.01210152 | AT46: ='Compile Data'!C430 -> 2.483474617 | AU46: ='Compile Data'!C431 -> 33.14212231 | AV46: ='Compile Data'!C432 -> 28.32930813 | AX46: 83.81824624 | AY46: 83.81824624 | AZ46: 210.3286846 | BB46: 60.87799549 | BC46: 61.47143044 | BD46: 144.361678 | BE46: 1.66 | BF46: 2.01210152 | BG46: 65.96700658 | BH46: 46.1805478 | BJ46: 1956 | BK46: ='Compile Data'!D421 -> 83.48368251 | BL46: ='Compile Data'!D422 -> 59.21976841 | BM46: ='Compile Data'!D423 -> 1.66 | BN46: ='Compile Data'!D424 -> 0 | BO46: ='Compile Data'!D425 -> 0 | BP46: ='Compile Data'!D426 -> 0 | BQ46: ='Compile Data'!D427 -> 0 | BR46: ='Compile Data'!D428 -> 0 | BS46: ='Compile Data'!D429 -> 2.01210152 | BT46: ='Compile Data'!D430 -> 2.483474617 | BU46: ='Compile Data'!D431 -> 33.14212231 | BV46: ='Compile Data'!D432 -> 28.32930813 | BX46: 111.4044531 | BY46: 111.4044531 | BZ46: 210.3304575 | CB46: 60.87976841 | CC46: 89.05763734 | CD46: 144.3634509 | CE46: 1.66 | CF46: 2.01210152 | CG46: 65.96700658 | CH46: 73.7667547 | CJ46: 1956 | CK46: ='Compile Data'!E421 -> 0 | CL46: ='Compile Data'!E422 -> 0 | CM46: ='Compile Data'!E423 -> 0 | CN46: ='Compile Data'!E424 -> 0 | CO46: ='Compile Data'!E425 -> 0 | CP46: ='Compile Data'!E426 -> 0 | CQ46: ='Compile Data'!E427 -> 0 | CR46: ='Compile Data'!E428 -> 0 | CS46: ='Compile Data'!E429 -> 0 | CT46: ='Compile Data'!E430 -> 0 | CU46: ='Compile Data'!E431 -> 0 | CV46: ='Compile Data'!E432 -> 0 | CX46: 0 | CY46: 0 | CZ46: 0 | DB46: 0 | DC46: 0 | DD46: 0 | DE46: 0 | DF46: 0 | DG46: 0 | DH46: 0 | DJ46: 1956 | DK46: ='Compile Data'!F421 -> 0 | DL46: ='Compile Data'!F422 -> 0 | DM46: ='Compile Data'!F423 -> 0 | DN46: ='Compile Data'!F424 -> 0 | DO46: ='Compile Data'!F425 -> 0 | DP46: ='Compile Data'!F426 -> 0 | DQ46: ='Compile Data'!F427 -> 0 | DR46: ='Compile Data'!F428 -> 0 | DS46: ='Compile Data'!F429 -> 0 | DT46: ='Compile Data'!F430 -> 0 | DU46: ='Compile Data'!F431 -> 0 | DV46: ='Compile Data'!F432 -> 0 | DX46: 0 | DY46: 0 | DZ46: 0 | EB46: 0 | EC46: 0 | ED46: 0 | EE46: 0 | EF46: 0 | EG46: 0 | EH46: 0
A47: 1924-08-31 | B47: =INDIRECT(CONCATENATE("'",B$1,"'!",B$4,(YEAR($A47)-1921)*12+MONTH($A47)+3+IF(ISNUMBER(FIND("PRV",B$6)),1,0)))*IF(AND(B$3>0,TRIM(B$9)="CFS"),Conv_Flags!$C47,1) -> 0 | C47: =INDIRECT(CONCATENATE("'",C$1,"'!",C$4,(YEAR($A47)-1921)*12+MONTH($A47)+3+IF(ISNUMBER(FIND("PRV",C$6)),1,0)))*IF(AND(C$3>0,TRIM(C$9)="CFS"),Conv_Flags!$C47,1) -> 131.6488782 | D47: =INDIRECT(CONCATENATE("'",D$1,"'!",D$4,(YEAR($A47)-1921)*12+MONTH($A47)+3+IF(ISNUMBER(FIND("PRV",D$6)),1,0)))*IF(AND(D$3>0,TRIM(D$9)="CFS"),Conv_Flags!$C47,1) -> 132.4680825 | E47: =INDIRECT(CONCATENATE("'",E$1,"'!",E$4,(YEAR($A47)-1921)*12+MONTH($A47)+3+IF(ISNUMBER(FIND("PRV",E$6)),1,0)))*IF(AND(E$3>0,TRIM(E$9)="CFS"),Conv_Flags!$C47,1) -> 0 | F47: =INDIRECT(CONCATENATE("'",F$1,"'!",F$4,(YEAR($A47)-1921)*12+MONTH($A47)+3+IF(ISNUMBER(FIND("PRV",F$6)),1,0)))*IF(AND(F$3>0,TRIM(F$9)="CFS"),Conv_Flags!$C47,1) -> 0 | J47: 1957 | K47: =B433 -> 0 | L47: =B434 -> 0 | M47: =B435 -> 0 | N47: =B436 -> 0 | O47: =B437 -> 0 | P47: =B438 -> 0 | Q47: =B439 -> 0 | R47: =B440 -> 0 | S47: =B441 -> 0 | T47: =B442 -> 0 | U47: =B443 -> 0 | V47: =B444 -> 0 | X47: 0 | Y47: 0 | Z47: 0 | AB47: 0 | AC47: 0 | AD47: 0 | AE47: 0 | AF47: 0 | AG47: 0 | AH47: 0 | AJ47: 1957 | AK47: ='Compile Data'!C433 -> 0 | AL47: ='Compile Data'!C434 -> 17.85123967 | AM47: ='Compile Data'!C435 -> 0 | AN47: ='Compile Data'!C436 -> 0 | AO47: ='Compile Data'!C437 -> 0 | AP47: ='Compile Data'!C438 -> 0.8163848132 | AQ47: ='Compile Data'!C439 -> 2.175875765 | AR47: ='Compile Data'!C440 -> 0 | AS47: ='Compile Data'!C441 -> 27.66980861 | AT47: ='Compile Data'!C442 -> 57.83884298 | AU47: ='Compile Data'!C443 -> 9.034372452 | AV47: ='Compile Data'!C444 -> 3.425457912 | AX47: 102.6207425 | AY47: 102.6207425 | AZ47: 118.8119822 | BB47: 18.66762448 | BC47: 12.45983036 | BD47: 17.85123967 | BE47: 0 | BF47: 30.66206919 | BG47: 97.96848195 | BH47: 3.425457912 | BJ47: 1957 | BK47: ='Compile Data'!D433 -> 27.5862069 | BL47: ='Compile Data'!D434 -> 17.85123967 | BM47: ='Compile Data'!D435 -> 0 | BN47: ='Compile Data'!D436 -> 0 | BO47: ='Compile Data'!D437 -> 0 | BP47: ='Compile Data'!D438 -> 0.8163848132 | BQ47: ='Compile Data'!D439 -> 2.175875765 | BR47: ='Compile Data'!D440 -> 0 | BS47: ='Compile Data'!D441 -> 93.34878203 | BT47: ='Compile Data'!D442 -> 75.2131692 | BU47: ='Compile Data'!D443 -> 31.3362069 | BV47: ='Compile Data'!D444 -> 31.22863587 | BX47: 235.7790546 | BY47: 235.7790546 | BZ47: 279.5565011 | CB47: 18.66762448 | CC47: 62.56484277 | CD47: 45.43744657 | CE47: 0 | CF47: 96.34104261 | CG47: 231.126794 | CH47: 31.22863587 | CJ47: 1957 | CK47: ='Compile Data'!E433 -> 0 | CL47: ='Compile Data'!E434 -> 0 | CM47: ='Compile Data'!E435 -> 0 | CN47: ='Compile Data'!E436 -> 0 | CO47: ='Compile Data'!E437 -> 0 | CP47: ='Compile Data'!E438 -> 0 | CQ47: ='Compile Data'!E439 -> 0 | CR47: ='Compile Data'!E440 -> 0 | CS47: ='Compile Data'!E441 -> 0 | CT47: ='Compile Data'!E442 -> 0 | CU47: ='Compile Data'!E443 -> 0 | CV47: ='Compile Data'!E444 -> 0 | CX47: 0 | CY47: 0 | CZ47: 0 | DB47: 0 | DC47: 0 | DD47: 0 | DE47: 0 | DF47: 0 | DG47: 0 | DH47: 0 | DJ47: 1957 | DK47: ='Compile Data'!F433 -> 0 | DL47: ='Compile Data'!F434 -> 0 | DM47: ='Compile Data'!F435 -> 0 | DN47: ='Compile Data'!F436 -> 0 | DO47: ='Compile Data'!F437 -> 0 | DP47: ='Compile Data'!F438 -> 0 | DQ47: ='Compile Data'!F439 -> 0 | DR47: ='Compile Data'!F440 -> 0 | DS47: ='Compile Data'!F441 -> 0 | DT47: ='Compile Data'!F442 -> 0 | DU47: ='Compile Data'!F443 -> 0 | DV47: ='Compile Data'!F444 -> 0 | DX47: 0 | DY47: 0 | DZ47: 0 | EB47: 0 | EC47: 0 | ED47: 0 | EE47: 0 | EF47: 0 | EG47: 0 | EH47: 0
A48: 1924-09-30 | B48: =INDIRECT(CONCATENATE("'",B$1,"'!",B$4,(YEAR($A48)-1921)*12+MONTH($A48)+3+IF(ISNUMBER(FIND("PRV",B$6)),1,0)))*IF(AND(B$3>0,TRIM(B$9)="CFS"),Conv_Flags!$C48,1) -> 0 | C48: =INDIRECT(CONCATENATE("'",C$1,"'!",C$4,(YEAR($A48)-1921)*12+MONTH($A48)+3+IF(ISNUMBER(FIND("PRV",C$6)),1,0)))*IF(AND(C$3>0,TRIM(C$9)="CFS"),Conv_Flags!$C48,1) -> 85.90259969 | D48: =INDIRECT(CONCATENATE("'",D$1,"'!",D$4,(YEAR($A48)-1921)*12+MONTH($A48)+3+IF(ISNUMBER(FIND("PRV",D$6)),1,0)))*IF(AND(D$3>0,TRIM(D$9)="CFS"),Conv_Flags!$C48,1) -> 86.0539226 | E48: =INDIRECT(CONCATENATE("'",E$1,"'!",E$4,(YEAR($A48)-1921)*12+MONTH($A48)+3+IF(ISNUMBER(FIND("PRV",E$6)),1,0)))*IF(AND(E$3>0,TRIM(E$9)="CFS"),Conv_Flags!$C48,1) -> 0 | F48: =INDIRECT(CONCATENATE("'",F$1,"'!",F$4,(YEAR($A48)-1921)*12+MONTH($A48)+3+IF(ISNUMBER(FIND("PRV",F$6)),1,0)))*IF(AND(F$3>0,TRIM(F$9)="CFS"),Conv_Flags!$C48,1) -> 0 | J48: 1958 | K48: =B445 -> 0 | L48: =B446 -> 0 | M48: =B447 -> 0 | N48: =B448 -> 0 | O48: =B449 -> 0 | P48: =B450 -> 0 | Q48: =B451 -> 0 | R48: =B452 -> 0 | S48: =B453 -> 0 | T48: =B454 -> 0 | U48: =B455 -> 0 | V48: =B456 -> 0 | X48: 0 | Y48: 0 | Z48: 0 | AB48: 0 | AC48: 0 | AD48: 0 | AE48: 0 | AF48: 0 | AG48: 0 | AH48: 0 | AJ48: 1958 | AK48: ='Compile Data'!C445 -> 0 | AL48: ='Compile Data'!C446 -> 0 | AM48: ='Compile Data'!C447 -> 1.66 | AN48: ='Compile Data'!C448 -> 0 | AO48: ='Compile Data'!C449 -> 0 | AP48: ='Compile Data'!C450 -> 0 | AQ48: ='Compile Data'!C451 -> 0 | AR48: ='Compile Data'!C452 -> 0 | AS48: ='Compile Data'!C453 -> 0 | AT48: ='Compile Data'!C454 -> 0 | AU48: ='Compile Data'!C455 -> 0 | AV48: ='Compile Data'!C456 -> 27.5862069 | AX48: 73.02365347 | AY48: 73.02365347 | AZ48: 29.2462069 | BB48: 1.66 | BC48: 55.1724138 | BD48: 1.66 | BE48: 1.66 | BF48: 0 | BG48: 27.5862069 | BH48: 73.02365347 | BJ48: 1958 | BK48: ='Compile Data'!D445 -> 0 | BL48: ='Compile Data'!D446 -> 0 | BM48: ='Compile Data'!D447 -> 1.66 | BN48: ='Compile Data'!D448 -> 0 | BO48: ='Compile Data'!D449 -> 0 | BP48: ='Compile Data'!D450 -> 0 | BQ48: ='Compile Data'!D451 -> 0 | BR48: ='Compile Data'!D452 -> 0 | BS48: ='Compile Data'!D453 -> 0 | BT48: ='Compile Data'!D454 -> 0 | BU48: ='Compile Data'!D455 -> 0 | BV48: ='Compile Data'!D456 -> 27.5862069 | BX48: 73.02365347 | BY48: 73.02365347 | BZ48: 29.2462069 | CB48: 1.66 | CC48: 55.1724138 | CD48: 1.66 | CE48: 1.66 | CF48: 0 | CG48: 27.5862069 | CH48: 73.02365347 | CJ48: 1958 | CK48: ='Compile Data'!E445 -> 0 | CL48: ='Compile Data'!E446 -> 0 | CM48: ='Compile Data'!E447 -> 0 | CN48: ='Compile Data'!E448 -> 0 | CO48: ='Compile Data'!E449 -> 0 | CP48: ='Compile Data'!E450 -> 0 | CQ48: ='Compile Data'!E451 -> 0 | CR48: ='Compile Data'!E452 -> 0 | CS48: ='Compile Data'!E453 -> 0 | CT48: ='Compile Data'!E454 -> 0 | CU48: ='Compile Data'!E455 -> 0 | CV48: ='Compile Data'!E456 -> 0 | CX48: 0 | CY48: 0 | CZ48: 0 | DB48: 0 | DC48: 0 | DD48: 0 | DE48: 0 | DF48: 0 | DG48: 0 | DH48: 0 | DJ48: 1958 | DK48: ='Compile Data'!F445 -> 0 | DL48: ='Compile Data'!F446 -> 0 | DM48: ='Compile Data'!F447 -> 0 | DN48: ='Compile Data'!F448 -> 0 | DO48: ='Compile Data'!F449 -> 0 | DP48: ='Compile Data'!F450 -> 0 | DQ48: ='Compile Data'!F451 -> 0 | DR48: ='Compile Data'!F452 -> 0 | DS48: ='Compile Data'!F453 -> 0 | DT48: ='Compile Data'!F454 -> 0 | DU48: ='Compile Data'!F455 -> 0 | DV48: ='Compile Data'!F456 -> 0 | DX48: 0 | DY48: 0 | DZ48: 0 | EB48: 0 | EC48: 0 | ED48: 0 | EE48: 0 | EF48: 0 | EG48: 0 | EH48: 0
A49: 1924-10-31 | B49: =INDIRECT(CONCATENATE("'",B$1,"'!",B$4,(YEAR($A49)-1921)*12+MONTH($A49)+3+IF(ISNUMBER(FIND("PRV",B$6)),1,0)))*IF(AND(B$3>0,TRIM(B$9)="CFS"),Conv_Flags!$C49,1) -> 0 | C49: =INDIRECT(CONCATENATE("'",C$1,"'!",C$4,(YEAR($A49)-1921)*12+MONTH($A49)+3+IF(ISNUMBER(FIND("PRV",C$6)),1,0)))*IF(AND(C$3>0,TRIM(C$9)="CFS"),Conv_Flags!$C49,1) -> 65.15046758 | D49: =INDIRECT(CONCATENATE("'",D$1,"'!",D$4,(YEAR($A49)-1921)*12+MONTH($A49)+3+IF(ISNUMBER(FIND("PRV",D$6)),1,0)))*IF(AND(D$3>0,TRIM(D$9)="CFS"),Conv_Flags!$C49,1) -> 68.37398729 | E49: =INDIRECT(CONCATENATE("'",E$1,"'!",E$4,(YEAR($A49)-1921)*12+MONTH($A49)+3+IF(ISNUMBER(FIND("PRV",E$6)),1,0)))*IF(AND(E$3>0,TRIM(E$9)="CFS"),Conv_Flags!$C49,1) -> 0 | F49: =INDIRECT(CONCATENATE("'",F$1,"'!",F$4,(YEAR($A49)-1921)*12+MONTH($A49)+3+IF(ISNUMBER(FIND("PRV",F$6)),1,0)))*IF(AND(F$3>0,TRIM(F$9)="CFS"),Conv_Flags!$C49,1) -> 0 | J49: 1959 | K49: =B457 -> 0 | L49: =B458 -> 0 | M49: =B459 -> 0 | N49: =B460 -> 0 | O49: =B461 -> 0 | P49: =B462 -> 0 | Q49: =B463 -> 0 | R49: =B464 -> 0 | S49: =B465 -> 0 | T49: =B466 -> 0 | U49: =B467 -> 0 | V49: =B468 -> 0 | X49: 0 | Y49: 0 | Z49: 0 | AB49: 0 | AC49: 0 | AD49: 0 | AE49: 0 | AF49: 0 | AG49: 0 | AH49: 0 | AJ49: 1959 | AK49: ='Compile Data'!C457 -> 27.5862069 | AL49: ='Compile Data'!C458 -> 17.85123967 | AM49: ='Compile Data'!C459 -> 0 | AN49: ='Compile Data'!C460 -> 0 | AO49: ='Compile Data'!C461 -> 0 | AP49: ='Compile Data'!C462 -> 0 | AQ49: ='Compile Data'!C463 -> 17.85123967 | AR49: ='Compile Data'!C464 -> 73.14876034 | AS49: ='Compile Data'!C465 -> 2.5 | AT49: ='Compile Data'!C466 -> 121.7258418 | AU49: ='Compile Data'!C467 -> 52.2332766 | AV49: ='Compile Data'!C468 -> 30.26167366 | AX49: 387.7830662 | AY49: 387.7830662 | AZ49: 343.1582386 | BB49: 17.85123967 | BC49: 132.7838322 | BD49: 45.43744657 | BE49: 0 | BF49: 93.50000001 | BG49: 206.7207921 | BH49: 102.4727081 | BJ49: 1959 | BK49: ='Compile Data'!D457 -> 27.5862069 | BL49: ='Compile Data'!D458 -> 17.85123967 | BM49: ='Compile Data'!D459 -> 0 | BN49: ='Compile Data'!D460 -> 0 | BO49: ='Compile Data'!D461 -> 0 | BP49: ='Compile Data'!D462 -> 0 | BQ49: ='Compile Data'!D463 -> 17.85123967 | BR49: ='Compile Data'!D464 -> 73.14876034 | BS49: ='Compile Data'!D465 -> 2.5 | BT49: ='Compile Data'!D466 -> 121.478473 | BU49: ='Compile Data'!D467 -> 52.23266925 | BV49: ='Compile Data'!D468 -> 30.26167366 | BX49: 387.53509 | BY49: 387.53509 | BZ49: 342.9102624 | CB49: 17.85123967 | CC49: 132.7832248 | CD49: 45.43744657 | CE49: 0 | CF49: 93.50000001 | CG49: 206.4728159 | CH49: 102.4727081 | CJ49: 1959 | CK49: ='Compile Data'!E457 -> 0 | CL49: ='Compile Data'!E458 -> 0 | CM49: ='Compile Data'!E459 -> 0 | CN49: ='Compile Data'!E460 -> 0 | CO49: ='Compile Data'!E461 -> 0 | CP49: ='Compile Data'!E462 -> 0 | CQ49: ='Compile Data'!E463 -> 0 | CR49: ='Compile Data'!E464 -> 0 | CS49: ='Compile Data'!E465 -> 0 | CT49: ='Compile Data'!E466 -> 0 | CU49: ='Compile Data'!E467 -> 0 | CV49: ='Compile Data'!E468 -> 0 | CX49: 0 | CY49: 0 | CZ49: 0 | DB49: 0 | DC49: 0 | DD49: 0 | DE49: 0 | DF49: 0 | DG49: 0 | DH49: 0 | DJ49: 1959 | DK49: ='Compile Data'!F457 -> 0 | DL49: ='Compile Data'!F458 -> 0 | DM49: ='Compile Data'!F459 -> 0 | DN49: ='Compile Data'!F460 -> 0 | DO49: ='Compile Data'!F461 -> 0 | DP49: ='Compile Data'!F462 -> 0 | DQ49: ='Compile Data'!F463 -> 0 | DR49: ='Compile Data'!F464 -> 0 | DS49: ='Compile Data'!F465 -> 0 | DT49: ='Compile Data'!F466 -> 0 | DU49: ='Compile Data'!F467 -> 0 | DV49: ='Compile Data'!F468 -> 0 | DX49: 0 | DY49: 0 | DZ49: 0 | EB49: 0 | EC49: 0 | ED49: 0 | EE49: 0 | EF49: 0 | EG49: 0 | EH49: 0
A50: 1924-11-30 | B50: =INDIRECT(CONCATENATE("'",B$1,"'!",B$4,(YEAR($A50)-1921)*12+MONTH($A50)+3+IF(ISNUMBER(FIND("PRV",B$6)),1,0)))*IF(AND(B$3>0,TRIM(B$9)="CFS"),Conv_Flags!$C50,1) -> 0 | C50: =INDIRECT(CONCATENATE("'",C$1,"'!",C$4,(YEAR($A50)-1921)*12+MONTH($A50)+3+IF(ISNUMBER(FIND("PRV",C$6)),1,0)))*IF(AND(C$3>0,TRIM(C$9)="CFS"),Conv_Flags!$C50,1) -> 68.29205976 | D50: =INDIRECT(CONCATENATE("'",D$1,"'!",D$4,(YEAR($A50)-1921)*12+MONTH($A50)+3+IF(ISNUMBER(FIND("PRV",D$6)),1,0)))*IF(AND(D$3>0,TRIM(D$9)="CFS"),Conv_Flags!$C50,1) -> 68.29297565 | E50: =INDIRECT(CONCATENATE("'",E$1,"'!",E$4,(YEAR($A50)-1921)*12+MONTH($A50)+3+IF(ISNUMBER(FIND("PRV",E$6)),1,0)))*IF(AND(E$3>0,TRIM(E$9)="CFS"),Conv_Flags!$C50,1) -> 0 | F50: =INDIRECT(CONCATENATE("'",F$1,"'!",F$4,(YEAR($A50)-1921)*12+MONTH($A50)+3+IF(ISNUMBER(FIND("PRV",F$6)),1,0)))*IF(AND(F$3>0,TRIM(F$9)="CFS"),Conv_Flags!$C50,1) -> 0 | J50: 1960 | K50: =B469 -> 0 | L50: =B470 -> 0 | M50: =B471 -> 0 | N50: =B472 -> 0 | O50: =B473 -> 0 | P50: =B474 -> 0 | Q50: =B475 -> 0 | R50: =B476 -> 0 | S50: =B477 -> 0 | T50: =B478 -> 0 | U50: =B479 -> 0 | V50: =B480 -> 0 | X50: 0 | Y50: 0 | Z50: 0 | AB50: 0 | AC50: 0 | AD50: 0 | AE50: 0 | AF50: 0 | AG50: 0 | AH50: 0 | AJ50: 1960 | AK50: ='Compile Data'!C469 -> 50.28888193 | AL50: ='Compile Data'!C470 -> 21.9221525 | AM50: ='Compile Data'!C471 -> 17.85123967 | AN50: ='Compile Data'!C472 -> 0 | AO50: ='Compile Data'!C473 -> 0 | AP50: ='Compile Data'!C474 -> 0 | AQ50: ='Compile Data'!C475 -> 8.967206364 | AR50: ='Compile Data'!C476 -> 14.52642902 | AS50: ='Compile Data'!C477 -> 28.90526385 | AT50: ='Compile Data'!C478 -> 129.6720699 | AU50: ='Compile Data'!C479 -> 136.3603454 | AV50: ='Compile Data'!C480 -> 91.26315775 | AX50: 493.1589036 | AY50: 493.1589036 | AZ50: 499.7567464 | BB50: 39.77339217 | BC50: 308.1585231 | BD50: 90.0622741 | BE50: 17.85123967 | BF50: 52.39889924 | BG50: 386.2008369 | BH50: 174.727589 | BJ50: 1960 | BK50: ='Compile Data'!D469 -> 50.28888193 | BL50: ='Compile Data'!D470 -> 21.9221525 | BM50: ='Compile Data'!D471 -> 17.85123967 | BN50: ='Compile Data'!D472 -> 0 | BO50: ='Compile Data'!D473 -> 0 | BP50: ='Compile Data'!D474 -> 0 | BQ50: ='Compile Data'!D475 -> 8.934010525 | BR50: ='Compile Data'!D476 -> 14.47265341 | BS50: ='Compile Data'!D477 -> 37.39026487 | BT50: ='Compile Data'!D478 -> 129.8131022 | BU50: ='Compile Data'!D479 -> 136.5596336 | BV50: ='Compile Data'!D480 -> 91.26315775 | BX50: 497.3885293 | BY50: 497.3885293 | BZ50: 508.4950965 | CB50: 39.77339217 | CC50: 302.8699757 | CD50: 90.0622741 | CE50: 17.85123967 | CF50: 60.7969288 | CG50: 395.0261584 | CH50: 170.2188647 | CJ50: 1960 | CK50: ='Compile Data'!E469 -> 0 | CL50: ='Compile Data'!E470 -> 0 | CM50: ='Compile Data'!E471 -> 0 | CN50: ='Compile Data'!E472 -> 0 | CO50: ='Compile Data'!E473 -> 0 | CP50: ='Compile Data'!E474 -> 0 | CQ50: ='Compile Data'!E475 -> 0 | CR50: ='Compile Data'!E476 -> 0 | CS50: ='Compile Data'!E477 -> 0 | CT50: ='Compile Data'!E478 -> 0 | CU50: ='Compile Data'!E479 -> 0 | CV50: ='Compile Data'!E480 -> 0 | CX50: 0 | CY50: 0 | CZ50: 0 | DB50: 0 | DC50: 0 | DD50: 0 | DE50: 0 | DF50: 0 | DG50: 0 | DH50: 0 | DJ50: 1960 | DK50: ='Compile Data'!F469 -> 0 | DL50: ='Compile Data'!F470 -> 0 | DM50: ='Compile Data'!F471 -> 0 | DN50: ='Compile Data'!F472 -> 0 | DO50: ='Compile Data'!F473 -> 0 | DP50: ='Compile Data'!F474 -> 0 | DQ50: ='Compile Data'!F475 -> 0 | DR50: ='Compile Data'!F476 -> 0 | DS50: ='Compile Data'!F477 -> 0 | DT50: ='Compile Data'!F478 -> 0 | DU50: ='Compile Data'!F479 -> 0 | DV50: ='Compile Data'!F480 -> 0 | DX50: 0 | DY50: 0 | DZ50: 0 | EB50: 0 | EC50: 0 | ED50: 0 | EE50: 0 | EF50: 0 | EG50: 0 | EH50: 0
A51: 1924-12-31 | B51: =INDIRECT(CONCATENATE("'",B$1,"'!",B$4,(YEAR($A51)-1921)*12+MONTH($A51)+3+IF(ISNUMBER(FIND("PRV",B$6)),1,0)))*IF(AND(B$3>0,TRIM(B$9)="CFS"),Conv_Flags!$C51,1) -> 0 | C51: =INDIRECT(CONCATENATE("'",C$1,"'!",C$4,(YEAR($A51)-1921)*12+MONTH($A51)+3+IF(ISNUMBER(FIND("PRV",C$6)),1,0)))*IF(AND(C$3>0,TRIM(C$9)="CFS"),Conv_Flags!$C51,1) -> 3.027654193e-07 | D51: =INDIRECT(CONCATENATE("'",D$1,"'!",D$4,(YEAR($A51)-1921)*12+MONTH($A51)+3+IF(ISNUMBER(FIND("PRV",D$6)),1,0)))*IF(AND(D$3>0,TRIM(D$9)="CFS"),Conv_Flags!$C51,1) -> 4.886122834e-07 | E51: =INDIRECT(CONCATENATE("'",E$1,"'!",E$4,(YEAR($A51)-1921)*12+MONTH($A51)+3+IF(ISNUMBER(FIND("PRV",E$6)),1,0)))*IF(AND(E$3>0,TRIM(E$9)="CFS"),Conv_Flags!$C51,1) -> 0 | F51: =INDIRECT(CONCATENATE("'",F$1,"'!",F$4,(YEAR($A51)-1921)*12+MONTH($A51)+3+IF(ISNUMBER(FIND("PRV",F$6)),1,0)))*IF(AND(F$3>0,TRIM(F$9)="CFS"),Conv_Flags!$C51,1) -> 0 | J51: 1961 | K51: =B481 -> 0 | L51: =B482 -> 0 | M51: =B483 -> 0 | N51: =B484 -> 0 | O51: =B485 -> 0 | P51: =B486 -> 0 | Q51: =B487 -> 0 | R51: =B488 -> 0 | S51: =B489 -> 0 | T51: =B490 -> 0 | U51: =B491 -> 0 | V51: =B492 -> 0 | X51: 0 | Y51: 0 | Z51: 0 | AB51: 0 | AC51: 0 | AD51: 0 | AE51: 0 | AF51: 0 | AG51: 0 | AH51: 0 | AJ51: 1961 | AK51: ='Compile Data'!C481 -> 80.53501995 | AL51: ='Compile Data'!C482 -> 2.929411343 | AM51: ='Compile Data'!C483 -> 0 | AN51: ='Compile Data'!C484 -> 0 | AO51: ='Compile Data'!C485 -> 0 | AP51: ='Compile Data'!C486 -> 0 | AQ51: ='Compile Data'!C487 -> 3.50385534 | AR51: ='Compile Data'!C488 -> 0 | AS51: ='Compile Data'!C489 -> 2.5 | AT51: ='Compile Data'!C490 -> 119.3264463 | AU51: ='Compile Data'!C491 -> 100.1080975 | AV51: ='Compile Data'!C492 -> 40.57686785 | AX51: 266.0152669 | AY51: 266.0152669 | AZ51: 349.4796982 | BB51: 2.929411343 | BC51: 140.6849653 | BD51: 83.46443129 | BE51: 0 | BF51: 6.00385534 | BG51: 262.5114116 | BH51: 40.57686785 | BJ51: 1961 | BK51: ='Compile Data'!D481 -> 75.04718431 | BL51: ='Compile Data'!D482 -> 3.908522631 | BM51: ='Compile Data'!D483 -> 0 | BN51: ='Compile Data'!D484 -> 0 | BO51: ='Compile Data'!D485 -> 0 | BP51: ='Compile Data'!D486 -> 0 | BQ51: ='Compile Data'!D487 -> 4.59406339 | BR51: ='Compile Data'!D488 -> 2.143576032 | BS51: ='Compile Data'!D489 -> 2.5 | BT51: ='Compile Data'!D490 -> 127.0887382 | BU51: ='Compile Data'!D491 -> 112.6492869 | BV51: ='Compile Data'!D492 -> 42.85976569 | BX51: 292.617889 | BY51: 292.617889 | BZ51: 370.7911372 | CB51: 3.908522631 | CC51: 156.2915113 | CD51: 78.95570694 | CE51: 0 | CF51: 9.237639422 | CG51: 285.0977908 | CH51: 43.64222443 | CJ51: 1961 | CK51: ='Compile Data'!E481 -> 0 | CL51: ='Compile Data'!E482 -> 0 | CM51: ='Compile Data'!E483 -> 0 | CN51: ='Compile Data'!E484 -> 0 | CO51: ='Compile Data'!E485 -> 0 | CP51: ='Compile Data'!E486 -> 0 | CQ51: ='Compile Data'!E487 -> 0 | CR51: ='Compile Data'!E488 -> 0 | CS51: ='Compile Data'!E489 -> 0 | CT51: ='Compile Data'!E490 -> 0 | CU51: ='Compile Data'!E491 -> 0 | CV51: ='Compile Data'!E492 -> 0 | CX51: 0 | CY51: 0 | CZ51: 0 | DB51: 0 | DC51: 0 | DD51: 0 | DE51: 0 | DF51: 0 | DG51: 0 | DH51: 0 | DJ51: 1961 | DK51: ='Compile Data'!F481 -> 0 | DL51: ='Compile Data'!F482 -> 0 | DM51: ='Compile Data'!F483 -> 0 | DN51: ='Compile Data'!F484 -> 0 | DO51: ='Compile Data'!F485 -> 0 | DP51: ='Compile Data'!F486 -> 0 | DQ51: ='Compile Data'!F487 -> 0 | DR51: ='Compile Data'!F488 -> 0 | DS51: ='Compile Data'!F489 -> 0 | DT51: ='Compile Data'!F490 -> 0 | DU51: ='Compile Data'!F491 -> 0 | DV51: ='Compile Data'!F492 -> 0 | DX51: 0 | DY51: 0 | DZ51: 0 | EB51: 0 | EC51: 0 | ED51: 0 | EE51: 0 | EF51: 0 | EG51: 0 | EH51: 0
A52: 1925-01-31 | B52: =INDIRECT(CONCATENATE("'",B$1,"'!",B$4,(YEAR($A52)-1921)*12+MONTH($A52)+3+IF(ISNUMBER(FIND("PRV",B$6)),1,0)))*IF(AND(B$3>0,TRIM(B$9)="CFS"),Conv_Flags!$C52,1) -> 0 | C52: =INDIRECT(CONCATENATE("'",C$1,"'!",C$4,(YEAR($A52)-1921)*12+MONTH($A52)+3+IF(ISNUMBER(FIND("PRV",C$6)),1,0)))*IF(AND(C$3>0,TRIM(C$9)="CFS"),Conv_Flags!$C52,1) -> 0 | D52: =INDIRECT(CONCATENATE("'",D$1,"'!",D$4,(YEAR($A52)-1921)*12+MONTH($A52)+3+IF(ISNUMBER(FIND("PRV",D$6)),1,0)))*IF(AND(D$3>0,TRIM(D$9)="CFS"),Conv_Flags!$C52,1) -> 0 | E52: =INDIRECT(CONCATENATE("'",E$1,"'!",E$4,(YEAR($A52)-1921)*12+MONTH($A52)+3+IF(ISNUMBER(FIND("PRV",E$6)),1,0)))*IF(AND(E$3>0,TRIM(E$9)="CFS"),Conv_Flags!$C52,1) -> 0 | F52: =INDIRECT(CONCATENATE("'",F$1,"'!",F$4,(YEAR($A52)-1921)*12+MONTH($A52)+3+IF(ISNUMBER(FIND("PRV",F$6)),1,0)))*IF(AND(F$3>0,TRIM(F$9)="CFS"),Conv_Flags!$C52,1) -> 0 | J52: 1962 | K52: =B493 -> 0 | L52: =B494 -> 0 | M52: =B495 -> 0 | N52: =B496 -> 0 | O52: =B497 -> 0 | P52: =B498 -> 0 | Q52: =B499 -> 0 | R52: =B500 -> 0 | S52: =B501 -> 0 | T52: =B502 -> 0 | U52: =B503 -> 0 | V52: =B504 -> 0 | X52: 0 | Y52: 0 | Z52: 0 | AB52: 0 | AC52: 0 | AD52: 0 | AE52: 0 | AF52: 0 | AG52: 0 | AH52: 0 | AJ52: 1962 | AK52: ='Compile Data'!C493 -> 0 | AL52: ='Compile Data'!C494 -> 0 | AM52: ='Compile Data'!C495 -> 0 | AN52: ='Compile Data'!C496 -> 0 | AO52: ='Compile Data'!C497 -> 0 | AP52: ='Compile Data'!C498 -> 0 | AQ52: ='Compile Data'!C499 -> 0.1594799043 | AR52: ='Compile Data'!C500 -> 9.122941348 | AS52: ='Compile Data'!C501 -> 2.5 | AT52: ='Compile Data'!C502 -> 88.47000074 | AU52: ='Compile Data'!C503 -> 34.3099131 | AV52: ='Compile Data'!C504 -> 8.628894296 | AX52: 144.9703435 | AY52: 144.9703435 | AZ52: 143.1912294 | BB52: 0 | BC52: 44.71792155 | BD52: 0 | BE52: 0 | BF52: 11.78242125 | BG52: 133.9088081 | BH52: 10.40800845 | BJ52: 1962 | BK52: ='Compile Data'!D493 -> 0.7824587374 | BL52: ='Compile Data'!D494 -> 0 | BM52: ='Compile Data'!D495 -> 0 | BN52: ='Compile Data'!D496 -> 0 | BO52: ='Compile Data'!D497 -> 0 | BP52: ='Compile Data'!D498 -> 0 | BQ52: ='Compile Data'!D499 -> 0.08717575019 | BR52: ='Compile Data'!D500 -> 14.5424339 | BS52: ='Compile Data'!D501 -> 2.5 | BT52: ='Compile Data'!D502 -> 88.47000074 | BU52: ='Compile Data'!D503 -> 35.40873128 | BV52: ='Compile Data'!D504 -> 7.345800566 | BX52: 150.7950482 | BY52: 150.7950482 | BZ52: 149.136601 | CB52: 0 | CC52: 45.19543783 | CD52: 0.7824587374 | CE52: 0 | CF52: 17.12960965 | CG52: 133.7245326 | CH52: 9.786706555 | CJ52: 1962 | CK52: ='Compile Data'!E493 -> 0 | CL52: ='Compile Data'!E494 -> 0 | CM52: ='Compile Data'!E495 -> 0 | CN52: ='Compile Data'!E496 -> 0 | CO52: ='Compile Data'!E497 -> 0 | CP52: ='Compile Data'!E498 -> 0 | CQ52: ='Compile Data'!E499 -> 0 | CR52: ='Compile Data'!E500 -> 0 | CS52: ='Compile Data'!E501 -> 0 | CT52: ='Compile Data'!E502 -> 0 | CU52: ='Compile Data'!E503 -> 0 | CV52: ='Compile Data'!E504 -> 0 | CX52: 0 | CY52: 0 | CZ52: 0 | DB52: 0 | DC52: 0 | DD52: 0 | DE52: 0 | DF52: 0 | DG52: 0 | DH52: 0 | DJ52: 1962 | DK52: ='Compile Data'!F493 -> 0 | DL52: ='Compile Data'!F494 -> 0 | DM52: ='Compile Data'!F495 -> 0 | DN52: ='Compile Data'!F496 -> 0 | DO52: ='Compile Data'!F497 -> 0 | DP52: ='Compile Data'!F498 -> 0 | DQ52: ='Compile Data'!F499 -> 0 | DR52: ='Compile Data'!F500 -> 0 | DS52: ='Compile Data'!F501 -> 0 | DT52: ='Compile Data'!F502 -> 0 | DU52: ='Compile Data'!F503 -> 0 | DV52: ='Compile Data'!F504 -> 0 | DX52: 0 | DY52: 0 | DZ52: 0 | EB52: 0 | EC52: 0 | ED52: 0 | EE52: 0 | EF52: 0 | EG52: 0 | EH52: 0
A53: 1925-02-28 | B53: =INDIRECT(CONCATENATE("'",B$1,"'!",B$4,(YEAR($A53)-1921)*12+MONTH($A53)+3+IF(ISNUMBER(FIND("PRV",B$6)),1,0)))*IF(AND(B$3>0,TRIM(B$9)="CFS"),Conv_Flags!$C53,1) -> 0 | C53: =INDIRECT(CONCATENATE("'",C$1,"'!",C$4,(YEAR($A53)-1921)*12+MONTH($A53)+3+IF(ISNUMBER(FIND("PRV",C$6)),1,0)))*IF(AND(C$3>0,TRIM(C$9)="CFS"),Conv_Flags!$C53,1) -> 0 | D53: =INDIRECT(CONCATENATE("'",D$1,"'!",D$4,(YEAR($A53)-1921)*12+MONTH($A53)+3+IF(ISNUMBER(FIND("PRV",D$6)),1,0)))*IF(AND(D$3>0,TRIM(D$9)="CFS"),Conv_Flags!$C53,1) -> 0 | E53: =INDIRECT(CONCATENATE("'",E$1,"'!",E$4,(YEAR($A53)-1921)*12+MONTH($A53)+3+IF(ISNUMBER(FIND("PRV",E$6)),1,0)))*IF(AND(E$3>0,TRIM(E$9)="CFS"),Conv_Flags!$C53,1) -> 0 | F53: =INDIRECT(CONCATENATE("'",F$1,"'!",F$4,(YEAR($A53)-1921)*12+MONTH($A53)+3+IF(ISNUMBER(FIND("PRV",F$6)),1,0)))*IF(AND(F$3>0,TRIM(F$9)="CFS"),Conv_Flags!$C53,1) -> 0 | J53: 1963 | K53: =B505 -> 0 | L53: =B506 -> 0 | M53: =B507 -> 0 | N53: =B508 -> 0 | O53: =B509 -> 0 | P53: =B510 -> 0 | Q53: =B511 -> 0 | R53: =B512 -> 0 | S53: =B513 -> 0 | T53: =B514 -> 0 | U53: =B515 -> 0 | V53: =B516 -> 0 | X53: 0 | Y53: 0 | Z53: 0 | AB53: 0 | AC53: 0 | AD53: 0 | AE53: 0 | AF53: 0 | AG53: 0 | AH53: 0 | AJ53: 1963 | AK53: ='Compile Data'!C505 -> 1.779114152 | AL53: ='Compile Data'!C506 -> 0 | AM53: ='Compile Data'!C507 -> 0 | AN53: ='Compile Data'!C508 -> 0 | AO53: ='Compile Data'!C509 -> 0 | AP53: ='Compile Data'!C510 -> 0 | AQ53: ='Compile Data'!C511 -> 0 | AR53: ='Compile Data'!C512 -> 0 | AS53: ='Compile Data'!C513 -> 0 | AT53: ='Compile Data'!C514 -> 2.5 | AU53: ='Compile Data'!C515 -> 30.0862069 | AV53: ='Compile Data'!C516 -> 11.36109945 | AX53: 61.79854602 | AY53: 61.79854602 | AZ53: 45.7264205 | BB53: 0 | BC53: 41.44730635 | BD53: 1.779114152 | BE53: 0 | BF53: 0 | BG53: 43.94730635 | BH53: 11.36109945 | BJ53: 1963 | BK53: ='Compile Data'!D505 -> 2.440905988 | BL53: ='Compile Data'!D506 -> 0 | BM53: ='Compile Data'!D507 -> 0 | BN53: ='Compile Data'!D508 -> 0 | BO53: ='Compile Data'!D509 -> 0 | BP53: ='Compile Data'!D510 -> 0 | BQ53: ='Compile Data'!D511 -> 0 | BR53: ='Compile Data'!D512 -> 0 | BS53: ='Compile Data'!D513 -> 0 | BT53: ='Compile Data'!D514 -> 2.5 | BU53: ='Compile Data'!D515 -> 30.0862069 | BV53: ='Compile Data'!D516 -> 16.69382348 | BX53: 67.13127005 | BY53: 67.13127005 | BZ53: 51.72093637 | CB53: 0 | CC53: 46.78003038 | CD53: 2.440905988 | CE53: 0 | CF53: 0 | CG53: 49.28003038 | CH53: 16.69382348 | CJ53: 1963 | CK53: ='Compile Data'!E505 -> 0 | CL53: ='Compile Data'!E506 -> 0 | CM53: ='Compile Data'!E507 -> 0 | CN53: ='Compile Data'!E508 -> 0 | CO53: ='Compile Data'!E509 -> 0 | CP53: ='Compile Data'!E510 -> 0 | CQ53: ='Compile Data'!E511 -> 0 | CR53: ='Compile Data'!E512 -> 0 | CS53: ='Compile Data'!E513 -> 0 | CT53: ='Compile Data'!E514 -> 0 | CU53: ='Compile Data'!E515 -> 0 | CV53: ='Compile Data'!E516 -> 0 | CX53: 0 | CY53: 0 | CZ53: 0 | DB53: 0 | DC53: 0 | DD53: 0 | DE53: 0 | DF53: 0 | DG53: 0 | DH53: 0 | DJ53: 1963 | DK53: ='Compile Data'!F505 -> 0 | DL53: ='Compile Data'!F506 -> 0 | DM53: ='Compile Data'!F507 -> 0 | DN53: ='Compile Data'!F508 -> 0 | DO53: ='Compile Data'!F509 -> 0 | DP53: ='Compile Data'!F510 -> 0 | DQ53: ='Compile Data'!F511 -> 0 | DR53: ='Compile Data'!F512 -> 0 | DS53: ='Compile Data'!F513 -> 0 | DT53: ='Compile Data'!F514 -> 0 | DU53: ='Compile Data'!F515 -> 0 | DV53: ='Compile Data'!F516 -> 0 | DX53: 0 | DY53: 0 | DZ53: 0 | EB53: 0 | EC53: 0 | ED53: 0 | EE53: 0 | EF53: 0 | EG53: 0 | EH53: 0
A54: 1925-03-31 | B54: =INDIRECT(CONCATENATE("'",B$1,"'!",B$4,(YEAR($A54)-1921)*12+MONTH($A54)+3+IF(ISNUMBER(FIND("PRV",B$6)),1,0)))*IF(AND(B$3>0,TRIM(B$9)="CFS"),Conv_Flags!$C54,1) -> 0 | C54: =INDIRECT(CONCATENATE("'",C$1,"'!",C$4,(YEAR($A54)-1921)*12+MONTH($A54)+3+IF(ISNUMBER(FIND("PRV",C$6)),1,0)))*IF(AND(C$3>0,TRIM(C$9)="CFS"),Conv_Flags!$C54,1) -> 0 | D54: =INDIRECT(CONCATENATE("'",D$1,"'!",D$4,(YEAR($A54)-1921)*12+MONTH($A54)+3+IF(ISNUMBER(FIND("PRV",D$6)),1,0)))*IF(AND(D$3>0,TRIM(D$9)="CFS"),Conv_Flags!$C54,1) -> 0 | E54: =INDIRECT(CONCATENATE("'",E$1,"'!",E$4,(YEAR($A54)-1921)*12+MONTH($A54)+3+IF(ISNUMBER(FIND("PRV",E$6)),1,0)))*IF(AND(E$3>0,TRIM(E$9)="CFS"),Conv_Flags!$C54,1) -> 0 | F54: =INDIRECT(CONCATENATE("'",F$1,"'!",F$4,(YEAR($A54)-1921)*12+MONTH($A54)+3+IF(ISNUMBER(FIND("PRV",F$6)),1,0)))*IF(AND(F$3>0,TRIM(F$9)="CFS"),Conv_Flags!$C54,1) -> 0 | J54: 1964 | K54: =B517 -> 0 | L54: =B518 -> 0 | M54: =B519 -> 0 | N54: =B520 -> 0 | O54: =B521 -> 0 | P54: =B522 -> 0 | Q54: =B523 -> 0 | R54: =B524 -> 0 | S54: =B525 -> 0 | T54: =B526 -> 0 | U54: =B527 -> 0 | V54: =B528 -> 0 | X54: 0 | Y54: 0 | Z54: 0 | AB54: 0 | AC54: 0 | AD54: 0 | AE54: 0 | AF54: 0 | AG54: 0 | AH54: 0 | AJ54: 1964 | AK54: ='Compile Data'!C517 -> 0 | AL54: ='Compile Data'!C518 -> 0 | AM54: ='Compile Data'!C519 -> 17.85123967 | AN54: ='Compile Data'!C520 -> 0 | AO54: ='Compile Data'!C521 -> 0 | AP54: ='Compile Data'!C522 -> 1.451288767 | AQ54: ='Compile Data'!C523 -> 29.93157186 | AR54: ='Compile Data'!C524 -> 14.60806451 | AS54: ='Compile Data'!C525 -> 14.92165641 | AT54: ='Compile Data'!C526 -> 125.6714245 | AU54: ='Compile Data'!C527 -> 72.36107063 | AV54: ='Compile Data'!C528 -> 18.43888321 | AX54: 296.3315109 | AY54: 296.3315109 | AZ54: 295.2351995 | BB54: 19.30252844 | BC54: 108.0150373 | BD54: 17.85123967 | BE54: 17.85123967 | BF54: 60.91258155 | BG54: 231.3930347 | BH54: 37.38643422 | BJ54: 1964 | BK54: ='Compile Data'!D517 -> 0 | BL54: ='Compile Data'!D518 -> 0 | BM54: ='Compile Data'!D519 -> 17.85123967 | BN54: ='Compile Data'!D520 -> 0 | BO54: ='Compile Data'!D521 -> 0 | BP54: ='Compile Data'!D522 -> 1.436953588 | BQ54: ='Compile Data'!D523 -> 29.81224776 | BR54: ='Compile Data'!D524 -> 14.4637726 | BS54: ='Compile Data'!D525 -> 29.44941761 | BT54: ='Compile Data'!D526 -> 131.0915394 | BU54: ='Compile Data'!D527 -> 71.10794242 | BV54: ='Compile Data'!D528 -> 18.63625515 | BX54: 318.9549184 | BY54: 318.9549184 | BZ54: 313.8493682 | CB54: 19.28819326 | CC54: 107.8657947 | CD54: 17.85123967 | CE54: 17.85123967 | CF54: 75.16239155 | CG54: 250.2851546 | CH54: 41.593045 | CJ54: 1964 | CK54: ='Compile Data'!E517 -> 0 | CL54: ='Compile Data'!E518 -> 0 | CM54: ='Compile Data'!E519 -> 0 | CN54: ='Compile Data'!E520 -> 0 | CO54: ='Compile Data'!E521 -> 0 | CP54: ='Compile Data'!E522 -> 0 | CQ54: ='Compile Data'!E523 -> 0 | CR54: ='Compile Data'!E524 -> 0 | CS54: ='Compile Data'!E525 -> 0 | CT54: ='Compile Data'!E526 -> 0 | CU54: ='Compile Data'!E527 -> 0 | CV54: ='Compile Data'!E528 -> 0 | CX54: 0 | CY54: 0 | CZ54: 0 | DB54: 0 | DC54: 0 | DD54: 0 | DE54: 0 | DF54: 0 | DG54: 0 | DH54: 0 | DJ54: 1964 | DK54: ='Compile Data'!F517 -> 0 | DL54: ='Compile Data'!F518 -> 0 | DM54: ='Compile Data'!F519 -> 0 | DN54: ='Compile Data'!F520 -> 0 | DO54: ='Compile Data'!F521 -> 0 | DP54: ='Compile Data'!F522 -> 0 | DQ54: ='Compile Data'!F523 -> 0 | DR54: ='Compile Data'!F524 -> 0 | DS54: ='Compile Data'!F525 -> 0 | DT54: ='Compile Data'!F526 -> 0 | DU54: ='Compile Data'!F527 -> 0 | DV54: ='Compile Data'!F528 -> 0 | DX54: 0 | DY54: 0 | DZ54: 0 | EB54: 0 | EC54: 0 | ED54: 0 | EE54: 0 | EF54: 0 | EG54: 0 | EH54: 0
A55: 1925-04-30 | B55: =INDIRECT(CONCATENATE("'",B$1,"'!",B$4,(YEAR($A55)-1921)*12+MONTH($A55)+3+IF(ISNUMBER(FIND("PRV",B$6)),1,0)))*IF(AND(B$3>0,TRIM(B$9)="CFS"),Conv_Flags!$C55,1) -> 0 | C55: =INDIRECT(CONCATENATE("'",C$1,"'!",C$4,(YEAR($A55)-1921)*12+MONTH($A55)+3+IF(ISNUMBER(FIND("PRV",C$6)),1,0)))*IF(AND(C$3>0,TRIM(C$9)="CFS"),Conv_Flags!$C55,1) -> 0 | D55: =INDIRECT(CONCATENATE("'",D$1,"'!",D$4,(YEAR($A55)-1921)*12+MONTH($A55)+3+IF(ISNUMBER(FIND("PRV",D$6)),1,0)))*IF(AND(D$3>0,TRIM(D$9)="CFS"),Conv_Flags!$C55,1) -> 0 | E55: =INDIRECT(CONCATENATE("'",E$1,"'!",E$4,(YEAR($A55)-1921)*12+MONTH($A55)+3+IF(ISNUMBER(FIND("PRV",E$6)),1,0)))*IF(AND(E$3>0,TRIM(E$9)="CFS"),Conv_Flags!$C55,1) -> 0 | F55: =INDIRECT(CONCATENATE("'",F$1,"'!",F$4,(YEAR($A55)-1921)*12+MONTH($A55)+3+IF(ISNUMBER(FIND("PRV",F$6)),1,0)))*IF(AND(F$3>0,TRIM(F$9)="CFS"),Conv_Flags!$C55,1) -> 0 | J55: 1965 | K55: =B529 -> 0 | L55: =B530 -> 0 | M55: =B531 -> 0 | N55: =B532 -> 0 | O55: =B533 -> 0 | P55: =B534 -> 0 | Q55: =B535 -> 0 | R55: =B536 -> 0 | S55: =B537 -> 0 | T55: =B538 -> 0 | U55: =B539 -> 0 | V55: =B540 -> 0 | X55: 0 | Y55: 0 | Z55: 0 | AB55: 0 | AC55: 0 | AD55: 0 | AE55: 0 | AF55: 0 | AG55: 0 | AH55: 0 | AJ55: 1965 | AK55: ='Compile Data'!C529 -> 17.21508348 | AL55: ='Compile Data'!C530 -> 1.732467529 | AM55: ='Compile Data'!C531 -> 0 | AN55: ='Compile Data'!C532 -> 0 | AO55: ='Compile Data'!C533 -> 0 | AP55: ='Compile Data'!C534 -> 0.7378142661 | AQ55: ='Compile Data'!C535 -> 4.427712153 | AR55: ='Compile Data'!C536 -> 0 | AS55: ='Compile Data'!C537 -> 2.5 | AT55: ='Compile Data'!C538 -> 2.5 | AU55: ='Compile Data'!C539 -> 31.15897126 | AV55: ='Compile Data'!C540 -> 21.28871054 | AX55: 62.61320822 | AY55: 62.61320822 | AZ55: 81.56075923 | BB55: 2.470281796 | BC55: 52.4476818 | BD55: 18.94755101 | BE55: 0 | BF55: 7.665526419 | BG55: 57.4476818 | BH55: 21.28871054 | BJ55: 1965 | BK55: ='Compile Data'!D529 -> 18.12159711 | BL55: ='Compile Data'!D530 -> 4.835192744 | BM55: ='Compile Data'!D531 -> 0 | BN55: ='Compile Data'!D532 -> 0 | BO55: ='Compile Data'!D533 -> 0 | BP55: ='Compile Data'!D534 -> 0.7356483925 | BQ55: ='Compile Data'!D535 -> 4.414714485 | BR55: ='Compile Data'!D536 -> 0 | BS55: ='Compile Data'!D537 -> 2.5 | BT55: ='Compile Data'!D538 -> 2.5 | BU55: ='Compile Data'!D539 -> 31.15897126 | BV55: ='Compile Data'!D540 -> 26.36694643 | BX55: 67.67628057 | BY55: 67.67628057 | BZ55: 90.63307042 | CB55: 5.570841137 | CC55: 57.52591769 | CD55: 22.95678985 | CE55: 0 | CF55: 7.650362878 | CG55: 62.52591769 | CH55: 26.36694643 | CJ55: 1965 | CK55: ='Compile Data'!E529 -> 0 | CL55: ='Compile Data'!E530 -> 0 | CM55: ='Compile Data'!E531 -> 0 | CN55: ='Compile Data'!E532 -> 0 | CO55: ='Compile Data'!E533 -> 0 | CP55: ='Compile Data'!E534 -> 0 | CQ55: ='Compile Data'!E535 -> 0 | CR55: ='Compile Data'!E536 -> 0 | CS55: ='Compile Data'!E537 -> 0 | CT55: ='Compile Data'!E538 -> 0 | CU55: ='Compile Data'!E539 -> 0 | CV55: ='Compile Data'!E540 -> 0 | CX55: 0 | CY55: 0 | CZ55: 0 | DB55: 0 | DC55: 0 | DD55: 0 | DE55: 0 | DF55: 0 | DG55: 0 | DH55: 0 | DJ55: 1965 | DK55: ='Compile Data'!F529 -> 0 | DL55: ='Compile Data'!F530 -> 0 | DM55: ='Compile Data'!F531 -> 0 | DN55: ='Compile Data'!F532 -> 0 | DO55: ='Compile Data'!F533 -> 0 | DP55: ='Compile Data'!F534 -> 0 | DQ55: ='Compile Data'!F535 -> 0 | DR55: ='Compile Data'!F536 -> 0 | DS55: ='Compile Data'!F537 -> 0 | DT55: ='Compile Data'!F538 -> 0 | DU55: ='Compile Data'!F539 -> 0 | DV55: ='Compile Data'!F540 -> 0 | DX55: 0 | DY55: 0 | DZ55: 0 | EB55: 0 | EC55: 0 | ED55: 0 | EE55: 0 | EF55: 0 | EG55: 0 | EH55: 0
A56: 1925-05-31 | B56: =INDIRECT(CONCATENATE("'",B$1,"'!",B$4,(YEAR($A56)-1921)*12+MONTH($A56)+3+IF(ISNUMBER(FIND("PRV",B$6)),1,0)))*IF(AND(B$3>0,TRIM(B$9)="CFS"),Conv_Flags!$C56,1) -> 0 | C56: =INDIRECT(CONCATENATE("'",C$1,"'!",C$4,(YEAR($A56)-1921)*12+MONTH($A56)+3+IF(ISNUMBER(FIND("PRV",C$6)),1,0)))*IF(AND(C$3>0,TRIM(C$9)="CFS"),Conv_Flags!$C56,1) -> 0 | D56: =INDIRECT(CONCATENATE("'",D$1,"'!",D$4,(YEAR($A56)-1921)*12+MONTH($A56)+3+IF(ISNUMBER(FIND("PRV",D$6)),1,0)))*IF(AND(D$3>0,TRIM(D$9)="CFS"),Conv_Flags!$C56,1) -> 0 | E56: =INDIRECT(CONCATENATE("'",E$1,"'!",E$4,(YEAR($A56)-1921)*12+MONTH($A56)+3+IF(ISNUMBER(FIND("PRV",E$6)),1,0)))*IF(AND(E$3>0,TRIM(E$9)="CFS"),Conv_Flags!$C56,1) -> 0 | F56: =INDIRECT(CONCATENATE("'",F$1,"'!",F$4,(YEAR($A56)-1921)*12+MONTH($A56)+3+IF(ISNUMBER(FIND("PRV",F$6)),1,0)))*IF(AND(F$3>0,TRIM(F$9)="CFS"),Conv_Flags!$C56,1) -> 0 | J56: 1966 | K56: =B541 -> 0 | L56: =B542 -> 0 | M56: =B543 -> 0 | N56: =B544 -> 0 | O56: =B545 -> 0 | P56: =B546 -> 0 | Q56: =B547 -> 0 | R56: =B548 -> 0 | S56: =B549 -> 0 | T56: =B550 -> 0 | U56: =B551 -> 0 | V56: =B552 -> 0 | X56: 0 | Y56: 0 | Z56: 0 | AB56: 0 | AC56: 0 | AD56: 0 | AE56: 0 | AF56: 0 | AG56: 0 | AH56: 0 | AJ56: 1966 | AK56: ='Compile Data'!C541 -> 0 | AL56: ='Compile Data'!C542 -> 0 | AM56: ='Compile Data'!C543 -> 0 | AN56: ='Compile Data'!C544 -> 0 | AO56: ='Compile Data'!C545 -> 0 | AP56: ='Compile Data'!C546 -> 0 | AQ56: ='Compile Data'!C547 -> 0 | AR56: ='Compile Data'!C548 -> 39.26525845 | AS56: ='Compile Data'!C549 -> 2.5 | AT56: ='Compile Data'!C550 -> 123.9140951 | AU56: ='Compile Data'!C551 -> 96.36291743 | AV56: ='Compile Data'!C552 -> 18.7609022 | AX56: 310.6266725 | AY56: 310.6266725 | AZ56: 280.8031732 | BB56: 0 | BC56: 141.6110618 | BD56: 0 | BE56: 0 | BF56: 41.76525845 | BG56: 241.5379148 | BH56: 48.58440152 | BJ56: 1966 | BK56: ='Compile Data'!D541 -> 0 | BL56: ='Compile Data'!D542 -> 0 | BM56: ='Compile Data'!D543 -> 0 | BN56: ='Compile Data'!D544 -> 0 | BO56: ='Compile Data'!D545 -> 0 | BP56: ='Compile Data'!D546 -> 0 | BQ56: ='Compile Data'!D547 -> 0 | BR56: ='Compile Data'!D548 -> 46.75312637 | BS56: ='Compile Data'!D549 -> 2.5 | BT56: ='Compile Data'!D550 -> 123.8696933 | BU56: ='Compile Data'!D551 -> 97.06579261 | BV56: ='Compile Data'!D552 -> 21.94121938 | BX56: 333.5352489 | BY56: 333.5352489 | BZ56: 292.1298317 | CB56: 0 | CC56: 157.0124292 | CD56: 0 | CE56: 0 | CF56: 49.25312637 | CG56: 245.3767053 | CH56: 61.68663656 | CJ56: 1966 | CK56: ='Compile Data'!E541 -> 0 | CL56: ='Compile Data'!E542 -> 0 | CM56: ='Compile Data'!E543 -> 0 | CN56: ='Compile Data'!E544 -> 0 | CO56: ='Compile Data'!E545 -> 0 | CP56: ='Compile Data'!E546 -> 0 | CQ56: ='Compile Data'!E547 -> 0 | CR56: ='Compile Data'!E548 -> 0 | CS56: ='Compile Data'!E549 -> 0 | CT56: ='Compile Data'!E550 -> 0 | CU56: ='Compile Data'!E551 -> 0 | CV56: ='Compile Data'!E552 -> 0 | CX56: 0 | CY56: 0 | CZ56: 0 | DB56: 0 | DC56: 0 | DD56: 0 | DE56: 0 | DF56: 0 | DG56: 0 | DH56: 0 | DJ56: 1966 | DK56: ='Compile Data'!F541 -> 0 | DL56: ='Compile Data'!F542 -> 0 | DM56: ='Compile Data'!F543 -> 0 | DN56: ='Compile Data'!F544 -> 0 | DO56: ='Compile Data'!F545 -> 0 | DP56: ='Compile Data'!F546 -> 0 | DQ56: ='Compile Data'!F547 -> 0 | DR56: ='Compile Data'!F548 -> 0 | DS56: ='Compile Data'!F549 -> 0 | DT56: ='Compile Data'!F550 -> 0 | DU56: ='Compile Data'!F551 -> 0 | DV56: ='Compile Data'!F552 -> 0 | DX56: 0 | DY56: 0 | DZ56: 0 | EB56: 0 | EC56: 0 | ED56: 0 | EE56: 0 | EF56: 0 | EG56: 0 | EH56: 0
A57: 1925-06-30 | B57: =INDIRECT(CONCATENATE("'",B$1,"'!",B$4,(YEAR($A57)-1921)*12+MONTH($A57)+3+IF(ISNUMBER(FIND("PRV",B$6)),1,0)))*IF(AND(B$3>0,TRIM(B$9)="CFS"),Conv_Flags!$C57,1) -> 0 | C57: =INDIRECT(CONCATENATE("'",C$1,"'!",C$4,(YEAR($A57)-1921)*12+MONTH($A57)+3+IF(ISNUMBER(FIND("PRV",C$6)),1,0)))*IF(AND(C$3>0,TRIM(C$9)="CFS"),Conv_Flags!$C57,1) -> 11.89932374 | D57: =INDIRECT(CONCATENATE("'",D$1,"'!",D$4,(YEAR($A57)-1921)*12+MONTH($A57)+3+IF(ISNUMBER(FIND("PRV",D$6)),1,0)))*IF(AND(D$3>0,TRIM(D$9)="CFS"),Conv_Flags!$C57,1) -> 15.13970655 | E57: =INDIRECT(CONCATENATE("'",E$1,"'!",E$4,(YEAR($A57)-1921)*12+MONTH($A57)+3+IF(ISNUMBER(FIND("PRV",E$6)),1,0)))*IF(AND(E$3>0,TRIM(E$9)="CFS"),Conv_Flags!$C57,1) -> 0 | F57: =INDIRECT(CONCATENATE("'",F$1,"'!",F$4,(YEAR($A57)-1921)*12+MONTH($A57)+3+IF(ISNUMBER(FIND("PRV",F$6)),1,0)))*IF(AND(F$3>0,TRIM(F$9)="CFS"),Conv_Flags!$C57,1) -> 0 | J57: 1967 | K57: =B553 -> 0 | L57: =B554 -> 0 | M57: =B555 -> 0 | N57: =B556 -> 0 | O57: =B557 -> 0 | P57: =B558 -> 0 | Q57: =B559 -> 0 | R57: =B560 -> 0 | S57: =B561 -> 0 | T57: =B562 -> 0 | U57: =B563 -> 0 | V57: =B564 -> 0 | X57: 0 | Y57: 0 | Z57: 0 | AB57: 0 | AC57: 0 | AD57: 0 | AE57: 0 | AF57: 0 | AG57: 0 | AH57: 0 | AJ57: 1967 | AK57: ='Compile Data'!C553 -> 26.48724212 | AL57: ='Compile Data'!C554 -> 3.336257198 | AM57: ='Compile Data'!C555 -> 0 | AN57: ='Compile Data'!C556 -> 0 | AO57: ='Compile Data'!C557 -> 0 | AP57: ='Compile Data'!C558 -> 0 | AQ57: ='Compile Data'!C559 -> 0 | AR57: ='Compile Data'!C560 -> 0 | AS57: ='Compile Data'!C561 -> 0 | AT57: ='Compile Data'!C562 -> 0 | AU57: ='Compile Data'!C563 -> 0 | AV57: ='Compile Data'!C564 -> 27.5862069 | AX57: 73.02365347 | AY57: 73.02365347 | AZ57: 57.40970621 | BB57: 3.336257198 | BC57: 55.1724138 | BD57: 29.82349932 | BE57: 0 | BF57: 0 | BG57: 27.5862069 | BH57: 55.1724138 | BJ57: 1967 | BK57: ='Compile Data'!D553 -> 38.00541718 | BL57: ='Compile Data'!D554 -> 1.74 | BM57: ='Compile Data'!D555 -> 1.66 | BN57: ='Compile Data'!D556 -> 0 | BO57: ='Compile Data'!D557 -> 0 | BP57: ='Compile Data'!D558 -> 0 | BQ57: ='Compile Data'!D559 -> 0 | BR57: ='Compile Data'!D560 -> 0 | BS57: ='Compile Data'!D561 -> 0 | BT57: ='Compile Data'!D562 -> 0 | BU57: ='Compile Data'!D563 -> 0 | BV57: ='Compile Data'!D564 -> 27.5862069 | BX57: 73.02365347 | BY57: 73.02365347 | BZ57: 68.99162408 | CB57: 3.4 | CC57: 55.1724138 | CD57: 41.40541718 | CE57: 1.66 | CF57: 0 | CG57: 27.5862069 | CH57: 55.1724138 | CJ57: 1967 | CK57: ='Compile Data'!E553 -> 0 | CL57: ='Compile Data'!E554 -> 0 | CM57: ='Compile Data'!E555 -> 0 | CN57: ='Compile Data'!E556 -> 0 | CO57: ='Compile Data'!E557 -> 0 | CP57: ='Compile Data'!E558 -> 0 | CQ57: ='Compile Data'!E559 -> 0 | CR57: ='Compile Data'!E560 -> 0 | CS57: ='Compile Data'!E561 -> 0 | CT57: ='Compile Data'!E562 -> 0 | CU57: ='Compile Data'!E563 -> 0 | CV57: ='Compile Data'!E564 -> 0 | CX57: 0 | CY57: 0 | CZ57: 0 | DB57: 0 | DC57: 0 | DD57: 0 | DE57: 0 | DF57: 0 | DG57: 0 | DH57: 0 | DJ57: 1967 | DK57: ='Compile Data'!F553 -> 0 | DL57: ='Compile Data'!F554 -> 0 | DM57: ='Compile Data'!F555 -> 0 | DN57: ='Compile Data'!F556 -> 0 | DO57: ='Compile Data'!F557 -> 0 | DP57: ='Compile Data'!F558 -> 0 | DQ57: ='Compile Data'!F559 -> 0 | DR57: ='Compile Data'!F560 -> 0 | DS57: ='Compile Data'!F561 -> 0 | DT57: ='Compile Data'!F562 -> 0 | DU57: ='Compile Data'!F563 -> 0 | DV57: ='Compile Data'!F564 -> 0 | DX57: 0 | DY57: 0 | DZ57: 0 | EB57: 0 | EC57: 0 | ED57: 0 | EE57: 0 | EF57: 0 | EG57: 0 | EH57: 0
A58: 1925-07-31 | B58: =INDIRECT(CONCATENATE("'",B$1,"'!",B$4,(YEAR($A58)-1921)*12+MONTH($A58)+3+IF(ISNUMBER(FIND("PRV",B$6)),1,0)))*IF(AND(B$3>0,TRIM(B$9)="CFS"),Conv_Flags!$C58,1) -> 0 | C58: =INDIRECT(CONCATENATE("'",C$1,"'!",C$4,(YEAR($A58)-1921)*12+MONTH($A58)+3+IF(ISNUMBER(FIND("PRV",C$6)),1,0)))*IF(AND(C$3>0,TRIM(C$9)="CFS"),Conv_Flags!$C58,1) -> 57.83884298 | D58: =INDIRECT(CONCATENATE("'",D$1,"'!",D$4,(YEAR($A58)-1921)*12+MONTH($A58)+3+IF(ISNUMBER(FIND("PRV",D$6)),1,0)))*IF(AND(D$3>0,TRIM(D$9)="CFS"),Conv_Flags!$C58,1) -> 57.83884298 | E58: =INDIRECT(CONCATENATE("'",E$1,"'!",E$4,(YEAR($A58)-1921)*12+MONTH($A58)+3+IF(ISNUMBER(FIND("PRV",E$6)),1,0)))*IF(AND(E$3>0,TRIM(E$9)="CFS"),Conv_Flags!$C58,1) -> 0 | F58: =INDIRECT(CONCATENATE("'",F$1,"'!",F$4,(YEAR($A58)-1921)*12+MONTH($A58)+3+IF(ISNUMBER(FIND("PRV",F$6)),1,0)))*IF(AND(F$3>0,TRIM(F$9)="CFS"),Conv_Flags!$C58,1) -> 0 | J58: 1968 | K58: =B565 -> 0 | L58: =B566 -> 0 | M58: =B567 -> 0 | N58: =B568 -> 0 | O58: =B569 -> 0 | P58: =B570 -> 0 | Q58: =B571 -> 0 | R58: =B572 -> 0 | S58: =B573 -> 0 | T58: =B574 -> 0 | U58: =B575 -> 0 | V58: =B576 -> 0 | X58: 0 | Y58: 0 | Z58: 0 | AB58: 0 | AC58: 0 | AD58: 0 | AE58: 0 | AF58: 0 | AG58: 0 | AH58: 0 | AJ58: 1968 | AK58: ='Compile Data'!C565 -> 27.5862069 | AL58: ='Compile Data'!C566 -> 0 | AM58: ='Compile Data'!C567 -> 17.85123967 | AN58: ='Compile Data'!C568 -> 0 | AO58: ='Compile Data'!C569 -> 0 | AP58: ='Compile Data'!C570 -> 0 | AQ58: ='Compile Data'!C571 -> 0.228263962 | AR58: ='Compile Data'!C572 -> 0 | AS58: ='Compile Data'!C573 -> 88.92612186 | AT58: ='Compile Data'!C574 -> 127.2183184 | AU58: ='Compile Data'!C575 -> 54.45105535 | AV58: ='Compile Data'!C576 -> 45.67427816 | AX58: 356.015376 | AY58: 356.015376 | AZ58: 361.9354843 | BB58: 17.85123967 | BC58: 120.131432 | BD58: 45.43744657 | BE58: 17.85123967 | BF58: 89.15438582 | BG58: 316.2697738 | BH58: 83.53161636 | BJ58: 1968 | BK58: ='Compile Data'!D565 -> 27.5862069 | BL58: ='Compile Data'!D566 -> 0 | BM58: ='Compile Data'!D567 -> 17.85123967 | BN58: ='Compile Data'!D568 -> 0 | BO58: ='Compile Data'!D569 -> 0 | BP58: ='Compile Data'!D570 -> 0 | BQ58: ='Compile Data'!D571 -> 0.228263962 | BR58: ='Compile Data'!D572 -> 0 | BS58: ='Compile Data'!D573 -> 88.92612186 | BT58: ='Compile Data'!D574 -> 127.2183184 | BU58: ='Compile Data'!D575 -> 54.2541763 | BV58: ='Compile Data'!D576 -> 49.81254324 | BX58: 387.5429689 | BY58: 387.5429689 | BZ58: 365.8768704 | CB58: 17.85123967 | CC58: 151.659025 | CD58: 45.43744657 | CE58: 17.85123967 | CF58: 89.15438582 | CG58: 320.2111598 | CH58: 115.2560883 | CJ58: 1968 | CK58: ='Compile Data'!E565 -> 0 | CL58: ='Compile Data'!E566 -> 0 | CM58: ='Compile Data'!E567 -> 0 | CN58: ='Compile Data'!E568 -> 0 | CO58: ='Compile Data'!E569 -> 0 | CP58: ='Compile Data'!E570 -> 0 | CQ58: ='Compile Data'!E571 -> 0 | CR58: ='Compile Data'!E572 -> 0 | CS58: ='Compile Data'!E573 -> 0 | CT58: ='Compile Data'!E574 -> 0 | CU58: ='Compile Data'!E575 -> 0 | CV58: ='Compile Data'!E576 -> 0 | CX58: 0 | CY58: 0 | CZ58: 0 | DB58: 0 | DC58: 0 | DD58: 0 | DE58: 0 | DF58: 0 | DG58: 0 | DH58: 0 | DJ58: 1968 | DK58: ='Compile Data'!F565 -> 0 | DL58: ='Compile Data'!F566 -> 0 | DM58: ='Compile Data'!F567 -> 0 | DN58: ='Compile Data'!F568 -> 0 | DO58: ='Compile Data'!F569 -> 0 | DP58: ='Compile Data'!F570 -> 0 | DQ58: ='Compile Data'!F571 -> 0 | DR58: ='Compile Data'!F572 -> 0 | DS58: ='Compile Data'!F573 -> 0 | DT58: ='Compile Data'!F574 -> 0 | DU58: ='Compile Data'!F575 -> 0 | DV58: ='Compile Data'!F576 -> 0 | DX58: 0 | DY58: 0 | DZ58: 0 | EB58: 0 | EC58: 0 | ED58: 0 | EE58: 0 | EF58: 0 | EG58: 0 | EH58: 0
A59: 1925-08-31 | B59: =INDIRECT(CONCATENATE("'",B$1,"'!",B$4,(YEAR($A59)-1921)*12+MONTH($A59)+3+IF(ISNUMBER(FIND("PRV",B$6)),1,0)))*IF(AND(B$3>0,TRIM(B$9)="CFS"),Conv_Flags!$C59,1) -> 0 | C59: =INDIRECT(CONCATENATE("'",C$1,"'!",C$4,(YEAR($A59)-1921)*12+MONTH($A59)+3+IF(ISNUMBER(FIND("PRV",C$6)),1,0)))*IF(AND(C$3>0,TRIM(C$9)="CFS"),Conv_Flags!$C59,1) -> 57.08957987 | D59: =INDIRECT(CONCATENATE("'",D$1,"'!",D$4,(YEAR($A59)-1921)*12+MONTH($A59)+3+IF(ISNUMBER(FIND("PRV",D$6)),1,0)))*IF(AND(D$3>0,TRIM(D$9)="CFS"),Conv_Flags!$C59,1) -> 117.2054473 | E59: =INDIRECT(CONCATENATE("'",E$1,"'!",E$4,(YEAR($A59)-1921)*12+MONTH($A59)+3+IF(ISNUMBER(FIND("PRV",E$6)),1,0)))*IF(AND(E$3>0,TRIM(E$9)="CFS"),Conv_Flags!$C59,1) -> 0 | F59: =INDIRECT(CONCATENATE("'",F$1,"'!",F$4,(YEAR($A59)-1921)*12+MONTH($A59)+3+IF(ISNUMBER(FIND("PRV",F$6)),1,0)))*IF(AND(F$3>0,TRIM(F$9)="CFS"),Conv_Flags!$C59,1) -> 0 | J59: 1969 | K59: =B577 -> 0 | L59: =B578 -> 0 | M59: =B579 -> 0 | N59: =B580 -> 0 | O59: =B581 -> 0 | P59: =B582 -> 0 | Q59: =B583 -> 0 | R59: =B584 -> 0 | S59: =B585 -> 0 | T59: =B586 -> 0 | U59: =B587 -> 0 | V59: =B588 -> 0 | X59: 0 | Y59: 0 | Z59: 0 | AB59: 0 | AC59: 0 | AD59: 0 | AE59: 0 | AF59: 0 | AG59: 0 | AH59: 0 | AJ59: 1969 | AK59: ='Compile Data'!C577 -> 20.00609854 | AL59: ='Compile Data'!C578 -> 17.85123967 | AM59: ='Compile Data'!C579 -> 1.66 | AN59: ='Compile Data'!C580 -> 0 | AO59: ='Compile Data'!C581 -> 0 | AP59: ='Compile Data'!C582 -> 0 | AQ59: ='Compile Data'!C583 -> 0 | AR59: ='Compile Data'!C584 -> 0 | AS59: ='Compile Data'!C585 -> 2.5 | AT59: ='Compile Data'!C586 -> 2.5 | AU59: ='Compile Data'!C587 -> 30.0862069 | AV59: ='Compile Data'!C588 -> 1.148694601 | AX59: 63.8211084 | AY59: 63.8211084 | AZ59: 75.75223971 | BB59: 19.51123967 | BC59: 58.8211084 | BD59: 39.51733821 | BE59: 1.66 | BF59: 2.5 | BG59: 36.2349015 | BH59: 28.7349015 | BJ59: 1969 | BK59: ='Compile Data'!D577 -> 47.59230544 | BL59: ='Compile Data'!D578 -> 17.85123967 | BM59: ='Compile Data'!D579 -> 1.66 | BN59: ='Compile Data'!D580 -> 0 | BO59: ='Compile Data'!D581 -> 0 | BP59: ='Compile Data'!D582 -> 0 | BQ59: ='Compile Data'!D583 -> 0 | BR59: ='Compile Data'!D584 -> 0 | BS59: ='Compile Data'!D585 -> 2.5 | BT59: ='Compile Data'!D586 -> 2.5 | BU59: ='Compile Data'!D587 -> 30.0862069 | BV59: ='Compile Data'!D588 -> 1.148694601 | BX59: 63.8211084 | BY59: 63.8211084 | BZ59: 103.3384466 | CB59: 19.51123967 | CC59: 58.8211084 | CD59: 67.10354511 | CE59: 1.66 | CF59: 2.5 | CG59: 36.2349015 | CH59: 28.7349015 | CJ59: 1969 | CK59: ='Compile Data'!E577 -> 0 | CL59: ='Compile Data'!E578 -> 0 | CM59: ='Compile Data'!E579 -> 0 | CN59: ='Compile Data'!E580 -> 0 | CO59: ='Compile Data'!E581 -> 0 | CP59: ='Compile Data'!E582 -> 0 | CQ59: ='Compile Data'!E583 -> 0 | CR59: ='Compile Data'!E584 -> 0 | CS59: ='Compile Data'!E585 -> 0 | CT59: ='Compile Data'!E586 -> 0 | CU59: ='Compile Data'!E587 -> 0 | CV59: ='Compile Data'!E588 -> 0 | CX59: 0 | CY59: 0 | CZ59: 0 | DB59: 0 | DC59: 0 | DD59: 0 | DE59: 0 | DF59: 0 | DG59: 0 | DH59: 0 | DJ59: 1969 | DK59: ='Compile Data'!F577 -> 0 | DL59: ='Compile Data'!F578 -> 0 | DM59: ='Compile Data'!F579 -> 0 | DN59: ='Compile Data'!F580 -> 0 | DO59: ='Compile Data'!F581 -> 0 | DP59: ='Compile Data'!F582 -> 0 | DQ59: ='Compile Data'!F583 -> 0 | DR59: ='Compile Data'!F584 -> 0 | DS59: ='Compile Data'!F585 -> 0 | DT59: ='Compile Data'!F586 -> 0 | DU59: ='Compile Data'!F587 -> 0 | DV59: ='Compile Data'!F588 -> 0 | DX59: 0 | DY59: 0 | DZ59: 0 | EB59: 0 | EC59: 0 | ED59: 0 | EE59: 0 | EF59: 0 | EG59: 0 | EH59: 0
A60: 1925-09-30 | B60: =INDIRECT(CONCATENATE("'",B$1,"'!",B$4,(YEAR($A60)-1921)*12+MONTH($A60)+3+IF(ISNUMBER(FIND("PRV",B$6)),1,0)))*IF(AND(B$3>0,TRIM(B$9)="CFS"),Conv_Flags!$C60,1) -> 0 | C60: =INDIRECT(CONCATENATE("'",C$1,"'!",C$4,(YEAR($A60)-1921)*12+MONTH($A60)+3+IF(ISNUMBER(FIND("PRV",C$6)),1,0)))*IF(AND(C$3>0,TRIM(C$9)="CFS"),Conv_Flags!$C60,1) -> 6.449678664 | D60: =INDIRECT(CONCATENATE("'",D$1,"'!",D$4,(YEAR($A60)-1921)*12+MONTH($A60)+3+IF(ISNUMBER(FIND("PRV",D$6)),1,0)))*IF(AND(D$3>0,TRIM(D$9)="CFS"),Conv_Flags!$C60,1) -> 34.68065099 | E60: =INDIRECT(CONCATENATE("'",E$1,"'!",E$4,(YEAR($A60)-1921)*12+MONTH($A60)+3+IF(ISNUMBER(FIND("PRV",E$6)),1,0)))*IF(AND(E$3>0,TRIM(E$9)="CFS"),Conv_Flags!$C60,1) -> 0 | F60: =INDIRECT(CONCATENATE("'",F$1,"'!",F$4,(YEAR($A60)-1921)*12+MONTH($A60)+3+IF(ISNUMBER(FIND("PRV",F$6)),1,0)))*IF(AND(F$3>0,TRIM(F$9)="CFS"),Conv_Flags!$C60,1) -> 0 | J60: 1970 | K60: =B589 -> 0 | L60: =B590 -> 0 | M60: =B591 -> 0 | N60: =B592 -> 0 | O60: =B593 -> 0 | P60: =B594 -> 0 | Q60: =B595 -> 0 | R60: =B596 -> 0 | S60: =B597 -> 0 | T60: =B598 -> 0 | U60: =B599 -> 0 | V60: =B600 -> 0 | X60: 0 | Y60: 0 | Z60: 0 | AB60: 0 | AC60: 0 | AD60: 0 | AE60: 0 | AF60: 0 | AG60: 0 | AH60: 0 | AJ60: 1970 | AK60: ='Compile Data'!C589 -> 27.5862069 | AL60: ='Compile Data'!C590 -> 0 | AM60: ='Compile Data'!C591 -> 0 | AN60: ='Compile Data'!C592 -> 0 | AO60: ='Compile Data'!C593 -> 0 | AP60: ='Compile Data'!C594 -> 0 | AQ60: ='Compile Data'!C595 -> 3.143025946 | AR60: ='Compile Data'!C596 -> 0 | AS60: ='Compile Data'!C597 -> 2.5 | AT60: ='Compile Data'!C598 -> 63.33024391 | AU60: ='Compile Data'!C599 -> 2.5 | AV60: ='Compile Data'!C600 -> 29.17599985 | AX60: 128.2354766 | AY60: 128.2354766 | AZ60: 128.2354766 | BB60: 0 | BC60: 59.26220675 | BD60: 27.5862069 | BE60: 0 | BF60: 5.643025946 | BG60: 97.50624376 | BH60: 56.76220675 | BJ60: 1970 | BK60: ='Compile Data'!D589 -> 27.5862069 | BL60: ='Compile Data'!D590 -> 0 | BM60: ='Compile Data'!D591 -> 0 | BN60: ='Compile Data'!D592 -> 0 | BO60: ='Compile Data'!D593 -> 0 | BP60: ='Compile Data'!D594 -> 0 | BQ60: ='Compile Data'!D595 -> 3.143025946 | BR60: ='Compile Data'!D596 -> 0 | BS60: ='Compile Data'!D597 -> 2.5 | BT60: ='Compile Data'!D598 -> 63.33024391 | BU60: ='Compile Data'!D599 -> 2.5 | BV60: ='Compile Data'!D600 -> 29.17599985 | BX60: 128.2354766 | BY60: 128.2354766 | BZ60: 128.2354766 | CB60: 0 | CC60: 59.26220675 | CD60: 27.5862069 | CE60: 0 | CF60: 5.643025946 | CG60: 97.50624376 | CH60: 56.76220675 | CJ60: 1970 | CK60: ='Compile Data'!E589 -> 0 | CL60: ='Compile Data'!E590 -> 0 | CM60: ='Compile Data'!E591 -> 0 | CN60: ='Compile Data'!E592 -> 0 | CO60: ='Compile Data'!E593 -> 0 | CP60: ='Compile Data'!E594 -> 0 | CQ60: ='Compile Data'!E595 -> 0 | CR60: ='Compile Data'!E596 -> 0 | CS60: ='Compile Data'!E597 -> 0 | CT60: ='Compile Data'!E598 -> 0 | CU60: ='Compile Data'!E599 -> 0 | CV60: ='Compile Data'!E600 -> 0 | CX60: 0 | CY60: 0 | CZ60: 0 | DB60: 0 | DC60: 0 | DD60: 0 | DE60: 0 | DF60: 0 | DG60: 0 | DH60: 0 | DJ60: 1970 | DK60: ='Compile Data'!F589 -> 0 | DL60: ='Compile Data'!F590 -> 0 | DM60: ='Compile Data'!F591 -> 0 | DN60: ='Compile Data'!F592 -> 0 | DO60: ='Compile Data'!F593 -> 0 | DP60: ='Compile Data'!F594 -> 0 | DQ60: ='Compile Data'!F595 -> 0 | DR60: ='Compile Data'!F596 -> 0 | DS60: ='Compile Data'!F597 -> 0 | DT60: ='Compile Data'!F598 -> 0 | DU60: ='Compile Data'!F599 -> 0 | DV60: ='Compile Data'!F600 -> 0 | DX60: 0 | DY60: 0 | DZ60: 0 | EB60: 0 | EC60: 0 | ED60: 0 | EE60: 0 | EF60: 0 | EG60: 0 | EH60: 0
A61: 1925-10-31 | B61: =INDIRECT(CONCATENATE("'",B$1,"'!",B$4,(YEAR($A61)-1921)*12+MONTH($A61)+3+IF(ISNUMBER(FIND("PRV",B$6)),1,0)))*IF(AND(B$3>0,TRIM(B$9)="CFS"),Conv_Flags!$C61,1) -> 0 | C61: =INDIRECT(CONCATENATE("'",C$1,"'!",C$4,(YEAR($A61)-1921)*12+MONTH($A61)+3+IF(ISNUMBER(FIND("PRV",C$6)),1,0)))*IF(AND(C$3>0,TRIM(C$9)="CFS"),Conv_Flags!$C61,1) -> 3.563761131 | D61: =INDIRECT(CONCATENATE("'",D$1,"'!",D$4,(YEAR($A61)-1921)*12+MONTH($A61)+3+IF(ISNUMBER(FIND("PRV",D$6)),1,0)))*IF(AND(D$3>0,TRIM(D$9)="CFS"),Conv_Flags!$C61,1) -> 16.86230149 | E61: =INDIRECT(CONCATENATE("'",E$1,"'!",E$4,(YEAR($A61)-1921)*12+MONTH($A61)+3+IF(ISNUMBER(FIND("PRV",E$6)),1,0)))*IF(AND(E$3>0,TRIM(E$9)="CFS"),Conv_Flags!$C61,1) -> 0 | F61: =INDIRECT(CONCATENATE("'",F$1,"'!",F$4,(YEAR($A61)-1921)*12+MONTH($A61)+3+IF(ISNUMBER(FIND("PRV",F$6)),1,0)))*IF(AND(F$3>0,TRIM(F$9)="CFS"),Conv_Flags!$C61,1) -> 0 | J61: 1971 | K61: =B601 -> 0 | L61: =B602 -> 0 | M61: =B603 -> 0 | N61: =B604 -> 0 | O61: =B605 -> 0 | P61: =B606 -> 0 | Q61: =B607 -> 0 | R61: =B608 -> 0 | S61: =B609 -> 0 | T61: =B610 -> 0 | U61: =B611 -> 0 | V61: =B612 -> 0 | X61: 0 | Y61: 0 | Z61: 0 | AB61: 0 | AC61: 0 | AD61: 0 | AE61: 0 | AF61: 0 | AG61: 0 | AH61: 0 | AJ61: 1971 | AK61: ='Compile Data'!C601 -> 27.5862069 | AL61: ='Compile Data'!C602 -> 0 | AM61: ='Compile Data'!C603 -> 0 | AN61: ='Compile Data'!C604 -> 0 | AO61: ='Compile Data'!C605 -> 0 | AP61: ='Compile Data'!C606 -> 0.1496755163 | AQ61: ='Compile Data'!C607 -> 0 | AR61: ='Compile Data'!C608 -> 0 | AS61: ='Compile Data'!C609 -> 2.5 | AT61: ='Compile Data'!C610 -> 2.5 | AU61: ='Compile Data'!C611 -> 77.15937763 | AV61: ='Compile Data'!C612 -> 2.280259832 | AX61: 112.1755199 | AY61: 112.1755199 | AZ61: 112.1755199 | BB61: 0.1496755163 | BC61: 107.0258444 | BD61: 27.5862069 | BE61: 0 | BF61: 2.649675516 | BG61: 84.43963747 | BH61: 29.86646673 | BJ61: 1971 | BK61: ='Compile Data'!D601 -> 27.5862069 | BL61: ='Compile Data'!D602 -> 0 | BM61: ='Compile Data'!D603 -> 0 | BN61: ='Compile Data'!D604 -> 0 | BO61: ='Compile Data'!D605 -> 0 | BP61: ='Compile Data'!D606 -> 0.1496786408 | BQ61: ='Compile Data'!D607 -> 0 | BR61: ='Compile Data'!D608 -> 0 | BS61: ='Compile Data'!D609 -> 2.5 | BT61: ='Compile Data'!D610 -> 2.5 | BU61: ='Compile Data'!D611 -> 77.15937763 | BV61: ='Compile Data'!D612 -> 2.280259832 | BX61: 112.175523 | BY61: 112.175523 | BZ61: 112.175523 | CB61: 0.1496786408 | CC61: 107.0258444 | CD61: 27.5862069 | CE61: 0 | CF61: 2.649678641 | CG61: 84.43963747 | CH61: 29.86646673 | CJ61: 1971 | CK61: ='Compile Data'!E601 -> 0 | CL61: ='Compile Data'!E602 -> 0 | CM61: ='Compile Data'!E603 -> 0 | CN61: ='Compile Data'!E604 -> 0 | CO61: ='Compile Data'!E605 -> 0 | CP61: ='Compile Data'!E606 -> 0 | CQ61: ='Compile Data'!E607 -> 0 | CR61: ='Compile Data'!E608 -> 0 | CS61: ='Compile Data'!E609 -> 0 | CT61: ='Compile Data'!E610 -> 0 | CU61: ='Compile Data'!E611 -> 0 | CV61: ='Compile Data'!E612 -> 0 | CX61: 0 | CY61: 0 | CZ61: 0 | DB61: 0 | DC61: 0 | DD61: 0 | DE61: 0 | DF61: 0 | DG61: 0 | DH61: 0 | DJ61: 1971 | DK61: ='Compile Data'!F601 -> 0 | DL61: ='Compile Data'!F602 -> 0 | DM61: ='Compile Data'!F603 -> 0 | DN61: ='Compile Data'!F604 -> 0 | DO61: ='Compile Data'!F605 -> 0 | DP61: ='Compile Data'!F606 -> 0 | DQ61: ='Compile Data'!F607 -> 0 | DR61: ='Compile Data'!F608 -> 0 | DS61: ='Compile Data'!F609 -> 0 | DT61: ='Compile Data'!F610 -> 0 | DU61: ='Compile Data'!F611 -> 0 | DV61: ='Compile Data'!F612 -> 0 | DX61: 0 | DY61: 0 | DZ61: 0 | EB61: 0 | EC61: 0 | ED61: 0 | EE61: 0 | EF61: 0 | EG61: 0 | EH61: 0
A62: 1925-11-30 | B62: =INDIRECT(CONCATENATE("'",B$1,"'!",B$4,(YEAR($A62)-1921)*12+MONTH($A62)+3+IF(ISNUMBER(FIND("PRV",B$6)),1,0)))*IF(AND(B$3>0,TRIM(B$9)="CFS"),Conv_Flags!$C62,1) -> 0 | C62: =INDIRECT(CONCATENATE("'",C$1,"'!",C$4,(YEAR($A62)-1921)*12+MONTH($A62)+3+IF(ISNUMBER(FIND("PRV",C$6)),1,0)))*IF(AND(C$3>0,TRIM(C$9)="CFS"),Conv_Flags!$C62,1) -> 0 | D62: =INDIRECT(CONCATENATE("'",D$1,"'!",D$4,(YEAR($A62)-1921)*12+MONTH($A62)+3+IF(ISNUMBER(FIND("PRV",D$6)),1,0)))*IF(AND(D$3>0,TRIM(D$9)="CFS"),Conv_Flags!$C62,1) -> 0 | E62: =INDIRECT(CONCATENATE("'",E$1,"'!",E$4,(YEAR($A62)-1921)*12+MONTH($A62)+3+IF(ISNUMBER(FIND("PRV",E$6)),1,0)))*IF(AND(E$3>0,TRIM(E$9)="CFS"),Conv_Flags!$C62,1) -> 0 | F62: =INDIRECT(CONCATENATE("'",F$1,"'!",F$4,(YEAR($A62)-1921)*12+MONTH($A62)+3+IF(ISNUMBER(FIND("PRV",F$6)),1,0)))*IF(AND(F$3>0,TRIM(F$9)="CFS"),Conv_Flags!$C62,1) -> 0 | J62: 1972 | K62: =B613 -> 0 | L62: =B614 -> 0 | M62: =B615 -> 0 | N62: =B616 -> 0 | O62: =B617 -> 0 | P62: =B618 -> 0 | Q62: =B619 -> 0 | R62: =B620 -> 0 | S62: =B621 -> 0 | T62: =B622 -> 0 | U62: =B623 -> 0 | V62: =B624 -> 0 | X62: 0 | Y62: 0 | Z62: 0 | AB62: 0 | AC62: 0 | AD62: 0 | AE62: 0 | AF62: 0 | AG62: 0 | AH62: 0 | AJ62: 1972 | AK62: ='Compile Data'!C613 -> 27.5862069 | AL62: ='Compile Data'!C614 -> 0 | AM62: ='Compile Data'!C615 -> 0 | AN62: ='Compile Data'!C616 -> 0 | AO62: ='Compile Data'!C617 -> 0 | AP62: ='Compile Data'!C618 -> 2.157547359 | AQ62: ='Compile Data'!C619 -> 4.863119485 | AR62: ='Compile Data'!C620 -> 0 | AS62: ='Compile Data'!C621 -> 111.8226829 | AT62: ='Compile Data'!C622 -> 47.21144339 | AU62: ='Compile Data'!C623 -> 8.420731708 | AV62: ='Compile Data'!C624 -> 31.8262069 | AX62: 254.7527449 | AY62: 254.7527449 | AZ62: 233.8879387 | BB62: 2.157547359 | BC62: 85.29795169 | BD62: 27.5862069 | BE62: 0 | BF62: 118.8433498 | BG62: 199.2810649 | BH62: 78.61721999 | BJ62: 1972 | BK62: ='Compile Data'!D613 -> 27.5862069 | BL62: ='Compile Data'!D614 -> 0 | BM62: ='Compile Data'!D615 -> 0 | BN62: ='Compile Data'!D616 -> 0 | BO62: ='Compile Data'!D617 -> 0 | BP62: ='Compile Data'!D618 -> 2.158485176 | BQ62: ='Compile Data'!D619 -> 4.865233327 | BR62: ='Compile Data'!D620 -> 0 | BS62: ='Compile Data'!D621 -> 111.8226829 | BT62: ='Compile Data'!D622 -> 47.21308474 | BU62: ='Compile Data'!D623 -> 8.420731708 | BV62: ='Compile Data'!D624 -> 31.8262069 | BX62: 254.7574379 | BY62: 254.7574379 | BZ62: 233.8926317 | CB62: 2.158485176 | CC62: 85.29795169 | CD62: 27.5862069 | CE62: 0 | CF62: 118.8464014 | CG62: 199.2827063 | CH62: 78.61721999 | CJ62: 1972 | CK62: ='Compile Data'!E613 -> 0 | CL62: ='Compile Data'!E614 -> 0 | CM62: ='Compile Data'!E615 -> 0 | CN62: ='Compile Data'!E616 -> 0 | CO62: ='Compile Data'!E617 -> 0 | CP62: ='Compile Data'!E618 -> 0 | CQ62: ='Compile Data'!E619 -> 0 | CR62: ='Compile Data'!E620 -> 0 | CS62: ='Compile Data'!E621 -> 0 | CT62: ='Compile Data'!E622 -> 0 | CU62: ='Compile Data'!E623 -> 0 | CV62: ='Compile Data'!E624 -> 0 | CX62: 0 | CY62: 0 | CZ62: 0 | DB62: 0 | DC62: 0 | DD62: 0 | DE62: 0 | DF62: 0 | DG62: 0 | DH62: 0 | DJ62: 1972 | DK62: ='Compile Data'!F613 -> 0 | DL62: ='Compile Data'!F614 -> 0 | DM62: ='Compile Data'!F615 -> 0 | DN62: ='Compile Data'!F616 -> 0 | DO62: ='Compile Data'!F617 -> 0 | DP62: ='Compile Data'!F618 -> 0 | DQ62: ='Compile Data'!F619 -> 0 | DR62: ='Compile Data'!F620 -> 0 | DS62: ='Compile Data'!F621 -> 0 | DT62: ='Compile Data'!F622 -> 0 | DU62: ='Compile Data'!F623 -> 0 | DV62: ='Compile Data'!F624 -> 0 | DX62: 0 | DY62: 0 | DZ62: 0 | EB62: 0 | EC62: 0 | ED62: 0 | EE62: 0 | EF62: 0 | EG62: 0 | EH62: 0
A63: 1925-12-31 | B63: =INDIRECT(CONCATENATE("'",B$1,"'!",B$4,(YEAR($A63)-1921)*12+MONTH($A63)+3+IF(ISNUMBER(FIND("PRV",B$6)),1,0)))*IF(AND(B$3>0,TRIM(B$9)="CFS"),Conv_Flags!$C63,1) -> 0 | C63: =INDIRECT(CONCATENATE("'",C$1,"'!",C$4,(YEAR($A63)-1921)*12+MONTH($A63)+3+IF(ISNUMBER(FIND("PRV",C$6)),1,0)))*IF(AND(C$3>0,TRIM(C$9)="CFS"),Conv_Flags!$C63,1) -> 0 | D63: =INDIRECT(CONCATENATE("'",D$1,"'!",D$4,(YEAR($A63)-1921)*12+MONTH($A63)+3+IF(ISNUMBER(FIND("PRV",D$6)),1,0)))*IF(AND(D$3>0,TRIM(D$9)="CFS"),Conv_Flags!$C63,1) -> 0 | E63: =INDIRECT(CONCATENATE("'",E$1,"'!",E$4,(YEAR($A63)-1921)*12+MONTH($A63)+3+IF(ISNUMBER(FIND("PRV",E$6)),1,0)))*IF(AND(E$3>0,TRIM(E$9)="CFS"),Conv_Flags!$C63,1) -> 0 | F63: =INDIRECT(CONCATENATE("'",F$1,"'!",F$4,(YEAR($A63)-1921)*12+MONTH($A63)+3+IF(ISNUMBER(FIND("PRV",F$6)),1,0)))*IF(AND(F$3>0,TRIM(F$9)="CFS"),Conv_Flags!$C63,1) -> 0 | J63: 1973 | K63: =B625 -> 0 | L63: =B626 -> 0 | M63: =B627 -> 0 | N63: =B628 -> 0 | O63: =B629 -> 0 | P63: =B630 -> 0 | Q63: =B631 -> 0 | R63: =B632 -> 0 | S63: =B633 -> 0 | T63: =B634 -> 0 | U63: =B635 -> 0 | V63: =B636 -> 0 | X63: 0 | Y63: 0 | Z63: 0 | AB63: 0 | AC63: 0 | AD63: 0 | AE63: 0 | AF63: 0 | AG63: 0 | AH63: 0 | AJ63: 1973 | AK63: ='Compile Data'!C625 -> 45.05101309 | AL63: ='Compile Data'!C626 -> 1.74 | AM63: ='Compile Data'!C627 -> 1.66 | AN63: ='Compile Data'!C628 -> 0 | AO63: ='Compile Data'!C629 -> 0 | AP63: ='Compile Data'!C630 -> 0 | AQ63: ='Compile Data'!C631 -> 0 | AR63: ='Compile Data'!C632 -> 0 | AS63: ='Compile Data'!C633 -> 96.20221239 | AT63: ='Compile Data'!C634 -> 25.87341464 | AU63: ='Compile Data'!C635 -> 3.75 | AV63: ='Compile Data'!C636 -> 31.8262069 | AX63: 187.7280408 | AY63: 187.7280408 | AZ63: 206.102847 | BB63: 3.4 | BC63: 65.6524138 | BD63: 48.45101309 | BE63: 1.66 | BF63: 96.20221239 | BG63: 157.6518339 | BH63: 61.9024138 | BJ63: 1973 | BK63: ='Compile Data'!D625 -> 45.05101309 | BL63: ='Compile Data'!D626 -> 1.74 | BM63: ='Compile Data'!D627 -> 1.66 | BN63: ='Compile Data'!D628 -> 0 | BO63: ='Compile Data'!D629 -> 0 | BP63: ='Compile Data'!D630 -> 0.26 | BQ63: ='Compile Data'!D631 -> 0 | BR63: ='Compile Data'!D632 -> 0 | BS63: ='Compile Data'!D633 -> 95.6961629 | BT63: ='Compile Data'!D634 -> 25.87341464 | BU63: ='Compile Data'!D635 -> 3.75 | BV63: ='Compile Data'!D636 -> 31.8262069 | BX63: 187.4819913 | BY63: 187.4819913 | BZ63: 205.8567975 | CB63: 3.66 | CC63: 65.6524138 | CD63: 48.45101309 | CE63: 1.66 | CF63: 95.9561629 | CG63: 157.1457844 | CH63: 61.9024138 | CJ63: 1973 | CK63: ='Compile Data'!E625 -> 0 | CL63: ='Compile Data'!E626 -> 0 | CM63: ='Compile Data'!E627 -> 0 | CN63: ='Compile Data'!E628 -> 0 | CO63: ='Compile Data'!E629 -> 0 | CP63: ='Compile Data'!E630 -> 0 | CQ63: ='Compile Data'!E631 -> 0 | CR63: ='Compile Data'!E632 -> 0 | CS63: ='Compile Data'!E633 -> 0 | CT63: ='Compile Data'!E634 -> 0 | CU63: ='Compile Data'!E635 -> 0 | CV63: ='Compile Data'!E636 -> 0 | CX63: 0 | CY63: 0 | CZ63: 0 | DB63: 0 | DC63: 0 | DD63: 0 | DE63: 0 | DF63: 0 | DG63: 0 | DH63: 0 | DJ63: 1973 | DK63: ='Compile Data'!F625 -> 0 | DL63: ='Compile Data'!F626 -> 0 | DM63: ='Compile Data'!F627 -> 0 | DN63: ='Compile Data'!F628 -> 0 | DO63: ='Compile Data'!F629 -> 0 | DP63: ='Compile Data'!F630 -> 0 | DQ63: ='Compile Data'!F631 -> 0 | DR63: ='Compile Data'!F632 -> 0 | DS63: ='Compile Data'!F633 -> 0 | DT63: ='Compile Data'!F634 -> 0 | DU63: ='Compile Data'!F635 -> 0 | DV63: ='Compile Data'!F636 -> 0 | DX63: 0 | DY63: 0 | DZ63: 0 | EB63: 0 | EC63: 0 | ED63: 0 | EE63: 0 | EF63: 0 | EG63: 0 | EH63: 0
